Workbook

Sheet Contents
A1: 80 | M1: ESC USE ONLY
D2: ESSENTIAL SERVICES COMMISSION
D3: Water Price Review - 2023
D4: Financial Model Template
B7: Table of Contents | F7: Water Business: | H7: =+N24 -> Westernport Water | I7: =+O24 -> WPW
B8: Section & Sheet Titles | F8: Regulatory Period: | H8: 2023-24 to 2027-28 (Fifth) | N8: [Decision] | O8: [Month] | P8: [Year] | Q8: [Version]
F9: Model Name: | H9: =I7&"_Price Review Template_"&O9&P9&Q9 -> WPW_Price Review Template_Oct2021 - v1 | N9: Draft | O9: Oct | P9: 2021 | Q9: - v1 | R9: << Select
B10: 1 | C10: Model Quality Check | F10: Decision type: | H10: =+N9&" Decision" -> Draft Decision | N10: Draft | O10: Jan | P10: 2016 | Q10: - v1
B11: 2 | C11: =+KeyAssumptionsPriceControl_FO!B1 -> Key Assumptions Price Control | N11: Final | O11: Feb | P11: 2017
B12: 3 | C12: =+Expenditure_Detail!B1 -> Expenditure - Detail | F12: Model Key: | O12: Mar | P12: 2018
B13: 4 | C13: =Opex_FO!B1 -> Operating Expenditure - Forecast | O13: Apr | P13: 2019
B14: 5 | C14: =Opex_Breakdown!B1 -> Operating Expenditure - Breakdown | G14: BLUE | H14: =+I7&" - DATA INPUT CELL" -> WPW - DATA INPUT CELL | O14: May | P14: 2020
B15: 6 | C15: =+'Capex_FO input'!B1 -> Capital Expenditure - Forecast Input | O15: Jun | P15: 2021
B16: 7 | C16: =Capex_FO_AC!B1 -> Capital Expenditure - Asset Category Breakdown | G16: PURPLE | H16: NOTES / INSTRUCTIONS | O16: Jul | P16: 2022
B17: 8 | C17: =ExpSummary_FO!B1 -> Expenditure Summary | O17: Aug | P17: 2023
B18: 9 | C18: =RollForward_FO!B1 -> Rolled forward regulatory asset base (RAB) | G18: GREY | H18: MODEL PARAMETERS / ASSUMPTIONS | O18: Sep
B19: 10 | C19: =PrevPerAdj_FO!B1 -> Previous period adjustments | O19: Oct
B20: 11 | C20: =RevenuePriceCap_FO!C1 -> Revenue forecast (price caps) | G20: WHITE | H20: FORMULA / HARDCODED VALUES | O20: Nov
B21: 12 | C21: Revenue forecast (tariff basket) | O21: Dec
B22: 13 | C22: =NotPres_FO!B1 -> Non Prescribed Services | G22: ORANGE | H22: FORMULA DIFFERENT TO ADJACENT CELL
B23: 14 | C23: ='Finance&Tax_FO'!B1 -> Cash, debt and tax assumptions | N23: [Business]
B24: 15 | C24: ='Rev&RAV_FO'!B1 -> Revenue requirement detail | G24: GREEN | H24: DATA FROM 2018 DECISION OR PERFORMANCE REPORT | N24: Westernport Water | O24: =+VLOOKUP(N24,N25:O42,2,FALSE) -> WPW
B25: 16 | C25: =Indicators_FO!B1 -> Financial indicators | N25: Barwon Water | O25: BW
B26: 17 | C26: =Outcomes!B1 -> Outcomes | G26: RED | H26: ERROR CHECK | N26: Central Highlands Water | O26: CHW
B27: 18 | C27: =GSL!B1 -> Guaranteed Service Levels (GSL) | N27: Greater Western Water | O27: GWW
B28: 19 | C28: Dashboard - Pricing | N28: Coliban Water | O28: CW
B29: 20 | C29: Dashboard - Opex | N29: East Gippsland Water | O29: EGW
B30: 21 | C30: Dashboard - Capex | N30: Gippsland Water | O30: CGW
B31: 22 | C31: Dashboard - Data | N31: Goulburn Valley Water | O31: GVW
B32: 23 | C32: Household Bill | N32: GWM Water | O32: GWMW | P32: diff model
N33: Lower Murray Water - Urban | O33: LMW-U | P33: diff model
N34: Lower Murray Water - Rural | O34: LMW-R
N35: North East Water | O35: NEW
N36: South East Water | O36: SEW
N37: South Gippsland Water | O37: SGW
N38: Southern Rural Water | O38: SRW | P38: diff model
N39: Wannon Water | O39: WNW
N40: Westernport Water | O40: WPW
N41: Yarra Valley Water | O41: YVW

Sheet Adjustments log (hidden)
A3: 1 | B3: Operating expenditure
B4: $m 2022-23
C6: 2023-24 | D6: 2024-25 | E6: 2025-26 | F6: 2026-27 | G6: 2027-28 | H6: Total
B7: Proposed - controllable operating expenditure | H7: =SUM(C7:G7) -> 0
B8: DD adjustments
B9: xx | H9: =SUM(C9:G9) -> 0
B10: xx | H10: =SUM(C10:G10) -> 0
B11: xx | H11: =SUM(C11:G11) -> 0
B12: xx | H12: =SUM(C12:G12) -> 0
B13: xx | H13: =SUM(C13:G13) -> 0
B14: FD adjustments
B15: xx | H15: =SUM(C15:G15) -> 0
B16: xx | H16: =SUM(C16:G16) -> 0
B17: xx | H17: =SUM(C17:G17) -> 0
B18: xx | H18: =SUM(C18:G18) -> 0
B19: xx | H19: 0
B20: Total adjustments | C20: =SUM(C8:C19) -> 0 | D20: 0 | E20: 0 | F20: 0 | G20: 0 | H20: 0
B21: Final decision - controllable operating expenditure | C21: =C7+C20 -> 0 | D21: 0 | E21: 0 | F21: 0 | G21: 0 | H21: 0
B23: Proposed - non-controllable operating expenditure | H23: =SUM(C23:G23) -> 0
B24: DD adjustments
B25: xx | H25: =SUM(C25:G25) -> 0
B26: xx | H26: =SUM(C26:G26) -> 0
B27: xx | H27: =SUM(C27:G27) -> 0
B28: xx | H28: =SUM(C28:G28) -> 0
B29: FD adjustments
B30: xx | H30: =SUM(C30:G30) -> 0
B31: xx | H31: =SUM(C31:G31) -> 0
B32: Total adjustments | C32: =SUM(C24:C31) -> 0 | D32: 0 | E32: 0 | F32: 0 | G32: 0 | H32: 0
B33: Final decision - non-controllable operating expenditure | C33: =C23+C32 -> 0 | D33: 0 | E33: 0 | F33: 0 | G33: 0 | H33: 0
B35: Proposed - total operating expenditure | C35: =C7+C23 -> 0 | D35: 0 | E35: 0 | F35: 0 | G35: 0 | H35: 0
B36: Total adjustments | C36: =C20+C32 -> 0 | D36: 0 | E36: 0 | F36: 0 | G36: 0 | H36: 0
B37: Final decision - total operating expenditure | C37: =SUM(C35:C36) -> 0 | D37: 0 | E37: 0 | F37: 0 | G37: 0 | H37: 0
B39: Check
A42: 2 | B42: Capital expenditure
B43: $m 2022-23
C45: 2023-24 | D45: 2024-25 | E45: 2025-26 | F45: 2026-27 | G45: 2027-28 | H45: Total
B46: Proposed - capital expenditure | H46: =SUM(C46:G46) -> 0
B47: DD adjustments
B48: xx | H48: =SUM(C48:G48) -> 0
B49: xx | H49: =SUM(C49:G49) -> 0
B50: xx | H50: =SUM(C50:G50) -> 0
B51: xx | H51: =SUM(C51:G51) -> 0
B52: FD adjustments
B53: xx | H53: =SUM(C53:G53) -> 0
B54: xx
B55: Total adjustments | C55: =SUM(C47:C54) -> 0 | D55: 0 | E55: 0 | F55: 0 | G55: 0 | H55: 0
B56: Draft decision - capital expenditure | C56: =C46+C55 -> 0 | D56: 0 | E56: 0 | F56: 0 | G56: 0 | H56: 0
B58: Check

Sheet Model Quality Check
A1: 80 | B1: Model Quality Check
B2: =+Contents!H7 -> Westernport Water
B3: Go to Table of Contents
K4: FIRST REG PERIOD | O4: SECOND REG PERIOD | T4: THIRD REG PERIOD | Y4: FOURTH REG PERIOD | AD4: FIFTH REG PERIOD | AI4: SIXTH REG PERIOD
F6: Straight Line | J6: 2006 | K6: 2007 | L6: 2008 | M6: 2009 | N6: 2010 | O6: 2011 | P6: 2012 | Q6: 2013 | R6: 2014 | S6: 2015 | T6: 2016 | U6: 2017 | V6: 2018 | W6: 2019 | X6: 2020 | Y6: 2021 | Z6: 2022 | AA6: 2023 | AB6: 2024 | AC6: 2025 | AD6: 2026 | AE6: 2027 | AF6: 2028 | AG6: 2029 | AH6: 2030 | AI6: 2031 | AJ6: 2032 | AK6: 2033
F7: Declining Balance | J7: =+CONCATENATE(J6-1,"-",RIGHT(J6,2)) -> 2005-06 | K7: 2006-07 | L7: 2007-08 | M7: 2008-09 | N7: 2009-10 | O7: 2010-11 | P7: 2011-12 | Q7: 2012-13 | R7: 2013-14 | S7: 2014-15 | T7: 2015-16 | U7: 2016-17 | V7: 2017-18 | W7: =+CONCATENATE(W6-1,"-",RIGHT(W6,2)) -> 2018-19 | X7: 2019-20 | Y7: 2020-21 | Z7: 2021-22 | AA7: 2022-23 | AB7: 2023-24 | AC7: 2024-25 | AD7: 2025-26 | AE7: 2026-27 | AF7: =+CONCATENATE(AF6-1,"-",RIGHT(AF6,2)) -> 2027-28 | AG7: 2028-29 | AH7: 2029-30 | AI7: 2030-31 | AJ7: 2031-32 | AK7: 2032-33
D9: Model ready for submission: | I9: =SUM(AA15:AK49) -> 0 | R9: (If No, please ensure that the error check is corrected at the source)
D11: All financial indicators satisfied: | I11: =SUM(AB54:AK59) -> 0
E14: 1. | F14: Opex_FO
G15: Reconciliation to 'Opex_Breakdown' tab row 37 | AB15: =Opex_FO!AC100 -> 0 | AC15: =Opex_FO!AD100 -> 0 | AD15: =Opex_FO!AE100 -> 0 | AE15: =Opex_FO!AF100 -> 0 | AF15: =Opex_FO!AG100 -> 0 | AG15: =Opex_FO!AH100 -> 0 | AH15: =Opex_FO!AI100 -> 0 | AI15: =Opex_FO!AJ100 -> 0 | AJ15: =Opex_FO!AK100 -> 0 | AK15: =Opex_FO!AL100 -> 0
E17: 2. | F17: Opex_Breakdown
G18: Reconciliation to 'Opex_FO' tab row 95 | AB18: =Opex_Breakdown!AC42 -> 0 | AC18: =Opex_Breakdown!AD42 -> 0 | AD18: =Opex_Breakdown!AE42 -> 0 | AE18: =Opex_Breakdown!AF42 -> 0 | AF18: =Opex_Breakdown!AG42 -> 0 | AG18: =Opex_Breakdown!AH42 -> 0 | AH18: =Opex_Breakdown!AI42 -> 0 | AI18: =Opex_Breakdown!AJ42 -> 0 | AJ18: =Opex_Breakdown!AK42 -> 0 | AK18: =Opex_Breakdown!AL42 -> 0
G20: Reconciliation of Opex by service and function | AB20: =Opex_Breakdown!AC27 -> 0 | AC20: =Opex_Breakdown!AD27 -> 0 | AD20: =Opex_Breakdown!AE27 -> 0 | AE20: =Opex_Breakdown!AF27 -> 0 | AF20: =Opex_Breakdown!AG27 -> 0 | AG20: =Opex_Breakdown!AH27 -> 0 | AH20: =Opex_Breakdown!AI27 -> 0 | AI20: =Opex_Breakdown!AJ27 -> 0 | AJ20: =Opex_Breakdown!AK27 -> 0 | AK20: =Opex_Breakdown!AL27 -> 0
E22: 3. | F22: Capex_FO input
G23: Reconciliation of total prescribed capex between cost driver and capital type | AB23: ='Capex_FO input'!D26 -> 0 | AC23: ='Capex_FO input'!E26 -> 0 | AD23: ='Capex_FO input'!F26 -> 0 | AE23: ='Capex_FO input'!G26 -> 0 | AF23: ='Capex_FO input'!H26 -> 0 | AG23: ='Capex_FO input'!I26 -> 0 | AH23: ='Capex_FO input'!J26 -> 0 | AI23: ='Capex_FO input'!K26 -> 0 | AJ23: ='Capex_FO input'!L26 -> 0 | AK23: ='Capex_FO input'!M26 -> 0
E25: 4. | F25: Capex_FO_AC
G26: Reconciliation to 'Capex_FO input' tab row 29 | AA26: =Capex_FO_AC!AB30 -> 0 | AB26: =Capex_FO_AC!AC30 -> 0 | AC26: =Capex_FO_AC!AD30 -> 0 | AD26: =Capex_FO_AC!AE30 -> 0 | AE26: =Capex_FO_AC!AF30 -> 0 | AF26: =Capex_FO_AC!AG30 -> 0 | AG26: =Capex_FO_AC!AH30 -> 0 | AH26: =Capex_FO_AC!AI30 -> 0 | AI26: =Capex_FO_AC!AJ30 -> 0 | AJ26: =Capex_FO_AC!AK30 -> 0 | AK26: =Capex_FO_AC!AL30 -> 0
E28: 5. | F28: RollForward_FO
G29: Reconciliation of existing assets book value to RAB | AB29: =IF(ROUND(RollForward_FO!G84,2)=ROUND(RollForward_FO!G82,2),0,1) -> 0
E31: 6. | F31: RevenuePriceCap_FO
G32: Price control - Fifth period | AB32: =IF(KeyAssumptionsPriceControl_FO!I48=1,IF(RevenuePriceCap_FO!AD34="PRICE CONTROL OK",0,1),0) -> 0 | AC32: =IF(KeyAssumptionsPriceControl_FO!I48=1,RevenuePriceCap_FO!AD34,"") -> PRICE CONTROL OK
G34: Price control - Sixth period | AB34: =IF(KeyAssumptionsPriceControl_FO!I48=1,IF(RevenuePriceCap_FO!AI34="PRICE CONTROL OK",0,1),0) -> 0 | AC34: =IF(KeyAssumptionsPriceControl_FO!I48=1,RevenuePriceCap_FO!AI34,"") -> PRICE CONTROL OK
G36: Tariff revenue reconciliation | AB36: =RevenuePriceCap_FO!AC458 -> 0 | AC36: =RevenuePriceCap_FO!AD458 -> 0 | AD36: =RevenuePriceCap_FO!AE458 -> 0 | AE36: =RevenuePriceCap_FO!AF458 -> 0 | AF36: =RevenuePriceCap_FO!AG458 -> 0 | AG36: =RevenuePriceCap_FO!AH458 -> 0 | AH36: =RevenuePriceCap_FO!AI458 -> 0 | AI36: =RevenuePriceCap_FO!AJ458 -> 0 | AJ36: =RevenuePriceCap_FO!AK458 -> 0 | AK36: =RevenuePriceCap_FO!AL458 -> 0
E38: 7. | F38: RevenueTariffBasket_FO
G39: Price control - Fifth period | AB39: =IF(KeyAssumptionsPriceControl_FO!I48=2,IF(RevenueTariffBasket_FO!AD34="PRICE CONTROL OK",0,1),0) -> 0 | AC39: =IF(KeyAssumptionsPriceControl_FO!I48=2,RevenueTariffBasket_FO!AD34,"") -> 
G41: Price control - Sixth period | AB41: =IF(KeyAssumptionsPriceControl_FO!I48=2,IF(RevenueTariffBasket_FO!AI41="PRICE CONTROL OK",0,1),0) -> 0 | AC41: =IF(KeyAssumptionsPriceControl_FO!I48=2,RevenueTariffBasket_FO!AI34,"") -> 
G43: Tariff revenue reconciliation | AB43: =RevenueTariffBasket_FO!AC458 -> 0 | AC43: =RevenueTariffBasket_FO!AD458 -> 0 | AD43: =RevenueTariffBasket_FO!AE458 -> 0 | AE43: =RevenueTariffBasket_FO!AF458 -> 0 | AF43: =RevenueTariffBasket_FO!AG458 -> 0 | AG43: =RevenueTariffBasket_FO!AH458 -> 0 | AH43: =RevenueTariffBasket_FO!AI458 -> 0 | AI43: =RevenueTariffBasket_FO!AJ458 -> 0 | AJ43: =RevenueTariffBasket_FO!AK458 -> 0 | AK43: =RevenueTariffBasket_FO!AL458 -> 0
E45: 8. | F45: Rev&RAV_FO
G46: Rolled forward RAV reconciliation | AB46: ='Rev&RAV_FO'!AC80 -> 0 | AC46: ='Rev&RAV_FO'!AD80 -> 0 | AD46: ='Rev&RAV_FO'!AE80 -> 0 | AE46: ='Rev&RAV_FO'!AF80 -> 0 | AF46: ='Rev&RAV_FO'!AG80 -> 0 | AG46: ='Rev&RAV_FO'!AH80 -> 0 | AH46: ='Rev&RAV_FO'!AI80 -> 0 | AI46: ='Rev&RAV_FO'!AJ80 -> 0 | AJ46: ='Rev&RAV_FO'!AK80 -> 0 | AK46: ='Rev&RAV_FO'!AL80 -> 0
E48: 9. | F48: GSL
G49: Reconciliation to 'Opex_Breakdown' tab row 23 | AB49: =IF(ROUND(GSL!AC40,2)=ROUND(GSL!AC39,2),0,1) -> 0 | AC49: =IF(ROUND(GSL!AD40,2)=ROUND(GSL!AD39,2),0,1) -> 0 | AD49: =IF(ROUND(GSL!AE40,2)=ROUND(GSL!AE39,2),0,1) -> 0 | AE49: =IF(ROUND(GSL!AF40,2)=ROUND(GSL!AF39,2),0,1) -> 0 | AF49: =IF(ROUND(GSL!AG40,2)=ROUND(GSL!AG39,2),0,1) -> 0 | AG49: =IF(ROUND(GSL!AH40,2)=ROUND(GSL!AH39,2),0,1) -> 0 | AH49: =IF(ROUND(GSL!AI40,2)=ROUND(GSL!AI39,2),0,1) -> 0 | AI49: =IF(ROUND(GSL!AJ40,2)=ROUND(GSL!AJ39,2),0,1) -> 0 | AJ49: =IF(ROUND(GSL!AK40,2)=ROUND(GSL!AK39,2),0,1) -> 0 | AK49: =IF(ROUND(GSL!AL40,2)=ROUND(GSL!AL39,2),0,1) -> 0
E53: 1. | F53: Primary Indicator
G54: FFO interest cover | AB54: =Indicators_FO!AC$226 -> 0 | AC54: =Indicators_FO!AD$226 -> 0 | AD54: =Indicators_FO!AE$226 -> 0 | AE54: =Indicators_FO!AF$226 -> 0 | AF54: =Indicators_FO!AG$226 -> 0 | AG54: =Indicators_FO!AH$226 -> 0 | AH54: =Indicators_FO!AI$226 -> 0 | AI54: =Indicators_FO!AJ$226 -> 0 | AJ54: =Indicators_FO!AK$226 -> 0 | AK54: =Indicators_FO!AL$226 -> 0
E56: 2. | F56: Secondary indicators
G57: Net debt / RAV | AB57: =Indicators_FO!AC$235 -> 0 | AC57: =Indicators_FO!AD$235 -> 0 | AD57: =Indicators_FO!AE$235 -> 0 | AE57: =Indicators_FO!AF$235 -> 0 | AF57: =Indicators_FO!AG$235 -> 0 | AG57: =Indicators_FO!AH$235 -> 0 | AH57: =Indicators_FO!AI$235 -> 0 | AI57: =Indicators_FO!AJ$235 -> 0 | AJ57: =Indicators_FO!AK$235 -> 0 | AK57: =Indicators_FO!AL$235 -> 0
G58: FFO / Net debt | AB58: =Indicators_FO!AC$243 -> 0 | AC58: =Indicators_FO!AD$243 -> 0 | AD58: =Indicators_FO!AE$243 -> 0 | AE58: =Indicators_FO!AF$243 -> 0 | AF58: =Indicators_FO!AG$243 -> 0 | AG58: =Indicators_FO!AH$243 -> 0 | AH58: =Indicators_FO!AI$243 -> 0 | AI58: =Indicators_FO!AJ$243 -> 0 | AJ58: =Indicators_FO!AK$243 -> 0 | AK58: =Indicators_FO!AL$243 -> 0
G59: Internal financing ratio | AB59: =Indicators_FO!AC$252 -> 0 | AC59: =Indicators_FO!AD$252 -> 0 | AD59: =Indicators_FO!AE$252 -> 0 | AE59: =Indicators_FO!AF$252 -> 0 | AF59: =Indicators_FO!AG$252 -> 0 | AG59: =Indicators_FO!AH$252 -> 0 | AH59: =Indicators_FO!AI$252 -> 0 | AI59: =Indicators_FO!AJ$252 -> 0 | AJ59: =Indicators_FO!AK$252 -> 0 | AK59: =Indicators_FO!AL$252 -> 0

Sheet KeyAssumptionsPriceControl_FO
A1: 80 | B1: Key Assumptions Price Control
B2: =+Contents!H7 -> Westernport Water
B3: Go to Table of Contents
L4: FIRST REG PERIOD | P4: SECOND REG PERIOD | U4: THIRD REG PERIOD | Z4: FOURTH REG PERIOD | AE4: FIFTH REG PERIOD | AJ4: SIXTH REG PERIOD
F6: Straight Line | K6: 2006 | L6: 2007 | M6: 2008 | N6: 2009 | O6: 2010 | P6: 2011 | Q6: 2012 | R6: 2013 | S6: 2014 | T6: 2015 | U6: 2016 | V6: 2017 | W6: 2018 | X6: 2019 | Y6: 2020 | Z6: 2021 | AA6: 2022 | AB6: 2023 | AC6: 2024 | AD6: 2025 | AE6: 2026 | AF6: 2027 | AG6: 2028 | AH6: 2029 | AI6: 2030 | AJ6: 2031 | AK6: 2032 | AL6: 2033
F7: Declining Balance | I7: 2003-04 | J7: 2004-05 | K7: =+CONCATENATE(K6-1,"-",RIGHT(K6,2)) -> 2005-06 | L7: =+CONCATENATE(L6-1,"-",RIGHT(L6,2)) -> 2006-07 | M7: 2007-08 | N7: 2008-09 | O7: 2009-10 | P7: 2010-11 | Q7: 2011-12 | R7: 2012-13 | S7: 2013-14 | T7: 2014-15 | U7: 2015-16 | V7: 2016-17 | W7: 2017-18 | X7: 2018-19 | Y7: 2019-20 | Z7: 2020-21 | AA7: 2021-22 | AB7: 2022-23 | AC7: 2023-24 | AD7: 2024-25 | AE7: 2025-26 | AF7: 2026-27 | AG7: 2027-28 | AH7: =+CONCATENATE(AH6-1,"-",RIGHT(AH6,2)) -> 2028-29 | AI7: =+CONCATENATE(AI6-1,"-",RIGHT(AI6,2)) -> 2029-30 | AJ7: =+CONCATENATE(AJ6-1,"-",RIGHT(AJ6,2)) -> 2030-31 | AK7: =+CONCATENATE(AK6-1,"-",RIGHT(AK6,2)) -> 2031-32 | AL7: =+CONCATENATE(AL6-1,"-",RIGHT(AL6,2)) -> 2032-33
E11: Inflation assumptions
AB12: Estimate
F13: March quarter annual CPI | I13: 141.3 | J13: 144.1 | K13: 147.5 | L13: 151.9 | M13: 155.6 | N13: 162.2 | O13: 166.2 | P13: 171 | Q13: 176.7 | R13: 99.9 | S13: 102.4 | T13: 105.4 | U13: 106.8 | V13: 108.2 | W13: 110.5 | X13: 112.6 | Y13: 114.1 | Z13: 116.6 | AA13: 117.9 | AB13: 123.9
F14: Inflation | J14: =+J13/I13-1 -> 0.01981599434 | K14: 0.02359472588 | L14: 0.02983050847 | M14: 0.02435813035 | N14: 0.04241645244 | O14: 0.02466091245 | P14: 0.02888086643 | Q14: 0.03333333333 | R14: 0.01584606678 | S14: =+IF(S13=0,$Z$44,S13/R13-1) -> 0.02502502503 | T14: 0.029296875 | U14: 0.01328273245 | V14: 0.01310861423 | W14: 0.02125693161 | X14: 0.01900452489 | Y14: 0.01332149201 | Z14: 0.02191060473 | AA14: 0.01114922813 | AB14: 0.05089058524 | AC14: =+IF(AC13=0,$AC$44,AC13/AB13-1) -> 0.03 | AD14: 0.03 | AE14: 0.03 | AF14: 0.03 | AG14: 0.03 | AH14: 0.03 | AI14: 0.03 | AJ14: 0.03 | AK14: 0.03 | AL14: 0.03
F15: Inflation factor | I15: 0.7871866295 | J15: 0.8027855153 | K15: 0.8217270195 | L15: 0.8462395543 | M15: 0.8668523677 | N15: 0.9036211699 | O15: 0.9259052925 | P15: 0.9526462396 | Q15: 0.9844011142 | R15: =+R13/$AB$13 -> 0.8062953995 | S15: 0.8264729621 | T15: 0.8506860371 | U15: 0.8619854722 | V15: 0.8732849072 | W15: 0.8918482647 | X15: 0.9087974173 | Y15: 0.9209039548 | Z15: 0.9410815174 | AA15: 0.9515738499 | AB15: 1 | AC15: =+AB15*(1+AC14) -> 1.03 | AD15: 1.0609 | AE15: 1.092727 | AF15: 1.12550881 | AG15: 1.159274074 | AH15: 1.194052297 | AI15: 1.229873865 | AJ15: 1.266770081 | AK15: 1.304773184 | AL15: 1.343916379
I16: CPI index re-referenced in 2012-13, shaded values have been hardcoded to lock in RAB value.
E21: Cost of debt - 10 year trailing average (Nominal)
AA22: Estimate | AB22: Estimate | AC22: Estimate | AD22: Estimate | AE22: Estimate | AF22: Estimate | AG22: Estimate | AH22: Estimate | AI22: Estimate | AJ22: Estimate | AK22: Estimate | AL22: Estimate
E23: Cost of debt | L23: 0.06981666667 | M23: 0.07414 | N23: 0.0691525788 | O23: 0.07361870984 | P23: 0.07046784142 | Q23: 0.06308887941 | R23: 0.0526945046 | S23: 0.070525 | T23: 0.05360833333 | U23: 0.05270138413 | V23: 0.04908333333 | W23: 0.045283 | X23: 0.046133 | Y23: 0.03305833333 | Z23: 0.03045 | AA23: 0.037533 | AB23: 0.037533 | AC23: 0.037533 | AD23: 0.037533 | AE23: 0.037533 | AF23: 0.037533 | AG23: 0.037533 | AH23: 0.037533 | AI23: 0.037533 | AJ23: 0.037533 | AK23: 0.037533 | AL23: 0.037533
E24: Re-financing weightings - average 10 yrs | L24: =1/10 -> 0.1 | M24: =1/10 -> 0.1 | N24: =1/10 -> 0.1 | O24: =1/10 -> 0.1 | P24: =1/10 -> 0.1 | Q24: 0.1 | R24: 0.1 | S24: 0.1 | T24: 0.1 | U24: 0.1 | V24: 0.1 | W24: 0.1 | X24: 0.1 | Y24: 0.1 | Z24: 0.1 | AA24: 0.1 | AB24: 0.1 | AC24: 0.1 | AD24: 0.1 | AE24: 0.1 | AF24: 0.1 | AG24: 0.1 | AH24: 0.1 | AI24: 0.1 | AJ24: 0.1 | AK24: 0.1 | AL24: 0.1
E26: Cost of debt - 10 year trailing average | V26: =IF(U23<>"",SUMPRODUCT(L23:U23,L24:U24),"") -> 0.06498138982 | W26: 0.06290805649 | X26: 0.06002235649 | Y26: 0.05772039861 | Z26: 0.05366436096 | AA26: 0.04966257681 | AB26: =IF(AA23<>"",SUMPRODUCT(R23:AA23,R24:AA24),"") -> 0.04710698887 | AC26: =IF(AB23<>"",SUMPRODUCT(S23:AB23,S24:AB24),"") -> 0.04559083841 | AD26: =IF(AC23<>"",SUMPRODUCT(T23:AC23,T24:AC24),"") -> 0.04229163841 | AE26: 0.04068410508 | AF26: 0.03916726667 | AG26: 0.03801223333 | AH26: 0.03723723333 | AI26: 0.03637723333 | AJ26: 0.0368247 | AK26: 0.037533 | AL26: 0.037533
E30: WACC assumptions (retained for historical purposes only) | Z30: Regulatory Rate of Return (RRR) - Nominal
K32: 1st period | M32: 2nd period | O32: 3rd period | Z32: Cost of Debt | AC32: =+AC26 -> 0.04559083841 | AD32: =+AD26 -> 0.04229163841 | AE32: 0.04068410508 | AF32: 0.03916726667 | AG32: 0.03801223333 | AH32: 0.03723723333 | AI32: 0.03637723333 | AJ32: 0.0368247 | AK32: 0.037533 | AL32: 0.037533
E33: Parameters
F34: Risk Free Rate (Real) | K34: =Determination_Lookup!W8 -> 0.0267 | M34: =Determination_Lookup!X8 -> 0.0323 | O34: =Determination_Lookup!Y8 -> 0.005959
F35: Debt Premium | K35: =Determination_Lookup!W9 -> 0.0116 | M35: =Determination_Lookup!X9 -> 0.0175 | O35: =Determination_Lookup!Y9 -> 0.0399
F36: Equity Premium | K36: =Determination_Lookup!W10 -> 0.06 | M36: =Determination_Lookup!X10 -> 0.06 | O36: =Determination_Lookup!Y10 -> 0.06 | Z36: Regulatory Rate of Return (RRR) - Real
F37: Equity Beta | K37: =Determination_Lookup!W11 -> 0.75 | M37: =Determination_Lookup!X11 -> 0.65 | O37: =Determination_Lookup!Y11 -> 0.65
F38: Gearing (Debt/Assets) | K38: =Determination_Lookup!W12 -> 0.6 | M38: =Determination_Lookup!X12 -> 0.6 | O38: =Determination_Lookup!Y12 -> 0.6 | Z38: Cost of Debt | AC38: =(1+AC32)/(1+AC44)-1 -> 0.01513673632 | AD38: =(1+AD32)/(1+AD44)-1 -> 0.01193362953 | AE38: 0.01037291755 | AF38: 0.0089002589 | AG38: 0.007778867314 | AH38: 0.007026440129 | AI38: 0.006191488673 | AJ38: 0.00662592233 | AK38: 0.007313592233 | AL38: 0.007313592233
F39: Forecast Inflation | K39: =Determination_Lookup!W13 -> 0.0255 | M39: =Determination_Lookup!X13 -> 0.029 | O39: =Determination_Lookup!Y13 -> 0.0275
F40: Franking credit value | K40: =Determination_Lookup!W14 -> 0.5 | M40: =Determination_Lookup!X14 -> 0.5 | O40: =Determination_Lookup!Y14 -> 0.5 | Z40: Return on Equity | AC40: =IF(AE64<>0,(AE64/100),IF(AE62<>0,(AE62/100),(AE60/100))) -> 0.041 | AD40: =+$AC$40 -> 0.041 | AE40: 0.041 | AF40: 0.041 | AG40: 0.041 | AH40: 0.041 | AI40: 0.041 | AJ40: 0.041 | AK40: 0.041 | AL40: 0.041
E42: 'Vanilla' After Tax WACC (Real) | K42: =ROUND(((K34+K36*K37)*(1-K38))+((K34+K35)*K38),3) -> 0.052 | M42: =ROUND(((M34+M36*M37)*(1-M38))+((M34+M35)*M38),3) -> 0.058 | O42: =ROUND(((O34+O36*O37)*(1-O38))+((O34+O35)*O38),3) -> 0.045 | Z42: RRR (real) | AC42: =ROUND((AC40*(1-AC43)+AC38*AC43),4) -> 0.0255 | AD42: 0.0236 | AE42: 0.0226 | AF42: 0.0217 | AG42: 0.0211 | AH42: 0.0206 | AI42: 0.0201 | AJ42: 0.0204 | AK42: 0.0208 | AL42: 0.0208
Z43: Gearing | AC43: 0.6 | AD43: =+AC43 -> 0.6 | AE43: 0.6 | AF43: 0.6 | AG43: 0.6 | AH43: 0.6 | AI43: 0.6 | AJ43: 0.6 | AK43: 0.6 | AL43: 0.6
Z44: Forecast Inflation | AC44: 0.03 | AD44: =+AC44 -> 0.03 | AE44: 0.03 | AF44: 0.03 | AG44: 0.03 | AH44: 0.03 | AI44: 0.03 | AJ44: 0.03 | AK44: 0.03 | AL44: 0.03
L45: Regulatory Rate of Return (RRR) [retained for historical purposes only]
E46: Form of price control selected
O47: 4th period
E48: Price caps | I48: 1 | L48: Cost of Debt | O48: =Determination_Lookup!W25 -> 0.03619001937 | Z48: PREMO Assessment Matrix (linked to Regulatory Rate of Return calculation above)
L49: Return on Equity | O49: =Determination_Lookup!W26 -> 0.045 | U49: PREMO Graded Scoring System (for reference only)
E50: Revenue cap / Hybrid Tariff Basket | L50: Gearing | O50: =Determination_Lookup!W27 -> 0.6
L51: Forecast Inflation | O51: =Determination_Lookup!W28 -> 0.023 | AB51: Water business self-assessment
L52: RRR (real) | O52: =Determination_Lookup!W29 -> 0.0397
AB53: Leading | AC53: Advanced | AD53: Standard | AE53: Basic
Z54: ESC assessment of submission | AA54: Leading | AB54: 4.9
U55: Risk | AA55: Advanced | AB55: 4.3 | AC55: 4.5
U56: Engagement | V56: [Select] | AA56: Standard | AB56: 3.7 | AC56: 3.9 | AD56: 4.1
U57: Management | V57: [Select] | AA57: Basic | AD57: 3.5 | AE57: 3.7
U58: Outcomes | V58: [Select]
U60: Total Score | Z60: Water business self-assessment (Maximum allowable ROE) | AD60: Standard | AE60: =+VLOOKUP(AD60,$AD$71:$AE$75,2,FALSE) -> 4.1
Z62: ROE Override (Must be less than Maximum allowable ROE) | AE62: =+IF(AD62<=AE60,AD62,"CHECK") -> 0
U64: Rating | Z64: ESC assessment of submission | AD64: Standard | AE64: =IFERROR(IF(AD64=AD60,AE60,VLOOKUP(AD60&AD64,AD78:AE82,2,FALSE)),0) -> 4.1
AD66: Difference | AE66: =IFERROR(IF(AE64=0,"",AE64-AE60),"") -> 0
U70: ESC USE ONLY | AD70: Business self assessment
AD71: [Select]
AD72: Leading | AE72: =+AB54 -> 4.9
AD73: Advanced | AE73: =+AC55 -> 4.5
AD74: Standard | AE74: =+AD56 -> 4.1
AD75: Basic | AE75: =+AE57 -> 3.7
AD77: downgrading
AD78: =AD53&AA57 -> StandardBasic | AE78: =+AD57 -> 3.5
AD79: =+AC53&AA56 -> AdvancedStandard | AE79: =+AC56 -> 3.9
AD80: =+AB53&AA55 -> LeadingAdvanced | AE80: =+AB55 -> 4.3
AD81: =+AB53&AA56 -> LeadingStandard | AE81: =+AB56 -> 3.7
AD82: =+AD60&"Basic" -> StandardBasic | AE82: CHECK

Sheet Expenditure_Detail
A1: 80 | B1: Expenditure - Detail
B2: =Model_Name -> Westernport Water
B3: Go to Table of Contents
L4: FIRST REG PERIOD | P4: SECOND REG PERIOD | U4: THIRD REG PERIOD | Z4: FOURTH REG PERIOD | AE4: FIFTH REG PERIOD | AJ4: SIXTH REG PERIOD
K5: 2006 | L5: 2007 | M5: 2008 | N5: 2009 | O5: 2010 | P5: 2011 | Q5: 2012 | R5: 2013 | S5: 2014 | T5: 2015 | U5: 2016 | V5: 2017 | W5: 2018 | X5: 2019 | Y5: 2020 | Z5: 2021 | AA5: 2022 | AB5: 2023 | AC5: 2024 | AD5: 2025 | AE5: 2026 | AF5: 2027 | AG5: 2028 | AH5: 2029 | AI5: 2030 | AJ5: 2031 | AK5: 2032 | AL5: 2033
B6: $m, 01/01/23 | K6: =+CONCATENATE(K5-1,"-",RIGHT(K5,2)) -> 2005-06 | L6: =+CONCATENATE(L5-1,"-",RIGHT(L5,2)) -> 2006-07 | M6: 2007-08 | N6: 2008-09 | O6: 2009-10 | P6: 2010-11 | Q6: 2011-12 | R6: 2012-13 | S6: 2013-14 | T6: 2014-15 | U6: 2015-16 | V6: 2016-17 | W6: 2017-18 | X6: 2018-19 | Y6: 2019-20 | Z6: 2020-21 | AA6: 2021-22 | AB6: 2022-23 | AC6: 2023-24 | AD6: 2024-25 | AE6: 2025-26 | AF6: 2026-27 | AG6: 2027-28 | AH6: =+CONCATENATE(AH5-1,"-",RIGHT(AH5,2)) -> 2028-29 | AI6: =+CONCATENATE(AI5-1,"-",RIGHT(AI5,2)) -> 2029-30 | AJ6: =+CONCATENATE(AJ5-1,"-",RIGHT(AJ5,2)) -> 2030-31 | AK6: =+CONCATENATE(AK5-1,"-",RIGHT(AK5,2)) -> 2031-32 | AL6: =+CONCATENATE(AL5-1,"-",RIGHT(AL5,2)) -> 2032-33
B8: This worksheet outlines the key cost drivers of operating expenditure - capitalised costs are excluded. This tab does not link to the Rev&RAV_FO worksheet
C11: Expenditure Summary
D13: Total Labour costs | W13: =W34 -> 7.572076 | X13: 7.876517 | Y13: 8.334203 | Z13: 8.537704 | AA13: 8.713 | AB13: 9.181825 | AC13: 9.135915875 | AD13: 9.090236296 | AE13: 8.994785114 | AF13: 8.904837263 | AG13: 8.81578889 | AH13: =AH34 -> 8.55650569 | AI13: =AI34 -> 8.512424344 | AJ13: =AJ34 -> 8.427300101 | AK13: =AK34 -> 8.3430271 | AL13: =AL34 -> 8.259596829
D14: Total Energy costs | W14: =W92 -> 0.69 | X14: 0.74 | Y14: 0.74 | Z14: 0.75 | AA14: 0.7501651926 | AB14: 0.7532258012 | AC14: 0.775181788 | AD14: 0.7748605694 | AE14: 0.7352734397 | AF14: =AF92 -> 0.7308336036 | AG14: 0.7437434383 | AH14: =AH92 -> 0.6886887874 | AI14: =AI92 -> 0.7024625631 | AJ14: =AJ92 -> 0.7165118144 | AK14: =AK92 -> 0.7308420507 | AL14: =AL92 -> 0.7454588917
D15: Total IT costs | W15: =W103 -> 1.3108615 | X15: 1.512107 | Y15: 1.826969 | Z15: 1.538644 | AA15: 1.6 | AB15: 1.6 | AC15: 1.772 | AD15: 1.8648 | AE15: 1.763 | AF15: 2.04705 | AG15: 2.04705 | AH15: =AH103 -> 1.6 | AI15: =AI103 -> 1.6 | AJ15: =AJ103 -> 1.6 | AK15: =AK103 -> 1.6 | AL15: =AL103 -> 1.6
D16: Total Chemical costs | W16: =W114 -> 0.303653 | X16: 0.356268 | Y16: 0.275235 | Z16: 0.352608 | AA16: 0.3478447837 | AB16: 0.332 | AC16: 0.3645437301 | AD16: 0.3645521155 | AE16: 0.3645521155 | AF16: 0.4045521155 | AG16: 0.3645521155 | AH16: =AH114 -> 0.3545437301 | AI16: =AI114 -> 0.3545521155 | AJ16: =AJ114 -> 0.3545521155 | AK16: =AK114 -> 0.3945521155 | AL16: =AL114 -> 0.3545521155
C21: Labour assumptions
D23: Current FTEs (at 30 June) | W23: 79.7 | X23: 82.09 | Y23: 83.21 | Z23: 78.15 | AA23: 79.66
D24: Actual and forecast labour costs for current FTEs ($m) | W24: 7.572076 | X24: 7.876517 | Y24: 8.334203 | Z24: 8.537704 | AA24: 8.713 | AB24: 9.181825 | AC24: 9.135915875 | AD24: 9.090236296 | AE24: 8.994785114 | AF24: 8.904837263 | AG24: 8.81578889 | AH24: 8.68614729 | AI24: 8.599285817 | AJ24: 8.513292959 | AK24: 8.42816003 | AL24: 8.343878429
D25: Cost per FTE ($000) | W25: =+W24/W23*10^3 -> 95.0072271 | X25: =+X24/X23*10^3 -> 95.94977464 | Y25: =+Y24/Y23*10^3 -> 100.1586708 | Z25: =+Z24/Z23*10^3 -> 109.247652 | AA25: =+AA24/AA23*10^3 -> 109.3773538 | AB25: =+AB24/$AA$23*10^3 -> 115.2626789 | AC25: 114.6863655 | AD25: 114.1129337 | AE25: 112.9147014 | AF25: 111.7855544 | AG25: 110.6676988 | AH25: 109.0402622 | AI25: 107.9498596 | AJ25: 106.870361 | AK25: 105.8016574 | AL25: 104.7436408
D26: Annual growth in labour costs for current FTEs | X26: =+X25/W25-1 -> 0.009920798288 | Y26: 0.04386561835 | Z26: 0.09074582403 | AA26: 0.001187227366 | AB26: 0.05380752898 | AC26: -0.005 | AD26: -0.005 | AE26: -0.01050040707 | AF26: -0.01 | AG26: -0.01 | AH26: =+AH25/AG25-1 -> -0.01470561531 | AI26: =+AI25/AH25-1 -> -0.01 | AJ26: =+AJ25/AI25-1 -> -0.01 | AK26: =+AK25/AJ25-1 -> -0.01 | AL26: =+AL25/AK25-1 -> -0.01
D28: Change in FTEs in future periods (net no. annual change) | AB28: 4.94 | AE28: -0.4
D29: Increase or decrease in labour costs ($m) | AB29: 0 | AH29: =AH24-AG24 -> -0.1296416001 | AI29: -0.0868614729 | AJ29: -0.08599285817 | AK29: -0.08513292959 | AL29: -0.0842816003
D33: Total FTEs | W33: =+W23 -> 79.7 | X33: 82.09 | Y33: 83.21 | Z33: 78.15 | AA33: 79.66 | AB33: =+$AA$23+SUM($AB28:AB28) -> 84.6 | AC33: =+$AA$23+SUM($AB28:AC28) -> 84.6 | AD33: =+$AA$23+SUM($AB28:AD28) -> 84.6 | AE33: =+$AA$23+SUM($AB28:AE28) -> 84.2 | AF33: =+$AA$23+SUM($AB28:AF28) -> 84.2 | AG33: =+$AA$23+SUM($AB28:AG28) -> 84.2 | AH33: =+$AA$23+SUM($AB28:AH28) -> 84.2 | AI33: =+$AA$23+SUM($AB28:AI28) -> 84.2 | AJ33: =+$AA$23+SUM($AB28:AJ28) -> 84.2 | AK33: =+$AA$23+SUM($AB28:AK28) -> 84.2 | AL33: =+$AA$23+SUM($AB28:AL28) -> 84.2
D34: Total labour costs ($m) | W34: 7.572076 | X34: 7.876517 | Y34: 8.334203 | Z34: 8.537704 | AA34: 8.713 | AB34: =+AB29+AB24 -> 9.181825 | AC34: 9.135915875 | AD34: 9.090236296 | AE34: 8.994785114 | AF34: 8.904837263 | AG34: 8.81578889 | AH34: 8.55650569 | AI34: 8.512424344 | AJ34: 8.427300101 | AK34: 8.3430271 | AL34: 8.259596829
D35: Cost per FTE | W35: =+W34/W33 -> 0.0950072271 | X35: 0.09594977464 | Y35: 0.1001586708 | Z35: 0.109247652 | AA35: 0.1093773538 | AB35: 0.1085322104 | AC35: 0.1079895493 | AD35: 0.1074496016 | AE35: 0.1068264265 | AF35: 0.1057581623 | AG35: 0.1047005806 | AH35: =+AH34/AH33 -> 0.1016212077 | AI35: =+AI34/AI33 -> 0.1010976763 | AJ35: =+AJ34/AJ33 -> 0.1000866995 | AK35: =+AK34/AK33 -> 0.09908583254 | AL35: =+AL34/AL33 -> 0.09809497422
D36: Annual growth in total labour costs | X36: =+X34/W34-1 -> 0.04020575071 | Y36: 0.05810766358 | Z36: 0.02441757178 | AA36: 0.02053198377 | AB36: 0.05380752898 | AC36: -0.005 | AD36: -0.005 | AE36: -0.01050040707 | AF36: -0.01 | AG36: -0.01 | AH36: =+AH34/AG34-1 -> -0.02941123063 | AI36: -0.00515179295 | AJ36: -0.01 | AK36: -0.01 | AL36: -0.01
D37: Annual growth in total labour costs per FTE | X37: =+X35/W35-1 -> 0.009920798288 | Y37: 0.04386561835 | Z37: 0.09074582403 | AA37: 0.001187227366 | AB37: -0.007726858646 | AC37: -0.005 | AD37: -0.005 | AE37: -0.005799696416 | AF37: -0.01 | AG37: -0.01 | AH37: -0.02941123063 | AI37: -0.00515179295 | AJ37: -0.01 | AK37: -0.01 | AL37: -0.01
C42: Energy assumptions
D44: Electricity - traditional sources
D46: BASE LOAD
D48: Large sites
D49: Total kWh | W49: 2871798 | X49: 3048273 | Y49: 2656451 | Z49: 2863985 | AA49: 2013196 | AB49: 2058499 | AC49: 2978468.841 | AD49: 2862984.358 | AE49: 2332507.762 | AF49: 2062499.174 | AG49: 1950565.612 | AH49: 1989576.924 | AI49: 2029368.463 | AJ49: 2069955.832 | AK49: 2111354.948 | AL49: 2153582.047
D50: Total electricity costs ($m) | W50: 0.49 | X50: 0.49 | Y50: 0.49 | Z50: 0.49 | AA50: 0.4876073752 | AB50: 0.4895967708 | AC50: 0.5038681622 | AD50: 0.5036593701 | AE50: 0.4779277358 | AF50: 0.4750418423 | AG50: 0.4834332349 | AH50: 0.4091190791 | AI50: 0.4173014607 | AJ50: 0.4256474899 | AK50: 0.4341604397 | AL50: 0.4428436485
D51: Average c/kWh | W51: =+W50/W49*100*10^6 -> 17.06248141 | X51: 16.07467573 | Y51: 18.44566303 | Z51: 17.10902815 | AA51: 24.22056149 | AB51: 23.78416365 | AC51: =+AC50/AC49*100*10^6 -> 16.91701976 | AD51: 17.59211044 | AE51: 20.4898669 | AF51: 23.03234097 | AG51: 24.78425909 | AH51: 20.56311943 | AI51: 20.56311943 | AJ51: 20.56311943 | AK51: 20.56311943 | AL51: 20.56311943
D52: % increase p.a. | X52: =+X51/W51-1 -> -0.05789343671 | Y52: =+Y51/X51-1 -> 0.1474982975 | Z52: =+Z51/Y51-1 -> -0.07246336835 | AA52: =+AA51/Z51-1 -> 0.41565969 | AB52: =+AB51/AA51-1 -> -0.01801766027 | AC52: =+AC51/AB51-1 -> -0.2887275749 | AD52: 0.03990600531 | AE52: 0.1647190925 | AF52: 0.1240844601 | AG52: 0.07606339778 | AH52: -0.1703153458 | AI52: 0 | AJ52: 0 | AK52: 0 | AL52: 0
D54: Medium sites
D55: Total kWh
D56: Total electricity costs ($m)
D57: Average c/kWh | W57: =+W56/W55*100*10^6 ->  | AC57: =+AC56/AC55*100*10^6 -> 
D58: % increase p.a. | X58: =+X57/W57-1 ->  | Y58: =+Y57/X57-1 ->  | Z58: =+Z57/Y57-1 ->  | AA58: =+AA57/Z57-1 ->  | AB58: =+AB57/AA57-1 ->  | AC58: =+AC57/AB57-1 -> 
D60: Small sites
D61: Total kWh | W61: 761202 | X61: 765010 | Y61: 776226 | Z61: 783090 | AA61: 790051.375 | AB61: 790051.375 | AC61: 805852.4025 | AD61: 821969.4505 | AE61: 838408.8396 | AF61: 855177.0164 | AG61: 872280.5567 | AH61: 889726.1678 | AI61: 907520.6912 | AJ61: 925671.105 | AK61: 944184.5271 | AL61: 963068.2176
D62: Total electricity costs ($m) | W62: 0.2 | X62: 0.25 | Y62: 0.25 | Z62: 0.26 | AA62: 0.2625578174 | AB62: 0.2636290304 | AC62: 0.2713136258 | AD62: 0.2712011993 | AE62: 0.2573457039 | AF62: 0.2557917613 | AG62: 0.2603102034 | AH62: 0.2795697083 | AI62: 0.2851611025 | AJ62: 0.2908643245 | AK62: 0.296681611 | AL62: 0.3026152432
D63: Average c/kWh | W63: =+W62/W61*100*10^6 -> 26.2742347 | X63: 32.67931138 | Y63: 32.20711494 | Z63: 33.20180311 | AA63: 33.23300556 | AB63: 33.36859333 | AC63: =+AC62/AC61*100*10^6 -> 33.66790556 | AD63: 32.99407284 | AE63: 30.6945361 | AF63: 29.91097239 | AG63: 29.84248605 | AH63: 31.42199459 | AI63: 31.42199459 | AJ63: 31.42199459 | AK63: 31.42199459 | AL63: 31.42199459
D64: % increase p.a. | X64: =+X63/W63-1 -> 0.2437778591 | Y64: =+Y63/X63-1 -> -0.01444940005 | Z64: =+Z63/Y63-1 -> 0.03088411294 | AA64: =+AA63/Z63-1 -> 0.0009397817902 | AB64: =+AB63/AA63-1 -> 0.004079912915 | AC64: =+AC63/AB63-1 -> 0.008969878392 | AD64: -0.02001409653 | AE64: -0.06969544975 | AF64: -0.02552779114 | AG64: -0.00228967299 | AH64: 0.05292818228 | AI64: 0 | AJ64: 0 | AK64: 0 | AL64: 0
D67: NEW PROJECTS
D69: Large sites
D70: Total kWh
D71: Total electricity costs ($m)
D72: Average c/kWh | W72: =+W71/W70*100*10^6 ->  | AC72: =+AC71/AC70*100*10^6 -> 
D73: % increase p.a. | X73: =+X72/W72-1 ->  | Y73: =+Y72/X72-1 ->  | Z73: =+Z72/Y72-1 ->  | AA73: =+AA72/Z72-1 ->  | AB73: =+AB72/AA72-1 ->  | AC73: =+AC72/AB72-1 -> 
D75: Medium sites
D76: Total kWh
D77: Total electricity costs ($m)
D78: Average c/kWh | W78: =+W77/W76*100*10^6 ->  | AC78: =+AC77/AC76*100*10^6 -> 
D79: % increase p.a. | X79: =+X78/W78-1 ->  | Y79: =+Y78/X78-1 ->  | Z79: =+Z78/Y78-1 ->  | AA79: =+AA78/Z78-1 ->  | AB79: =+AB78/AA78-1 ->  | AC79: =+AC78/AB78-1 -> 
D81: Small sites
D82: Total kWh
D83: Total electricity costs ($m)
D84: Average c/kWh | W84: =+W83/W82*100*10^6 ->  | X84: =+X83/X82*100*10^6 ->  | AH84: =+AH83/AH82*100*10^6 ->  | AI84: =+AI83/AI82*100*10^6 ->  | AJ84: =+AJ83/AJ82*100*10^6 ->  | AK84: =+AK83/AK82*100*10^6 ->  | AL84: =+AL83/AL82*100*10^6 -> 
D85: % increase p.a. | X85: =+X84/W84-1 ->  | Y85: =+Y84/X84-1 ->  | Z85: =+Z84/Y84-1 ->  | AA85: =+AA84/Z84-1 ->  | AB85: =+AB84/AA84-1 ->  | AC85: =+AC84/AB84-1 -> 
D88: Greenhouse Gas Offsets
D89: % increase p.a. | X89: =X88/W88-1 ->  | AH89: =AH88/AG88-1 ->  | AI89: =AI88/AH88-1 ->  | AJ89: =AJ88/AI88-1 ->  | AK89: =AK88/AJ88-1 ->  | AL89: =AL88/AK88-1 -> 
D92: TOTAL ENERGY COSTS | W92: =+SUM(W50,W56,W62,W71,W77,W83,W88) -> 0.69 | X92: 0.74 | Y92: 0.74 | Z92: 0.75 | AA92: 0.7501651926 | AB92: 0.7532258012 | AC92: 0.775181788 | AD92: 0.7748605694 | AE92: 0.7352734397 | AF92: 0.7308336036 | AG92: =+SUM(AG50,AG56,AG62,AG71,AG77,AG83,AG88) -> 0.7437434383 | AH92: 0.6886887874 | AI92: 0.7024625631 | AJ92: 0.7165118144 | AK92: 0.7308420507 | AL92: 0.7454588917
D93: % increase p.a. | W93: =W92/V92-1 ->  | X93: 0.07246376812 | Y93: 0 | Z93: 0.01351351351 | AA93: 0.0002202567866 | AB93: 0.004079912915 | AC93: 0.02914927596 | AD93: -0.0004143784596 | AE93: -0.05108935874 | AF93: -0.006038346966 | AG93: 0.01766453355 | AH93: =AH92/AG92-1 -> -0.07402371317 | AI93: =AI92/AH92-1 -> 0.02 | AJ93: =AJ92/AI92-1 -> 0.02 | AK93: =AK92/AJ92-1 -> 0.02 | AL93: =AL92/AK92-1 -> 0.02
C98: IT cost assumptions
D100: Water related IT costs | W100: 0.6608615 | X100: 0.7560535 | Y100: 0.9134845 | Z100: 0.769322 | AA100: 0.8 | AB100: 0.8 | AC100: 0.886 | AD100: 0.9324 | AE100: 0.8815 | AF100: 1.023525 | AG100: 1.023525 | AH100: 0.8 | AI100: 0.8 | AJ100: 0.8 | AK100: 0.8 | AL100: 0.8
D101: Sewerage and trade waste related IT costs | W101: 0.65 | X101: 0.7560535 | Y101: 0.9134845 | Z101: 0.769322 | AA101: 0.8 | AB101: 0.8 | AC101: 0.886 | AD101: 0.9324 | AE101: 0.8815 | AF101: 1.023525 | AG101: 1.023525 | AH101: 0.8 | AI101: 0.8 | AJ101: 0.8 | AK101: 0.8 | AL101: 0.8
D102: Other IT costs
D103: Total IT costs | W103: =SUM(W100:W102) -> 1.3108615 | X103: 1.512107 | Y103: 1.826969 | Z103: 1.538644 | AA103: 1.6 | AB103: 1.6 | AC103: =SUM(AC100:AC102) -> 1.772 | AD103: 1.8648 | AE103: 1.763 | AF103: 2.04705 | AG103: 2.04705 | AH103: 1.6 | AI103: 1.6 | AJ103: 1.6 | AK103: 1.6 | AL103: 1.6
D104: % increase p.a. | X104: =X103/W103-1 -> 0.1535215582 | Y104: 0.2082273278 | Z104: -0.157816033 | AA104: 0.03987667063 | AB104: 0 | AC104: 0.1075 | AD104: 0.05237020316 | AE104: -0.05459030459 | AF104: 0.1611174135 | AG104: 0 | AH104: =AH103/AG103-1 -> -0.2183874356 | AI104: =AI103/AH103-1 -> 0 | AJ104: =AJ103/AI103-1 -> 0 | AK104: =AK103/AJ103-1 -> 0 | AL104: =AL103/AK103-1 -> 0
C109: Chemical cost assumptions
D111: Water related chemical costs | W111: 0.283498 | X111: 0.310884 | Y111: 0.249323 | Z111: 0.321732 | AA111: 0.3152671756 | AB111: 0.3 | AC111: 0.3263387282 | AD111: 0.3263387282 | AE111: 0.3263387282 | AF111: 0.3263387282 | AG111: 0.3263387282 | AH111: 0.3213387282 | AI111: 0.3213387282 | AJ111: 0.3213387282 | AK111: 0.3213387282 | AL111: 0.3213387282
D112: Sewerage and trade waste related chemical costs | W112: 0.020155 | X112: 0.045384 | Y112: 0.025912 | Z112: 0.030876 | AA112: 0.03257760814 | AB112: 0.032 | AC112: 0.03820500191 | AD112: 0.03821338728 | AE112: 0.03821338728 | AF112: 0.07821338728 | AG112: 0.03821338728 | AH112: 0.03320500191 | AI112: 0.03321338728 | AJ112: 0.03321338728 | AK112: 0.07321338728 | AL112: 0.03321338728
D113: Other chemical costs
D114: Total chemical costs | W114: =SUM(W111:W113) -> 0.303653 | X114: 0.356268 | Y114: 0.275235 | Z114: 0.352608 | AA114: 0.3478447837 | AB114: 0.332 | AC114: =SUM(AC111:AC113) -> 0.3645437301 | AD114: 0.3645521155 | AE114: 0.3645521155 | AF114: 0.4045521155 | AG114: 0.3645521155 | AH114: 0.3545437301 | AI114: 0.3545521155 | AJ114: 0.3545521155 | AK114: 0.3945521155 | AL114: 0.3545521155
D115: % increase p.a. | X115: =X114/W114-1 -> 0.1732734404 | Y115: -0.2274495604 | Z115: 0.2811161371 | AA115: -0.01350853153 | AB115: -0.04555130465 | AC115: 0.0980232835 | AD115: 2.300236321e-05 | AE115: 0 | AF115: 0.1097236809 | AG115: -0.0988747765 | AH115: =AH114/AG114-1 -> -0.02745392207 | AI115: =AI114/AH114-1 -> 2.365115097e-05 | AJ115: =AJ114/AI114-1 -> 0 | AK115: =AK114/AJ114-1 -> 0.1128183933 | AL115: =AL114/AK114-1 -> -0.1013807769

Sheet Opex_FO
A1: 80 | B1: Operating Expenditure - Forecast
B2: =Model_Name -> Westernport Water
B3: Go to Table of Contents
L4: FIRST REG PERIOD | P4: SECOND REG PERIOD | U4: THIRD REG PERIOD | Z4: FOURTH REG PERIOD | AE4: FIFTH REG PERIOD | AJ4: SIXTH REG PERIOD
K5: 2006 | L5: 2007 | M5: 2008 | N5: 2009 | O5: 2010 | P5: 2011 | Q5: 2012 | R5: 2013 | S5: 2014 | T5: 2015 | U5: 2016 | V5: 2017 | W5: 2018 | X5: 2019 | Y5: 2020 | Z5: 2021 | AA5: 2022 | AB5: 2023 | AC5: 2024 | AD5: 2025 | AE5: 2026 | AF5: 2027 | AG5: 2028 | AH5: 2029 | AI5: 2030 | AJ5: 2031 | AK5: 2032 | AL5: 2033
B6: =Expenditure_Detail!$B$6 -> $m, 01/01/23 | K6: =+CONCATENATE(K5-1,"-",RIGHT(K5,2)) -> 2005-06 | L6: =+CONCATENATE(L5-1,"-",RIGHT(L5,2)) -> 2006-07 | M6: 2007-08 | N6: 2008-09 | O6: 2009-10 | P6: 2010-11 | Q6: 2011-12 | R6: 2012-13 | S6: 2013-14 | T6: 2014-15 | U6: 2015-16 | V6: 2016-17 | W6: 2017-18 | X6: 2018-19 | Y6: 2019-20 | Z6: 2020-21 | AA6: 2021-22 | AB6: 2022-23 | AC6: 2023-24 | AD6: 2024-25 | AE6: 2025-26 | AF6: 2026-27 | AG6: 2027-28 | AH6: =+CONCATENATE(AH5-1,"-",RIGHT(AH5,2)) -> 2028-29 | AI6: =+CONCATENATE(AI5-1,"-",RIGHT(AI5,2)) -> 2029-30 | AJ6: =+CONCATENATE(AJ5-1,"-",RIGHT(AJ5,2)) -> 2030-31 | AK6: =+CONCATENATE(AK5-1,"-",RIGHT(AK5,2)) -> 2031-32 | AL6: =+CONCATENATE(AL5-1,"-",RIGHT(AL5,2)) -> 2032-33
C9: Parameters | G9: 4th period | I9: 5th period
D11: Cost efficiency improvement rate (% per annum) | G11: =Determination_Lookup!X33 -> 0.02661221894 | I11: =IFERROR(AVERAGE(AC11:AG11),"-") -> 0.015 | AC11: 0.015 | AD11: 0.015 | AE11: 0.015 | AF11: 0.015 | AG11: 0.015 | AH11: 0.01653769552 | AI11: 0.01656013032 | AJ11: 0.01658224147 | AK11: 0.01660403278 | AL11: 0.01662550806
D13: Customer growth forecast (% per annum) | G13: =Determination_Lookup!X34 -> 0.018712 | I13: =IFERROR(AVERAGE(AC13:AG13),"-") -> 0.01954072704 | Y13: =IF(Y15="","",Y15/X15-1) -> 0.01817323578 | Z13: =IF(Z15="","",Z15/Y15-1) -> 0.1094691701 | AA13: =IF(AA15="","",AA15/Z15-1) -> 0.02742230347 | AB13: 0.02 | AC13: 0.02047 | AD13: 0.02047028384 | AE13: 0.02043251305 | AF13: 0.01814771509 | AG13: 0.01818312319 | AH13: 0.01653697394 | AI13: 0.01655941878 | AJ13: 0.01658153987 | AK13: 0.016603341 | AL13: 0.01662482599
F14: Net baseline opex growth | G14: =IFERROR(G13-G11,"-") -> -0.007900218938 | I14: =IFERROR(I13-I11,"-") -> 0.004540727036
D15: Water customers (No.) - Residential & Non-Residential - [BED 1] | W15: =+Determination_Lookup!M20 -> 16529 | X15: =+Determination_Lookup!N20 -> 16948 | Y15: =+Determination_Lookup!O20 -> 17256 | Z15: 19145 | AA15: 19670 | AB15: =+AA$15*(1+AB$13) -> 20063.4 | AC15: 20474.0978 | AD15: 20893.20839 | AE15: 21320.10914 | AF15: 21707.02041 | AG15: 22101.72184 | AH15: =+AG$15*(1+AH$13) -> 22467.21744 | AI15: =+AH$15*(1+AI$13) -> 22839.2615 | AJ15: =+AI$15*(1+AJ$13) -> 23217.97162 | AK15: =+AJ$15*(1+AK$13) -> 23603.46752 | AL15: =+AK$15*(1+AL$13) -> 23995.87106
D17: Sewer customers (No.) - Residential & Non-Residential - [BED 2] | W17: =+Determination_Lookup!M21 -> 15046 | X17: =+Determination_Lookup!N21 -> 15497 | Y17: =+Determination_Lookup!O21 -> 15794 | Z17: 17054 | AA17: 18758 | AB17: =+AA$17*(1+AB$13) -> 19133.16 | AC17: 19524.81579 | AD17: 19924.49431 | AE17: 20331.6018 | AF17: 20700.57391 | AG17: 21076.975 | AH17: =+AG$17*(1+AH$13) -> 21425.52438 | AI17: =+AH$17*(1+AI$13) -> 21780.31862 | AJ17: =+AI$17*(1+AJ$13) -> 22141.46984 | AK17: =+AJ$17*(1+AK$13) -> 22509.09221 | AL17: =+AK$17*(1+AL$13) -> 22883.30195
D19: Total metered volume of water delivered to customers (ML) - [BED 10] | W19: =+Determination_Lookup!M22 -> 1973 | X19: =+Determination_Lookup!N22 -> 2232 | Y19: =+Determination_Lookup!O22 -> 2047 | Z19: 2051.388318 | AA19: 2087.831128 | AB19: 2124.675288 | AC19: 2417.918075 | AD19: 2467.643888 | AE19: 2516.518431 | AF19: 2563.10701 | AG19: 2610.996808 | AH19: 2654.605678 | AI19: 2698.999508 | AJ19: 2744.192426 | AK19: 2790.198817 | AL19: 2837.033324
D20: Residential, Non-Residential & Recycled (Residential & Non-Residential)
C24: Baseline Forecast
D26: Baseline year - total prescribed operating expenditure in 2021-22: | AA26: =+Opex_Breakdown!AA37 -> 20.44707306
D28: Less non-controllable expenditure items incurred in 2021-22:
E29: External bulk water charges (excl. temporary purchases) | AA29: =+Opex_Breakdown!AA29 -> 0.344380674
E30: External temporary water purchases | AA30: =+Opex_Breakdown!AA30 -> 0 | AC30: Comparison with approved 2021-22 total controllable opex
E31: Licence fees | AA31: =+Opex_Breakdown!AA31 -> 0.092150105 | AC31: per 2018 determination model
E32: Environment Contribution | AA32: =+Opex_Breakdown!AA32 -> 1.10484
E33: Other non-controllable | AA33: =+Opex_Breakdown!AA33 -> 0.03
AA34: =SUM(AA29:AA33) -> 1.571370779 | AD34: 2021-22 | AE34: Difference | AF34: %
D36: Baseline year - total controllable operating expenditure in 2021-22: | AA36: =+AA26-AA34 -> 18.87570228 | AD36: =Determination_Lookup!Q18 -> 14.82701792 | AE36: =+AA52-AD36 -> 1.557904647 | AF36: =+AE36/AD36 -> 0.1050720148
D38: Adjustments for non-recurring expenditure items incurred in 2021-22 and any efficiency savings to be realised from 2021-22: | AC38: ($, 2022-23)
D40: 1 | E40: Business Case Preparation | AA40: 0.15765
D41: 2 | E41: PS23 Financial Modelling (Consultant) | AA41: 0.078825
D42: 3 | E42: Urban Water Strategy 2022 | AA42: 0.04204
D43: 4 | E43: Commence development of Price Submission 2023-28: Customer engagement program | AA43: 0.04204
D44: 5 | E44: Employee Costs - Additional Comms Resource | AA44: 0.05971471955
D45: 6 | E45: Gas Materials & Supplies | AA45: 0.0089335
D46: 7 | E46: Gas Rental Fees | AA46: 0.0015765
D47: 8 | E47: BTP Account Adjustment | AA47: 2.1
D48: 9
D49: 10
AA50: =SUM(AA40:AA49) -> 2.49077972
D52: Adjusted baseline controllable operating expenditure (2021-22) | AA52: =+AA36-AA50 -> 16.38492256
D54: Adjusted baseline controllable operating expenditure (Forecast) | AB54: =+AA52*(1+$AB$13-$G$11) -> 16.27658187 | AC54: =+AB$54*(1+AC$13-AC$11) -> 16.36561477 | AD54: 16.45513933 | AE54: 16.54453209 | AF54: 16.59660956 | AG54: 16.64943861 | AH54: 16.6494266 | AI54: 16.64941475 | AJ54: 16.64940307 | AK54: 16.64939155 | AL54: 16.6493802
C58: Operating expenditure - reconciliation
D61: Adjusted baseline controllable operating expenditure (Forecast) | AC61: =+AC54 -> 16.36561477 | AD61: 16.45513933 | AE61: 16.54453209 | AF61: 16.59660956 | AG61: 16.64943861 | AH61: 16.6494266 | AI61: 16.64941475 | AJ61: 16.64940307 | AK61: 16.64939155 | AL61: 16.6493802
H62: Controllable
D63: Forecast variations to baseline operating expenditure (above or below baseline) | H63: only
D65: 1 | E65: PS23 Capex Program - Opex Costs | H65: Water | AC65: 0.431 | AD65: 0.554443 | AE65: 0.478241 | AF65: 0.807584 | AG65: 0.748841
D66: 2 | E66: Employee Costs | H66: Water | AC66: 0.423 | AD66: 0.38 | AE66: 0.284 | AF66: 0.191837263 | AG66: 0.1027888904
D67: 3 | H67: [Service]
D68: 4 | H68: [Service]
D69: 5 | H69: [Service]
D70: 6 | H70: [Service]
D71: 7 | H71: [Service]
D72: 8 | H72: [Service]
D73: 9 | H73: [Service]
D74: 10 | H74: [Service]
D75: 11 | H75: [Service]
D76: 12 | H76: [Service]
D77: 13 | H77: [Service]
D78: 14 | H78: [Service]
D79: 15 | H79: [Service]
D81: Total changes required to baseline operating expenditure | AC81: =SUM(AC65:AC80) -> 0.854 | AD81: 0.934443 | AE81: 0.762241 | AF81: 0.999421263 | AG81: 0.8516298904 | AH81: 0 | AI81: 0 | AJ81: 0 | AK81: 0 | AL81: 0
D84: Total controllable operating expenditure | AC84: =+AC81+AC61 -> 17.21961477 | AD84: 17.38958233 | AE84: 17.30677309 | AF84: 17.59603082 | AG84: 17.5010685 | AH84: 16.6494266 | AI84: 16.64941475 | AJ84: 16.64940307 | AK84: 16.64939155 | AL84: 16.6493802
D86: Non-controllable operating expenditure
D87: External bulk water charges (excl. temporary purchases) | AC87: =+Opex_Breakdown!AC29 -> 0.4158710633 | AD87: =+Opex_Breakdown!AD29 -> 0.4316330506 | AE87: =+Opex_Breakdown!AE29 -> 0.446526443 | AF87: =+Opex_Breakdown!AF29 -> 0.446526443 | AG87: =+Opex_Breakdown!AG29 -> 0.446526443 | AH87: =+Opex_Breakdown!AH29 -> 0.446526443 | AI87: =+Opex_Breakdown!AI29 -> 0.446526443 | AJ87: =+Opex_Breakdown!AJ29 -> 0.446526443 | AK87: =+Opex_Breakdown!AK29 -> 0.446526443 | AL87: =+Opex_Breakdown!AL29 -> 0.446526443
D88: External temporary water purchases | AC88: =+Opex_Breakdown!AC30 -> 0 | AD88: =+Opex_Breakdown!AD30 -> 0 | AE88: =+Opex_Breakdown!AE30 -> 0 | AF88: =+Opex_Breakdown!AF30 -> 0 | AG88: =+Opex_Breakdown!AG30 -> 0 | AH88: =+Opex_Breakdown!AH30 -> 0 | AI88: =+Opex_Breakdown!AI30 -> 0 | AJ88: =+Opex_Breakdown!AJ30 -> 0 | AK88: =+Opex_Breakdown!AK30 -> 0 | AL88: =+Opex_Breakdown!AL30 -> 0
D89: Licence fees | AC89: =+Opex_Breakdown!AC31 -> 0.097582 | AD89: =+Opex_Breakdown!AD31 -> 0.097582 | AE89: =+Opex_Breakdown!AE31 -> 0.097582 | AF89: =+Opex_Breakdown!AF31 -> 0.097582 | AG89: =+Opex_Breakdown!AG31 -> 0.097582 | AH89: =+Opex_Breakdown!AH31 -> 0.097582 | AI89: =+Opex_Breakdown!AI31 -> 0.097582 | AJ89: =+Opex_Breakdown!AJ31 -> 0.097582 | AK89: =+Opex_Breakdown!AK31 -> 0.097582 | AL89: =+Opex_Breakdown!AL31 -> 0.097582
D90: Environment Contribution | AC90: =+Opex_Breakdown!AC32 -> 1.048543689 | AD90: =+Opex_Breakdown!AD32 -> 1.018003582 | AE90: =+Opex_Breakdown!AE32 -> 0.9883529921 | AF90: =+Opex_Breakdown!AF32 -> 0.9595660117 | AG90: =+Opex_Breakdown!AG32 -> 0.9316174871 | AH90: =+Opex_Breakdown!AH32 -> 0.9044829972 | AI90: =+Opex_Breakdown!AI32 -> 0.8781388323 | AJ90: =+Opex_Breakdown!AJ32 -> 0.8525619731 | AK90: =+Opex_Breakdown!AK32 -> 0.8277300709 | AL90: =+Opex_Breakdown!AL32 -> 0.8036214281
D91: Other non-controllable | AC91: =+Opex_Breakdown!AC33 -> 0.03 | AD91: =+Opex_Breakdown!AD33 -> 0.03 | AE91: =+Opex_Breakdown!AE33 -> 0.03 | AF91: =+Opex_Breakdown!AF33 -> 0.03 | AG91: =+Opex_Breakdown!AG33 -> 0.03 | AH91: =+Opex_Breakdown!AH33 -> 0.03 | AI91: =+Opex_Breakdown!AI33 -> 0.03 | AJ91: =+Opex_Breakdown!AJ33 -> 0.03 | AK91: =+Opex_Breakdown!AK33 -> 0.03 | AL91: =+Opex_Breakdown!AL33 -> 0.03
D92: Total non-controllable operating expenditure | AC92: =SUM(AC87:AC91) -> 1.591996753 | AD92: 1.577218632 | AE92: 1.562461435 | AF92: 1.533674455 | AG92: 1.50572593 | AH92: =SUM(AH87:AH91) -> 1.47859144 | AI92: =SUM(AI87:AI91) -> 1.452247275 | AJ92: =SUM(AJ87:AJ91) -> 1.426670416 | AK92: =SUM(AK87:AK91) -> 1.401838514 | AL92: =SUM(AL87:AL91) -> 1.377729871
D95: Total prescribed operating expenditure | AC95: =+AC92+AC84 -> 18.81161152 | AD95: 18.96680096 | AE95: 18.86923452 | AF95: 19.12970528 | AG95: 19.00679443 | AH95: 18.12801804 | AI95: 18.10166203 | AJ95: 18.07607349 | AK95: 18.05123007 | AL95: 18.02711007
AB98: To reconcile to 'Opex_Breakdown' tab row 37 >> | AC98: =+Opex_Breakdown!AC37 -> 18.81161152 | AD98: =+Opex_Breakdown!AD37 -> 18.96680096 | AE98: =+Opex_Breakdown!AE37 -> 18.86923452 | AF98: =+Opex_Breakdown!AF37 -> 19.12970528 | AG98: =+Opex_Breakdown!AG37 -> 19.00679443 | AH98: =+Opex_Breakdown!AH37 -> 18.12801804 | AI98: =+Opex_Breakdown!AI37 -> 18.10166203 | AJ98: =+Opex_Breakdown!AJ37 -> 18.07607349 | AK98: =+Opex_Breakdown!AK37 -> 18.05123007 | AL98: =+Opex_Breakdown!AL37 -> 18.02711007
AB99: Difference | AC99: =+AC98-AC95 -> 0 | AD99: 0 | AE99: 0 | AF99: 0 | AG99: 0 | AH99: 0 | AI99: 0 | AJ99: 0 | AK99: 0 | AL99: 0
AB100: Test | AC100: =IF(ROUND(AC98,2)=ROUND(AC95,2),0,1) -> 0 | AD100: =IF(ROUND(AD98,2)=ROUND(AD95,2),0,1) -> 0 | AE100: 0 | AF100: 0 | AG100: 0 | AH100: 0 | AI100: 0 | AJ100: 0 | AK100: 0 | AL100: 0
AC139: =+AC$160 -> 2023-24 | AD139: 2024-25 | AE139: 2025-26 | AF139: 2026-27 | AG139: 2027-28 | AH139: 2028-29 | AI139: 2029-30 | AJ139: 2030-31 | AK139: 2031-32 | AL139: 2032-33
AB140: Total controllable opex | AC140: =+AC84 -> 17.21961477 | AD140: 17.38958233 | AE140: 17.30677309 | AF140: 17.59603082 | AG140: 17.5010685 | AH140: 16.6494266 | AI140: 16.64941475 | AJ140: 16.64940307 | AK140: 16.64939155 | AL140: 16.6493802
AB141: Change - $ | AD141: =+AD140-AC140 -> 0.1699675581 | AE141: -0.08280924086 | AF141: 0.2892577364 | AG141: -0.09496231985 | AH141: -0.8516419043 | AI141: -1.18466445e-05 | AJ141: -1.168124517e-05 | AK141: -1.151774193e-05 | AL141: -1.135612765e-05
AB142: Change - % | AC142: =IFERROR(AC141/AB140,"") ->  | AD142: 0.009870578428 | AE142: -0.004762002865 | AF142: 0.01671355688 | AG142: -0.00539680345 | AH142: -0.04866228049 | AI142: -7.115346842e-07 | AJ142: -7.016009477e-07 | AK142: -6.917810734e-07 | AL142: -6.82074634e-07
AC144: =+AC$160 -> 2023-24 | AD144: 2024-25 | AE144: 2025-26 | AF144: 2026-27 | AG144: 2027-28 | AH144: 2028-29 | AI144: 2029-30 | AJ144: 2030-31 | AK144: 2031-32 | AL144: 2032-33
AB145: Total non-controllable opex | AC145: =+AC92 -> 1.591996753 | AD145: 1.577218632 | AE145: 1.562461435 | AF145: 1.533674455 | AG145: 1.50572593 | AH145: 1.47859144 | AI145: 1.452247275 | AJ145: 1.426670416 | AK145: 1.401838514 | AL145: 1.377729871
AB146: Change - $ | AD146: =+AD145-AC145 -> -0.01477812011 | AE146: -0.01475719736 | AF146: -0.02878698035 | AG146: -0.02794852461 | AH146: -0.02713448992 | AI146: -0.02634416497 | AJ146: -0.02557685919 | AK146: -0.02483190213 | AL146: -0.02410864284
AB147: Change - % | AC147: =IFERROR(AC146/AB145,"") ->  | AD147: -0.0092827577 | AE147: -0.009356469074 | AF147: -0.01842412216 | AG147: -0.01822324453 | AH147: -0.01802086912 | AI147: -0.0178170685 | AJ147: -0.01761191749 | AK147: -0.01740549313 | AL147: -0.01719787451
AC149: =+AC$160 -> 2023-24 | AD149: 2024-25 | AE149: 2025-26 | AF149: 2026-27 | AG149: 2027-28 | AH149: 2028-29 | AI149: 2029-30 | AJ149: 2030-31 | AK149: 2031-32 | AL149: 2032-33
AB150: Total prescribed opex | AC150: =+AC140+AC145 -> 18.81161152 | AD150: 18.96680096 | AE150: 18.86923452 | AF150: 19.12970528 | AG150: 19.00679443 | AH150: 18.12801804 | AI150: 18.10166203 | AJ150: 18.07607349 | AK150: 18.05123007 | AL150: 18.02711007
AB151: Change - $ | AD151: =+AD150-AC150 -> 0.155189438 | AE151: -0.09756643822 | AF151: 0.260470756 | AG151: -0.1229108445 | AH151: -0.8787763942 | AI151: -0.02635601161 | AJ151: -0.02558854044 | AK151: -0.02484341987 | AL151: -0.02411999897
AB152: Change - % | AC152: =IFERROR(AC151/AB150,"") ->  | AD152: 0.008249662065 | AE152: -0.005144064011 | AF152: 0.01380399166 | AG152: -0.006425130062 | AH152: -0.0462348555 | AI152: -0.001453882689 | AJ152: -0.001413601712 | AK152: -0.001374381438 | AL152: -0.001336196973
AB155: Controllable vs. Non-controllable opex - % | AC155: =+AC$160 -> 2023-24 | AD155: 2024-25 | AE155: 2025-26 | AF155: 2026-27 | AG155: 2027-28 | AH155: 2028-29 | AI155: 2029-30 | AJ155: 2030-31 | AK155: 2031-32 | AL155: 2032-33
AB156: Controllable opex - % | AC156: =+AC84/AC95 -> 0.9153715911 | AD156: 0.9168431916 | AE156: 0.917195293 | AF156: 0.9198275963 | AG156: 0.9207795962 | AH156: 0.9184361226 | AI156: 0.9197727108 | AJ156: 0.9210740974 | AK156: 0.9223411087 | AL156: 0.9235745571
AB157: Non-controllable opex - % | AC157: =+AC92/AC95 -> 0.08462840893 | AD157: 0.08315680835 | AE157: 0.08280470696 | AF157: 0.08017240373 | AG157: 0.07922040381 | AH157: 0.08156387736 | AI157: 0.08022728924 | AJ157: 0.07892590263 | AK157: 0.07765889132 | AL157: 0.0764254429
AC158: =SUM(AC156:AC157) -> 1 | AD158: 1 | AE158: 1 | AF158: 1 | AG158: 1 | AH158: 1 | AI158: 1 | AJ158: 1 | AK158: 1 | AL158: 1
AA160: =+AA6 -> 2021-22 | AB160: 2022-23 | AC160: 2023-24 | AD160: 2024-25 | AE160: 2025-26 | AF160: 2026-27 | AG160: 2027-28 | AH160: =+AH6 -> 2028-29 | AI160: =+AI6 -> 2029-30 | AJ160: =+AJ6 -> 2030-31 | AK160: =+AK6 -> 2031-32 | AL160: =+AL6 -> 2032-33
Y161: Fourth reg period opex | Z161: Third Reg period Opex | AA161: =+AA169-SUM(AA162:AA168) -> 20.44707306 | AB161: =+AB169-SUM(AB162:AB168) -> 18.02808697
Z162: Adjusted baseline opex | AC162: =+AC61 -> 16.36561477 | AD162: 16.45513933 | AE162: 16.54453209 | AF162: 16.59660956 | AG162: 16.64943861 | AH162: 16.6494266 | AI162: 16.64941475 | AJ162: 16.64940307 | AK162: 16.64939155 | AL162: 16.6493802
Z163: Forecast variations to baseline operating expenditure | AC163: =+AC81 -> 0.854 | AD163: 0.934443 | AE163: 0.762241 | AF163: 0.999421263 | AG163: 0.8516298904 | AH163: 0 | AI163: 0 | AJ163: 0 | AK163: 0 | AL163: 0
Z164: Licence fees | AA164: =+AA193 -> 0 | AB164: =+AB193 -> 0 | AC164: =+AC89 -> 0.097582 | AD164: 0.097582 | AE164: 0.097582 | AF164: 0.097582 | AG164: 0.097582 | AH164: =+AH89 -> 0.097582 | AI164: 0.097582 | AJ164: 0.097582 | AK164: 0.097582 | AL164: 0.097582
Z165: Environment Contribution | AA165: =+AA194 -> 0 | AB165: =+AB194 -> 0 | AC165: =+AC90 -> 1.048543689 | AD165: 1.018003582 | AE165: 0.9883529921 | AF165: 0.9595660117 | AG165: 0.9316174871 | AH165: 0.9044829972 | AI165: 0.8781388323 | AJ165: 0.8525619731 | AK165: 0.8277300709 | AL165: 0.8036214281
Z166: External bulk water charges | AA166: =+AA191 -> 0 | AB166: =+AB191 -> 0 | AC166: =+AC87 -> 0.4158710633 | AD166: 0.4316330506 | AE166: 0.446526443 | AF166: 0.446526443 | AG166: 0.446526443 | AH166: =+AH87 -> 0.446526443 | AI166: 0.446526443 | AJ166: 0.446526443 | AK166: 0.446526443 | AL166: 0.446526443
Z167: External temporary water purchases | AA167: =+AA192 -> 0 | AB167: =+AB192 -> 0 | AC167: =+AC88 -> 0 | AD167: 0 | AE167: 0 | AF167: 0 | AG167: 0 | AH167: 0 | AI167: 0 | AJ167: 0 | AK167: 0 | AL167: 0
Z168: Other non-controllable | AA168: =+AA195 -> 0 | AB168: =+AB195 -> 0 | AC168: =+AC91 -> 0.03 | AD168: 0.03 | AE168: 0.03 | AF168: 0.03 | AG168: 0.03 | AH168: =+AH91 -> 0.03 | AI168: =+AI91 -> 0.03 | AJ168: =+AJ91 -> 0.03 | AK168: =+AK91 -> 0.03 | AL168: =+AL91 -> 0.03
Z169: Total prescribed opex | AA169: =+Opex_Breakdown!AA37 -> 20.44707306 | AB169: =+Opex_Breakdown!AB37 -> 18.02808697 | AC169: =SUM(AC162:AC168) -> 18.81161152 | AD169: 18.96680096 | AE169: 18.86923452 | AF169: 19.12970528 | AG169: 19.00679443 | AH169: =SUM(AH162:AH168) -> 18.12801804 | AI169: =SUM(AI162:AI168) -> 18.10166203 | AJ169: =SUM(AJ162:AJ168) -> 18.07607349 | AK169: =SUM(AK162:AK168) -> 18.05123007 | AL169: =SUM(AL162:AL168) -> 18.02711007
AC171: =+AC$160 -> 2023-24 | AD171: 2024-25 | AE171: 2025-26 | AF171: 2026-27 | AG171: 2027-28 | AH171: 2028-29 | AI171: 2029-30 | AJ171: 2030-31 | AK171: 2031-32 | AL171: 2032-33
AB172: Adjusted baseline opex | AC172: =+AC162/AC$169 -> 0.8699740982 | AD172: 0.8675758955 | AE172: 0.8767993247 | AF172: 0.8675831289 | AG172: 0.8759729933 | AH172: 0.9184361226 | AI172: 0.9197727108 | AJ172: 0.9210740974 | AK172: 0.9223411087 | AL172: 0.9235745571
AB173: Forecast variations to baseline operating expenditure | AC173: =+AC163/AC$169 -> 0.04539749287 | AD173: 0.04926729615 | AE173: 0.04039596832 | AF173: 0.05224446736 | AG173: 0.04480660289 | AH173: 0 | AI173: 0 | AJ173: 0 | AK173: 0 | AL173: 0
AB174: Licence fees | AC174: =+AC164/AC$169 -> 0.005187328044 | AD174: 0.005144884485 | AE174: 0.005171486945 | AF174: 0.005101071793 | AG174: 0.005134058788 | AH174: 0.005382938156 | AI174: 0.005390775712 | AJ174: 0.005398406909 | AK174: 0.00540583659 | AL174: 0.005413069517
AB175: Environment Contribution | AC175: =+AC165/AC$169 -> 0.05573917408 | AD175: 0.05367291954 | AE175: 0.05237907192 | AF175: 0.05016104523 | AG175: 0.04901497148 | AH175: 0.04989420218 | AI175: 0.04851150303 | AJ175: 0.04716521946 | AK175: 0.04585449678 | AL175: 0.04457849456
AB176: External bulk water charges (excl. temporary purchases) | AC176: =+AC166/AC$169 -> 0.02210714711 | AD176: 0.02275729321 | AE176: 0.02366425848 | AF176: 0.02334204508 | AG176: 0.0234929906 | AH176: 0.02463184017 | AI176: 0.02466770412 | AJ176: 0.02470262379 | AK176: 0.02473662135 | AL176: 0.02476971857
AB177: External temporary water purchases | AC177: =+AC167/AC$169 -> 0 | AD177: 0 | AE177: 0 | AF177: 0 | AG177: 0 | AH177: 0 | AI177: 0 | AJ177: 0 | AK177: 0 | AL177: 0
AB178: Other non-controllable | AC178: =+AC168/AC$169 -> 0.001594759703 | AD178: 0.001581711121 | AE178: 0.001589889614 | AF178: 0.00156824162 | AG178: 0.001578382936 | AH178: 0.001654896853 | AI178: 0.001657306382 | AJ178: 0.001659652469 | AK178: 0.001661936604 | AL178: 0.00166416025
AB179: Total prescribed opex | AC179: =+AC169/AC$169 -> 1 | AD179: 1 | AE179: 1 | AF179: 1 | AG179: 1 | AH179: 1 | AI179: 1 | AJ179: 1 | AK179: 1 | AL179: 1
AC181: =+AC$160 -> 2023-24 | AD181: 2024-25 | AE181: 2025-26 | AF181: 2026-27 | AG181: 2027-28 | AH181: 2028-29 | AI181: 2029-30 | AJ181: 2030-31 | AK181: 2031-32 | AL181: 2032-33
AB182: Water | AC182: =+SUMIF($H$65:$H$80,$AB182,AC$65:AC$80) -> 0.854 | AD182: =+SUMIF($H$65:$H$80,$AB182,AD$65:AD$80) -> 0.934443 | AE182: 0.762241 | AF182: 0.999421263 | AG182: 0.8516298904 | AH182: 0 | AI182: 0 | AJ182: 0 | AK182: 0 | AL182: 0
AB183: Sewerage | AC183: 0 | AD183: 0 | AE183: 0 | AF183: 0 | AG183: 0 | AH183: 0 | AI183: 0 | AJ183: 0 | AK183: 0 | AL183: 0
AB184: Recycled Water | AC184: 0 | AD184: 0 | AE184: 0 | AF184: 0 | AG184: 0 | AH184: 0 | AI184: 0 | AJ184: 0 | AK184: 0 | AL184: 0
AB185: Rural water | AC185: 0 | AD185: 0 | AE185: 0 | AF185: 0 | AG185: 0 | AH185: 0 | AI185: 0 | AJ185: 0 | AK185: 0 | AL185: 0
AB186: Bulk Water | AC186: 0 | AD186: 0 | AE186: 0 | AF186: 0 | AG186: 0 | AH186: 0 | AI186: 0 | AJ186: 0 | AK186: 0 | AL186: 0
AB187: Forecast variations to baseline operating expenditure | AC187: =SUM(AC182:AC186) -> 0.854 | AD187: 0.934443 | AE187: 0.762241 | AF187: 0.999421263 | AG187: 0.8516298904 | AH187: 0 | AI187: 0 | AJ187: 0 | AK187: 0 | AL187: 0
AA190: =+AA6 -> 2021-22 | AB190: 2022-23 | AC190: 2023-24 | AD190: 2024-25 | AE190: 2025-26 | AF190: 2026-27 | AG190: 2027-28 | AH190: =+AH6 -> 2028-29 | AI190: =+AI6 -> 2029-30 | AJ190: =+AJ6 -> 2030-31 | AK190: =+AK6 -> 2031-32 | AL190: =+AL6 -> 2032-33
Z191: External bulk water charges (excl. temporary purchases) | AA191: =+AA87 -> 0 | AB191: 0 | AC191: 0.4158710633 | AD191: 0.4316330506 | AE191: 0.446526443 | AF191: 0.446526443 | AG191: 0.446526443 | AH191: =+AH87 -> 0.446526443 | AI191: 0.446526443 | AJ191: 0.446526443 | AK191: 0.446526443 | AL191: 0.446526443
Z192: External temporary water purchases | AA192: =+AA88 -> 0 | AB192: 0 | AC192: 0 | AD192: 0 | AE192: 0 | AF192: 0 | AG192: 0 | AH192: 0 | AI192: 0 | AJ192: 0 | AK192: 0 | AL192: 0
Z193: Licence fees | AA193: =+AA89 -> 0 | AB193: 0 | AC193: 0.097582 | AD193: 0.097582 | AE193: 0.097582 | AF193: 0.097582 | AG193: 0.097582 | AH193: 0.097582 | AI193: 0.097582 | AJ193: 0.097582 | AK193: 0.097582 | AL193: 0.097582
Z194: Environment Contribution | AA194: =+AA90 -> 0 | AB194: 0 | AC194: 1.048543689 | AD194: 1.018003582 | AE194: 0.9883529921 | AF194: 0.9595660117 | AG194: 0.9316174871 | AH194: 0.9044829972 | AI194: 0.8781388323 | AJ194: 0.8525619731 | AK194: 0.8277300709 | AL194: 0.8036214281
Z195: Other non-controllable | AA195: =+AA91 -> 0 | AB195: 0 | AC195: 0.03 | AD195: 0.03 | AE195: 0.03 | AF195: 0.03 | AG195: 0.03 | AH195: 0.03 | AI195: 0.03 | AJ195: 0.03 | AK195: 0.03 | AL195: 0.03
Z196: Total Non-controllable operating expenditure | AA196: =SUM(AA191:AA195) -> 0 | AB196: 0 | AC196: 1.591996753 | AD196: 1.577218632 | AE196: 1.562461435 | AF196: 1.533674455 | AG196: 1.50572593 | AH196: =SUM(AH191:AH195) -> 1.47859144 | AI196: =SUM(AI191:AI195) -> 1.452247275 | AJ196: =SUM(AJ191:AJ195) -> 1.426670416 | AK196: =SUM(AK191:AK195) -> 1.401838514 | AL196: =SUM(AL191:AL195) -> 1.377729871
AB198: Check | AC198: =IF(ROUND(AC169,2)=ROUND(AC95,2),0,1) -> 0 | AD198: =IF(ROUND(AD169,2)=ROUND(AD95,2),0,1) -> 0 | AE198: 0 | AF198: 0 | AG198: 0 | AH198: 0 | AI198: 0 | AJ198: 0 | AK198: 0 | AL198: 0
AC199: =IF(ROUND(AC187,2)=ROUND(AC163,2),0,1) -> 0 | AD199: =IF(ROUND(AD187,2)=ROUND(AD163,2),0,1) -> 0 | AE199: 0 | AF199: 0 | AG199: 0 | AH199: 0 | AI199: 0 | AJ199: 0 | AK199: 0 | AL199: 0
AC200: =IF(ROUND(AC150,2)=ROUND(AC169,2),0,1) -> 0 | AD200: =IF(ROUND(AD150,2)=ROUND(AD169,2),0,1) -> 0 | AE200: 0 | AF200: 0 | AG200: 0 | AH200: 0 | AI200: 0 | AJ200: 0 | AK200: 0 | AL200: 0
AC201: =IF(ROUND(AC196,2)=ROUND(AC145,2),0,1) -> 0 | AD201: =IF(ROUND(AD196,2)=ROUND(AD145,2),0,1) -> 0 | AE201: 0 | AF201: 0 | AG201: 0 | AH201: 0 | AI201: 0 | AJ201: 0 | AK201: 0 | AL201: 0

Sheet Opex_Breakdown
A1: 80 | B1: Operating Expenditure - Breakdown
B2: =+Contents!H7 -> Westernport Water
B3: Go to Table of Contents
L4: FIRST REG PERIOD | P4: SECOND REG PERIOD | U4: THIRD REG PERIOD | Z4: FOURTH REG PERIOD | AE4: FIFTH REG PERIOD | AJ4: SIXTH REG PERIOD
K6: 2006 | L6: 2007 | M6: 2008 | N6: 2009 | O6: 2010 | P6: 2011 | Q6: 2012 | R6: 2013 | S6: 2014 | T6: 2015 | U6: 2016 | V6: 2017 | W6: 2018 | X6: 2019 | Y6: 2020 | Z6: 2021 | AA6: 2022 | AB6: 2023 | AC6: 2024 | AD6: 2025 | AE6: 2026 | AF6: 2027 | AG6: 2028 | AH6: 2029 | AI6: 2030 | AJ6: 2031 | AK6: 2032 | AL6: 2033
B7: =Expenditure_Detail!$B$6 -> $m, 01/01/23 | K7: =+CONCATENATE(K6-1,"-",RIGHT(K6,2)) -> 2005-06 | L7: =+CONCATENATE(L6-1,"-",RIGHT(L6,2)) -> 2006-07 | M7: 2007-08 | N7: 2008-09 | O7: 2009-10 | P7: 2010-11 | Q7: 2011-12 | R7: 2012-13 | S7: 2013-14 | T7: 2014-15 | U7: 2015-16 | V7: 2016-17 | W7: 2017-18 | X7: =+CONCATENATE(X6-1,"-",RIGHT(X6,2)) -> 2018-19 | Y7: 2019-20 | Z7: 2020-21 | AA7: 2021-22 | AB7: 2022-23 | AC7: 2023-24 | AD7: 2024-25 | AE7: 2025-26 | AF7: 2026-27 | AG7: 2027-28 | AH7: =+CONCATENATE(AH6-1,"-",RIGHT(AH6,2)) -> 2028-29 | AI7: =+CONCATENATE(AI6-1,"-",RIGHT(AI6,2)) -> 2029-30 | AJ7: =+CONCATENATE(AJ6-1,"-",RIGHT(AJ6,2)) -> 2030-31 | AK7: =+CONCATENATE(AK6-1,"-",RIGHT(AK6,2)) -> 2031-32 | AL7: =+CONCATENATE(AL6-1,"-",RIGHT(AL6,2)) -> 2032-33
D10: Operating Expenditure Summary
E12: =C48 -> Water | W12: =+W57-W50-W54 -> 9.287103984 | X12: 10.53494954 | Y12: 10.62569673 | Z12: 10.04563187 | AA12: 10.95171404 | AB12: 9.756199387 | AC12: =+AC57-AC50-AC54 -> 10.10495198 | AD12: 10.23591619 | AE12: 10.2117889 | AF12: 10.35785214 | AG12: 10.15407387 | AH12: 9.905953014 | AI12: 9.905941167 | AJ12: 9.905929486 | AK12: 9.905917968 | AL12: 9.905906612
E13: =C59 -> Sewerage | W13: =W68-W61-W65 -> 6.503997904 | X13: 6.209914114 | Y13: 6.47819556 | Z13: 6.1745211 | AA13: 7.284216736 | AB13: 6.088702081 | AC13: =AC68-AC61-AC65 -> 6.474891281 | AD13: 6.513894631 | AE13: 6.455212681 | AF13: 6.598407181 | AG13: 6.707223131 | AH13: 6.103702081 | AI13: 6.103702081 | AJ13: 6.103702081 | AK13: 6.103702081 | AL13: 6.103702081
E14: =C70 -> Recycled Water | W14: =W79-W72-W76 -> 0.1232454383 | X14: 0.05804681624 | Y14: 0.1862842551 | Z14: 0.150700176 | AA14: 0.6397715046 | AB14: 0.6397715046 | AC14: =AC79-AC72-AC76 -> 0.6397715046 | AD14: 0.6397715046 | AE14: 0.6397715046 | AF14: 0.6397715046 | AG14: 0.6397715046 | AH14: 0.6397715046 | AI14: 0.6397715046 | AJ14: 0.6397715046 | AK14: 0.6397715046 | AL14: 0.6397715046
E15: =C81 -> Rural Water | W15: =W90-W83-W87 -> 0 | X15: 0 | Y15: 0 | Z15: 0 | AA15: 0 | AB15: 0 | AC15: =AC90-AC83-AC87 -> 0 | AD15: 0 | AE15: 0 | AF15: 0 | AG15: 0 | AH15: 0 | AI15: 0 | AJ15: 0 | AK15: 0 | AL15: 0
E16: Bulk Water | W16: =W100-W97 -> 0 | X16: 0 | Y16: 0 | Z16: 0 | AA16: 0 | AB16: 0 | AC16: =AC100-AC97 -> 0 | AD16: 0 | AE16: 0 | AF16: 0 | AG16: 0 | AH16: 0 | AI16: 0 | AJ16: 0 | AK16: 0 | AL16: 0
E17: Total controllable operating expenditure | W17: =SUM(W12:W16) -> 15.91434733 | X17: 16.80291047 | Y17: 17.29017655 | Z17: 16.37085315 | AA17: 18.87570228 | AB17: 16.48467297 | AC17: 17.21961477 | AD17: 17.38958233 | AE17: 17.30677309 | AF17: 17.59603082 | AG17: 17.5010685 | AH17: =SUM(AH12:AH16) -> 16.6494266 | AI17: =SUM(AI12:AI16) -> 16.64941475 | AJ17: =SUM(AJ12:AJ16) -> 16.64940307 | AK17: =SUM(AK12:AK16) -> 16.64939155 | AL17: =SUM(AL12:AL16) -> 16.6493802
E20: Operations & Maintenance | W20: =W49+W60+W71+W82+W93 -> 4.700132852 | X20: 4.698506446 | Y20: 4.912979577 | Z20: 4.576471317 | AA20: 6.321279657 | AB20: 6.321279657 | AC20: 6.51627312 | AD20: 6.53967513 | AE20: 6.50446596 | AF20: 6.59038266 | AG20: 6.65567223 | AH20: =AH49+AH60+AH71+AH82+AH93 -> 6.3025596 | AI20: =AI49+AI60+AI71+AI82+AI93 -> 6.3025596 | AJ20: =AJ49+AJ60+AJ71+AJ82+AJ93 -> 6.3025596 | AK20: =AK49+AK60+AK71+AK82+AK93 -> 6.3025596 | AL20: =AL49+AL60+AL71+AL82+AL93 -> 6.3025596
E21: Treatment | W21: =W51+W62+W73+W84+W94 -> 3.373563771 | X21: 3.856279999 | Y21: 3.549036239 | Z21: 3.470290164 | AA21: 3.46669125 | AB21: 3.46669125 | AC21: 3.82288045 | AD21: 3.8618838 | AE21: 3.80320185 | AF21: 3.94639635 | AG21: 4.0552123 | AH21: =AH51+AH62+AH73+AH84+AH94 -> 3.46669125 | AI21: 3.46669125 | AJ21: 3.46669125 | AK21: 3.46669125 | AL21: 3.46669125
E22: Customer Service and billing | W22: =W52+W63+W74+W85+W95 -> 1.39155304 | X22: 1.367933462 | Y22: 1.45280307 | Z22: 1.312347366 | AA22: 1.434323748 | AB22: 1.434323748 | AC22: 1.434323748 | AD22: 1.434323748 | AE22: 1.434323748 | AF22: 1.434323748 | AG22: 1.434323748 | AH22: 1.434323748 | AI22: 1.434323748 | AJ22: 1.434323748 | AK22: 1.434323748 | AL22: 1.434323748
E23: GSL Payments | W23: =W53+W64+W75+W86+W96 -> 0 | X23: 0 | Y23: 0 | Z23: 0 | AA23: 0 | AB23: 0 | AC23: 0 | AD23: 0 | AE23: 0 | AF23: 0 | AG23: 0 | AH23: 0 | AI23: 0 | AJ23: 0 | AK23: 0 | AL23: 0
E24: Corporate | W24: =W55+W66+W77+W88+W98 -> 6.449097663 | X24: 6.880190558 | Y24: 7.375357661 | Z24: 7.0117443 | AA24: 7.653407627 | AB24: 5.262378317 | AC24: 5.446137452 | AD24: 5.55369965 | AE24: 5.564781529 | AF24: 5.624928066 | AG24: 5.355860226 | AH24: =AH55+AH66+AH77+AH88+AH98 -> 5.415852001 | AI24: 5.415840155 | AJ24: 5.415828474 | AK24: 5.415816956 | AL24: 5.4158056
E25: Other operating expenditure | W25: =W56+W67+W78+W89+W99 -> 0 | X25: 0 | Y25: 0 | Z25: 0 | AA25: 0 | AB25: 0 | AC25: 0 | AD25: 0 | AE25: 0 | AF25: 0 | AG25: 0 | AH25: 0.03 | AI25: 0.03 | AJ25: 0.03 | AK25: 0.03 | AL25: 0.03
E26: Total controllable operating expenditure | W26: =SUM(W20:W25) -> 15.91434733 | X26: 16.80291047 | Y26: 17.29017655 | Z26: 16.37085315 | AA26: 18.87570228 | AB26: 16.48467297 | AC26: 17.21961477 | AD26: 17.38958233 | AE26: 17.30677309 | AF26: 17.59603082 | AG26: 17.5010685 | AH26: =SUM(AH20:AH25) -> 16.6494266 | AI26: =SUM(AI20:AI25) -> 16.64941475 | AJ26: =SUM(AJ20:AJ25) -> 16.64940307 | AK26: =SUM(AK20:AK25) -> 16.64939155 | AL26: =SUM(AL20:AL25) -> 16.6493802
AC27: =IF(ROUND(AC26,2)=ROUND(AC17,2),0,1) -> 0 | AD27: =IF(ROUND(AD26,2)=ROUND(AD17,2),0,1) -> 0 | AE27: 0 | AF27: 0 | AG27: 0 | AH27: 0 | AI27: 0 | AJ27: 0 | AK27: 0 | AL27: 0
E29: External bulk water charges (excl. temporary purchases) | W29: =W50+W61+W72+W83 -> 0 | X29: =X50+X61+X72+X83 -> 0.592 | Y29: =Y50+Y61+Y72+Y83 -> 0.592 | Z29: 0.61 | AA29: 0.344380674 | AB29: 0.343699 | AC29: 0.4158710633 | AD29: 0.4316330506 | AE29: 0.446526443 | AF29: 0.446526443 | AG29: 0.446526443 | AH29: =AH50+AH61+AH72+AH83 -> 0.446526443 | AI29: =AI50+AI61+AI72+AI83 -> 0.446526443 | AJ29: =AJ50+AJ61+AJ72+AJ83 -> 0.446526443 | AK29: =AK50+AK61+AK72+AK83 -> 0.446526443 | AL29: =AL50+AL61+AL72+AL83 -> 0.446526443
E30: External temporary water purchases | W30: =+W102 -> 0 | X30: 0 | Y30: 0 | Z30: 0 | AA30: 0 | AB30: 0 | AC30: 0 | AD30: 0 | AE30: 0 | AF30: 0 | AG30: 0 | AH30: =+AH102 -> 0 | AI30: =+AI102 -> 0 | AJ30: =+AJ102 -> 0 | AK30: =+AK102 -> 0 | AL30: =+AL102 -> 0
E31: Licence fees | W31: =+W109 -> 0.1045860238 | X31: 0.06766592444 | Y31: 0.07147097084 | Z31: 0.081589515 | AA31: 0.092150105 | AB31: 0.089715 | AC31: 0.097582 | AD31: 0.097582 | AE31: 0.097582 | AF31: 0.097582 | AG31: 0.097582 | AH31: =+AH109 -> 0.097582 | AI31: =+AI109 -> 0.097582 | AJ31: =+AJ109 -> 0.097582 | AK31: =+AK109 -> 0.097582 | AL31: =+AL109 -> 0.097582
E32: Environment Contribution | W32: =W111 -> 0.8896079821 | X32: 1.00322422 | Y32: 0.980668837 | Z32: 1.13025132 | AA32: 1.10484 | AB32: 1.08 | AC32: 1.048543689 | AD32: 1.018003582 | AE32: 0.9883529921 | AF32: 0.9595660117 | AG32: 0.9316174871 | AH32: =AH111 -> 0.9044829972 | AI32: =AI111 -> 0.8781388323 | AJ32: =AJ111 -> 0.8525619731 | AK32: =AK111 -> 0.8277300709 | AL32: =AL111 -> 0.8036214281
E33: Other non-controllable | W33: =+W124 -> 0.03025115304 | X33: 0.02409490485 | Y33: 0.03318857418 | Z33: 0.029 | AA33: 0.03 | AB33: 0.03 | AC33: 0.03 | AD33: 0.03 | AE33: 0.03 | AF33: 0.03 | AG33: =+AG124 -> 0.03 | AH33: 0.03 | AI33: 0.03 | AJ33: 0.03 | AK33: 0.03 | AL33: 0.03
E34: Total non-controllable operating expenditure | W34: =SUM(W29:W33) -> 1.024445159 | X34: 1.68698505 | Y34: 1.677328382 | Z34: 1.850840835 | AA34: 1.571370779 | AB34: 1.543414 | AC34: 1.591996753 | AD34: 1.577218632 | AE34: 1.562461435 | AF34: 1.533674455 | AG34: 1.50572593 | AH34: =SUM(AH29:AH33) -> 1.47859144 | AI34: =SUM(AI29:AI33) -> 1.452247275 | AJ34: =SUM(AJ29:AJ33) -> 1.426670416 | AK34: =SUM(AK29:AK33) -> 1.401838514 | AL34: =SUM(AL29:AL33) -> 1.377729871
E37: Total prescribed operating expenditure | W37: =+W34+W17 -> 16.93879249 | X37: 18.48989552 | Y37: 18.96750493 | Z37: 18.22169398 | AA37: 20.44707306 | AB37: 18.02808697 | AC37: 18.81161152 | AD37: 18.96680096 | AE37: 18.86923452 | AF37: 19.12970528 | AG37: 19.00679443 | AH37: =+AH34+AH17 -> 18.12801804 | AI37: =+AI34+AI17 -> 18.10166203 | AJ37: =+AJ34+AJ17 -> 18.07607349 | AK37: =+AK34+AK17 -> 18.05123007 | AL37: =+AL34+AL17 -> 18.02711007
AB40: To reconcile to 'Opex_FO' tab row 95>> | AC40: =+Opex_FO!AC95 -> 18.81161152 | AD40: =+Opex_FO!AD95 -> 18.96680096 | AE40: =+Opex_FO!AE95 -> 18.86923452 | AF40: =+Opex_FO!AF95 -> 19.12970528 | AG40: =+Opex_FO!AG95 -> 19.00679443 | AH40: =+Opex_FO!AH95 -> 18.12801804 | AI40: =+Opex_FO!AI95 -> 18.10166203 | AJ40: =+Opex_FO!AJ95 -> 18.07607349 | AK40: =+Opex_FO!AK95 -> 18.05123007 | AL40: =+Opex_FO!AL95 -> 18.02711007
AB41: Difference | AC41: =+AC40-AC37 -> 0 | AD41: 0 | AE41: 0 | AF41: 0 | AG41: 0 | AH41: =+AH40-AH37 -> 0 | AI41: =+AI40-AI37 -> 0 | AJ41: =+AJ40-AJ37 -> 0 | AK41: =+AK40-AK37 -> 0 | AL41: =+AL40-AL37 -> 0
AB42: Test | AC42: =IF(ROUND(AC40,2)=ROUND(AC37,2),0,1) -> 0 | AD42: 0 | AE42: 0 | AF42: 0 | AG42: 0 | AH42: 0 | AI42: 0 | AJ42: 0 | AK42: 0 | AL42: 0
B46: Total operating expenditure
C48: Water
D49: Operations & Maintenance | W49: 2.692352621 | X49: 3.217765021 | Y49: 3.182891323 | Z49: 3.379242141 | AA49: 3.69816814 | AB49: 3.69816814 | AC49: 3.786304843 | AD49: 3.798005848 | AE49: 3.780401263 | AF49: 3.823359613 | AG49: 3.856004398 | AH49: 3.679448083 | AI49: 3.679448083 | AJ49: 3.679448083 | AK49: 3.679448083 | AL49: 3.679448083
D50: External bulk charges (excl. temporary purchases) | W50: =+W131 -> 0 | X50: 0.592 | Y50: 0.592 | Z50: 0.61 | AA50: 0.344380674 | AB50: 0.343699 | AC50: 0.4158710633 | AD50: 0.4316330506 | AE50: 0.446526443 | AF50: 0.446526443 | AG50: 0.446526443 | AH50: =+AH131 -> 0.446526443 | AI50: 0.446526443 | AJ50: 0.446526443 | AK50: 0.446526443 | AL50: 0.446526443 | AM50: see reconciliation below
D51: Treatment | W51: 2.142229801 | X51: 2.547488577 | Y51: 2.32641199 | Z51: 2.505390426 | AA51: 1.868072382 | AB51: 1.868072382 | AC51: 2.046166982 | AD51: 2.065668657 | AE51: 2.036327682 | AF51: 2.107924932 | AG51: 2.162332907 | AH51: 1.868072382 | AI51: 1.868072382 | AJ51: 1.868072382 | AK51: 1.868072382 | AL51: 1.868072382
D52: Customer Service and billing | W52: 1.227972731 | X52: 1.329600659 | Y52: 1.428179289 | Z52: 0.656173683 | AA52: 0.8462510113 | AB52: 0.8462510113 | AC52: 0.8462510113 | AD52: 0.8462510113 | AE52: 0.8462510113 | AF52: 0.8462510113 | AG52: 0.8462510113 | AH52: 0.8462510113 | AI52: 0.8462510113 | AJ52: 0.8462510113 | AK52: 0.8462510113 | AL52: 0.8462510113
D53: GSL Payments | W53: 0 | X53: 0 | Y53: 0 | Z53: 0
D54: Licence Fees | W54: 0 | X54: 0.03383296222 | Y54: 0.03573548542 | Z54: 0.0407947575 | AA54: 0.0460750525 | AB54: 0.0448575 | AC54: 0.048791 | AD54: 0.048791 | AE54: 0.048791 | AF54: 0.048791 | AG54: 0.048791 | AH54: 0.048791 | AI54: 0.048791 | AJ54: 0.048791 | AK54: 0.048791 | AL54: 0.048791
D55: Corporate | W55: 3.224548832 | X55: 3.440095279 | Y55: 3.68821413 | Z55: 3.504825621 | AA55: 4.539222508 | AB55: 3.343707853 | AC55: 3.426229148 | AD55: 3.525990676 | AE55: 3.548808945 | AF55: 3.580316581 | AG55: 3.289485551 | AH55: 3.497181537 | AI55: 3.49716969 | AJ55: 3.497158009 | AK55: 3.497146491 | AL55: 3.497135135
D56: Other operating expenditure | Y56: 0 | AH56: 0.015 | AI56: 0.015 | AJ56: 0.015 | AK56: 0.015 | AL56: 0.015
C57: =+CONCATENATE("Total ",C48) -> Total Water | K57: =+SUM(K49:K56) -> 0 | L57: =+SUM(L49:L56) -> 0 | M57: 0 | N57: 0 | O57: 0 | P57: 0 | Q57: 0 | R57: 0 | S57: 0 | T57: 0 | U57: 0 | V57: 0 | W57: =+SUM(W49:W56) -> 9.287103984 | X57: 11.1607825 | Y57: 11.25343222 | Z57: 10.69642663 | AA57: 11.34216977 | AB57: 10.14475589 | AC57: 10.56961405 | AD57: 10.71634024 | AE57: 10.70710634 | AF57: 10.85316958 | AG57: 10.64939131 | AH57: =+SUM(AH49:AH56) -> 10.40127046 | AI57: =+SUM(AI49:AI56) -> 10.40125861 | AJ57: =+SUM(AJ49:AJ56) -> 10.40124693 | AK57: =+SUM(AK49:AK56) -> 10.40123541 | AL57: =+SUM(AL49:AL56) -> 10.40122406
C59: Sewerage
D60: =+D49 -> Operations & Maintenance | W60: 2.007780232 | X60: 1.480741425 | Y60: 1.725805857 | Z60: 1.191996531 | AA60: 2.565811057 | AB60: 2.565811057 | AC60: 2.672667817 | AD60: 2.684368822 | AE60: 2.666764237 | AF60: 2.709722587 | AG60: 2.742367372 | AH60: 2.565811057 | AI60: 2.565811057 | AJ60: 2.565811057 | AK60: 2.565811057 | AL60: 2.565811057
D61: =+D50 -> External bulk charges (excl. temporary purchases) | W61: =+W132 -> 0 | X61: 0 | Y61: 0 | Z61: 0 | AA61: 0 | AB61: 0 | AC61: 0 | AD61: 0 | AE61: 0 | AF61: 0 | AG61: 0 | AH61: =+AH132 -> 0 | AI61: 0 | AJ61: 0 | AK61: 0 | AL61: 0 | AM61: see reconciliation below
D62: Treatment | W62: 1.108088532 | X62: 1.250744606 | Y62: 1.114493733 | Z62: 0.905247585 | AA62: 1.10732855 | AB62: 1.10732855 | AC62: 1.28542315 | AD62: 1.304924825 | AE62: 1.27558385 | AF62: 1.3471811 | AG62: 1.401589075 | AH62: 1.10732855 | AI62: 1.10732855 | AJ62: 1.10732855 | AK62: 1.10732855 | AL62: 1.10732855
D63: Customer Service and billing | W63: 0.163580309 | X63: 0.03833280317 | Y63: 0.02462378084 | Z63: 0.642568806 | AA63: 0.5737294992 | AB63: 0.5737294992 | AC63: 0.5737294992 | AD63: 0.5737294992 | AE63: 0.5737294992 | AF63: 0.5737294992 | AG63: 0.5737294992 | AH63: 0.5737294992 | AI63: 0.5737294992 | AJ63: 0.5737294992 | AK63: 0.5737294992 | AL63: 0.5737294992
D64: GSL Payments | W64: 0 | X64: 0 | Y64: 0 | Z64: 0
D65: Licence Fees | W65: 0.07058602377 | X65: 0.03383296222 | Y65: 0.03573548542 | Z65: 0.0407947575 | AA65: 0.0460750525 | AB65: 0.0448575 | AC65: 0.04781518 | AD65: 0.04781518 | AE65: 0.04781518 | AF65: 0.04781518 | AG65: 0.04781518 | AH65: 0.04781518 | AI65: 0.04781518 | AJ65: 0.04781518 | AK65: 0.04781518 | AL65: 0.04781518
D66: Corporate | W66: 3.224548832 | X66: 3.440095279 | Y66: 3.613272189 | Z66: 3.434708178 | AA66: 3.03734763 | AB66: 1.841832975 | AC66: 1.943070815 | AD66: 1.950871485 | AE66: 1.939135095 | AF66: 1.967773995 | AG66: 1.989537185 | AH66: 1.841832975 | AI66: 1.841832975 | AJ66: 1.841832975 | AK66: 1.841832975 | AL66: 1.841832975
D67: Other operating expenditure | Y67: 0 | Z67: 0 | AH67: 0.015 | AI67: 0.015 | AJ67: 0.015 | AK67: 0.015 | AL67: 0.015
C68: =+CONCATENATE("Total ",C59) -> Total Sewerage | W68: =+SUM(W60:W67) -> 6.574583928 | X68: 6.243747076 | Y68: 6.513931045 | Z68: 6.215315857 | AA68: 7.330291788 | AB68: 6.133559581 | AC68: 6.522706461 | AD68: 6.561709811 | AE68: 6.503027861 | AF68: 6.646222361 | AG68: 6.755038311 | AH68: =+SUM(AH60:AH67) -> 6.151517261 | AI68: =+SUM(AI60:AI67) -> 6.151517261 | AJ68: =+SUM(AJ60:AJ67) -> 6.151517261 | AK68: =+SUM(AK60:AK67) -> 6.151517261 | AL68: =+SUM(AL60:AL67) -> 6.151517261
C70: Recycled Water
D71: =+D60 -> Operations & Maintenance | W71: 0 | X71: 0 | Y71: 0.004282396668 | Z71: 0.005232645 | AA71: 0.05730046014 | AB71: 0.05730046014 | AC71: 0.05730046014 | AD71: 0.05730046014 | AE71: 0.05730046014 | AF71: 0.05730046014 | AG71: 0.05730046014 | AH71: 0.05730046014 | AI71: 0.05730046014 | AJ71: 0.05730046014 | AK71: 0.05730046014 | AL71: 0.05730046014
D72: =+D61 -> External bulk charges (excl. temporary purchases) | W72: =+W133 -> 0 | X72: 0 | Y72: 0 | Z72: 0 | AA72: 0 | AB72: 0 | AC72: 0 | AD72: 0 | AE72: 0 | AF72: 0 | AG72: 0 | AH72: =+AH133 -> 0 | AI72: 0 | AJ72: 0 | AK72: 0 | AL72: 0 | AM72: see reconciliation below
D73: Treatment | W73: 0.1232454383 | X73: 0.05804681624 | Y73: 0.1081305159 | Z73: 0.059652153 | AA73: 0.4912903179 | AB73: 0.4912903179 | AC73: 0.4912903179 | AD73: 0.4912903179 | AE73: 0.4912903179 | AF73: 0.4912903179 | AG73: 0.4912903179 | AH73: 0.4912903179 | AI73: 0.4912903179 | AJ73: 0.4912903179 | AK73: 0.4912903179 | AL73: 0.4912903179
D74: Customer Service and billing | W74: 0 | X74: 0 | Y74: 0 | Z74: 0.013604877 | AA74: 0.01434323748 | AB74: 0.01434323748 | AC74: 0.01434323748 | AD74: 0.01434323748 | AE74: 0.01434323748 | AF74: 0.01434323748 | AG74: 0.01434323748 | AH74: 0.01434323748 | AI74: 0.01434323748 | AJ74: 0.01434323748 | AK74: 0.01434323748 | AL74: 0.01434323748
D75: GSL Payments | W75: 0 | X75: 0 | Y75: 0 | Z75: 0
D76: Licence Fees | W76: 0 | X76: 0 | Y76: 0 | Z76: 0 | AA76: 0 | AC76: 0.00097582 | AD76: 0.00097582 | AE76: 0.00097582 | AF76: 0.00097582 | AG76: 0.00097582 | AH76: 0.00097582 | AI76: 0.00097582 | AJ76: 0.00097582 | AK76: 0.00097582 | AL76: 0.00097582
D77: Corporate | W77: 0 | X77: 0 | Y77: 0.07387134252 | Z77: 0.072210501 | AA77: 0.07683748908 | AB77: 0.07683748908 | AC77: 0.07683748908 | AD77: 0.07683748908 | AE77: 0.07683748908 | AF77: 0.07683748908 | AG77: 0.07683748908 | AH77: 0.07683748908 | AI77: 0.07683748908 | AJ77: 0.07683748908 | AK77: 0.07683748908 | AL77: 0.07683748908
D78: Other operating expenditure | Y78: 0 | Z78: 0
C79: =+CONCATENATE("Total ",C70) -> Total Recycled Water | W79: =+SUM(W71:W78) -> 0.1232454383 | X79: 0.05804681624 | Y79: 0.1862842551 | Z79: 0.150700176 | AA79: 0.6397715046 | AB79: 0.6397715046 | AC79: 0.6407473246 | AD79: 0.6407473246 | AE79: 0.6407473246 | AF79: 0.6407473246 | AG79: 0.6407473246 | AH79: =+SUM(AH71:AH78) -> 0.6407473246 | AI79: =+SUM(AI71:AI78) -> 0.6407473246 | AJ79: =+SUM(AJ71:AJ78) -> 0.6407473246 | AK79: =+SUM(AK71:AK78) -> 0.6407473246 | AL79: =+SUM(AL71:AL78) -> 0.6407473246
C81: Rural Water
D82: =+D60 -> Operations & Maintenance
D83: =+D61 -> External bulk charges (excl. temporary purchases) | W83: =+W134 -> 0 | X83: 0 | Y83: 0 | Z83: 0 | AA83: 0 | AB83: 0 | AC83: 0 | AD83: 0 | AE83: 0 | AF83: 0 | AG83: 0 | AH83: =+AH134 -> 0 | AI83: 0 | AJ83: 0 | AK83: 0 | AL83: 0 | AM83: see reconciliation below
D84: Treatment
D85: Customer Service and billing
D86: GSL Payments
D87: Licence Fees
D88: Corporate
D89: Other operating expenditure
C90: =+CONCATENATE("Total ",C81) -> Total Rural Water | W90: =+SUM(W82:W89) -> 0 | X90: 0 | Y90: 0 | Z90: 0 | AA90: 0 | AB90: 0 | AC90: 0 | AD90: 0 | AE90: 0 | AF90: 0 | AG90: 0 | AH90: =+SUM(AH82:AH89) -> 0 | AI90: =+SUM(AI82:AI89) -> 0 | AJ90: =+SUM(AJ82:AJ89) -> 0 | AK90: =+SUM(AK82:AK89) -> 0 | AL90: =+SUM(AL82:AL89) -> 0
C92: Bulk Water
D93: Operations & Maintenance
D94: Treatment
D95: Customer Service and billing
D96: GSL Payments
D97: Licence Fees
D98: Corporate
D99: Other operating expenditure
C100: Total Bulk water | W100: =+SUM(W93:W99) -> 0 | X100: 0 | Y100: 0 | Z100: 0 | AA100: 0 | AB100: 0 | AC100: 0 | AD100: 0 | AE100: 0 | AF100: 0 | AG100: 0 | AH100: =+SUM(AH93:AH99) -> 0 | AI100: =+SUM(AI93:AI99) -> 0 | AJ100: =+SUM(AJ93:AJ99) -> 0 | AK100: =+SUM(AK93:AK99) -> 0 | AL100: =+SUM(AL93:AL99) -> 0
C102: External temporary water purchases
C105: Licence fees
D106: Essential Services Commission | W106: 0.014 | X106: 0.014 | Y106: 0.014 | Z106: 0.014961 | AA106: 0.021318 | AB106: 0.022 | AC106: 0.02839 | AD106: 0.02839 | AE106: 0.02839 | AF106: 0.02839 | AG106: 0.02839 | AH106: 0.02839 | AI106: 0.02839 | AJ106: 0.02839 | AK106: 0.02839 | AL106: 0.02839
D107: Department of Human Services | W107: 0.02 | X107: 0.01752356717 | Y107: 0.02 | Z107: 0.03 | AA107: 0.035943105 | AB107: 0.035192 | AC107: 0.035192 | AD107: 0.035192 | AE107: 0.035192 | AF107: 0.035192 | AG107: 0.035192 | AH107: 0.035192 | AI107: 0.035192 | AJ107: 0.035192 | AK107: 0.035192 | AL107: 0.035192
D108: Environment Protection Authority | W108: 0.07058602377 | X108: 0.03614235728 | Y108: 0.03747097084 | Z108: 0.036628515 | AA108: 0.034889 | AB108: 0.032523 | AC108: 0.034 | AD108: 0.034 | AE108: 0.034 | AF108: 0.034 | AG108: 0.034 | AH108: 0.034 | AI108: 0.034 | AJ108: 0.034 | AK108: 0.034 | AL108: 0.034
C109: =+CONCATENATE("Total ",C105) -> Total Licence fees | W109: =+SUM(W106:W108) -> 0.1045860238 | X109: 0.06766592444 | Y109: 0.07147097084 | Z109: 0.081589515 | AA109: 0.092150105 | AB109: 0.089715 | AC109: 0.097582 | AD109: 0.097582 | AE109: 0.097582 | AF109: 0.097582 | AG109: 0.097582 | AH109: =+SUM(AH106:AH108) -> 0.097582 | AI109: =+SUM(AI106:AI108) -> 0.097582 | AJ109: =+SUM(AJ106:AJ108) -> 0.097582 | AK109: =+SUM(AK106:AK108) -> 0.097582 | AL109: =+SUM(AL106:AL108) -> 0.097582
C111: Environment Contribution | W111: 0.8896079821 | X111: 1.00322422 | Y111: 0.980668837 | Z111: 1.13025132 | AA111: 1.10484 | AB111: 1.08 | AC111: 1.048543689 | AD111: 1.018003582 | AE111: 0.9883529921 | AF111: 0.9595660117 | AG111: 0.9316174871 | AH111: 0.9044829972 | AI111: 0.8781388323 | AJ111: 0.8525619731 | AK111: 0.8277300709 | AL111: 0.8036214281
C113: Other non-controllable
D114: Defined Benefits | W114: 0.03025115304 | X114: 0.02409490485 | Y114: 0.03318857418 | Z114: 0.029 | AA114: 0.03 | AB114: 0.03 | AC114: 0.03 | AD114: 0.03 | AE114: 0.03 | AF114: 0.03 | AG114: 0.03 | AH114: 0.03 | AI114: 0.03 | AJ114: 0.03 | AK114: 0.03 | AL114: 0.03
D115: [Non-controllable 2]
D116: [Non-controllable 3]
D117: [Non-controllable 4]
D118: [Non-controllable 5]
D119: [Non-controllable 6]
D120: [Non-controllable 7]
D121: [Non-controllable 8]
D122: [Non-controllable 9]
D123: [Non-controllable 10]
W124: =SUM(W114:W123) -> 0.03025115304 | X124: 0.02409490485 | Y124: 0.03318857418 | Z124: 0.029 | AA124: 0.03 | AB124: 0.03 | AC124: 0.03 | AD124: 0.03 | AE124: 0.03 | AF124: 0.03 | AG124: 0.03 | AH124: =SUM(AH114:AH123) -> 0.03 | AI124: =SUM(AI114:AI123) -> 0.03 | AJ124: =SUM(AJ114:AJ123) -> 0.03 | AK124: =SUM(AK114:AK123) -> 0.03 | AL124: =SUM(AL114:AL123) -> 0.03
C127: External bulk charges (excl. temporary purchases)
C128: Reconciliation
C130: Service | W130: =+W7 -> 2017-18 | X130: =+X7 -> 2018-19 | Y130: 2019-20 | Z130: 2020-21 | AA130: 2021-22 | AB130: 2022-23 | AC130: 2023-24 | AD130: 2024-25 | AE130: 2025-26 | AF130: 2026-27 | AG130: 2027-28 | AH130: =+AH7 -> 2028-29 | AI130: =+AI7 -> 2029-30 | AJ130: =+AJ7 -> 2030-31 | AK130: =+AK7 -> 2031-32 | AL130: =+AL7 -> 2032-33
D131: Water | W131: =+SUMIF($I$138:$I$179,$D$131,W$138:W$179) -> 0 | X131: 0.592 | Y131: 0.592 | Z131: 0.61 | AA131: 0.344380674 | AB131: 0.343699 | AC131: 0.4158710633 | AD131: 0.4316330506 | AE131: 0.446526443 | AF131: 0.446526443 | AG131: 0.446526443 | AH131: 0.446526443 | AI131: 0.446526443 | AJ131: 0.446526443 | AK131: 0.446526443 | AL131: 0.446526443
D132: Sewerage | W132: =+SUMIF($I$138:$I$179,$D$132,W$138:W$179) -> 0 | X132: 0 | Y132: 0 | Z132: 0 | AA132: 0 | AB132: 0 | AC132: 0 | AD132: 0 | AE132: 0 | AF132: 0 | AG132: 0 | AH132: 0 | AI132: 0 | AJ132: 0 | AK132: 0 | AL132: 0
D133: Recycled Water | W133: =+SUMIF($I$138:$I$179,$D$133,W$138:W$179) -> 0 | X133: 0 | Y133: 0 | Z133: 0 | AA133: 0 | AB133: 0 | AC133: 0 | AD133: 0 | AE133: 0 | AF133: 0 | AG133: 0 | AH133: 0 | AI133: 0 | AJ133: 0 | AK133: 0 | AL133: 0
D134: Rural Water | W134: =+SUMIF($I$138:$I$179,$D$134,W$138:W$179) -> 0 | X134: 0 | Y134: 0 | Z134: 0 | AA134: 0 | AB134: 0 | AC134: 0 | AD134: 0 | AE134: 0 | AF134: 0 | AG134: 0 | AH134: 0 | AI134: 0 | AJ134: 0 | AK134: 0 | AL134: 0
C135: Total External Bulk Charges | W135: =SUM(W131:W134) -> 0 | X135: 0.592 | Y135: 0.592 | Z135: 0.61 | AA135: 0.344380674 | AB135: 0.343699 | AC135: 0.4158710633 | AD135: 0.4316330506 | AE135: 0.446526443 | AF135: 0.446526443 | AG135: 0.446526443 | AH135: =SUM(AH131:AH134) -> 0.446526443 | AI135: =SUM(AI131:AI134) -> 0.446526443 | AJ135: =SUM(AJ131:AJ134) -> 0.446526443 | AK135: =SUM(AK131:AK134) -> 0.446526443 | AL135: =SUM(AL131:AL134) -> 0.446526443
C137: Description | H137: Source | I137: Service | J137: Price
B138: 1 | C138: Melbourne Water | H138: Melbourne Water | I138: Water | J138: Fixed | X138: 0.592 | Y138: 0.592 | Z138: 0.61 | AA138: 0.344380674 | AB138: 0.343699 | AC138: 0.3602920633 | AD138: 0.3745580506 | AE138: 0.387913443 | AF138: 0.387913443 | AG138: 0.387913443 | AH138: 0.387913443 | AI138: 0.387913443 | AJ138: 0.387913443 | AK138: 0.387913443 | AL138: 0.387913443 | AO138: ESC USE ONLY
B139: 2 | C139: Melbourne Water | H139: Melbourne Water | I139: Water | J139: Variable | AC139: 0.055579 | AD139: 0.057075 | AE139: 0.058613 | AF139: 0.058613 | AG139: 0.058613 | AH139: 0.058613 | AI139: 0.058613 | AJ139: 0.058613 | AK139: 0.058613 | AL139: 0.058613
B140: 3 | H140: [Source] | I140: [Service] | J140: [Price] | AO140: [Service]
B141: 4 | H141: [Source] | I141: [Service] | J141: [Price] | AO141: Water
B142: 5 | H142: [Source] | I142: [Service] | J142: [Price] | AO142: Sewerage
B143: 6 | H143: [Source] | I143: [Service] | J143: [Price] | AO143: Recycled Water
B144: 7 | H144: [Source] | I144: [Service] | J144: [Price] | AO144: Rural Water
B145: 8 | H145: [Source] | I145: [Service] | J145: [Price]
B146: 9 | H146: [Source] | I146: [Service] | J146: [Price] | AO146: [Source]
B147: 10 | H147: [Source] | I147: [Service] | J147: [Price] | AO147: Melbourne Water
B148: 11 | H148: [Source] | I148: [Service] | J148: [Price] | AO148: Goulburn-Murray Water
B149: 12 | H149: [Source] | I149: [Service] | J149: [Price] | AO149: Other Sources
B150: 13 | H150: [Source] | I150: [Service] | J150: [Price]
B151: 14 | H151: [Source] | I151: [Service] | J151: [Price]
B152: 15 | H152: [Source] | I152: [Service] | J152: [Price]
B153: 16 | H153: [Source] | I153: [Service] | J153: [Price]
B154: 17 | H154: [Source] | I154: [Service] | J154: [Price]
B155: 18 | H155: [Source] | I155: [Service] | J155: [Price]
B156: 19 | H156: [Source] | I156: [Service] | J156: [Price]
B157: 20 | H157: [Source] | I157: [Service] | J157: [Price]
B158: 21 | H158: [Source] | I158: [Service] | J158: [Price]
B159: 22 | H159: [Source] | I159: [Service] | J159: [Price]
B160: 23 | H160: [Source] | I160: [Service] | J160: [Price]
B161: 24 | H161: [Source] | I161: [Service] | J161: [Price]
B162: 25 | H162: [Source] | I162: [Service] | J162: [Price]
B163: 26 | H163: [Source] | I163: [Service] | J163: [Price]
B164: 27 | H164: [Source] | I164: [Service] | J164: [Price]
B165: 28 | H165: [Source] | I165: [Service] | J165: [Price]
B166: 29 | H166: [Source] | I166: [Service] | J166: [Price]
B167: 30 | H167: [Source] | I167: [Service] | J167: [Price]
B168: 31 | H168: [Source] | I168: [Service] | J168: [Price]
B169: 32 | H169: [Source] | I169: [Service] | J169: [Price]
B170: 33 | H170: [Source] | I170: [Service] | J170: [Price]
B171: 34 | H171: [Source] | I171: [Service] | J171: [Price]
B172: 35 | H172: [Source] | I172: [Service] | J172: [Price]
B173: 36 | H173: [Source] | I173: [Service] | J173: [Price]
B174: 37 | H174: [Source] | I174: [Service] | J174: [Price]
B175: 38 | H175: [Source] | I175: [Service] | J175: [Price]
B176: 39 | H176: [Source] | I176: [Service] | J176: [Price]
B177: 40 | H177: [Source] | I177: [Service] | J177: [Price]

Sheet Capex_FO input
B1: Capital Expenditure - Forecast Input | Q1: =Q36 -> Gross capital expenditure | AB1: =AB36 -> Government contributions | AM1: =AM36 -> Customer contributions | AX1: =AX36 -> Net capital expenditure | BI1: =BI36 -> Regulatory Depreciation | BT1: =BT36 -> Accumulated capex | CE1: =CE36 -> Gross capital expenditure | CP1: =CP36 -> Tax Depreciation
B2: =+Contents!H7 -> Westernport Water | Q2: =Q37 -> $m, 01/01/23 | AB2: =AB37 -> $m, 01/01/23 | AM2: =AM37 -> $m, 01/01/23 | AX2: =AX37 -> $m, 01/01/23 | BI2: =BI37 -> $m, 01/01/23 | BT2: =BT37 -> $m, 01/01/23 | CE2: =CE37 -> Nominal,$ | CP2: =CP37 -> Nominal,$
B3: Go to Table of Contents | Q3: =Q39 -> 2023-24 | R3: =R39 -> 2024-25 | S3: 2025-26 | T3: 2026-27 | U3: 2027-28 | V3: 2028-29 | W3: 2029-30 | X3: 2030-31 | Y3: =Y39 -> 2031-32 | Z3: =Z39 -> 2032-33 | AB3: 2023-24 | AC3: 2024-25 | AD3: 2025-26 | AE3: 2026-27 | AF3: 2027-28 | AG3: 2028-29 | AH3: 2029-30 | AI3: 2030-31 | AJ3: 2031-32 | AK3: 2032-33 | AM3: 2023-24 | AN3: 2024-25 | AO3: 2025-26 | AP3: 2026-27 | AQ3: 2027-28 | AR3: 2028-29 | AS3: 2029-30 | AT3: 2030-31 | AU3: 2031-32 | AV3: 2032-33 | AX3: 2023-24 | AY3: 2024-25 | AZ3: 2025-26 | BA3: 2026-27 | BB3: 2027-28 | BC3: 2028-29 | BD3: 2029-30 | BE3: 2030-31 | BF3: 2031-32 | BG3: 2032-33 | BI3: 2023-24 | BJ3: 2024-25 | BK3: 2025-26 | BL3: 2026-27 | BM3: 2027-28 | BN3: 2028-29 | BO3: 2029-30 | BP3: 2030-31 | BQ3: 2031-32 | BR3: 2032-33 | BT3: 2023-24 | BU3: 2024-25 | BV3: 2025-26 | BW3: 2026-27 | BX3: 2027-28 | BY3: 2028-29 | BZ3: 2029-30 | CA3: 2030-31 | CB3: =CB39 -> 2031-32 | CC3: =CC39 -> 2032-33 | CE3: 2023-24 | CF3: 2024-25 | CG3: 2025-26 | CH3: 2026-27 | CI3: 2027-28 | CJ3: 2028-29 | CK3: 2029-30 | CL3: 2030-31 | CM3: =CM39 -> 2031-32 | CN3: =CN39 -> 2032-33 | CP3: 2023-24 | CQ3: 2024-25 | CR3: =CR39 -> 2025-26 | CS3: 2026-27 | CT3: 2027-28 | CU3: 2028-29 | CV3: 2029-30 | CW3: 2030-31 | CX3: =CX39 -> 2031-32 | CY3: =CY39 -> 2032-33
C7: Input Summary | F7: FIFTH REG PERIOD | K7: SIXTH REG PERIOD
D9: =+Q39 -> 2023-24 | E9: =+R39 -> 2024-25 | F9: 2025-26 | G9: 2026-27 | H9: 2027-28 | I9: 2028-29 | J9: 2029-30 | K9: 2030-31 | L9: =+Y39 -> 2031-32 | M9: =+Z39 -> 2032-33
C10: By Cost Driver
C11: Net capital expenditure - Renewals | D11: =+SUMIF($F$42:$F$1016,"Renewals",AX$42:AX$1016) -> 6.32248429 | E11: 3.447483337 | F11: 2.783089482 | G11: 2.492038086 | H11: 3.26529728 | I11: 4.025100302 | J11: 3.933130214 | K11: 3.493591077 | L11: =+SUMIF($F$42:$F$1016,"Renewals",BF$42:BF$1016) -> 3.41465481 | M11: =+SUMIF($F$42:$F$1016,"Renewals",BG$42:BG$1016) -> 3.612093748
C12: Net capital expenditure - Growth | D12: =+SUMIF($F$42:$F$1016,"Growth",AX$42:AX$1016) -> 1.062466 | E12: 0.622118 | F12: 0.371804 | G12: 4.957554 | H12: -0.234238 | I12: 13.81897984 | J12: 5.395159844 | K12: 1.337641939 | L12: =+SUMIF($F$42:$F$1016,"Growth",BF$42:BF$1016) -> 1.330930615 | M12: =+SUMIF($F$42:$F$1016,"Growth",BG$42:BG$1016) -> 1.323937454
C13: Net capital expenditure - Improvements / Compliance | D13: =+SUMIF($F$42:$F$1016,"Improvements / Compliance",AX$42:AX$1016) -> 2.6172 | E13: 3.0077 | F13: 4.6761 | G13: 1.2784 | H13: 0.8212 | I13: 0.9326 | J13: 2.0066 | K13: 0.4566 | L13: =+SUMIF($F$42:$F$1016,"Improvements / Compliance",BF$42:BF$1016) -> 0.4566 | M13: =+SUMIF($F$42:$F$1016,"Improvements / Compliance",BG$42:BG$1016) -> 0.4566
C14: Government Contributions | D14: =+AB41 -> 0 | E14: 0 | F14: 0 | G14: 0 | H14: 0 | I14: 0 | J14: 0 | K14: 0 | L14: =+AJ41 -> 0 | M14: =+AK41 -> 0
C15: Customer Contributions | D15: =+AM41 -> 0.965534 | E15: 0.985982 | F15: 1.008696 | G15: 0.906746 | H15: 0.924638 | I15: 0.861479838 | J15: 0.8769864751 | K15: 0.8927722316 | L15: =+AU41 -> 0.9088421318 | M15: =+AV41 -> 0.9252012902
C16: Total prescribed capex | D16: =SUM(D11:D15) -> 10.96768429 | E16: 8.063283337 | F16: 8.839689482 | G16: 9.634738086 | H16: 4.77689728 | I16: 19.63815998 | J16: 12.21187653 | K16: 6.180605248 | L16: =SUM(L11:L15) -> 6.111027556 | M16: =SUM(M11:M15) -> 6.317832492
C18: By Capital Type
C19: Top 10 Major Projects | D19: =+SUMIF($H$42:$H$1016,$C$19,Q$42:Q$1016) -> 3.211 | E19: 4.1182 | F19: 3.5678 | G19: 6.2004 | H19: 0.3529 | I19: 5.210459679 | J19: 6.112146319 | K19: 2.070414171 | L19: =+SUMIF($H$42:$H$1016,$C$19,Y$42:Y$1016) -> 2.079772746 | M19: =+SUMIF($H$42:$H$1016,$C$19,Z$42:Z$1016) -> 2.089138744
C20: Significant projects | D20: =+SUMIF($H$42:$H$1016,$C$20,Q$42:Q$1016) -> 0.3306 | E20: 0.228 | F20: 0.188 | G20: 0.142 | H20: 0.3587 | I20: 0.127 | J20: 0.092 | K20: 0.092 | L20: =+SUMIF($H$42:$H$1016,$C$20,Y$42:Y$1016) -> 0.092 | M20: =+SUMIF($H$42:$H$1016,$C$20,Z$42:Z$1016) -> 0.092
C21: Capital Programs / Allocation | D21: =+SUMIF($H$42:$H$1016,$C$21,Q$42:Q$1016) -> 7.24648429 | E21: 2.968683337 | F21: 4.742589482 | G21: 3.181238086 | H21: 3.45269728 | I21: 1.365191617 | J21: 1.47093871 | K21: 1.486954226 | L21: =+SUMIF($H$42:$H$1016,$C$21,Y$42:Y$1016) -> 1.64793204 | M21: =+SUMIF($H$42:$H$1016,$C$21,Z$42:Z$1016) -> 1.802756911
C22: Other Capital expenditure | D22: =+SUMIF($H$42:$H$1016,$C$22,Q$42:Q$1016) -> 0.1796 | E22: 0.7484 | F22: 0.3413 | G22: 0.1111 | H22: 0.6126 | I22: 12.93550868 | J22: 4.536791504 | K22: 2.531236851 | L22: =+SUMIF($H$42:$H$1016,$C$22,Y$42:Y$1016) -> 2.29132277 | M22: =+SUMIF($H$42:$H$1016,$C$22,Z$42:Z$1016) -> 2.333936837
C23: Total prescribed capex | D23: =SUM(D19:D22) -> 10.96768429 | E23: 8.063283337 | F23: 8.839689482 | G23: 9.634738086 | H23: 4.77689728 | I23: 19.63815998 | J23: 12.21187653 | K23: 6.180605248 | L23: =SUM(L19:L22) -> 6.111027556 | M23: =SUM(M19:M22) -> 6.317832492
C25: Difference | D25: =+D23-D16 -> 0 | E25: 0 | F25: 0 | G25: 0 | H25: 0 | I25: 0 | J25: 0 | K25: 0 | L25: =+L23-L16 -> 0 | M25: =+M23-M16 -> 0
C26: Test | D26: =IF(+D23=D16,0,1) -> 0 | E26: 0 | F26: 0 | G26: 0 | H26: 0 | I26: 0 | J26: 0 | K26: 0 | L26: 0 | M26: 0
C29: Total prescribed capex | D29: =+D23 -> 10.96768429 | E29: 8.063283337 | F29: 8.839689482 | G29: 9.634738086 | H29: 4.77689728 | I29: 19.63815998 | J29: 12.21187653 | K29: 6.180605248 | L29: =+L23 -> 6.111027556 | M29: =+M23 -> 6.317832492
C32: Regulatory Depreciation | D32: =+BI41 -> 0.0921249575 | E32: 0.3612327745 | F32: 0.7439697034 | G32: 1.181836766 | H32: 2.158167304 | I32: 3.219839069 | J32: 3.791339018 | K32: 4.165491039 | L32: =+BQ41 -> 3.952313486 | M32: =+BR41 -> 3.625291416
B35: =Expenditure_Detail!$B$6 -> $m, 01/01/23
Q36: Gross capital expenditure | AB36: Government contributions | AM36: Customer contributions | AX36: Net capital expenditure | BI36: Regulatory Depreciation | BT36: Accumulated capex | CE36: Gross capital expenditure | CP36: Tax Depreciation
Q37: =Expenditure_Detail!$B$6 -> $m, 01/01/23 | AB37: =Expenditure_Detail!$B$6 -> $m, 01/01/23 | AM37: =Expenditure_Detail!$B$6 -> $m, 01/01/23 | AX37: =Expenditure_Detail!$B$6 -> $m, 01/01/23 | BI37: =Expenditure_Detail!$B$6 -> $m, 01/01/23 | BT37: =Expenditure_Detail!$B$6 -> $m, 01/01/23 | CE37: Nominal,$ | CP37: Nominal,$
Q39: 2023-24 | R39: 2024-25 | S39: 2025-26 | T39: 2026-27 | U39: 2027-28 | V39: 2028-29 | W39: 2029-30 | X39: 2030-31 | Y39: 2031-32 | Z39: 2032-33 | AB39: 2023-24 | AC39: 2024-25 | AD39: 2025-26 | AE39: 2026-27 | AF39: 2027-28 | AG39: 2028-29 | AH39: 2029-30 | AI39: 2030-31 | AJ39: 2031-32 | AK39: 2032-33 | AM39: 2023-24 | AN39: 2024-25 | AO39: 2025-26 | AP39: 2026-27 | AQ39: 2027-28 | AR39: 2028-29 | AS39: 2029-30 | AT39: 2030-31 | AU39: 2031-32 | AV39: 2032-33 | AX39: 2023-24 | AY39: 2024-25 | AZ39: 2025-26 | BA39: 2026-27 | BB39: 2027-28 | BC39: 2028-29 | BD39: 2029-30 | BE39: 2030-31 | BF39: 2031-32 | BG39: 2032-33 | BI39: 2023-24 | BJ39: 2024-25 | BK39: 2025-26 | BL39: 2026-27 | BM39: 2027-28 | BN39: 2028-29 | BO39: 2029-30 | BP39: 2030-31 | BQ39: 2031-32 | BR39: 2032-33 | BT39: 2023-24 | BU39: 2024-25 | BV39: 2025-26 | BW39: 2026-27 | BX39: 2027-28 | BY39: 2028-29 | BZ39: 2029-30 | CA39: 2030-31 | CB39: 2031-32 | CC39: 2032-33 | CE39: 2023-24 | CF39: 2024-25 | CG39: 2025-26 | CH39: 2026-27 | CI39: 2027-28 | CJ39: 2028-29 | CK39: 2029-30 | CL39: 2030-31 | CM39: 2031-32 | CN39: 2032-33 | CP39: 2023-24 | CQ39: 2024-25 | CR39: 2025-26 | CS39: 2026-27 | CT39: 2027-28 | CU39: 2028-29 | CV39: 2029-30 | CW39: 2030-31 | CX39: 2031-32 | CY39: 2032-33
BI40: 1 | BJ40: 2 | BK40: 3 | BL40: 4 | BM40: 5 | BN40: 6 | BO40: 7 | BP40: 8 | BQ40: 9 | BR40: 10 | CP40: 1 | CQ40: 2 | CR40: 3 | CS40: 4 | CT40: 5 | CU40: 6 | CV40: 7 | CW40: 8 | CX40: 9 | CY40: 10
C41: Project/program Name | E41: Service | F41: Major cost driver | G41: Asset category | H41: Capital type | J41: Reg Depreciation Method | K41: Year asset operational | L41: Asset life (Regulatory) | M41: Asset life (Tax) | Q41: =SUM(Q42:Q1016) -> 10.96768429 | R41: 8.063283337 | S41: 8.839689482 | T41: 9.634738086 | U41: 4.77689728 | V41: 19.63815998 | W41: 12.21187653 | X41: 6.180605248 | Y41: =SUM(Y42:Y1016) -> 6.111027556 | Z41: =SUM(Z42:Z1016) -> 6.317832492 | AB41: =SUM(AB42:AB1016) -> 0 | AC41: 0 | AD41: 0 | AE41: 0 | AF41: 0 | AG41: 0 | AH41: 0 | AI41: 0 | AJ41: 0 | AK41: 0 | AM41: =SUM(AM42:AM1016) -> 0.965534 | AN41: 0.985982 | AO41: 1.008696 | AP41: 0.906746 | AQ41: 0.924638 | AR41: 0.861479838 | AS41: 0.8769864751 | AT41: 0.8927722316 | AU41: 0.9088421318 | AV41: 0.9252012902 | AX41: =SUM(AX42:AX1016) -> 10.00215029 | AY41: 7.077301337 | AZ41: 7.830993482 | BA41: 8.727992086 | BB41: 3.85225928 | BC41: 18.77668014 | BD41: 11.33489006 | BE41: 5.287833017 | BF41: 5.202185424 | BG41: 5.392631202 | BI41: =SUM(BI42:BI1016) -> 0.0921249575 | BJ41: 0.3612327745 | BK41: 0.7439697034 | BL41: 1.181836766 | BM41: 2.158167304 | BN41: 3.219839069 | BO41: 3.791339018 | BP41: 4.165491039 | BQ41: =SUM(BQ42:BQ1016) -> 3.952313486 | BR41: =SUM(BR42:BR1016) -> 3.625291416 | BT41: =SUM(BT42:BT1016) -> 5.172159211 | BU41: 3.273723403 | BV41: 4.214533815 | BW41: 9.486157181 | BX41: 15.34412286 | BY41: 18.77668014 | BZ41: 11.33489006 | CA41: 5.287833017 | CB41: =SUM(CB42:CB1016) -> 5.202185424 | CC41: =SUM(CC42:CC1016) -> 5.392631202 | CE41: =SUM(CE42:CE1016) -> 11.29671482 | CF41: 8.554337292 | CG41: 9.659367369 | CH41: 10.8439826 | CI41: 5.537733172 | CJ41: 23.44899002 | CK41: 15.0190678 | CL41: 7.829405813 | CM41: =SUM(CM42:CM1016) -> 7.973504881 | CN41: =SUM(CN42:CN1016) -> 8.490638568 | CP41: =SUM(CP42:CP1016) -> 0.3686995403 | CQ41: 1.163962076 | CR41: 1.952427663 | CS41: 2.600805231 | CT41: 2.86603038 | CU41: 3.083568438 | CV41: 3.578116706 | CW41: 3.990168543 | CX41: =SUM(CX42:CX1016) -> 4.3206781 | CY41: =SUM(CY42:CY1016) -> 4.544219612
C42: Recycled water wetland storage | E42: Recycled Water | F42: Growth | G42: Treatment | H42: Top 10 Major Projects | J42: Straight line | K42: 2027-28 | L42: 25 | M42: 25 | Q42: 0.2285 | R42: 0 | S42: 0.4569 | T42: 3.5316 | U42: 0.1188 | V42: 2.05 | W42: 2.05 | X42: 0 | Y42: 0 | Z42: 0 | AX42: =+Q42-AB42-AM42 -> 0.2285 | AY42: =+R42-AC42-AN42 -> 0 | AZ42: =+S42-AD42-AO42 -> 0.4569 | BA42: =+T42-AE42-AP42 -> 3.5316 | BB42: =+U42-AF42-AQ42 -> 0.1188 | BC42: =+V42-AG42-AR42 -> 2.05 | BD42: =+W42-AH42-AS42 -> 2.05 | BE42: =+X42-AI42-AT42 -> 0 | BF42: =+Y42-AJ42-AU42 -> 0 | BG42: =+Z42-AK42-AV42 -> 0 | BI42: =IF($L42=0,0, IF($L42<=0.5,BT42, IF($J42="straight line", IF((LEFT(BI$39,4)*1)-INT($L42)<LEFT($BI$39,4)*1,0,((OFFSET(BT42,0,-INT($L42+0.5),1,1))/$L42)*(IF($L42-INT($L42)>0.5,$L42-0.5-INT($L42),IF($L42-INT($L42)<=0.5,$L42-0.5-INT($L42)+1,0)))) +BT42/$L42*0.5, IF($J42="Declining Balance",-$BI$38,0)))) -> 0 | BJ42: =IF($L42=0,0, IF($L42<=0.5,BU42, IF(AND($J42="straight line",$L42<1.51),(BT42-((BT42/$L42)*0.5))+BU42/$L42*0.5, IF($J42="straight line", IF((LEFT(BJ$39,4)*1)-INT($L42)<LEFT($BI$39,4)*1,0,((OFFSET(BU42,0,-INT($L42+0.5),1,1))/$L42)*(IF($L42-INT($L42)>0.5,$L42-0.5-INT($L42),IF($L42-INT($L42)<=0.5,$L42-0.5-INT($L42)+1,0)))) +BU42/$L42*0.5 +SUM(OFFSET(BU42,0,MAX(-INT($L42+(0.5-(10^-12))),-BJ$40)+1,1,MIN(INT($L42+(0.5-(10^-12))),BJ$40)-1))*1/$L42, IF($J42="Declining Balance",-$BI$38,0))))) -> 0 | BK42: =IF($L42=0,0, IF($L42<=0.5,BV42, IF(AND($J42="straight line",$L42<1.51),(BU42-((BU42/$L42)*0.5))+BV42/$L42*0.5, IF($J42="straight line", IF((LEFT(BK$39,4)*1)-INT($L42)<LEFT($BI$39,4)*1,0,((OFFSET(BV42,0,-INT($L42+0.5),1,1))/$L42)*(IF($L42-INT($L42)>0.5,$L42-0.5-INT($L42),IF($L42-INT($L42)<=0.5,$L42-0.5-INT($L42)+1,0)))) +BV42/$L42*0.5 +SUM(OFFSET(BV42,0,MAX(-INT($L42+(0.5-(10^-12))),-BK$40)+1,1,MIN(INT($L42+(0.5-(10^-12))),BK$40)-1))*1/$L42, IF($J42="Declining Balance",-$BI$38,0))))) -> 0 | BL42: =IF($L42=0,0, IF($L42<=0.5,BW42, IF(AND($J42="straight line",$L42<1.51),(BV42-((BV42/$L42)*0.5))+BW42/$L42*0.5, IF($J42="straight line", IF((LEFT(BL$39,4)*1)-INT($L42)<LEFT($BI$39,4)*1,0,((OFFSET(BW42,0,-INT($L42+0.5),1,1))/$L42)*(IF($L42-INT($L42)>0.5,$L42-0.5-INT($L42),IF($L42-INT($L42)<=0.5,$L42-0.5-INT($L42)+1,0)))) +BW42/$L42*0.5 +SUM(OFFSET(BW42,0,MAX(-INT($L42+(0.5-(10^-12))),-BL$40)+1,1,MIN(INT($L42+(0.5-(10^-12))),BL$40)-1))*1/$L42, IF($J42="Declining Balance",-$BI$38,0))))) -> 0 | BM42: =IF($L42=0,0, IF($L42<=0.5,BX42, IF(AND($J42="straight line",$L42<1.51),(BW42-((BW42/$L42)*0.5))+BX42/$L42*0.5, IF($J42="straight line", IF((LEFT(BM$39,4)*1)-INT($L42)<LEFT($BI$39,4)*1,0,((OFFSET(BX42,0,-INT($L42+0.5),1,1))/$L42)*(IF($L42-INT($L42)>0.5,$L42-0.5-INT($L42),IF($L42-INT($L42)<=0.5,$L42-0.5-INT($L42)+1,0)))) +BX42/$L42*0.5 +SUM(OFFSET(BX42,0,MAX(-INT($L42+(0.5-(10^-12))),-BM$40)+1,1,MIN(INT($L42+(0.5-(10^-12))),BM$40)-1))*1/$L42, IF($J42="Declining Balance",-$BI$38,0))))) -> 0.086716 | BN42: =IF($L42=0,0, IF($L42<=0.5,BY42, IF(AND($J42="straight line",$L42<1.51),(BX42-((BX42/$L42)*0.5))+BY42/$L42*0.5, IF($J42="straight line", IF((LEFT(BN$39,4)*1)-INT($L42)<LEFT($BI$39,4)*1,0,((OFFSET(BY42,0,-INT($L42+0.5),1,1))/$L42)*(IF($L42-INT($L42)>0.5,$L42-0.5-INT($L42),IF($L42-INT($L42)<=0.5,$L42-0.5-INT($L42)+1,0)))) +BY42/$L42*0.5 +SUM(OFFSET(BY42,0,MAX(-INT($L42+(0.5-(10^-12))),-BN$40)+1,1,MIN(INT($L42+(0.5-(10^-12))),BN$40)-1))*1/$L42, IF($J42="Declining Balance",-$BI$38,0))))) -> 0.214432 | BO42: =IF($L42=0,0, IF($L42<=0.5,BZ42, IF(AND($J42="straight line",$L42<1.51),(BY42-((BY42/$L42)*0.5))+BZ42/$L42*0.5, IF($J42="straight line", IF((LEFT(BO$39,4)*1)-INT($L42)<LEFT($BI$39,4)*1,0,((OFFSET(BZ42,0,-INT($L42+0.5),1,1))/$L42)*(IF($L42-INT($L42)>0.5,$L42-0.5-INT($L42),IF($L42-INT($L42)<=0.5,$L42-0.5-INT($L42)+1,0)))) +BZ42/$L42*0.5 +SUM(OFFSET(BZ42,0,MAX(-INT($L42+(0.5-(10^-12))),-BO$40)+1,1,MIN(INT($L42+(0.5-(10^-12))),BO$40)-1))*1/$L42, IF($J42="Declining Balance",-$BI$38,0))))) -> 0.296432 | BP42: =IF($L42=0,0, IF($L42<=0.5,CA42, IF(AND($J42="straight line",$L42<1.51),(BZ42-((BZ42/$L42)*0.5))+CA42/$L42*0.5, IF($J42="straight line", IF((LEFT(BP$39,4)*1)-INT($L42)<LEFT($BI$39,4)*1,0,((OFFSET(CA42,0,-INT($L42+0.5),1,1))/$L42)*(IF($L42-INT($L42)>0.5,$L42-0.5-INT($L42),IF($L42-INT($L42)<=0.5,$L42-0.5-INT($L42)+1,0)))) +CA42/$L42*0.5 +SUM(OFFSET(CA42,0,MAX(-INT($L42+(0.5-(10^-12))),-BP$40)+1,1,MIN(INT($L42+(0.5-(10^-12))),BP$40)-1))*1/$L42, IF($J42="Declining Balance",-$BI$38,0))))) -> 0.337432 | BQ42: =IF($L42=0,0, IF($L42<=0.5,CB42, IF(AND($J42="straight line",$L42<1.51),(CA42-((CA42/$L42)*0.5))+CB42/$L42*0.5, IF($J42="straight line", IF((LEFT(BQ$39,4)*1)-INT($L42)<LEFT($BI$39,4)*1,0,((OFFSET(CB42,0,-INT($L42+0.5),1,1))/$L42)*(IF($L42-INT($L42)>0.5,$L42-0.5-INT($L42),IF($L42-INT($L42)<=0.5,$L42-0.5-INT($L42)+1,0)))) +CB42/$L42*0.5 +SUM(OFFSET(CB42,0,MAX(-INT($L42+(0.5-(10^-12))),-BQ$40)+1,1,MIN(INT($L42+(0.5-(10^-12))),BQ$40)-1))*1/$L42, IF($J42="Declining Balance",-$BI$38,0))))) -> 0.337432 | BR42: =IF($L42=0,0, IF($L42<=0.5,CC42, IF(AND($J42="straight line",$L42<1.51),(CB42-((CB42/$L42)*0.5))+CC42/$L42*0.5, IF($J42="straight line", IF((LEFT(BR$39,4)*1)-INT($L42)<LEFT($BI$39,4)*1,0,((OFFSET(CC42,0,-INT($L42+0.5),1,1))/$L42)*(IF($L42-INT($L42)>0.5,$L42-0.5-INT($L42),IF($L42-INT($L42)<=0.5,$L42-0.5-INT($L42)+1,0)))) +CC42/$L42*0.5 +SUM(OFFSET(CC42,0,MAX(-INT($L42+(0.5-(10^-12))),-BR$40)+1,1,MIN(INT($L42+(0.5-(10^-12))),BR$40)-1))*1/$L42, IF($J42="Declining Balance",-$BI$38,0))))) -> 0.337432 | BT42: =+IF($K42="Ongoing",AX42,IF(RIGHT($K42,2)=RIGHT(BT$39,2),SUM($AX42:AX42),0)+IF(RIGHT(BT$39,2)>RIGHT($K42,2),AX42,0)) -> 0 | BU42: =+IF($K42="Ongoing",AY42,IF(RIGHT($K42,2)=RIGHT(BU$39,2),SUM($AX42:AY42),0)+IF(RIGHT(BU$39,2)>RIGHT($K42,2),AY42,0)) -> 0 | BV42: =+IF($K42="Ongoing",AZ42,IF(RIGHT($K42,2)=RIGHT(BV$39,2),SUM($AX42:AZ42),0)+IF(RIGHT(BV$39,2)>RIGHT($K42,2),AZ42,0)) -> 0 | BW42: =+IF($K42="Ongoing",BA42,IF(RIGHT($K42,2)=RIGHT(BW$39,2),SUM($AX42:BA42),0)+IF(RIGHT(BW$39,2)>RIGHT($K42,2),BA42,0)) -> 0 | BX42: =+IF($K42="Ongoing",BB42,IF(RIGHT($K42,2)=RIGHT(BX$39,2),SUM($AX42:BB42),0)+IF(RIGHT(BX$39,2)>RIGHT($K42,2),BB42,0)) -> 4.3358 | BY42: =+IF($K42="Ongoing",BC42,IF(RIGHT($K42,2)=RIGHT(BY$39,2),SUM($AX42:BC42),0)+IF(RIGHT(BY$39,2)>RIGHT($K42,2),BC42,0)) -> 2.05 | BZ42: =+IF($K42="Ongoing",BD42,IF(RIGHT($K42,2)=RIGHT(BZ$39,2),SUM($AX42:BD42),0)+IF(RIGHT(BZ$39,2)>RIGHT($K42,2),BD42,0)) -> 2.05 | CA42: =+IF($K42="Ongoing",BE42,IF(RIGHT($K42,2)=RIGHT(CA$39,2),SUM($AX42:BE42),0)+IF(RIGHT(CA$39,2)>RIGHT($K42,2),BE42,0)) -> 0 | CB42: =+IF($K42="Ongoing",BF42,IF(RIGHT($K42,2)=RIGHT(CB$39,2),SUM($AX42:BF42),0)+IF(RIGHT(CB$39,2)>RIGHT($K42,2),BF42,0)) -> 0 | CC42: =+IF($K42="Ongoing",BG42,IF(RIGHT($K42,2)=RIGHT(CC$39,2),SUM($AX42:BG42),0)+IF(RIGHT(CC$39,2)>RIGHT($K42,2),BG42,0)) -> 0 | CE42: =+Q42*KeyAssumptionsPriceControl_FO!AC$15 -> 0.235355 | CF42: =+R42*KeyAssumptionsPriceControl_FO!AD$15 -> 0 | CG42: =+S42*KeyAssumptionsPriceControl_FO!AE$15 -> 0.4992669663 | CH42: =+T42*KeyAssumptionsPriceControl_FO!AF$15 -> 3.974846913 | CI42: =+U42*KeyAssumptionsPriceControl_FO!AG$15 -> 0.13772176 | CJ42: =+V42*KeyAssumptionsPriceControl_FO!AH$15 -> 2.447807208 | CK42: =+W42*KeyAssumptionsPriceControl_FO!AI$15 -> 2.521241424 | CL42: =+X42*KeyAssumptionsPriceControl_FO!AJ$15 -> 0 | CM42: =+Y42*KeyAssumptionsPriceControl_FO!AK$15 -> 0 | CN42: =+Z42*KeyAssumptionsPriceControl_FO!AL$15 -> 0 | CP42: =IF($M42=0,0, IF($M42<=0.5,CE42, IF($J42="straight line", IF((LEFT(CP$39,4)*1)-INT($M42)<LEFT($CP$39,4)*1,0,((OFFSET(CE42,0,-INT($M42+0.5),1,1))/$M42)*(IF($M42-INT($M42)>0.5,$M42-0.5-INT($M42),IF($M42-INT($M42)<=0.5,$M42-0.5-INT($M42)+1,0)))) +CE42/$M42*0.5, IF($J42="Declining Balance",-$CP$38,0)))) -> 0.0047071 | CQ42: =IF($M42=0,0, IF($M42<=0.5,CF42, IF(AND($J42="straight line",$M42<1.51),(CE42-((CE42/$M42)*0.5))+CF42/$M42*0.5, IF($J42="straight line", IF((LEFT(CQ$39,4)*1)-INT($M42)<LEFT($CP$39,4)*1,0,((OFFSET(CF42,0,-INT($M42+0.5),1,1))/$M42)*(IF($M42-INT($M42)>0.5,$M42-0.5-INT($M42),IF($M42-INT($M42)<=0.5,$M42-0.5-INT($M42)+1,0)))) +CF42/$M42*0.5 +SUM(OFFSET(CF42,0,MAX(-INT($M42+(0.5-(10^-12))),-CQ$40)+1,1,MIN(INT($M42+(0.5-(10^-12))),CQ$40)-1))*1/$M42, IF($J42="Declining Balance",-$CP$38,0))))) -> 0.0094142 | CR42: =IF($M42=0,0, IF($M42<=0.5,CG42, IF(AND($J42="straight line",$M42<1.51),(CF42-((CF42/$M42)*0.5))+CG42/$M42*0.5, IF($J42="straight line", IF((LEFT(CR$39,4)*1)-INT($M42)<LEFT($CP$39,4)*1,0,((OFFSET(CG42,0,-INT($M42+0.5),1,1))/$M42)*(IF($M42-INT($M42)>0.5,$M42-0.5-INT($M42),IF($M42-INT($M42)<=0.5,$M42-0.5-INT($M42)+1,0)))) +CG42/$M42*0.5 +SUM(OFFSET(CG42,0,MAX(-INT($M42+(0.5-(10^-12))),-CR$40)+1,1,MIN(INT($M42+(0.5-(10^-12))),CR$40)-1))*1/$M42, IF($J42="Declining Balance",-$CP$38,0))))) -> 0.01939953933 | CS42: =IF($M42=0,0, IF($M42<=0.5,CH42, IF(AND($J42="straight line",$M42<1.51),(CG42-((CG42/$M42)*0.5))+CH42/$M42*0.5, IF($J42="straight line", IF((LEFT(CS$39,4)*1)-INT($M42)<LEFT($CP$39,4)*1,0,((OFFSET(CH42,0,-INT($M42+0.5),1,1))/$M42)*(IF($M42-INT($M42)>0.5,$M42-0.5-INT($M42),IF($M42-INT($M42)<=0.5,$M42-0.5-INT($M42)+1,0)))) +CH42/$M42*0.5 +SUM(OFFSET(CH42,0,MAX(-INT($M42+(0.5-(10^-12))),-CS$40)+1,1,MIN(INT($M42+(0.5-(10^-12))),CS$40)-1))*1/$M42, IF($J42="Declining Balance",-$CP$38,0))))) -> 0.1088818169 | CT42: =IF($M42=0,0, IF($M42<=0.5,CI42, IF(AND($J42="straight line",$M42<1.51),(CH42-((CH42/$M42)*0.5))+CI42/$M42*0.5, IF($J42="straight line", IF((LEFT(CT$39,4)*1)-INT($M42)<LEFT($CP$39,4)*1,0,((OFFSET(CI42,0,-INT($M42+0.5),1,1))/$M42)*(IF($M42-INT($M42)>0.5,$M42-0.5-INT($M42),IF($M42-INT($M42)<=0.5,$M42-0.5-INT($M42)+1,0)))) +CI42/$M42*0.5 +SUM(OFFSET(CI42,0,MAX(-INT($M42+(0.5-(10^-12))),-CT$40)+1,1,MIN(INT($M42+(0.5-(10^-12))),CT$40)-1))*1/$M42, IF($J42="Declining Balance",-$CP$38,0))))) -> 0.1911331904 | CU42: =IF($M42=0,0, IF($M42<=0.5,CJ42, IF(AND($J42="straight line",$M42<1.51),(CI42-((CI42/$M42)*0.5))+CJ42/$M42*0.5, IF($J42="straight line", IF((LEFT(CU$39,4)*1)-INT($M42)<LEFT($CP$39,4)*1,0,((OFFSET(CJ42,0,-INT($M42+0.5),1,1))/$M42)*(IF($M42-INT($M42)>0.5,$M42-0.5-INT($M42),IF($M42-INT($M42)<=0.5,$M42-0.5-INT($M42)+1,0)))) +CJ42/$M42*0.5 +SUM(OFFSET(CJ42,0,MAX(-INT($M42+(0.5-(10^-12))),-CU$40)+1,1,MIN(INT($M42+(0.5-(10^-12))),CU$40)-1))*1/$M42, IF($J42="Declining Balance",-$CP$38,0))))) -> 0.2428437697 | CV42: =IF($M42=0,0, IF($M42<=0.5,CK42, IF(AND($J42="straight line",$M42<1.51),(CJ42-((CJ42/$M42)*0.5))+CK42/$M42*0.5, IF($J42="straight line", IF((LEFT(CV$39,4)*1)-INT($M42)<LEFT($CP$39,4)*1,0,((OFFSET(CK42,0,-INT($M42+0.5),1,1))/$M42)*(IF($M42-INT($M42)>0.5,$M42-0.5-INT($M42),IF($M42-INT($M42)<=0.5,$M42-0.5-INT($M42)+1,0)))) +CK42/$M42*0.5 +SUM(OFFSET(CK42,0,MAX(-INT($M42+(0.5-(10^-12))),-CV$40)+1,1,MIN(INT($M42+(0.5-(10^-12))),CV$40)-1))*1/$M42, IF($J42="Declining Balance",-$CP$38,0))))) -> 0.3422247424 | CW42: =IF($M42=0,0, IF($M42<=0.5,CL42, IF(AND($J42="straight line",$M42<1.51),(CK42-((CK42/$M42)*0.5))+CL42/$M42*0.5, IF($J42="straight line", IF((LEFT(CW$39,4)*1)-INT($M42)<LEFT($CP$39,4)*1,0,((OFFSET(CL42,0,-INT($M42+0.5),1,1))/$M42)*(IF($M42-INT($M42)>0.5,$M42-0.5-INT($M42),IF($M42-INT($M42)<=0.5,$M42-0.5-INT($M42)+1,0)))) +CL42/$M42*0.5 +SUM(OFFSET(CL42,0,MAX(-INT($M42+(0.5-(10^-12))),-CW$40)+1,1,MIN(INT($M42+(0.5-(10^-12))),CW$40)-1))*1/$M42, IF($J42="Declining Balance",-$CP$38,0))))) -> 0.3926495709 | CX42: =IF($M42=0,0, IF($M42<=0.5,CM42, IF(AND($J42="straight line",$M42<1.51),(CL42-((CL42/$M42)*0.5))+CM42/$M42*0.5, IF($J42="straight line", IF((LEFT(CX$39,4)*1)-INT($M42)<LEFT($CP$39,4)*1,0,((OFFSET(CM42,0,-INT($M42+0.5),1,1))/$M42)*(IF($M42-INT($M42)>0.5,$M42-0.5-INT($M42),IF($M42-INT($M42)<=0.5,$M42-0.5-INT($M42)+1,0)))) +CM42/$M42*0.5 +SUM(OFFSET(CM42,0,MAX(-INT($M42+(0.5-(10^-12))),-CX$40)+1,1,MIN(INT($M42+(0.5-(10^-12))),CX$40)-1))*1/$M42, IF($J42="Declining Balance",-$CP$38,0))))) -> 0.3926495709 | CY42: =IF($M42=0,0, IF($M42<=0.5,CN42, IF(AND($J42="straight line",$M42<1.51),(CM42-((CM42/$M42)*0.5))+CN42/$M42*0.5, IF($J42="straight line", IF((LEFT(CY$39,4)*1)-INT($M42)<LEFT($CP$39,4)*1,0,((OFFSET(CN42,0,-INT($M42+0.5),1,1))/$M42)*(IF($M42-INT($M42)>0.5,$M42-0.5-INT($M42),IF($M42-INT($M42)<=0.5,$M42-0.5-INT($M42)+1,0)))) +CN42/$M42*0.5 +SUM(OFFSET(CN42,0,MAX(-INT($M42+(0.5-(10^-12))),-CY$40)+1,1,MIN(INT($M42+(0.5-(10^-12))),CY$40)-1))*1/$M42, IF($J42="Declining Balance",-$CP$38,0))))) -> 0.3926495709
C43: Water quality improvement program - stage 2 | E43: Water | F43: Growth | G43: Treatment | H43: Top 10 Major Projects | J43: Straight line | K43: 2025-26 | L43: 25 | M43: 25 | Q43: 0.1333 | R43: 0 | S43: 0.3831 | T43: 1.5882 | U43: 0 | V43: 1 | W43: 2 | X43: 0 | Y43: 0 | Z43: 0 | AX43: 0.1333 | AY43: 0 | AZ43: 0.3831 | BA43: 1.5882 | BB43: 0 | BC43: 1 | BD43: 2 | BE43: 0 | BF43: 0 | BG43: 0 | BI43: =IF($L43=0,0, IF($L43<=0.5,BT43, IF($J43="straight line", IF((LEFT(BI$39,4)*1)-INT($L43)<LEFT($BI$39,4)*1,0,((OFFSET(BT43,0,-INT($L43+0.5),1,1))/$L43)*(IF($L43-INT($L43)>0.5,$L43-0.5-INT($L43),IF($L43-INT($L43)<=0.5,$L43-0.5-INT($L43)+1,0)))) +BT43/$L43*0.5, IF($J43="Declining Balance",-$BI$38,0)))) -> 0 | BJ43: =IF($L43=0,0, IF($L43<=0.5,BU43, IF(AND($J43="straight line",$L43<1.51),(BT43-((BT43/$L43)*0.5))+BU43/$L43*0.5, IF($J43="straight line", IF((LEFT(BJ$39,4)*1)-INT($L43)<LEFT($BI$39,4)*1,0,((OFFSET(BU43,0,-INT($L43+0.5),1,1))/$L43)*(IF($L43-INT($L43)>0.5,$L43-0.5-INT($L43),IF($L43-INT($L43)<=0.5,$L43-0.5-INT($L43)+1,0)))) +BU43/$L43*0.5 +SUM(OFFSET(BU43,0,MAX(-INT($L43+(0.5-(10^-12))),-BJ$40)+1,1,MIN(INT($L43+(0.5-(10^-12))),BJ$40)-1))*1/$L43, IF($J43="Declining Balance",-$BI$38,0))))) -> 0 | BK43: 0.010328 | BL43: 0.05242 | BM43: 0.084184 | BN43: 0.104184 | BO43: 0.164184 | BP43: 0.204184 | BQ43: 0.204184 | BR43: 0.204184 | BT43: =+IF($K43="Ongoing",AX43,IF(RIGHT($K43,2)=RIGHT(BT$39,2),SUM($AX43:AX43),0)+IF(RIGHT(BT$39,2)>RIGHT($K43,2),AX43,0)) -> 0 | BU43: =+IF($K43="Ongoing",AY43,IF(RIGHT($K43,2)=RIGHT(BU$39,2),SUM($AX43:AY43),0)+IF(RIGHT(BU$39,2)>RIGHT($K43,2),AY43,0)) -> 0 | BV43: =+IF($K43="Ongoing",AZ43,IF(RIGHT($K43,2)=RIGHT(BV$39,2),SUM($AX43:AZ43),0)+IF(RIGHT(BV$39,2)>RIGHT($K43,2),AZ43,0)) -> 0.5164 | BW43: =+IF($K43="Ongoing",BA43,IF(RIGHT($K43,2)=RIGHT(BW$39,2),SUM($AX43:BA43),0)+IF(RIGHT(BW$39,2)>RIGHT($K43,2),BA43,0)) -> 1.5882 | BX43: =+IF($K43="Ongoing",BB43,IF(RIGHT($K43,2)=RIGHT(BX$39,2),SUM($AX43:BB43),0)+IF(RIGHT(BX$39,2)>RIGHT($K43,2),BB43,0)) -> 0 | BY43: =+IF($K43="Ongoing",BC43,IF(RIGHT($K43,2)=RIGHT(BY$39,2),SUM($AX43:BC43),0)+IF(RIGHT(BY$39,2)>RIGHT($K43,2),BC43,0)) -> 1 | BZ43: =+IF($K43="Ongoing",BD43,IF(RIGHT($K43,2)=RIGHT(BZ$39,2),SUM($AX43:BD43),0)+IF(RIGHT(BZ$39,2)>RIGHT($K43,2),BD43,0)) -> 2 | CA43: =+IF($K43="Ongoing",BE43,IF(RIGHT($K43,2)=RIGHT(CA$39,2),SUM($AX43:BE43),0)+IF(RIGHT(CA$39,2)>RIGHT($K43,2),BE43,0)) -> 0 | CB43: =+IF($K43="Ongoing",BF43,IF(RIGHT($K43,2)=RIGHT(CB$39,2),SUM($AX43:BF43),0)+IF(RIGHT(CB$39,2)>RIGHT($K43,2),BF43,0)) -> 0 | CC43: =+IF($K43="Ongoing",BG43,IF(RIGHT($K43,2)=RIGHT(CC$39,2),SUM($AX43:BG43),0)+IF(RIGHT(CC$39,2)>RIGHT($K43,2),BG43,0)) -> 0 | CE43: =+Q43*KeyAssumptionsPriceControl_FO!AC$15 -> 0.137299 | CF43: =+R43*KeyAssumptionsPriceControl_FO!AD$15 -> 0 | CG43: =+S43*KeyAssumptionsPriceControl_FO!AE$15 -> 0.4186237137 | CH43: =+T43*KeyAssumptionsPriceControl_FO!AF$15 -> 1.787533092 | CI43: =+U43*KeyAssumptionsPriceControl_FO!AG$15 -> 0 | CJ43: =+V43*KeyAssumptionsPriceControl_FO!AH$15 -> 1.194052297 | CK43: =+W43*KeyAssumptionsPriceControl_FO!AI$15 -> 2.459747731 | CL43: =+X43*KeyAssumptionsPriceControl_FO!AJ$15 -> 0 | CM43: =+Y43*KeyAssumptionsPriceControl_FO!AK$15 -> 0 | CN43: =+Z43*KeyAssumptionsPriceControl_FO!AL$15 -> 0 | CP43: 0.00274598 | CQ43: 0.00549196 | CR43: 0.01386443427 | CS43: 0.05798757039 | CT43: 0.09373823223 | CU43: 0.1176192782 | CV43: 0.1906952787 | CW43: 0.2398902333 | CX43: 0.2398902333 | CY43: 0.2398902333
C44: Bio-gas waste to energy | E44: Sewerage | F44: Improvements / Compliance | G44: Treatment | H44: Top 10 Major Projects | J44: Straight line | K44: 2026-27 | L44: 50 | M44: 50 | Q44: 0.376 | R44: 0 | S44: 1.5042 | T44: 0 | U44: 0 | V44: 0 | W44: 0 | X44: 0 | Y44: 0 | Z44: 0 | AX44: 0.376 | AY44: 0 | AZ44: 1.5042 | BA44: 0 | BB44: 0 | BC44: 0 | BD44: 0 | BE44: 0 | BF44: 0 | BG44: 0 | BI44: 0 | BJ44: 0 | BK44: 0 | BL44: 0.018802 | BM44: 0.037604 | BN44: 0.037604 | BO44: 0.037604 | BP44: 0.037604 | BQ44: 0.037604 | BR44: 0.037604 | BT44: =+IF($K44="Ongoing",AX44,IF(RIGHT($K44,2)=RIGHT(BT$39,2),SUM($AX44:AX44),0)+IF(RIGHT(BT$39,2)>RIGHT($K44,2),AX44,0)) -> 0 | BU44: =+IF($K44="Ongoing",AY44,IF(RIGHT($K44,2)=RIGHT(BU$39,2),SUM($AX44:AY44),0)+IF(RIGHT(BU$39,2)>RIGHT($K44,2),AY44,0)) -> 0 | BV44: =+IF($K44="Ongoing",AZ44,IF(RIGHT($K44,2)=RIGHT(BV$39,2),SUM($AX44:AZ44),0)+IF(RIGHT(BV$39,2)>RIGHT($K44,2),AZ44,0)) -> 0 | BW44: =+IF($K44="Ongoing",BA44,IF(RIGHT($K44,2)=RIGHT(BW$39,2),SUM($AX44:BA44),0)+IF(RIGHT(BW$39,2)>RIGHT($K44,2),BA44,0)) -> 1.8802 | BX44: =+IF($K44="Ongoing",BB44,IF(RIGHT($K44,2)=RIGHT(BX$39,2),SUM($AX44:BB44),0)+IF(RIGHT(BX$39,2)>RIGHT($K44,2),BB44,0)) -> 0 | BY44: =+IF($K44="Ongoing",BC44,IF(RIGHT($K44,2)=RIGHT(BY$39,2),SUM($AX44:BC44),0)+IF(RIGHT(BY$39,2)>RIGHT($K44,2),BC44,0)) -> 0 | BZ44: =+IF($K44="Ongoing",BD44,IF(RIGHT($K44,2)=RIGHT(BZ$39,2),SUM($AX44:BD44),0)+IF(RIGHT(BZ$39,2)>RIGHT($K44,2),BD44,0)) -> 0 | CA44: =+IF($K44="Ongoing",BE44,IF(RIGHT($K44,2)=RIGHT(CA$39,2),SUM($AX44:BE44),0)+IF(RIGHT(CA$39,2)>RIGHT($K44,2),BE44,0)) -> 0 | CB44: =+IF($K44="Ongoing",BF44,IF(RIGHT($K44,2)=RIGHT(CB$39,2),SUM($AX44:BF44),0)+IF(RIGHT(CB$39,2)>RIGHT($K44,2),BF44,0)) -> 0 | CC44: =+IF($K44="Ongoing",BG44,IF(RIGHT($K44,2)=RIGHT(CC$39,2),SUM($AX44:BG44),0)+IF(RIGHT(CC$39,2)>RIGHT($K44,2),BG44,0)) -> 0 | CE44: =+Q44*KeyAssumptionsPriceControl_FO!AC$15 -> 0.38728 | CF44: =+R44*KeyAssumptionsPriceControl_FO!AD$15 -> 0 | CG44: =+S44*KeyAssumptionsPriceControl_FO!AE$15 -> 1.643679953 | CH44: =+T44*KeyAssumptionsPriceControl_FO!AF$15 -> 0 | CI44: =+U44*KeyAssumptionsPriceControl_FO!AG$15 -> 0 | CJ44: =+V44*KeyAssumptionsPriceControl_FO!AH$15 -> 0 | CK44: =+W44*KeyAssumptionsPriceControl_FO!AI$15 -> 0 | CL44: =+X44*KeyAssumptionsPriceControl_FO!AJ$15 -> 0 | CM44: =+Y44*KeyAssumptionsPriceControl_FO!AK$15 -> 0 | CN44: =+Z44*KeyAssumptionsPriceControl_FO!AL$15 -> 0 | CP44: 0.0038728 | CQ44: 0.0077456 | CR44: 0.02418239953 | CS44: 0.04061919907 | CT44: 0.04061919907 | CU44: 0.04061919907 | CV44: 0.04061919907 | CW44: 0.04061919907 | CX44: 0.04061919907 | CY44: 0.04061919907
C45: Renewable energy generation | E45: Sewerage | F45: Improvements / Compliance | G45: Treatment | H45: Top 10 Major Projects | J45: Straight line | K45: 2026-27 | L45: 50 | M45: 50 | Q45: 0 | R45: 0 | S45: 1.2236 | T45: 0.3361 | U45: 0 | V45: 0 | W45: 0 | X45: 0 | Y45: 0 | Z45: 0 | AX45: 0 | AY45: 0 | AZ45: 1.2236 | BA45: 0.3361 | BB45: 0 | BC45: 0 | BD45: 0 | BE45: 0 | BF45: 0 | BG45: 0 | BI45: 0 | BJ45: 0 | BK45: 0 | BL45: 0.015597 | BM45: 0.031194 | BN45: 0.031194 | BO45: 0.031194 | BP45: 0.031194 | BQ45: 0.031194 | BR45: 0.031194 | BT45: =+IF($K45="Ongoing",AX45,IF(RIGHT($K45,2)=RIGHT(BT$39,2),SUM($AX45:AX45),0)+IF(RIGHT(BT$39,2)>RIGHT($K45,2),AX45,0)) -> 0 | BU45: =+IF($K45="Ongoing",AY45,IF(RIGHT($K45,2)=RIGHT(BU$39,2),SUM($AX45:AY45),0)+IF(RIGHT(BU$39,2)>RIGHT($K45,2),AY45,0)) -> 0 | BV45: =+IF($K45="Ongoing",AZ45,IF(RIGHT($K45,2)=RIGHT(BV$39,2),SUM($AX45:AZ45),0)+IF(RIGHT(BV$39,2)>RIGHT($K45,2),AZ45,0)) -> 0 | BW45: =+IF($K45="Ongoing",BA45,IF(RIGHT($K45,2)=RIGHT(BW$39,2),SUM($AX45:BA45),0)+IF(RIGHT(BW$39,2)>RIGHT($K45,2),BA45,0)) -> 1.5597 | BX45: =+IF($K45="Ongoing",BB45,IF(RIGHT($K45,2)=RIGHT(BX$39,2),SUM($AX45:BB45),0)+IF(RIGHT(BX$39,2)>RIGHT($K45,2),BB45,0)) -> 0 | BY45: =+IF($K45="Ongoing",BC45,IF(RIGHT($K45,2)=RIGHT(BY$39,2),SUM($AX45:BC45),0)+IF(RIGHT(BY$39,2)>RIGHT($K45,2),BC45,0)) -> 0 | BZ45: =+IF($K45="Ongoing",BD45,IF(RIGHT($K45,2)=RIGHT(BZ$39,2),SUM($AX45:BD45),0)+IF(RIGHT(BZ$39,2)>RIGHT($K45,2),BD45,0)) -> 0 | CA45: =+IF($K45="Ongoing",BE45,IF(RIGHT($K45,2)=RIGHT(CA$39,2),SUM($AX45:BE45),0)+IF(RIGHT(CA$39,2)>RIGHT($K45,2),BE45,0)) -> 0 | CB45: =+IF($K45="Ongoing",BF45,IF(RIGHT($K45,2)=RIGHT(CB$39,2),SUM($AX45:BF45),0)+IF(RIGHT(CB$39,2)>RIGHT($K45,2),BF45,0)) -> 0 | CC45: =+IF($K45="Ongoing",BG45,IF(RIGHT($K45,2)=RIGHT(CC$39,2),SUM($AX45:BG45),0)+IF(RIGHT(CC$39,2)>RIGHT($K45,2),BG45,0)) -> 0 | CE45: =+Q45*KeyAssumptionsPriceControl_FO!AC$15 -> 0 | CF45: =+R45*KeyAssumptionsPriceControl_FO!AD$15 -> 0 | CG45: =+S45*KeyAssumptionsPriceControl_FO!AE$15 -> 1.337060757 | CH45: =+T45*KeyAssumptionsPriceControl_FO!AF$15 -> 0.378283511 | CI45: =+U45*KeyAssumptionsPriceControl_FO!AG$15 -> 0 | CJ45: =+V45*KeyAssumptionsPriceControl_FO!AH$15 -> 0 | CK45: =+W45*KeyAssumptionsPriceControl_FO!AI$15 -> 0 | CL45: =+X45*KeyAssumptionsPriceControl_FO!AJ$15 -> 0 | CM45: =+Y45*KeyAssumptionsPriceControl_FO!AK$15 -> 0 | CN45: =+Z45*KeyAssumptionsPriceControl_FO!AL$15 -> 0 | CP45: 0 | CQ45: 0 | CR45: 0.01337060757 | CS45: 0.03052405025 | CT45: 0.03430688536 | CU45: 0.03430688536 | CV45: 0.03430688536 | CW45: 0.03430688536 | CX45: 0.03430688536 | CY45: 0.03430688536
C46: Wastewater systems future - pricing submission 23 | E46: Sewerage | F46: Growth | G46: Pipelines/network | H46: Top 10 Major Projects | J46: Straight line | K46: 2027-28 | L46: 70 | M46: 70 | Q46: 0.3909 | R46: 0.3779 | S46: 0 | T46: 0.7445 | U46: 0 | V46: 2.02 | W46: 2.02 | X46: 2.02 | Y46: 2.02 | Z46: 2.02 | AX46: 0.3909 | AY46: 0.3779 | AZ46: 0 | BA46: 0.7445 | BB46: 0 | BC46: 2.02 | BD46: 2.02 | BE46: 2.02 | BF46: 2.02 | BG46: 2.02 | BI46: 0 | BJ46: 0 | BK46: 0 | BL46: 0 | BM46: 0.01080928571 | BN46: 0.03604714286 | BO46: 0.06490428571 | BP46: 0.09376142857 | BQ46: 0.1226185714 | BR46: 0.1514757143 | BT46: =+IF($K46="Ongoing",AX46,IF(RIGHT($K46,2)=RIGHT(BT$39,2),SUM($AX46:AX46),0)+IF(RIGHT(BT$39,2)>RIGHT($K46,2),AX46,0)) -> 0 | BU46: =+IF($K46="Ongoing",AY46,IF(RIGHT($K46,2)=RIGHT(BU$39,2),SUM($AX46:AY46),0)+IF(RIGHT(BU$39,2)>RIGHT($K46,2),AY46,0)) -> 0 | BV46: =+IF($K46="Ongoing",AZ46,IF(RIGHT($K46,2)=RIGHT(BV$39,2),SUM($AX46:AZ46),0)+IF(RIGHT(BV$39,2)>RIGHT($K46,2),AZ46,0)) -> 0 | BW46: =+IF($K46="Ongoing",BA46,IF(RIGHT($K46,2)=RIGHT(BW$39,2),SUM($AX46:BA46),0)+IF(RIGHT(BW$39,2)>RIGHT($K46,2),BA46,0)) -> 0 | BX46: =+IF($K46="Ongoing",BB46,IF(RIGHT($K46,2)=RIGHT(BX$39,2),SUM($AX46:BB46),0)+IF(RIGHT(BX$39,2)>RIGHT($K46,2),BB46,0)) -> 1.5133 | BY46: =+IF($K46="Ongoing",BC46,IF(RIGHT($K46,2)=RIGHT(BY$39,2),SUM($AX46:BC46),0)+IF(RIGHT(BY$39,2)>RIGHT($K46,2),BC46,0)) -> 2.02 | BZ46: =+IF($K46="Ongoing",BD46,IF(RIGHT($K46,2)=RIGHT(BZ$39,2),SUM($AX46:BD46),0)+IF(RIGHT(BZ$39,2)>RIGHT($K46,2),BD46,0)) -> 2.02 | CA46: =+IF($K46="Ongoing",BE46,IF(RIGHT($K46,2)=RIGHT(CA$39,2),SUM($AX46:BE46),0)+IF(RIGHT(CA$39,2)>RIGHT($K46,2),BE46,0)) -> 2.02 | CB46: =+IF($K46="Ongoing",BF46,IF(RIGHT($K46,2)=RIGHT(CB$39,2),SUM($AX46:BF46),0)+IF(RIGHT(CB$39,2)>RIGHT($K46,2),BF46,0)) -> 2.02 | CC46: =+IF($K46="Ongoing",BG46,IF(RIGHT($K46,2)=RIGHT(CC$39,2),SUM($AX46:BG46),0)+IF(RIGHT(CC$39,2)>RIGHT($K46,2),BG46,0)) -> 2.02 | CE46: =+Q46*KeyAssumptionsPriceControl_FO!AC$15 -> 0.402627 | CF46: =+R46*KeyAssumptionsPriceControl_FO!AD$15 -> 0.40091411 | CG46: =+S46*KeyAssumptionsPriceControl_FO!AE$15 -> 0 | CH46: =+T46*KeyAssumptionsPriceControl_FO!AF$15 -> 0.837941309 | CI46: =+U46*KeyAssumptionsPriceControl_FO!AG$15 -> 0 | CJ46: =+V46*KeyAssumptionsPriceControl_FO!AH$15 -> 2.411985639 | CK46: =+W46*KeyAssumptionsPriceControl_FO!AI$15 -> 2.484345208 | CL46: =+X46*KeyAssumptionsPriceControl_FO!AJ$15 -> 2.558875564 | CM46: =+Y46*KeyAssumptionsPriceControl_FO!AK$15 -> 2.635641831 | CN46: =+Z46*KeyAssumptionsPriceControl_FO!AL$15 -> 2.714711086 | CP46: 0.002875907143 | CQ46: 0.0086154865 | CR46: 0.01147915871 | CS46: 0.01746445378 | CT46: 0.02344974884 | CU46: 0.04067821769 | CV46: 0.07565200946 | CW46: 0.111675015 | CX46: 0.1487787107 | CY46: 0.1869955172
C47: Cowes Wastewater Treatment Plant - master plan upgrades - stage 3 | E47: Sewerage | F47: Growth | G47: Treatment | H47: Top 10 Major Projects | J47: Straight line | K47: 2027-28 | L47: 25 | M47: 25 | Q47: 0.1009 | R47: 1.1442 | S47: 0 | T47: 0 | U47: 0.1009 | V47: 0.015 | W47: 0.015 | X47: 0.015 | Y47: 0.015 | Z47: 0.015 | AX47: 0.1009 | AY47: 1.1442 | AZ47: 0 | BA47: 0 | BB47: 0.1009 | BC47: 0.015 | BD47: 0.015 | BE47: 0.015 | BF47: 0.015 | BG47: 0.015 | BI47: 0 | BJ47: 0 | BK47: 0 | BL47: 0 | BM47: 0.02692 | BN47: 0.05414 | BO47: 0.05474 | BP47: 0.05534 | BQ47: 0.05594 | BR47: 0.05654 | BT47: =+IF($K47="Ongoing",AX47,IF(RIGHT($K47,2)=RIGHT(BT$39,2),SUM($AX47:AX47),0)+IF(RIGHT(BT$39,2)>RIGHT($K47,2),AX47,0)) -> 0 | BU47: =+IF($K47="Ongoing",AY47,IF(RIGHT($K47,2)=RIGHT(BU$39,2),SUM($AX47:AY47),0)+IF(RIGHT(BU$39,2)>RIGHT($K47,2),AY47,0)) -> 0 | BV47: =+IF($K47="Ongoing",AZ47,IF(RIGHT($K47,2)=RIGHT(BV$39,2),SUM($AX47:AZ47),0)+IF(RIGHT(BV$39,2)>RIGHT($K47,2),AZ47,0)) -> 0 | BW47: =+IF($K47="Ongoing",BA47,IF(RIGHT($K47,2)=RIGHT(BW$39,2),SUM($AX47:BA47),0)+IF(RIGHT(BW$39,2)>RIGHT($K47,2),BA47,0)) -> 0 | BX47: =+IF($K47="Ongoing",BB47,IF(RIGHT($K47,2)=RIGHT(BX$39,2),SUM($AX47:BB47),0)+IF(RIGHT(BX$39,2)>RIGHT($K47,2),BB47,0)) -> 1.346 | BY47: =+IF($K47="Ongoing",BC47,IF(RIGHT($K47,2)=RIGHT(BY$39,2),SUM($AX47:BC47),0)+IF(RIGHT(BY$39,2)>RIGHT($K47,2),BC47,0)) -> 0.015 | BZ47: =+IF($K47="Ongoing",BD47,IF(RIGHT($K47,2)=RIGHT(BZ$39,2),SUM($AX47:BD47),0)+IF(RIGHT(BZ$39,2)>RIGHT($K47,2),BD47,0)) -> 0.015 | CA47: =+IF($K47="Ongoing",BE47,IF(RIGHT($K47,2)=RIGHT(CA$39,2),SUM($AX47:BE47),0)+IF(RIGHT(CA$39,2)>RIGHT($K47,2),BE47,0)) -> 0.015 | CB47: =+IF($K47="Ongoing",BF47,IF(RIGHT($K47,2)=RIGHT(CB$39,2),SUM($AX47:BF47),0)+IF(RIGHT(CB$39,2)>RIGHT($K47,2),BF47,0)) -> 0.015 | CC47: =+IF($K47="Ongoing",BG47,IF(RIGHT($K47,2)=RIGHT(CC$39,2),SUM($AX47:BG47),0)+IF(RIGHT(CC$39,2)>RIGHT($K47,2),BG47,0)) -> 0.015 | CE47: =+Q47*KeyAssumptionsPriceControl_FO!AC$15 -> 0.103927 | CF47: =+R47*KeyAssumptionsPriceControl_FO!AD$15 -> 1.21388178 | CG47: =+S47*KeyAssumptionsPriceControl_FO!AE$15 -> 0 | CH47: =+T47*KeyAssumptionsPriceControl_FO!AF$15 -> 0 | CI47: =+U47*KeyAssumptionsPriceControl_FO!AG$15 -> 0.1169707541 | CJ47: =+V47*KeyAssumptionsPriceControl_FO!AH$15 -> 0.01791078445 | CK47: =+W47*KeyAssumptionsPriceControl_FO!AI$15 -> 0.01844810798 | CL47: =+X47*KeyAssumptionsPriceControl_FO!AJ$15 -> 0.01900155122 | CM47: =+Y47*KeyAssumptionsPriceControl_FO!AK$15 -> 0.01957159776 | CN47: =+Z47*KeyAssumptionsPriceControl_FO!AL$15 -> 0.02015874569 | CP47: 0.00207854 | CQ47: 0.0284347156 | CR47: 0.0527123512 | CS47: 0.0527123512 | CT47: 0.05505176628 | CU47: 0.05774939705 | CV47: 0.0584765749 | CW47: 0.05922556809 | CX47: 0.05999703107 | CY47: 0.06079163793
C48: Asset management information system upgrade | E48: Water | F48: Renewals | G48: Corporate | H48: Top 10 Major Projects | J48: Straight line | K48: 2027-28 | L48: 4 | M48: 4 | Q48: 0.1774 | R48: 1.1233 | S48: 0 | T48: 0 | U48: 0 | V48: 0 | W48: 0 | X48: 0 | Y48: 0 | Z48: 0 | AX48: 0.1774 | AY48: 1.1233 | AZ48: 0 | BA48: 0 | BB48: 0 | BC48: 0 | BD48: 0 | BE48: 0 | BF48: 0 | BG48: 0 | BI48: 0 | BJ48: 0 | BK48: 0 | BL48: 0 | BM48: 0.1625875 | BN48: 0.325175 | BO48: 0.325175 | BP48: 0.325175 | BQ48: 0.1625875 | BR48: 0 | BT48: =+IF($K48="Ongoing",AX48,IF(RIGHT($K48,2)=RIGHT(BT$39,2),SUM($AX48:AX48),0)+IF(RIGHT(BT$39,2)>RIGHT($K48,2),AX48,0)) -> 0 | BU48: =+IF($K48="Ongoing",AY48,IF(RIGHT($K48,2)=RIGHT(BU$39,2),SUM($AX48:AY48),0)+IF(RIGHT(BU$39,2)>RIGHT($K48,2),AY48,0)) -> 0 | BV48: =+IF($K48="Ongoing",AZ48,IF(RIGHT($K48,2)=RIGHT(BV$39,2),SUM($AX48:AZ48),0)+IF(RIGHT(BV$39,2)>RIGHT($K48,2),AZ48,0)) -> 0 | BW48: =+IF($K48="Ongoing",BA48,IF(RIGHT($K48,2)=RIGHT(BW$39,2),SUM($AX48:BA48),0)+IF(RIGHT(BW$39,2)>RIGHT($K48,2),BA48,0)) -> 0 | BX48: =+IF($K48="Ongoing",BB48,IF(RIGHT($K48,2)=RIGHT(BX$39,2),SUM($AX48:BB48),0)+IF(RIGHT(BX$39,2)>RIGHT($K48,2),BB48,0)) -> 1.3007 | BY48: =+IF($K48="Ongoing",BC48,IF(RIGHT($K48,2)=RIGHT(BY$39,2),SUM($AX48:BC48),0)+IF(RIGHT(BY$39,2)>RIGHT($K48,2),BC48,0)) -> 0 | BZ48: =+IF($K48="Ongoing",BD48,IF(RIGHT($K48,2)=RIGHT(BZ$39,2),SUM($AX48:BD48),0)+IF(RIGHT(BZ$39,2)>RIGHT($K48,2),BD48,0)) -> 0 | CA48: =+IF($K48="Ongoing",BE48,IF(RIGHT($K48,2)=RIGHT(CA$39,2),SUM($AX48:BE48),0)+IF(RIGHT(CA$39,2)>RIGHT($K48,2),BE48,0)) -> 0 | CB48: =+IF($K48="Ongoing",BF48,IF(RIGHT($K48,2)=RIGHT(CB$39,2),SUM($AX48:BF48),0)+IF(RIGHT(CB$39,2)>RIGHT($K48,2),BF48,0)) -> 0 | CC48: =+IF($K48="Ongoing",BG48,IF(RIGHT($K48,2)=RIGHT(CC$39,2),SUM($AX48:BG48),0)+IF(RIGHT(CC$39,2)>RIGHT($K48,2),BG48,0)) -> 0 | CE48: =+Q48*KeyAssumptionsPriceControl_FO!AC$15 -> 0.182722 | CF48: =+R48*KeyAssumptionsPriceControl_FO!AD$15 -> 1.19170897 | CG48: =+S48*KeyAssumptionsPriceControl_FO!AE$15 -> 0 | CH48: =+T48*KeyAssumptionsPriceControl_FO!AF$15 -> 0 | CI48: =+U48*KeyAssumptionsPriceControl_FO!AG$15 -> 0 | CJ48: =+V48*KeyAssumptionsPriceControl_FO!AH$15 -> 0 | CK48: =+W48*KeyAssumptionsPriceControl_FO!AI$15 -> 0 | CL48: =+X48*KeyAssumptionsPriceControl_FO!AJ$15 -> 0 | CM48: =+Y48*KeyAssumptionsPriceControl_FO!AK$15 -> 0 | CN48: =+Z48*KeyAssumptionsPriceControl_FO!AL$15 -> 0 | CP48: 0.02284025 | CQ48: 0.1946441212 | CR48: 0.3436077425 | CS48: 0.3436077425 | CT48: 0.3207674925 | CU48: 0.1489636212 | CV48: 0 | CW48: 0 | CX48: 0 | CY48: 0
C49: Treatment plant energy efficiency | E49: Sewerage | F49: Improvements / Compliance | G49: Treatment | H49: Top 10 Major Projects | J49: Straight line | K49: Ongoing | L49: 25 | M49: 25 | Q49: 0.3441 | R49: 0.9402 | S49: 0 | T49: 0 | U49: 0 | V49: 0 | W49: 0 | X49: 0 | Y49: 0 | Z49: 0 | AX49: 0.3441 | AY49: 0.9402 | AZ49: 0 | BA49: 0 | BB49: 0 | BC49: 0 | BD49: 0 | BE49: 0 | BF49: 0 | BG49: 0 | BI49: 0.006882 | BJ49: 0.032568 | BK49: 0.051372 | BL49: 0.051372 | BM49: 0.051372 | BN49: 0.051372 | BO49: 0.051372 | BP49: 0.051372 | BQ49: 0.051372 | BR49: 0.051372 | BT49: =+IF($K49="Ongoing",AX49,IF(RIGHT($K49,2)=RIGHT(BT$39,2),SUM($AX49:AX49),0)+IF(RIGHT(BT$39,2)>RIGHT($K49,2),AX49,0)) -> 0.3441 | BU49: =+IF($K49="Ongoing",AY49,IF(RIGHT($K49,2)=RIGHT(BU$39,2),SUM($AX49:AY49),0)+IF(RIGHT(BU$39,2)>RIGHT($K49,2),AY49,0)) -> 0.9402 | BV49: =+IF($K49="Ongoing",AZ49,IF(RIGHT($K49,2)=RIGHT(BV$39,2),SUM($AX49:AZ49),0)+IF(RIGHT(BV$39,2)>RIGHT($K49,2),AZ49,0)) -> 0 | BW49: =+IF($K49="Ongoing",BA49,IF(RIGHT($K49,2)=RIGHT(BW$39,2),SUM($AX49:BA49),0)+IF(RIGHT(BW$39,2)>RIGHT($K49,2),BA49,0)) -> 0 | BX49: =+IF($K49="Ongoing",BB49,IF(RIGHT($K49,2)=RIGHT(BX$39,2),SUM($AX49:BB49),0)+IF(RIGHT(BX$39,2)>RIGHT($K49,2),BB49,0)) -> 0 | BY49: =+IF($K49="Ongoing",BC49,IF(RIGHT($K49,2)=RIGHT(BY$39,2),SUM($AX49:BC49),0)+IF(RIGHT(BY$39,2)>RIGHT($K49,2),BC49,0)) -> 0 | BZ49: =+IF($K49="Ongoing",BD49,IF(RIGHT($K49,2)=RIGHT(BZ$39,2),SUM($AX49:BD49),0)+IF(RIGHT(BZ$39,2)>RIGHT($K49,2),BD49,0)) -> 0 | CA49: =+IF($K49="Ongoing",BE49,IF(RIGHT($K49,2)=RIGHT(CA$39,2),SUM($AX49:BE49),0)+IF(RIGHT(CA$39,2)>RIGHT($K49,2),BE49,0)) -> 0 | CB49: =+IF($K49="Ongoing",BF49,IF(RIGHT($K49,2)=RIGHT(CB$39,2),SUM($AX49:BF49),0)+IF(RIGHT(CB$39,2)>RIGHT($K49,2),BF49,0)) -> 0 | CC49: =+IF($K49="Ongoing",BG49,IF(RIGHT($K49,2)=RIGHT(CC$39,2),SUM($AX49:BG49),0)+IF(RIGHT(CC$39,2)>RIGHT($K49,2),BG49,0)) -> 0 | CE49: =+Q49*KeyAssumptionsPriceControl_FO!AC$15 -> 0.354423 | CF49: =+R49*KeyAssumptionsPriceControl_FO!AD$15 -> 0.99745818 | CG49: =+S49*KeyAssumptionsPriceControl_FO!AE$15 -> 0 | CH49: =+T49*KeyAssumptionsPriceControl_FO!AF$15 -> 0 | CI49: =+U49*KeyAssumptionsPriceControl_FO!AG$15 -> 0 | CJ49: =+V49*KeyAssumptionsPriceControl_FO!AH$15 -> 0 | CK49: =+W49*KeyAssumptionsPriceControl_FO!AI$15 -> 0 | CL49: =+X49*KeyAssumptionsPriceControl_FO!AJ$15 -> 0 | CM49: =+Y49*KeyAssumptionsPriceControl_FO!AK$15 -> 0 | CN49: =+Z49*KeyAssumptionsPriceControl_FO!AL$15 -> 0 | CP49: 0.00708846 | CQ49: 0.0341260836 | CR49: 0.0540752472 | CS49: 0.0540752472 | CT49: 0.0540752472 | CU49: 0.0540752472 | CV49: 0.0540752472 | CW49: 0.0540752472 | CX49: 0.0540752472 | CY49: 0.0540752472
C50: Sustainable reuse and afforestation | E50: Recycled Water | F50: Improvements / Compliance | G50: Treatment | H50: Top 10 Major Projects | J50: Straight line | K50: 2023-24 | L50: 25 | M50: 25 | Q50: 0.4661 | R50: 0.5326 | S50: 0 | T50: 0 | U50: 0.1332 | V50: 0.105 | W50: 0 | X50: 0 | Y50: 0 | Z50: 0 | AX50: 0.4661 | AY50: 0.5326 | AZ50: 0 | BA50: 0 | BB50: 0.1332 | BC50: 0.105 | BD50: 0 | BE50: 0 | BF50: 0 | BG50: 0 | BI50: 0.009322 | BJ50: 0.029296 | BK50: 0.039948 | BL50: 0.039948 | BM50: 0.042612 | BN50: 0.047376 | BO50: 0.049476 | BP50: 0.049476 | BQ50: 0.049476 | BR50: 0.049476 | BT50: =+IF($K50="Ongoing",AX50,IF(RIGHT($K50,2)=RIGHT(BT$39,2),SUM($AX50:AX50),0)+IF(RIGHT(BT$39,2)>RIGHT($K50,2),AX50,0)) -> 0.4661 | BU50: =+IF($K50="Ongoing",AY50,IF(RIGHT($K50,2)=RIGHT(BU$39,2),SUM($AX50:AY50),0)+IF(RIGHT(BU$39,2)>RIGHT($K50,2),AY50,0)) -> 0.5326 | BV50: =+IF($K50="Ongoing",AZ50,IF(RIGHT($K50,2)=RIGHT(BV$39,2),SUM($AX50:AZ50),0)+IF(RIGHT(BV$39,2)>RIGHT($K50,2),AZ50,0)) -> 0 | BW50: =+IF($K50="Ongoing",BA50,IF(RIGHT($K50,2)=RIGHT(BW$39,2),SUM($AX50:BA50),0)+IF(RIGHT(BW$39,2)>RIGHT($K50,2),BA50,0)) -> 0 | BX50: =+IF($K50="Ongoing",BB50,IF(RIGHT($K50,2)=RIGHT(BX$39,2),SUM($AX50:BB50),0)+IF(RIGHT(BX$39,2)>RIGHT($K50,2),BB50,0)) -> 0.1332 | BY50: =+IF($K50="Ongoing",BC50,IF(RIGHT($K50,2)=RIGHT(BY$39,2),SUM($AX50:BC50),0)+IF(RIGHT(BY$39,2)>RIGHT($K50,2),BC50,0)) -> 0.105 | BZ50: =+IF($K50="Ongoing",BD50,IF(RIGHT($K50,2)=RIGHT(BZ$39,2),SUM($AX50:BD50),0)+IF(RIGHT(BZ$39,2)>RIGHT($K50,2),BD50,0)) -> 0 | CA50: =+IF($K50="Ongoing",BE50,IF(RIGHT($K50,2)=RIGHT(CA$39,2),SUM($AX50:BE50),0)+IF(RIGHT(CA$39,2)>RIGHT($K50,2),BE50,0)) -> 0 | CB50: =+IF($K50="Ongoing",BF50,IF(RIGHT($K50,2)=RIGHT(CB$39,2),SUM($AX50:BF50),0)+IF(RIGHT(CB$39,2)>RIGHT($K50,2),BF50,0)) -> 0 | CC50: =+IF($K50="Ongoing",BG50,IF(RIGHT($K50,2)=RIGHT(CC$39,2),SUM($AX50:BG50),0)+IF(RIGHT(CC$39,2)>RIGHT($K50,2),BG50,0)) -> 0 | CE50: =+Q50*KeyAssumptionsPriceControl_FO!AC$15 -> 0.480083 | CF50: =+R50*KeyAssumptionsPriceControl_FO!AD$15 -> 0.56503534 | CG50: =+S50*KeyAssumptionsPriceControl_FO!AE$15 -> 0 | CH50: =+T50*KeyAssumptionsPriceControl_FO!AF$15 -> 0 | CI50: =+U50*KeyAssumptionsPriceControl_FO!AG$15 -> 0.1544153067 | CJ50: =+V50*KeyAssumptionsPriceControl_FO!AH$15 -> 0.1253754911 | CK50: =+W50*KeyAssumptionsPriceControl_FO!AI$15 -> 0 | CL50: =+X50*KeyAssumptionsPriceControl_FO!AJ$15 -> 0 | CM50: =+Y50*KeyAssumptionsPriceControl_FO!AK$15 -> 0 | CN50: =+Z50*KeyAssumptionsPriceControl_FO!AL$15 -> 0 | CP50: 0.00960166 | CQ50: 0.0305040268 | CR50: 0.0418047336 | CS50: 0.0418047336 | CT50: 0.04489303973 | CU50: 0.05048885569 | CV50: 0.05299636551 | CW50: 0.05299636551 | CX50: 0.05299636551 | CY50: 0.05299636551
C51: King Road Wastewater Treatment Plant effluent pump station upgrade | E51: Sewerage | F51: Growth | G51: Treatment | H51: Top 10 Major Projects | J51: Straight line | K51: 2023-24 | L51: 25 | M51: 25 | Q51: 0.9938 | R51: 0 | S51: 0 | T51: 0 | U51: 0 | V51: 0.02045967913 | W51: 0.02714631866 | X51: 0.03541417082 | Y51: 0.04477274636 | Z51: 0.05413874377 | AX51: 0.9938 | AY51: 0 | AZ51: 0 | BA51: 0 | BB51: 0 | BC51: 0.02045967913 | BD51: 0.02714631866 | BE51: 0.03541417082 | BF51: 0.04477274636 | BG51: 0.05413874377 | BI51: 0.019876 | BJ51: 0.039752 | BK51: 0.039752 | BL51: 0.039752 | BM51: 0.039752 | BN51: 0.04016119358 | BO51: 0.04111331354 | BP51: 0.04236452333 | BQ51: 0.04396826167 | BR51: 0.04594649147 | BT51: =+IF($K51="Ongoing",AX51,IF(RIGHT($K51,2)=RIGHT(BT$39,2),SUM($AX51:AX51),0)+IF(RIGHT(BT$39,2)>RIGHT($K51,2),AX51,0)) -> 0.9938 | BU51: =+IF($K51="Ongoing",AY51,IF(RIGHT($K51,2)=RIGHT(BU$39,2),SUM($AX51:AY51),0)+IF(RIGHT(BU$39,2)>RIGHT($K51,2),AY51,0)) -> 0 | BV51: =+IF($K51="Ongoing",AZ51,IF(RIGHT($K51,2)=RIGHT(BV$39,2),SUM($AX51:AZ51),0)+IF(RIGHT(BV$39,2)>RIGHT($K51,2),AZ51,0)) -> 0 | BW51: =+IF($K51="Ongoing",BA51,IF(RIGHT($K51,2)=RIGHT(BW$39,2),SUM($AX51:BA51),0)+IF(RIGHT(BW$39,2)>RIGHT($K51,2),BA51,0)) -> 0 | BX51: =+IF($K51="Ongoing",BB51,IF(RIGHT($K51,2)=RIGHT(BX$39,2),SUM($AX51:BB51),0)+IF(RIGHT(BX$39,2)>RIGHT($K51,2),BB51,0)) -> 0 | BY51: =+IF($K51="Ongoing",BC51,IF(RIGHT($K51,2)=RIGHT(BY$39,2),SUM($AX51:BC51),0)+IF(RIGHT(BY$39,2)>RIGHT($K51,2),BC51,0)) -> 0.02045967913 | BZ51: =+IF($K51="Ongoing",BD51,IF(RIGHT($K51,2)=RIGHT(BZ$39,2),SUM($AX51:BD51),0)+IF(RIGHT(BZ$39,2)>RIGHT($K51,2),BD51,0)) -> 0.02714631866 | CA51: =+IF($K51="Ongoing",BE51,IF(RIGHT($K51,2)=RIGHT(CA$39,2),SUM($AX51:BE51),0)+IF(RIGHT(CA$39,2)>RIGHT($K51,2),BE51,0)) -> 0.03541417082 | CB51: =+IF($K51="Ongoing",BF51,IF(RIGHT($K51,2)=RIGHT(CB$39,2),SUM($AX51:BF51),0)+IF(RIGHT(CB$39,2)>RIGHT($K51,2),BF51,0)) -> 0.04477274636 | CC51: =+IF($K51="Ongoing",BG51,IF(RIGHT($K51,2)=RIGHT(CC$39,2),SUM($AX51:BG51),0)+IF(RIGHT(CC$39,2)>RIGHT($K51,2),BG51,0)) -> 0.05413874377 | CE51: =+Q51*KeyAssumptionsPriceControl_FO!AC$15 -> 1.023614 | CF51: =+R51*KeyAssumptionsPriceControl_FO!AD$15 -> 0 | CG51: =+S51*KeyAssumptionsPriceControl_FO!AE$15 -> 0 | CH51: =+T51*KeyAssumptionsPriceControl_FO!AF$15 -> 0 | CI51: =+U51*KeyAssumptionsPriceControl_FO!AG$15 -> 0 | CJ51: =+V51*KeyAssumptionsPriceControl_FO!AH$15 -> 0.02442992685 | CK51: =+W51*KeyAssumptionsPriceControl_FO!AI$15 -> 0.03338654786 | CL51: =+X51*KeyAssumptionsPriceControl_FO!AJ$15 -> 0.04486161205 | CM51: =+Y51*KeyAssumptionsPriceControl_FO!AK$15 -> 0.05841827882 | CN51: =+Z51*KeyAssumptionsPriceControl_FO!AL$15 -> 0.07275794451 | CP51: 0.02047228 | CQ51: 0.04094456 | CR51: 0.04094456 | CS51: 0.04094456 | CT51: 0.04094456 | CU51: 0.04143315854 | CV51: 0.04258948803 | CW51: 0.04415445123 | CX51: 0.04622004905 | CY51: 0.04884357351
C53: San Remo to Newhaven bridge pipeline and fittings renewal project - stage 2 | E53: Water | F53: Renewals | G53: Pipelines/network | H53: Capital Programs / Allocation | J53: Straight line | K53: Ongoing | L53: 70 | M53: 70 | Q53: 1.57235 | R53: 0 | S53: 0 | T53: 0 | U53: 0 | V53: 0 | W53: 0 | X53: 0 | Y53: 0 | Z53: 0 | AX53: =+Q53-AB53-AM53 -> 1.57235 | AY53: =+R53-AC53-AN53 -> 0 | AZ53: =+S53-AD53-AO53 -> 0 | BA53: =+T53-AE53-AP53 -> 0 | BB53: =+U53-AF53-AQ53 -> 0 | BC53: =+V53-AG53-AR53 -> 0 | BD53: =+W53-AH53-AS53 -> 0 | BE53: =+X53-AI53-AT53 -> 0 | BF53: =+Y53-AJ53-AU53 -> 0 | BG53: =+Z53-AK53-AV53 -> 0 | BI53: =IF($L53=0,0, IF($L53<=0.5,BT53, IF($J53="straight line", IF((LEFT(BI$39,4)*1)-INT($L53)<LEFT($BI$39,4)*1,0,((OFFSET(BT53,0,-INT($L53+0.5),1,1))/$L53)*(IF($L53-INT($L53)>0.5,$L53-0.5-INT($L53),IF($L53-INT($L53)<=0.5,$L53-0.5-INT($L53)+1,0)))) +BT53/$L53*0.5, IF($J53="Declining Balance",-$BI$38,0)))) -> 0.01123107143 | BJ53: =IF($L53=0,0, IF($L53<=0.5,BU53, IF(AND($J53="straight line",$L53<1.51),(BT53-((BT53/$L53)*0.5))+BU53/$L53*0.5, IF($J53="straight line", IF((LEFT(BJ$39,4)*1)-INT($L53)<LEFT($BI$39,4)*1,0,((OFFSET(BU53,0,-INT($L53+0.5),1,1))/$L53)*(IF($L53-INT($L53)>0.5,$L53-0.5-INT($L53),IF($L53-INT($L53)<=0.5,$L53-0.5-INT($L53)+1,0)))) +BU53/$L53*0.5 +SUM(OFFSET(BU53,0,MAX(-INT($L53+(0.5-(10^-12))),-BJ$40)+1,1,MIN(INT($L53+(0.5-(10^-12))),BJ$40)-1))*1/$L53, IF($J53="Declining Balance",-$BI$38,0))))) -> 0.02246214286 | BK53: =IF($L53=0,0, IF($L53<=0.5,BV53, IF(AND($J53="straight line",$L53<1.51),(BU53-((BU53/$L53)*0.5))+BV53/$L53*0.5, IF($J53="straight line", IF((LEFT(BK$39,4)*1)-INT($L53)<LEFT($BI$39,4)*1,0,((OFFSET(BV53,0,-INT($L53+0.5),1,1))/$L53)*(IF($L53-INT($L53)>0.5,$L53-0.5-INT($L53),IF($L53-INT($L53)<=0.5,$L53-0.5-INT($L53)+1,0)))) +BV53/$L53*0.5 +SUM(OFFSET(BV53,0,MAX(-INT($L53+(0.5-(10^-12))),-BK$40)+1,1,MIN(INT($L53+(0.5-(10^-12))),BK$40)-1))*1/$L53, IF($J53="Declining Balance",-$BI$38,0))))) -> 0.02246214286 | BL53: =IF($L53=0,0, IF($L53<=0.5,BW53, IF(AND($J53="straight line",$L53<1.51),(BV53-((BV53/$L53)*0.5))+BW53/$L53*0.5, IF($J53="straight line", IF((LEFT(BL$39,4)*1)-INT($L53)<LEFT($BI$39,4)*1,0,((OFFSET(BW53,0,-INT($L53+0.5),1,1))/$L53)*(IF($L53-INT($L53)>0.5,$L53-0.5-INT($L53),IF($L53-INT($L53)<=0.5,$L53-0.5-INT($L53)+1,0)))) +BW53/$L53*0.5 +SUM(OFFSET(BW53,0,MAX(-INT($L53+(0.5-(10^-12))),-BL$40)+1,1,MIN(INT($L53+(0.5-(10^-12))),BL$40)-1))*1/$L53, IF($J53="Declining Balance",-$BI$38,0))))) -> 0.02246214286 | BM53: =IF($L53=0,0, IF($L53<=0.5,BX53, IF(AND($J53="straight line",$L53<1.51),(BW53-((BW53/$L53)*0.5))+BX53/$L53*0.5, IF($J53="straight line", IF((LEFT(BM$39,4)*1)-INT($L53)<LEFT($BI$39,4)*1,0,((OFFSET(BX53,0,-INT($L53+0.5),1,1))/$L53)*(IF($L53-INT($L53)>0.5,$L53-0.5-INT($L53),IF($L53-INT($L53)<=0.5,$L53-0.5-INT($L53)+1,0)))) +BX53/$L53*0.5 +SUM(OFFSET(BX53,0,MAX(-INT($L53+(0.5-(10^-12))),-BM$40)+1,1,MIN(INT($L53+(0.5-(10^-12))),BM$40)-1))*1/$L53, IF($J53="Declining Balance",-$BI$38,0))))) -> 0.02246214286 | BN53: =IF($L53=0,0, IF($L53<=0.5,BY53, IF(AND($J53="straight line",$L53<1.51),(BX53-((BX53/$L53)*0.5))+BY53/$L53*0.5, IF($J53="straight line", IF((LEFT(BN$39,4)*1)-INT($L53)<LEFT($BI$39,4)*1,0,((OFFSET(BY53,0,-INT($L53+0.5),1,1))/$L53)*(IF($L53-INT($L53)>0.5,$L53-0.5-INT($L53),IF($L53-INT($L53)<=0.5,$L53-0.5-INT($L53)+1,0)))) +BY53/$L53*0.5 +SUM(OFFSET(BY53,0,MAX(-INT($L53+(0.5-(10^-12))),-BN$40)+1,1,MIN(INT($L53+(0.5-(10^-12))),BN$40)-1))*1/$L53, IF($J53="Declining Balance",-$BI$38,0))))) -> 0.02246214286 | BO53: =IF($L53=0,0, IF($L53<=0.5,BZ53, IF(AND($J53="straight line",$L53<1.51),(BY53-((BY53/$L53)*0.5))+BZ53/$L53*0.5, IF($J53="straight line", IF((LEFT(BO$39,4)*1)-INT($L53)<LEFT($BI$39,4)*1,0,((OFFSET(BZ53,0,-INT($L53+0.5),1,1))/$L53)*(IF($L53-INT($L53)>0.5,$L53-0.5-INT($L53),IF($L53-INT($L53)<=0.5,$L53-0.5-INT($L53)+1,0)))) +BZ53/$L53*0.5 +SUM(OFFSET(BZ53,0,MAX(-INT($L53+(0.5-(10^-12))),-BO$40)+1,1,MIN(INT($L53+(0.5-(10^-12))),BO$40)-1))*1/$L53, IF($J53="Declining Balance",-$BI$38,0))))) -> 0.02246214286 | BP53: =IF($L53=0,0, IF($L53<=0.5,CA53, IF(AND($J53="straight line",$L53<1.51),(BZ53-((BZ53/$L53)*0.5))+CA53/$L53*0.5, IF($J53="straight line", IF((LEFT(BP$39,4)*1)-INT($L53)<LEFT($BI$39,4)*1,0,((OFFSET(CA53,0,-INT($L53+0.5),1,1))/$L53)*(IF($L53-INT($L53)>0.5,$L53-0.5-INT($L53),IF($L53-INT($L53)<=0.5,$L53-0.5-INT($L53)+1,0)))) +CA53/$L53*0.5 +SUM(OFFSET(CA53,0,MAX(-INT($L53+(0.5-(10^-12))),-BP$40)+1,1,MIN(INT($L53+(0.5-(10^-12))),BP$40)-1))*1/$L53, IF($J53="Declining Balance",-$BI$38,0))))) -> 0.02246214286 | BQ53: =IF($L53=0,0, IF($L53<=0.5,CB53, IF(AND($J53="straight line",$L53<1.51),(CA53-((CA53/$L53)*0.5))+CB53/$L53*0.5, IF($J53="straight line", IF((LEFT(BQ$39,4)*1)-INT($L53)<LEFT($BI$39,4)*1,0,((OFFSET(CB53,0,-INT($L53+0.5),1,1))/$L53)*(IF($L53-INT($L53)>0.5,$L53-0.5-INT($L53),IF($L53-INT($L53)<=0.5,$L53-0.5-INT($L53)+1,0)))) +CB53/$L53*0.5 +SUM(OFFSET(CB53,0,MAX(-INT($L53+(0.5-(10^-12))),-BQ$40)+1,1,MIN(INT($L53+(0.5-(10^-12))),BQ$40)-1))*1/$L53, IF($J53="Declining Balance",-$BI$38,0))))) -> 0.02246214286 | BR53: =IF($L53=0,0, IF($L53<=0.5,CC53, IF(AND($J53="straight line",$L53<1.51),(CB53-((CB53/$L53)*0.5))+CC53/$L53*0.5, IF($J53="straight line", IF((LEFT(BR$39,4)*1)-INT($L53)<LEFT($BI$39,4)*1,0,((OFFSET(CC53,0,-INT($L53+0.5),1,1))/$L53)*(IF($L53-INT($L53)>0.5,$L53-0.5-INT($L53),IF($L53-INT($L53)<=0.5,$L53-0.5-INT($L53)+1,0)))) +CC53/$L53*0.5 +SUM(OFFSET(CC53,0,MAX(-INT($L53+(0.5-(10^-12))),-BR$40)+1,1,MIN(INT($L53+(0.5-(10^-12))),BR$40)-1))*1/$L53, IF($J53="Declining Balance",-$BI$38,0))))) -> 0.02246214286 | BT53: =+IF($K53="Ongoing",AX53,IF(RIGHT($K53,2)=RIGHT(BT$39,2),SUM($AX53:AX53),0)+IF(RIGHT(BT$39,2)>RIGHT($K53,2),AX53,0)) -> 1.57235 | BU53: =+IF($K53="Ongoing",AY53,IF(RIGHT($K53,2)=RIGHT(BU$39,2),SUM($AX53:AY53),0)+IF(RIGHT(BU$39,2)>RIGHT($K53,2),AY53,0)) -> 0 | BV53: =+IF($K53="Ongoing",AZ53,IF(RIGHT($K53,2)=RIGHT(BV$39,2),SUM($AX53:AZ53),0)+IF(RIGHT(BV$39,2)>RIGHT($K53,2),AZ53,0)) -> 0 | BW53: =+IF($K53="Ongoing",BA53,IF(RIGHT($K53,2)=RIGHT(BW$39,2),SUM($AX53:BA53),0)+IF(RIGHT(BW$39,2)>RIGHT($K53,2),BA53,0)) -> 0 | BX53: =+IF($K53="Ongoing",BB53,IF(RIGHT($K53,2)=RIGHT(BX$39,2),SUM($AX53:BB53),0)+IF(RIGHT(BX$39,2)>RIGHT($K53,2),BB53,0)) -> 0 | BY53: =+IF($K53="Ongoing",BC53,IF(RIGHT($K53,2)=RIGHT(BY$39,2),SUM($AX53:BC53),0)+IF(RIGHT(BY$39,2)>RIGHT($K53,2),BC53,0)) -> 0 | BZ53: =+IF($K53="Ongoing",BD53,IF(RIGHT($K53,2)=RIGHT(BZ$39,2),SUM($AX53:BD53),0)+IF(RIGHT(BZ$39,2)>RIGHT($K53,2),BD53,0)) -> 0 | CA53: =+IF($K53="Ongoing",BE53,IF(RIGHT($K53,2)=RIGHT(CA$39,2),SUM($AX53:BE53),0)+IF(RIGHT(CA$39,2)>RIGHT($K53,2),BE53,0)) -> 0 | CB53: =+IF($K53="Ongoing",BF53,IF(RIGHT($K53,2)=RIGHT(CB$39,2),SUM($AX53:BF53),0)+IF(RIGHT(CB$39,2)>RIGHT($K53,2),BF53,0)) -> 0 | CC53: =+IF($K53="Ongoing",BG53,IF(RIGHT($K53,2)=RIGHT(CC$39,2),SUM($AX53:BG53),0)+IF(RIGHT(CC$39,2)>RIGHT($K53,2),BG53,0)) -> 0 | CE53: =+Q53*KeyAssumptionsPriceControl_FO!AC$15 -> 1.6195205 | CF53: =+R53*KeyAssumptionsPriceControl_FO!AD$15 -> 0 | CG53: =+S53*KeyAssumptionsPriceControl_FO!AE$15 -> 0 | CH53: =+T53*KeyAssumptionsPriceControl_FO!AF$15 -> 0 | CI53: =+U53*KeyAssumptionsPriceControl_FO!AG$15 -> 0 | CJ53: =+V53*KeyAssumptionsPriceControl_FO!AH$15 -> 0 | CK53: =+W53*KeyAssumptionsPriceControl_FO!AI$15 -> 0 | CL53: =+X53*KeyAssumptionsPriceControl_FO!AJ$15 -> 0 | CM53: =+Y53*KeyAssumptionsPriceControl_FO!AK$15 -> 0 | CN53: =+Z53*KeyAssumptionsPriceControl_FO!AL$15 -> 0 | CP53: =IF($M53=0,0, IF($M53<=0.5,CE53, IF($J53="straight line", IF((LEFT(CP$39,4)*1)-INT($M53)<LEFT($CP$39,4)*1,0,((OFFSET(CE53,0,-INT($M53+0.5),1,1))/$M53)*(IF($M53-INT($M53)>0.5,$M53-0.5-INT($M53),IF($M53-INT($M53)<=0.5,$M53-0.5-INT($M53)+1,0)))) +CE53/$M53*0.5, IF($J53="Declining Balance",-$CP$38,0)))) -> 0.01156800357 | CQ53: =IF($M53=0,0, IF($M53<=0.5,CF53, IF(AND($J53="straight line",$M53<1.51),(CE53-((CE53/$M53)*0.5))+CF53/$M53*0.5, IF($J53="straight line", IF((LEFT(CQ$39,4)*1)-INT($M53)<LEFT($CP$39,4)*1,0,((OFFSET(CF53,0,-INT($M53+0.5),1,1))/$M53)*(IF($M53-INT($M53)>0.5,$M53-0.5-INT($M53),IF($M53-INT($M53)<=0.5,$M53-0.5-INT($M53)+1,0)))) +CF53/$M53*0.5 +SUM(OFFSET(CF53,0,MAX(-INT($M53+(0.5-(10^-12))),-CQ$40)+1,1,MIN(INT($M53+(0.5-(10^-12))),CQ$40)-1))*1/$M53, IF($J53="Declining Balance",-$CP$38,0))))) -> 0.02313600714 | CR53: =IF($M53=0,0, IF($M53<=0.5,CG53, IF(AND($J53="straight line",$M53<1.51),(CF53-((CF53/$M53)*0.5))+CG53/$M53*0.5, IF($J53="straight line", IF((LEFT(CR$39,4)*1)-INT($M53)<LEFT($CP$39,4)*1,0,((OFFSET(CG53,0,-INT($M53+0.5),1,1))/$M53)*(IF($M53-INT($M53)>0.5,$M53-0.5-INT($M53),IF($M53-INT($M53)<=0.5,$M53-0.5-INT($M53)+1,0)))) +CG53/$M53*0.5 +SUM(OFFSET(CG53,0,MAX(-INT($M53+(0.5-(10^-12))),-CR$40)+1,1,MIN(INT($M53+(0.5-(10^-12))),CR$40)-1))*1/$M53, IF($J53="Declining Balance",-$CP$38,0))))) -> 0.02313600714 | CS53: =IF($M53=0,0, IF($M53<=0.5,CH53, IF(AND($J53="straight line",$M53<1.51),(CG53-((CG53/$M53)*0.5))+CH53/$M53*0.5, IF($J53="straight line", IF((LEFT(CS$39,4)*1)-INT($M53)<LEFT($CP$39,4)*1,0,((OFFSET(CH53,0,-INT($M53+0.5),1,1))/$M53)*(IF($M53-INT($M53)>0.5,$M53-0.5-INT($M53),IF($M53-INT($M53)<=0.5,$M53-0.5-INT($M53)+1,0)))) +CH53/$M53*0.5 +SUM(OFFSET(CH53,0,MAX(-INT($M53+(0.5-(10^-12))),-CS$40)+1,1,MIN(INT($M53+(0.5-(10^-12))),CS$40)-1))*1/$M53, IF($J53="Declining Balance",-$CP$38,0))))) -> 0.02313600714 | CT53: =IF($M53=0,0, IF($M53<=0.5,CI53, IF(AND($J53="straight line",$M53<1.51),(CH53-((CH53/$M53)*0.5))+CI53/$M53*0.5, IF($J53="straight line", IF((LEFT(CT$39,4)*1)-INT($M53)<LEFT($CP$39,4)*1,0,((OFFSET(CI53,0,-INT($M53+0.5),1,1))/$M53)*(IF($M53-INT($M53)>0.5,$M53-0.5-INT($M53),IF($M53-INT($M53)<=0.5,$M53-0.5-INT($M53)+1,0)))) +CI53/$M53*0.5 +SUM(OFFSET(CI53,0,MAX(-INT($M53+(0.5-(10^-12))),-CT$40)+1,1,MIN(INT($M53+(0.5-(10^-12))),CT$40)-1))*1/$M53, IF($J53="Declining Balance",-$CP$38,0))))) -> 0.02313600714 | CU53: =IF($M53=0,0, IF($M53<=0.5,CJ53, IF(AND($J53="straight line",$M53<1.51),(CI53-((CI53/$M53)*0.5))+CJ53/$M53*0.5, IF($J53="straight line", IF((LEFT(CU$39,4)*1)-INT($M53)<LEFT($CP$39,4)*1,0,((OFFSET(CJ53,0,-INT($M53+0.5),1,1))/$M53)*(IF($M53-INT($M53)>0.5,$M53-0.5-INT($M53),IF($M53-INT($M53)<=0.5,$M53-0.5-INT($M53)+1,0)))) +CJ53/$M53*0.5 +SUM(OFFSET(CJ53,0,MAX(-INT($M53+(0.5-(10^-12))),-CU$40)+1,1,MIN(INT($M53+(0.5-(10^-12))),CU$40)-1))*1/$M53, IF($J53="Declining Balance",-$CP$38,0))))) -> 0.02313600714 | CV53: =IF($M53=0,0, IF($M53<=0.5,CK53, IF(AND($J53="straight line",$M53<1.51),(CJ53-((CJ53/$M53)*0.5))+CK53/$M53*0.5, IF($J53="straight line", IF((LEFT(CV$39,4)*1)-INT($M53)<LEFT($CP$39,4)*1,0,((OFFSET(CK53,0,-INT($M53+0.5),1,1))/$M53)*(IF($M53-INT($M53)>0.5,$M53-0.5-INT($M53),IF($M53-INT($M53)<=0.5,$M53-0.5-INT($M53)+1,0)))) +CK53/$M53*0.5 +SUM(OFFSET(CK53,0,MAX(-INT($M53+(0.5-(10^-12))),-CV$40)+1,1,MIN(INT($M53+(0.5-(10^-12))),CV$40)-1))*1/$M53, IF($J53="Declining Balance",-$CP$38,0))))) -> 0.02313600714 | CW53: =IF($M53=0,0, IF($M53<=0.5,CL53, IF(AND($J53="straight line",$M53<1.51),(CK53-((CK53/$M53)*0.5))+CL53/$M53*0.5, IF($J53="straight line", IF((LEFT(CW$39,4)*1)-INT($M53)<LEFT($CP$39,4)*1,0,((OFFSET(CL53,0,-INT($M53+0.5),1,1))/$M53)*(IF($M53-INT($M53)>0.5,$M53-0.5-INT($M53),IF($M53-INT($M53)<=0.5,$M53-0.5-INT($M53)+1,0)))) +CL53/$M53*0.5 +SUM(OFFSET(CL53,0,MAX(-INT($M53+(0.5-(10^-12))),-CW$40)+1,1,MIN(INT($M53+(0.5-(10^-12))),CW$40)-1))*1/$M53, IF($J53="Declining Balance",-$CP$38,0))))) -> 0.02313600714 | CX53: =IF($M53=0,0, IF($M53<=0.5,CM53, IF(AND($J53="straight line",$M53<1.51),(CL53-((CL53/$M53)*0.5))+CM53/$M53*0.5, IF($J53="straight line", IF((LEFT(CX$39,4)*1)-INT($M53)<LEFT($CP$39,4)*1,0,((OFFSET(CM53,0,-INT($M53+0.5),1,1))/$M53)*(IF($M53-INT($M53)>0.5,$M53-0.5-INT($M53),IF($M53-INT($M53)<=0.5,$M53-0.5-INT($M53)+1,0)))) +CM53/$M53*0.5 +SUM(OFFSET(CM53,0,MAX(-INT($M53+(0.5-(10^-12))),-CX$40)+1,1,MIN(INT($M53+(0.5-(10^-12))),CX$40)-1))*1/$M53, IF($J53="Declining Balance",-$CP$38,0))))) -> 0.02313600714 | CY53: =IF($M53=0,0, IF($M53<=0.5,CN53, IF(AND($J53="straight line",$M53<1.51),(CM53-((CM53/$M53)*0.5))+CN53/$M53*0.5, IF($J53="straight line", IF((LEFT(CY$39,4)*1)-INT($M53)<LEFT($CP$39,4)*1,0,((OFFSET(CN53,0,-INT($M53+0.5),1,1))/$M53)*(IF($M53-INT($M53)>0.5,$M53-0.5-INT($M53),IF($M53-INT($M53)<=0.5,$M53-0.5-INT($M53)+1,0)))) +CN53/$M53*0.5 +SUM(OFFSET(CN53,0,MAX(-INT($M53+(0.5-(10^-12))),-CY$40)+1,1,MIN(INT($M53+(0.5-(10^-12))),CY$40)-1))*1/$M53, IF($J53="Declining Balance",-$CP$38,0))))) -> 0.02313600714
C54: San Remo to Newhaven bridge pipeline and fittings renewal project - stage 2 | E54: Sewerage | F54: Renewals | G54: Pipelines/network | H54: Capital Programs / Allocation | J54: Straight line | K54: Ongoing | L54: 70 | M54: 70 | Q54: 1.57235 | R54: 0 | S54: 0 | T54: 0 | U54: 0 | AX54: 1.57235 | AY54: 0 | AZ54: 0 | BA54: 0 | BB54: 0 | BC54: 0 | BD54: 0 | BE54: 0 | BF54: 0 | BG54: 0 | BI54: 0.01123107143 | BJ54: 0.02246214286 | BK54: 0.02246214286 | BL54: 0.02246214286 | BM54: 0.02246214286 | BN54: 0.02246214286 | BO54: 0.02246214286 | BP54: 0.02246214286 | BQ54: 0.02246214286 | BR54: 0.02246214286 | BT54: =+IF($K54="Ongoing",AX54,IF(RIGHT($K54,2)=RIGHT(BT$39,2),SUM($AX54:AX54),0)+IF(RIGHT(BT$39,2)>RIGHT($K54,2),AX54,0)) -> 1.57235 | BU54: =+IF($K54="Ongoing",AY54,IF(RIGHT($K54,2)=RIGHT(BU$39,2),SUM($AX54:AY54),0)+IF(RIGHT(BU$39,2)>RIGHT($K54,2),AY54,0)) -> 0 | BV54: =+IF($K54="Ongoing",AZ54,IF(RIGHT($K54,2)=RIGHT(BV$39,2),SUM($AX54:AZ54),0)+IF(RIGHT(BV$39,2)>RIGHT($K54,2),AZ54,0)) -> 0 | BW54: =+IF($K54="Ongoing",BA54,IF(RIGHT($K54,2)=RIGHT(BW$39,2),SUM($AX54:BA54),0)+IF(RIGHT(BW$39,2)>RIGHT($K54,2),BA54,0)) -> 0 | BX54: =+IF($K54="Ongoing",BB54,IF(RIGHT($K54,2)=RIGHT(BX$39,2),SUM($AX54:BB54),0)+IF(RIGHT(BX$39,2)>RIGHT($K54,2),BB54,0)) -> 0 | BY54: =+IF($K54="Ongoing",BC54,IF(RIGHT($K54,2)=RIGHT(BY$39,2),SUM($AX54:BC54),0)+IF(RIGHT(BY$39,2)>RIGHT($K54,2),BC54,0)) -> 0 | BZ54: =+IF($K54="Ongoing",BD54,IF(RIGHT($K54,2)=RIGHT(BZ$39,2),SUM($AX54:BD54),0)+IF(RIGHT(BZ$39,2)>RIGHT($K54,2),BD54,0)) -> 0 | CA54: =+IF($K54="Ongoing",BE54,IF(RIGHT($K54,2)=RIGHT(CA$39,2),SUM($AX54:BE54),0)+IF(RIGHT(CA$39,2)>RIGHT($K54,2),BE54,0)) -> 0 | CB54: =+IF($K54="Ongoing",BF54,IF(RIGHT($K54,2)=RIGHT(CB$39,2),SUM($AX54:BF54),0)+IF(RIGHT(CB$39,2)>RIGHT($K54,2),BF54,0)) -> 0 | CC54: =+IF($K54="Ongoing",BG54,IF(RIGHT($K54,2)=RIGHT(CC$39,2),SUM($AX54:BG54),0)+IF(RIGHT(CC$39,2)>RIGHT($K54,2),BG54,0)) -> 0 | CE54: =+Q54*KeyAssumptionsPriceControl_FO!AC$15 -> 1.6195205 | CF54: =+R54*KeyAssumptionsPriceControl_FO!AD$15 -> 0 | CG54: =+S54*KeyAssumptionsPriceControl_FO!AE$15 -> 0 | CH54: =+T54*KeyAssumptionsPriceControl_FO!AF$15 -> 0 | CI54: =+U54*KeyAssumptionsPriceControl_FO!AG$15 -> 0 | CJ54: =+V54*KeyAssumptionsPriceControl_FO!AH$15 -> 0 | CK54: =+W54*KeyAssumptionsPriceControl_FO!AI$15 -> 0 | CL54: =+X54*KeyAssumptionsPriceControl_FO!AJ$15 -> 0 | CM54: =+Y54*KeyAssumptionsPriceControl_FO!AK$15 -> 0 | CN54: =+Z54*KeyAssumptionsPriceControl_FO!AL$15 -> 0 | CP54: 0.01156800357 | CQ54: 0.02313600714 | CR54: 0.02313600714 | CS54: 0.02313600714 | CT54: 0.02313600714 | CU54: 0.02313600714 | CV54: 0.02313600714 | CW54: 0.02313600714 | CX54: 0.02313600714 | CY54: 0.02313600714
C55: Sewage pump station civil, mechanical and electrical - pricing submission 23 | E55: Sewerage | F55: Renewals | G55: Treatment | H55: Capital Programs / Allocation | J55: Straight line | K55: 2026-27 | L55: 15 | M55: 15 | Q55: 0.5075 | R55: 0.4857 | S55: 0.2893 | T55: 0.4771 | U55: 0.6036 | V55: 0.1050030969 | W55: 0.1099832297 | X55: 0.1280824956 | Y55: 0.1595787692 | Z55: 0.2012142679 | AX55: 0.5075 | AY55: 0.4857 | AZ55: 0.2893 | BA55: 0.4771 | BB55: 0.6036 | BC55: 0.1050030969 | BD55: 0.1099832297 | BE55: 0.1280824956 | BF55: 0.1595787692 | BG55: 0.2012142679 | BI55: 0 | BJ55: 0 | BK55: 0 | BL55: 0.05865333333 | BM55: 0.1374266667 | BN55: 0.1610467699 | BO55: 0.1682129808 | BP55: 0.176148505 | BQ55: 0.1857372138 | BR55: 0.1977636484 | BT55: =+IF($K55="Ongoing",AX55,IF(RIGHT($K55,2)=RIGHT(BT$39,2),SUM($AX55:AX55),0)+IF(RIGHT(BT$39,2)>RIGHT($K55,2),AX55,0)) -> 0 | BU55: =+IF($K55="Ongoing",AY55,IF(RIGHT($K55,2)=RIGHT(BU$39,2),SUM($AX55:AY55),0)+IF(RIGHT(BU$39,2)>RIGHT($K55,2),AY55,0)) -> 0 | BV55: =+IF($K55="Ongoing",AZ55,IF(RIGHT($K55,2)=RIGHT(BV$39,2),SUM($AX55:AZ55),0)+IF(RIGHT(BV$39,2)>RIGHT($K55,2),AZ55,0)) -> 0 | BW55: =+IF($K55="Ongoing",BA55,IF(RIGHT($K55,2)=RIGHT(BW$39,2),SUM($AX55:BA55),0)+IF(RIGHT(BW$39,2)>RIGHT($K55,2),BA55,0)) -> 1.7596 | BX55: =+IF($K55="Ongoing",BB55,IF(RIGHT($K55,2)=RIGHT(BX$39,2),SUM($AX55:BB55),0)+IF(RIGHT(BX$39,2)>RIGHT($K55,2),BB55,0)) -> 0.6036 | BY55: =+IF($K55="Ongoing",BC55,IF(RIGHT($K55,2)=RIGHT(BY$39,2),SUM($AX55:BC55),0)+IF(RIGHT(BY$39,2)>RIGHT($K55,2),BC55,0)) -> 0.1050030969 | BZ55: =+IF($K55="Ongoing",BD55,IF(RIGHT($K55,2)=RIGHT(BZ$39,2),SUM($AX55:BD55),0)+IF(RIGHT(BZ$39,2)>RIGHT($K55,2),BD55,0)) -> 0.1099832297 | CA55: =+IF($K55="Ongoing",BE55,IF(RIGHT($K55,2)=RIGHT(CA$39,2),SUM($AX55:BE55),0)+IF(RIGHT(CA$39,2)>RIGHT($K55,2),BE55,0)) -> 0.1280824956 | CB55: =+IF($K55="Ongoing",BF55,IF(RIGHT($K55,2)=RIGHT(CB$39,2),SUM($AX55:BF55),0)+IF(RIGHT(CB$39,2)>RIGHT($K55,2),BF55,0)) -> 0.1595787692 | CC55: =+IF($K55="Ongoing",BG55,IF(RIGHT($K55,2)=RIGHT(CC$39,2),SUM($AX55:BG55),0)+IF(RIGHT(CC$39,2)>RIGHT($K55,2),BG55,0)) -> 0.2012142679 | CE55: =+Q55*KeyAssumptionsPriceControl_FO!AC$15 -> 0.522725 | CF55: =+R55*KeyAssumptionsPriceControl_FO!AD$15 -> 0.51527913 | CG55: =+S55*KeyAssumptionsPriceControl_FO!AE$15 -> 0.3161259211 | CH55: =+T55*KeyAssumptionsPriceControl_FO!AF$15 -> 0.5369802533 | CI55: =+U55*KeyAssumptionsPriceControl_FO!AG$15 -> 0.6997378312 | CJ55: =+V55*KeyAssumptionsPriceControl_FO!AH$15 -> 0.125379189 | CK55: =+W55*KeyAssumptionsPriceControl_FO!AI$15 -> 0.1352654999 | CL55: =+X55*KeyAssumptionsPriceControl_FO!AJ$15 -> 0.1622510734 | CM55: =+Y55*KeyAssumptionsPriceControl_FO!AK$15 -> 0.2082140988 | CN55: =+Z55*KeyAssumptionsPriceControl_FO!AL$15 -> 0.2704151504 | CP55: 0.01742416667 | CQ55: 0.05202430433 | CR55: 0.07973780604 | CS55: 0.1081746785 | CT55: 0.1493986147 | CU55: 0.1769025153 | CV55: 0.1855906716 | CW55: 0.1955078907 | CX55: 0.2078567298 | CY55: 0.2238110381
C56: Informations and communications technology road map | E56: Water | F56: Improvements / Compliance | G56: Corporate | H56: Capital Programs / Allocation | J56: Straight line | K56: 2027-28 | L56: 4 | M56: 4 | Q56: 0.447909 | R56: 0.299733 | S56: 0.314041 | T56: 0.062377 | U56: 0 | V56: 0 | W56: 0 | X56: 0 | Y56: 0 | Z56: 0 | AX56: 0.447909 | AY56: 0.299733 | AZ56: 0.314041 | BA56: 0.062377 | BB56: 0 | BC56: 0 | BD56: 0 | BE56: 0 | BF56: 0 | BG56: 0 | BI56: 0 | BJ56: 0 | BK56: 0 | BL56: 0 | BM56: 0.1405075 | BN56: 0.281015 | BO56: 0.281015 | BP56: 0.281015 | BQ56: 0.1405075 | BR56: 0 | BT56: =+IF($K56="Ongoing",AX56,IF(RIGHT($K56,2)=RIGHT(BT$39,2),SUM($AX56:AX56),0)+IF(RIGHT(BT$39,2)>RIGHT($K56,2),AX56,0)) -> 0 | BU56: =+IF($K56="Ongoing",AY56,IF(RIGHT($K56,2)=RIGHT(BU$39,2),SUM($AX56:AY56),0)+IF(RIGHT(BU$39,2)>RIGHT($K56,2),AY56,0)) -> 0 | BV56: =+IF($K56="Ongoing",AZ56,IF(RIGHT($K56,2)=RIGHT(BV$39,2),SUM($AX56:AZ56),0)+IF(RIGHT(BV$39,2)>RIGHT($K56,2),AZ56,0)) -> 0 | BW56: =+IF($K56="Ongoing",BA56,IF(RIGHT($K56,2)=RIGHT(BW$39,2),SUM($AX56:BA56),0)+IF(RIGHT(BW$39,2)>RIGHT($K56,2),BA56,0)) -> 0 | BX56: =+IF($K56="Ongoing",BB56,IF(RIGHT($K56,2)=RIGHT(BX$39,2),SUM($AX56:BB56),0)+IF(RIGHT(BX$39,2)>RIGHT($K56,2),BB56,0)) -> 1.12406 | BY56: =+IF($K56="Ongoing",BC56,IF(RIGHT($K56,2)=RIGHT(BY$39,2),SUM($AX56:BC56),0)+IF(RIGHT(BY$39,2)>RIGHT($K56,2),BC56,0)) -> 0 | BZ56: =+IF($K56="Ongoing",BD56,IF(RIGHT($K56,2)=RIGHT(BZ$39,2),SUM($AX56:BD56),0)+IF(RIGHT(BZ$39,2)>RIGHT($K56,2),BD56,0)) -> 0 | CA56: =+IF($K56="Ongoing",BE56,IF(RIGHT($K56,2)=RIGHT(CA$39,2),SUM($AX56:BE56),0)+IF(RIGHT(CA$39,2)>RIGHT($K56,2),BE56,0)) -> 0 | CB56: =+IF($K56="Ongoing",BF56,IF(RIGHT($K56,2)=RIGHT(CB$39,2),SUM($AX56:BF56),0)+IF(RIGHT(CB$39,2)>RIGHT($K56,2),BF56,0)) -> 0 | CC56: =+IF($K56="Ongoing",BG56,IF(RIGHT($K56,2)=RIGHT(CC$39,2),SUM($AX56:BG56),0)+IF(RIGHT(CC$39,2)>RIGHT($K56,2),BG56,0)) -> 0 | CE56: =+Q56*KeyAssumptionsPriceControl_FO!AC$15 -> 0.46134627 | CF56: =+R56*KeyAssumptionsPriceControl_FO!AD$15 -> 0.3179867397 | CG56: =+S56*KeyAssumptionsPriceControl_FO!AE$15 -> 0.3431610798 | CH56: =+T56*KeyAssumptionsPriceControl_FO!AF$15 -> 0.07020586304 | CI56: =+U56*KeyAssumptionsPriceControl_FO!AG$15 -> 0 | CJ56: =+V56*KeyAssumptionsPriceControl_FO!AH$15 -> 0 | CK56: =+W56*KeyAssumptionsPriceControl_FO!AI$15 -> 0 | CL56: =+X56*KeyAssumptionsPriceControl_FO!AJ$15 -> 0 | CM56: =+Y56*KeyAssumptionsPriceControl_FO!AK$15 -> 0 | CN56: =+Z56*KeyAssumptionsPriceControl_FO!AL$15 -> 0 | CP56: 0.05766828375 | CQ56: 0.15508491 | CR56: 0.2377283874 | CS56: 0.2893992553 | CT56: 0.2405067044 | CU56: 0.1430900782 | CV56: 0.06044660074 | CW56: 0.00877573288 | CX56: 0 | CY56: 0
C57: Informations and communications technology road map | E57: Sewerage | F57: Improvements / Compliance | G57: Corporate | H57: Capital Programs / Allocation | J57: Straight line | K57: 2027-28 | L57: 4 | M57: 4 | Q57: 0.447909 | R57: 0.299733 | S57: 0.314041 | T57: 0.062377 | U57: 0 | AX57: 0.447909 | AY57: 0.299733 | AZ57: 0.314041 | BA57: 0.062377 | BB57: 0 | BC57: 0 | BD57: 0 | BE57: 0 | BF57: 0 | BG57: 0 | BI57: 0 | BJ57: 0 | BK57: 0 | BL57: 0 | BM57: 0.1405075 | BN57: 0.281015 | BO57: 0.281015 | BP57: 0.281015 | BQ57: 0.1405075 | BR57: 0 | BT57: =+IF($K57="Ongoing",AX57,IF(RIGHT($K57,2)=RIGHT(BT$39,2),SUM($AX57:AX57),0)+IF(RIGHT(BT$39,2)>RIGHT($K57,2),AX57,0)) -> 0 | BU57: =+IF($K57="Ongoing",AY57,IF(RIGHT($K57,2)=RIGHT(BU$39,2),SUM($AX57:AY57),0)+IF(RIGHT(BU$39,2)>RIGHT($K57,2),AY57,0)) -> 0 | BV57: =+IF($K57="Ongoing",AZ57,IF(RIGHT($K57,2)=RIGHT(BV$39,2),SUM($AX57:AZ57),0)+IF(RIGHT(BV$39,2)>RIGHT($K57,2),AZ57,0)) -> 0 | BW57: =+IF($K57="Ongoing",BA57,IF(RIGHT($K57,2)=RIGHT(BW$39,2),SUM($AX57:BA57),0)+IF(RIGHT(BW$39,2)>RIGHT($K57,2),BA57,0)) -> 0 | BX57: =+IF($K57="Ongoing",BB57,IF(RIGHT($K57,2)=RIGHT(BX$39,2),SUM($AX57:BB57),0)+IF(RIGHT(BX$39,2)>RIGHT($K57,2),BB57,0)) -> 1.12406 | BY57: =+IF($K57="Ongoing",BC57,IF(RIGHT($K57,2)=RIGHT(BY$39,2),SUM($AX57:BC57),0)+IF(RIGHT(BY$39,2)>RIGHT($K57,2),BC57,0)) -> 0 | BZ57: =+IF($K57="Ongoing",BD57,IF(RIGHT($K57,2)=RIGHT(BZ$39,2),SUM($AX57:BD57),0)+IF(RIGHT(BZ$39,2)>RIGHT($K57,2),BD57,0)) -> 0 | CA57: =+IF($K57="Ongoing",BE57,IF(RIGHT($K57,2)=RIGHT(CA$39,2),SUM($AX57:BE57),0)+IF(RIGHT(CA$39,2)>RIGHT($K57,2),BE57,0)) -> 0 | CB57: =+IF($K57="Ongoing",BF57,IF(RIGHT($K57,2)=RIGHT(CB$39,2),SUM($AX57:BF57),0)+IF(RIGHT(CB$39,2)>RIGHT($K57,2),BF57,0)) -> 0 | CC57: =+IF($K57="Ongoing",BG57,IF(RIGHT($K57,2)=RIGHT(CC$39,2),SUM($AX57:BG57),0)+IF(RIGHT(CC$39,2)>RIGHT($K57,2),BG57,0)) -> 0 | CE57: =+Q57*KeyAssumptionsPriceControl_FO!AC$15 -> 0.46134627 | CF57: =+R57*KeyAssumptionsPriceControl_FO!AD$15 -> 0.3179867397 | CG57: =+S57*KeyAssumptionsPriceControl_FO!AE$15 -> 0.3431610798 | CH57: =+T57*KeyAssumptionsPriceControl_FO!AF$15 -> 0.07020586304 | CI57: =+U57*KeyAssumptionsPriceControl_FO!AG$15 -> 0 | CJ57: =+V57*KeyAssumptionsPriceControl_FO!AH$15 -> 0 | CK57: =+W57*KeyAssumptionsPriceControl_FO!AI$15 -> 0 | CL57: =+X57*KeyAssumptionsPriceControl_FO!AJ$15 -> 0 | CM57: =+Y57*KeyAssumptionsPriceControl_FO!AK$15 -> 0 | CN57: =+Z57*KeyAssumptionsPriceControl_FO!AL$15 -> 0 | CP57: 0.05766828375 | CQ57: 0.15508491 | CR57: 0.2377283874 | CS57: 0.2893992553 | CT57: 0.2405067044 | CU57: 0.1430900782 | CV57: 0.06044660074 | CW57: 0.00877573288 | CX57: 0 | CY57: 0
C58: Informations and communications technology road map | E58: Recycled Water | F58: Improvements / Compliance | G58: Corporate | H58: Capital Programs / Allocation | J58: Straight line | K58: 2027-28 | L58: 4 | M58: 4 | Q58: 0.018282 | R58: 0.012234 | S58: 0.012818 | T58: 0.002546 | U58: 0 | AX58: 0.018282 | AY58: 0.012234 | AZ58: 0.012818 | BA58: 0.002546 | BB58: 0 | BC58: 0 | BD58: 0 | BE58: 0 | BF58: 0 | BG58: 0 | BI58: 0 | BJ58: 0 | BK58: 0 | BL58: 0 | BM58: 0.005735 | BN58: 0.01147 | BO58: 0.01147 | BP58: 0.01147 | BQ58: 0.005735 | BR58: 0 | BT58: =+IF($K58="Ongoing",AX58,IF(RIGHT($K58,2)=RIGHT(BT$39,2),SUM($AX58:AX58),0)+IF(RIGHT(BT$39,2)>RIGHT($K58,2),AX58,0)) -> 0 | BU58: =+IF($K58="Ongoing",AY58,IF(RIGHT($K58,2)=RIGHT(BU$39,2),SUM($AX58:AY58),0)+IF(RIGHT(BU$39,2)>RIGHT($K58,2),AY58,0)) -> 0 | BV58: =+IF($K58="Ongoing",AZ58,IF(RIGHT($K58,2)=RIGHT(BV$39,2),SUM($AX58:AZ58),0)+IF(RIGHT(BV$39,2)>RIGHT($K58,2),AZ58,0)) -> 0 | BW58: =+IF($K58="Ongoing",BA58,IF(RIGHT($K58,2)=RIGHT(BW$39,2),SUM($AX58:BA58),0)+IF(RIGHT(BW$39,2)>RIGHT($K58,2),BA58,0)) -> 0 | BX58: =+IF($K58="Ongoing",BB58,IF(RIGHT($K58,2)=RIGHT(BX$39,2),SUM($AX58:BB58),0)+IF(RIGHT(BX$39,2)>RIGHT($K58,2),BB58,0)) -> 0.04588 | BY58: =+IF($K58="Ongoing",BC58,IF(RIGHT($K58,2)=RIGHT(BY$39,2),SUM($AX58:BC58),0)+IF(RIGHT(BY$39,2)>RIGHT($K58,2),BC58,0)) -> 0 | BZ58: =+IF($K58="Ongoing",BD58,IF(RIGHT($K58,2)=RIGHT(BZ$39,2),SUM($AX58:BD58),0)+IF(RIGHT(BZ$39,2)>RIGHT($K58,2),BD58,0)) -> 0 | CA58: =+IF($K58="Ongoing",BE58,IF(RIGHT($K58,2)=RIGHT(CA$39,2),SUM($AX58:BE58),0)+IF(RIGHT(CA$39,2)>RIGHT($K58,2),BE58,0)) -> 0 | CB58: =+IF($K58="Ongoing",BF58,IF(RIGHT($K58,2)=RIGHT(CB$39,2),SUM($AX58:BF58),0)+IF(RIGHT(CB$39,2)>RIGHT($K58,2),BF58,0)) -> 0 | CC58: =+IF($K58="Ongoing",BG58,IF(RIGHT($K58,2)=RIGHT(CC$39,2),SUM($AX58:BG58),0)+IF(RIGHT(CC$39,2)>RIGHT($K58,2),BG58,0)) -> 0 | CE58: =+Q58*KeyAssumptionsPriceControl_FO!AC$15 -> 0.01883046 | CF58: =+R58*KeyAssumptionsPriceControl_FO!AD$15 -> 0.0129790506 | CG58: =+S58*KeyAssumptionsPriceControl_FO!AE$15 -> 0.01400657469 | CH58: =+T58*KeyAssumptionsPriceControl_FO!AF$15 -> 0.00286554543 | CI58: =+U58*KeyAssumptionsPriceControl_FO!AG$15 -> 0 | CJ58: =+V58*KeyAssumptionsPriceControl_FO!AH$15 -> 0 | CK58: =+W58*KeyAssumptionsPriceControl_FO!AI$15 -> 0 | CL58: =+X58*KeyAssumptionsPriceControl_FO!AJ$15 -> 0 | CM58: =+Y58*KeyAssumptionsPriceControl_FO!AK$15 -> 0 | CN58: =+Z58*KeyAssumptionsPriceControl_FO!AL$15 -> 0 | CP58: 0.0023538075 | CQ58: 0.006329996325 | CR58: 0.009703199486 | CS58: 0.0118122145 | CT58: 0.009816600179 | CU58: 0.005840411354 | CV58: 0.002467208193 | CW58: 0.0003581931788 | CX58: 0 | CY58: 0
C59: Fleet and plant - renewal program - pricing submission 23 | E59: Water | F59: Renewals | G59: Corporate | H59: Capital Programs / Allocation | J59: Straight line | K59: 2024-25 | L59: 4 | M59: 4 | Q59: 0.232456 | R59: 0.193011 | S59: 0.163317 | T59: 0.138915 | U59: 0.218687 | V59: 0.1617 | W59: 0.1617 | X59: 0.1617 | Y59: 0.1617 | Z59: 0.1617 | AX59: 0.232456 | AY59: 0.193011 | AZ59: 0.163317 | BA59: 0.138915 | BB59: 0.218687 | BC59: 0.1617 | BD59: 0.1617 | BE59: 0.1617 | BF59: 0.1617 | BG59: 0.1617 | BI59: 0 | BJ59: 0.053183375 | BK59: 0.126781375 | BL59: 0.164560375 | BM59: 0.209260625 | BN59: 0.203625625 | BO59: 0.170452625 | BP59: 0.173098625 | BQ59: 0.168823375 | BR59: 0.1617 | BT59: =+IF($K59="Ongoing",AX59,IF(RIGHT($K59,2)=RIGHT(BT$39,2),SUM($AX59:AX59),0)+IF(RIGHT(BT$39,2)>RIGHT($K59,2),AX59,0)) -> 0 | BU59: =+IF($K59="Ongoing",AY59,IF(RIGHT($K59,2)=RIGHT(BU$39,2),SUM($AX59:AY59),0)+IF(RIGHT(BU$39,2)>RIGHT($K59,2),AY59,0)) -> 0.425467 | BV59: =+IF($K59="Ongoing",AZ59,IF(RIGHT($K59,2)=RIGHT(BV$39,2),SUM($AX59:AZ59),0)+IF(RIGHT(BV$39,2)>RIGHT($K59,2),AZ59,0)) -> 0.163317 | BW59: =+IF($K59="Ongoing",BA59,IF(RIGHT($K59,2)=RIGHT(BW$39,2),SUM($AX59:BA59),0)+IF(RIGHT(BW$39,2)>RIGHT($K59,2),BA59,0)) -> 0.138915 | BX59: =+IF($K59="Ongoing",BB59,IF(RIGHT($K59,2)=RIGHT(BX$39,2),SUM($AX59:BB59),0)+IF(RIGHT(BX$39,2)>RIGHT($K59,2),BB59,0)) -> 0.218687 | BY59: =+IF($K59="Ongoing",BC59,IF(RIGHT($K59,2)=RIGHT(BY$39,2),SUM($AX59:BC59),0)+IF(RIGHT(BY$39,2)>RIGHT($K59,2),BC59,0)) -> 0.1617 | BZ59: =+IF($K59="Ongoing",BD59,IF(RIGHT($K59,2)=RIGHT(BZ$39,2),SUM($AX59:BD59),0)+IF(RIGHT(BZ$39,2)>RIGHT($K59,2),BD59,0)) -> 0.1617 | CA59: =+IF($K59="Ongoing",BE59,IF(RIGHT($K59,2)=RIGHT(CA$39,2),SUM($AX59:BE59),0)+IF(RIGHT(CA$39,2)>RIGHT($K59,2),BE59,0)) -> 0.1617 | CB59: =+IF($K59="Ongoing",BF59,IF(RIGHT($K59,2)=RIGHT(CB$39,2),SUM($AX59:BF59),0)+IF(RIGHT(CB$39,2)>RIGHT($K59,2),BF59,0)) -> 0.1617 | CC59: =+IF($K59="Ongoing",BG59,IF(RIGHT($K59,2)=RIGHT(CC$39,2),SUM($AX59:BG59),0)+IF(RIGHT(CC$39,2)>RIGHT($K59,2),BG59,0)) -> 0.1617 | CE59: =+Q59*KeyAssumptionsPriceControl_FO!AC$15 -> 0.23942968 | CF59: =+R59*KeyAssumptionsPriceControl_FO!AD$15 -> 0.2047653699 | CG59: =+S59*KeyAssumptionsPriceControl_FO!AE$15 -> 0.1784608955 | CH59: =+T59*KeyAssumptionsPriceControl_FO!AF$15 -> 0.1563500563 | CI59: =+U59*KeyAssumptionsPriceControl_FO!AG$15 -> 0.2535181695 | CJ59: =+V59*KeyAssumptionsPriceControl_FO!AH$15 -> 0.1930782563 | CK59: =+W59*KeyAssumptionsPriceControl_FO!AI$15 -> 0.198870604 | CL59: =+X59*KeyAssumptionsPriceControl_FO!AJ$15 -> 0.2048367222 | CM59: =+Y59*KeyAssumptionsPriceControl_FO!AK$15 -> 0.2109818238 | CN59: =+Z59*KeyAssumptionsPriceControl_FO!AL$15 -> 0.2173112785 | CP59: 0.02992871 | CQ59: 0.08545309124 | CR59: 0.1333563744 | CS59: 0.1752077434 | CT59: 0.1965125616 | CU59: 0.1968127336 | CV59: 0.197903058 | CW59: 0.2065151048 | CX59: 0.2072588948 | CY59: 0.2049709794
C60: Fleet and plant - renewal program - pricing submission 23 | E60: Sewerage | F60: Renewals | G60: Corporate | H60: Capital Programs / Allocation | J60: Straight line | K60: 2024-25 | L60: 4 | M60: 4 | Q60: 0.232456 | R60: 0.193011 | S60: 0.163317 | T60: 0.138915 | U60: 0.218687 | V60: 0.1617 | W60: 0.1617 | X60: 0.1617 | Y60: 0.1617 | Z60: 0.1617 | AX60: 0.232456 | AY60: 0.193011 | AZ60: 0.163317 | BA60: 0.138915 | BB60: 0.218687 | BC60: 0.1617 | BD60: 0.1617 | BE60: 0.1617 | BF60: 0.1617 | BG60: 0.1617 | BI60: 0 | BJ60: 0.053183375 | BK60: 0.126781375 | BL60: 0.164560375 | BM60: 0.209260625 | BN60: 0.203625625 | BO60: 0.170452625 | BP60: 0.173098625 | BQ60: 0.168823375 | BR60: 0.1617 | BT60: =+IF($K60="Ongoing",AX60,IF(RIGHT($K60,2)=RIGHT(BT$39,2),SUM($AX60:AX60),0)+IF(RIGHT(BT$39,2)>RIGHT($K60,2),AX60,0)) -> 0 | BU60: =+IF($K60="Ongoing",AY60,IF(RIGHT($K60,2)=RIGHT(BU$39,2),SUM($AX60:AY60),0)+IF(RIGHT(BU$39,2)>RIGHT($K60,2),AY60,0)) -> 0.425467 | BV60: =+IF($K60="Ongoing",AZ60,IF(RIGHT($K60,2)=RIGHT(BV$39,2),SUM($AX60:AZ60),0)+IF(RIGHT(BV$39,2)>RIGHT($K60,2),AZ60,0)) -> 0.163317 | BW60: =+IF($K60="Ongoing",BA60,IF(RIGHT($K60,2)=RIGHT(BW$39,2),SUM($AX60:BA60),0)+IF(RIGHT(BW$39,2)>RIGHT($K60,2),BA60,0)) -> 0.138915 | BX60: =+IF($K60="Ongoing",BB60,IF(RIGHT($K60,2)=RIGHT(BX$39,2),SUM($AX60:BB60),0)+IF(RIGHT(BX$39,2)>RIGHT($K60,2),BB60,0)) -> 0.218687 | BY60: =+IF($K60="Ongoing",BC60,IF(RIGHT($K60,2)=RIGHT(BY$39,2),SUM($AX60:BC60),0)+IF(RIGHT(BY$39,2)>RIGHT($K60,2),BC60,0)) -> 0.1617 | BZ60: =+IF($K60="Ongoing",BD60,IF(RIGHT($K60,2)=RIGHT(BZ$39,2),SUM($AX60:BD60),0)+IF(RIGHT(BZ$39,2)>RIGHT($K60,2),BD60,0)) -> 0.1617 | CA60: =+IF($K60="Ongoing",BE60,IF(RIGHT($K60,2)=RIGHT(CA$39,2),SUM($AX60:BE60),0)+IF(RIGHT(CA$39,2)>RIGHT($K60,2),BE60,0)) -> 0.1617 | CB60: =+IF($K60="Ongoing",BF60,IF(RIGHT($K60,2)=RIGHT(CB$39,2),SUM($AX60:BF60),0)+IF(RIGHT(CB$39,2)>RIGHT($K60,2),BF60,0)) -> 0.1617 | CC60: =+IF($K60="Ongoing",BG60,IF(RIGHT($K60,2)=RIGHT(CC$39,2),SUM($AX60:BG60),0)+IF(RIGHT(CC$39,2)>RIGHT($K60,2),BG60,0)) -> 0.1617 | CE60: =+Q60*KeyAssumptionsPriceControl_FO!AC$15 -> 0.23942968 | CF60: =+R60*KeyAssumptionsPriceControl_FO!AD$15 -> 0.2047653699 | CG60: =+S60*KeyAssumptionsPriceControl_FO!AE$15 -> 0.1784608955 | CH60: =+T60*KeyAssumptionsPriceControl_FO!AF$15 -> 0.1563500563 | CI60: =+U60*KeyAssumptionsPriceControl_FO!AG$15 -> 0.2535181695 | CJ60: =+V60*KeyAssumptionsPriceControl_FO!AH$15 -> 0.1930782563 | CK60: =+W60*KeyAssumptionsPriceControl_FO!AI$15 -> 0.198870604 | CL60: =+X60*KeyAssumptionsPriceControl_FO!AJ$15 -> 0.2048367222 | CM60: =+Y60*KeyAssumptionsPriceControl_FO!AK$15 -> 0.2109818238 | CN60: =+Z60*KeyAssumptionsPriceControl_FO!AL$15 -> 0.2173112785 | CP60: 0.02992871 | CQ60: 0.08545309124 | CR60: 0.1333563744 | CS60: 0.1752077434 | CT60: 0.1965125616 | CU60: 0.1968127336 | CV60: 0.197903058 | CW60: 0.2065151048 | CX60: 0.2072588948 | CY60: 0.2049709794
C61: Fleet and plant - renewal program - pricing submission 23 | E61: Recycled Water | F61: Renewals | G61: Corporate | H61: Capital Programs / Allocation | J61: Straight line | K61: 2024-25 | L61: 4 | M61: 4 | Q61: 0.009488 | R61: 0.007878 | S61: 0.006666 | T61: 0.00567 | U61: 0.008926 | V61: 0.0066 | W61: 0.0066 | X61: 0.0066 | Y61: 0.0066 | Z61: 0.0066 | AX61: 0.009488 | AY61: 0.007878 | AZ61: 0.006666 | BA61: 0.00567 | BB61: 0.008926 | BC61: 0.0066 | BD61: 0.0066 | BE61: 0.0066 | BF61: 0.0066 | BG61: 0.0066 | BI61: 0 | BJ61: 0.00217075 | BK61: 0.00517475 | BL61: 0.00671675 | BM61: 0.00854125 | BN61: 0.00831125 | BO61: 0.00695725 | BP61: 0.00706525 | BQ61: 0.00689075 | BR61: 0.0066 | BT61: =+IF($K61="Ongoing",AX61,IF(RIGHT($K61,2)=RIGHT(BT$39,2),SUM($AX61:AX61),0)+IF(RIGHT(BT$39,2)>RIGHT($K61,2),AX61,0)) -> 0 | BU61: =+IF($K61="Ongoing",AY61,IF(RIGHT($K61,2)=RIGHT(BU$39,2),SUM($AX61:AY61),0)+IF(RIGHT(BU$39,2)>RIGHT($K61,2),AY61,0)) -> 0.017366 | BV61: =+IF($K61="Ongoing",AZ61,IF(RIGHT($K61,2)=RIGHT(BV$39,2),SUM($AX61:AZ61),0)+IF(RIGHT(BV$39,2)>RIGHT($K61,2),AZ61,0)) -> 0.006666 | BW61: =+IF($K61="Ongoing",BA61,IF(RIGHT($K61,2)=RIGHT(BW$39,2),SUM($AX61:BA61),0)+IF(RIGHT(BW$39,2)>RIGHT($K61,2),BA61,0)) -> 0.00567 | BX61: =+IF($K61="Ongoing",BB61,IF(RIGHT($K61,2)=RIGHT(BX$39,2),SUM($AX61:BB61),0)+IF(RIGHT(BX$39,2)>RIGHT($K61,2),BB61,0)) -> 0.008926 | BY61: =+IF($K61="Ongoing",BC61,IF(RIGHT($K61,2)=RIGHT(BY$39,2),SUM($AX61:BC61),0)+IF(RIGHT(BY$39,2)>RIGHT($K61,2),BC61,0)) -> 0.0066 | BZ61: =+IF($K61="Ongoing",BD61,IF(RIGHT($K61,2)=RIGHT(BZ$39,2),SUM($AX61:BD61),0)+IF(RIGHT(BZ$39,2)>RIGHT($K61,2),BD61,0)) -> 0.0066 | CA61: =+IF($K61="Ongoing",BE61,IF(RIGHT($K61,2)=RIGHT(CA$39,2),SUM($AX61:BE61),0)+IF(RIGHT(CA$39,2)>RIGHT($K61,2),BE61,0)) -> 0.0066 | CB61: =+IF($K61="Ongoing",BF61,IF(RIGHT($K61,2)=RIGHT(CB$39,2),SUM($AX61:BF61),0)+IF(RIGHT(CB$39,2)>RIGHT($K61,2),BF61,0)) -> 0.0066 | CC61: =+IF($K61="Ongoing",BG61,IF(RIGHT($K61,2)=RIGHT(CC$39,2),SUM($AX61:BG61),0)+IF(RIGHT(CC$39,2)>RIGHT($K61,2),BG61,0)) -> 0.0066 | CE61: =+Q61*KeyAssumptionsPriceControl_FO!AC$15 -> 0.00977264 | CF61: =+R61*KeyAssumptionsPriceControl_FO!AD$15 -> 0.0083577702 | CG61: =+S61*KeyAssumptionsPriceControl_FO!AE$15 -> 0.007284118182 | CH61: =+T61*KeyAssumptionsPriceControl_FO!AF$15 -> 0.006381634953 | CI61: =+U61*KeyAssumptionsPriceControl_FO!AG$15 -> 0.01034768039 | CJ61: =+V61*KeyAssumptionsPriceControl_FO!AH$15 -> 0.007880745157 | CK61: =+W61*KeyAssumptionsPriceControl_FO!AI$15 -> 0.008117167512 | CL61: =+X61*KeyAssumptionsPriceControl_FO!AJ$15 -> 0.008360682537 | CM61: =+Y61*KeyAssumptionsPriceControl_FO!AK$15 -> 0.008611503013 | CN61: =+Z61*KeyAssumptionsPriceControl_FO!AL$15 -> 0.008869848104 | CP61: 0.00122158 | CQ61: 0.003487881275 | CR61: 0.005443117323 | CS61: 0.007151336465 | CT61: 0.008020920882 | CU61: 0.0080331728 | CV61: 0.008077675836 | CW61: 0.00842918795 | CX61: 0.008459546727 | CY61: 0.008366162423
C62: Water mains renewals - pricing submission 23 | E62: Water | F62: Renewals | G62: Pipelines/network | H62: Capital Programs / Allocation | J62: Straight line | K62: 2024-25 | L62: 70 | M62: 70 | Q62: 0.375 | R62: 0 | S62: 0.46 | T62: 0.39 | U62: 0.375 | V62: 0.3523537624 | W62: 0.4340148795 | X62: 0.3908567416 | Y62: 0.4679676388 | Z62: 0.5073314064 | AX62: 0.375 | AY62: 0 | AZ62: 0.46 | BA62: 0.39 | BB62: 0.375 | BC62: 0.3523537624 | BD62: 0.4340148795 | BE62: 0.3908567416 | BF62: 0.4679676388 | BG62: 0.5073314064 | BI62: 0 | BJ62: 0.002678571429 | BK62: 0.008642857143 | BL62: 0.01471428571 | BM62: 0.02017857143 | BN62: 0.02537395545 | BO62: 0.03099087432 | BP62: 0.03688281447 | BQ62: 0.04301727433 | BR62: 0.04998369608 | BT62: =+IF($K62="Ongoing",AX62,IF(RIGHT($K62,2)=RIGHT(BT$39,2),SUM($AX62:AX62),0)+IF(RIGHT(BT$39,2)>RIGHT($K62,2),AX62,0)) -> 0 | BU62: =+IF($K62="Ongoing",AY62,IF(RIGHT($K62,2)=RIGHT(BU$39,2),SUM($AX62:AY62),0)+IF(RIGHT(BU$39,2)>RIGHT($K62,2),AY62,0)) -> 0.375 | BV62: =+IF($K62="Ongoing",AZ62,IF(RIGHT($K62,2)=RIGHT(BV$39,2),SUM($AX62:AZ62),0)+IF(RIGHT(BV$39,2)>RIGHT($K62,2),AZ62,0)) -> 0.46 | BW62: =+IF($K62="Ongoing",BA62,IF(RIGHT($K62,2)=RIGHT(BW$39,2),SUM($AX62:BA62),0)+IF(RIGHT(BW$39,2)>RIGHT($K62,2),BA62,0)) -> 0.39 | BX62: =+IF($K62="Ongoing",BB62,IF(RIGHT($K62,2)=RIGHT(BX$39,2),SUM($AX62:BB62),0)+IF(RIGHT(BX$39,2)>RIGHT($K62,2),BB62,0)) -> 0.375 | BY62: =+IF($K62="Ongoing",BC62,IF(RIGHT($K62,2)=RIGHT(BY$39,2),SUM($AX62:BC62),0)+IF(RIGHT(BY$39,2)>RIGHT($K62,2),BC62,0)) -> 0.3523537624 | BZ62: =+IF($K62="Ongoing",BD62,IF(RIGHT($K62,2)=RIGHT(BZ$39,2),SUM($AX62:BD62),0)+IF(RIGHT(BZ$39,2)>RIGHT($K62,2),BD62,0)) -> 0.4340148795 | CA62: =+IF($K62="Ongoing",BE62,IF(RIGHT($K62,2)=RIGHT(CA$39,2),SUM($AX62:BE62),0)+IF(RIGHT(CA$39,2)>RIGHT($K62,2),BE62,0)) -> 0.3908567416 | CB62: =+IF($K62="Ongoing",BF62,IF(RIGHT($K62,2)=RIGHT(CB$39,2),SUM($AX62:BF62),0)+IF(RIGHT(CB$39,2)>RIGHT($K62,2),BF62,0)) -> 0.4679676388 | CC62: =+IF($K62="Ongoing",BG62,IF(RIGHT($K62,2)=RIGHT(CC$39,2),SUM($AX62:BG62),0)+IF(RIGHT(CC$39,2)>RIGHT($K62,2),BG62,0)) -> 0.5073314064 | CE62: =+Q62*KeyAssumptionsPriceControl_FO!AC$15 -> 0.38625 | CF62: =+R62*KeyAssumptionsPriceControl_FO!AD$15 -> 0 | CG62: =+S62*KeyAssumptionsPriceControl_FO!AE$15 -> 0.50265442 | CH62: =+T62*KeyAssumptionsPriceControl_FO!AF$15 -> 0.4389484359 | CI62: =+U62*KeyAssumptionsPriceControl_FO!AG$15 -> 0.4347277779 | CJ62: =+V62*KeyAssumptionsPriceControl_FO!AH$15 -> 0.4207288191 | CK62: =+W62*KeyAssumptionsPriceControl_FO!AI$15 -> 0.5337835575 | CL62: =+X62*KeyAssumptionsPriceControl_FO!AJ$15 -> 0.4951256264 | CM62: =+Y62*KeyAssumptionsPriceControl_FO!AK$15 -> 0.6105916261 | CN62: =+Z62*KeyAssumptionsPriceControl_FO!AL$15 -> 0.6818109869 | CP62: 0.002758928571 | CQ62: 0.005517857143 | CR62: 0.009108245857 | CS62: 0.01583398054 | CT62: 0.02207452493 | CU62: 0.02818492919 | CV62: 0.03500287474 | CW62: 0.04235222605 | CX62: 0.05025020643 | CY62: 0.05948165366
C63: Cowes Wastewater Treatment Plant civil, mechanical and electrical - pricing submission 23 | E63: Sewerage | F63: Renewals | G63: Treatment | H63: Capital Programs / Allocation | J63: Straight line | K63: 2024-25 | L63: 25 | M63: 25 | Q63: 0.3260371783 | R63: 0.1778592938 | S63: 0.6559366221 | T63: 0.179457918 | U63: 0.3017577803 | V63: 0.08232093288 | W63: 0.09086681425 | X63: 0.1111182292 | Y63: 0.1335927516 | Z63: 0.1710787979 | AX63: 0.3260371783 | AY63: 0.1778592938 | AZ63: 0.6559366221 | BA63: 0.179457918 | BB63: 0.3017577803 | BC63: 0.08232093288 | BD63: 0.09086681425 | BE63: 0.1111182292 | BF63: 0.1335927516 | BG63: 0.1710787979 | BI63: 0 | BJ63: 0.01007792944 | BK63: 0.03327459133 | BL63: 0.04998248213 | BM63: 0.0596067961 | BN63: 0.06728837036 | BO63: 0.0707521253 | BP63: 0.07479182617 | BQ63: 0.07968604579 | BR63: 0.08577947678 | BT63: =+IF($K63="Ongoing",AX63,IF(RIGHT($K63,2)=RIGHT(BT$39,2),SUM($AX63:AX63),0)+IF(RIGHT(BT$39,2)>RIGHT($K63,2),AX63,0)) -> 0 | BU63: =+IF($K63="Ongoing",AY63,IF(RIGHT($K63,2)=RIGHT(BU$39,2),SUM($AX63:AY63),0)+IF(RIGHT(BU$39,2)>RIGHT($K63,2),AY63,0)) -> 0.5038964722 | BV63: =+IF($K63="Ongoing",AZ63,IF(RIGHT($K63,2)=RIGHT(BV$39,2),SUM($AX63:AZ63),0)+IF(RIGHT(BV$39,2)>RIGHT($K63,2),AZ63,0)) -> 0.6559366221 | BW63: =+IF($K63="Ongoing",BA63,IF(RIGHT($K63,2)=RIGHT(BW$39,2),SUM($AX63:BA63),0)+IF(RIGHT(BW$39,2)>RIGHT($K63,2),BA63,0)) -> 0.179457918 | BX63: =+IF($K63="Ongoing",BB63,IF(RIGHT($K63,2)=RIGHT(BX$39,2),SUM($AX63:BB63),0)+IF(RIGHT(BX$39,2)>RIGHT($K63,2),BB63,0)) -> 0.3017577803 | BY63: =+IF($K63="Ongoing",BC63,IF(RIGHT($K63,2)=RIGHT(BY$39,2),SUM($AX63:BC63),0)+IF(RIGHT(BY$39,2)>RIGHT($K63,2),BC63,0)) -> 0.08232093288 | BZ63: =+IF($K63="Ongoing",BD63,IF(RIGHT($K63,2)=RIGHT(BZ$39,2),SUM($AX63:BD63),0)+IF(RIGHT(BZ$39,2)>RIGHT($K63,2),BD63,0)) -> 0.09086681425 | CA63: =+IF($K63="Ongoing",BE63,IF(RIGHT($K63,2)=RIGHT(CA$39,2),SUM($AX63:BE63),0)+IF(RIGHT(CA$39,2)>RIGHT($K63,2),BE63,0)) -> 0.1111182292 | CB63: =+IF($K63="Ongoing",BF63,IF(RIGHT($K63,2)=RIGHT(CB$39,2),SUM($AX63:BF63),0)+IF(RIGHT(CB$39,2)>RIGHT($K63,2),BF63,0)) -> 0.1335927516 | CC63: =+IF($K63="Ongoing",BG63,IF(RIGHT($K63,2)=RIGHT(CC$39,2),SUM($AX63:BG63),0)+IF(RIGHT(CC$39,2)>RIGHT($K63,2),BG63,0)) -> 0.1710787979 | CE63: =+Q63*KeyAssumptionsPriceControl_FO!AC$15 -> 0.3358182937 | CF63: =+R63*KeyAssumptionsPriceControl_FO!AD$15 -> 0.1886909248 | CG63: =+S63*KeyAssumptionsPriceControl_FO!AE$15 -> 0.7167596573 | CH63: =+T63*KeyAssumptionsPriceControl_FO!AF$15 -> 0.2019814677 | CI63: =+U63*KeyAssumptionsPriceControl_FO!AG$15 -> 0.3498199714 | CJ63: =+V63*KeyAssumptionsPriceControl_FO!AH$15 -> 0.09829549896 | CK63: =+W63*KeyAssumptionsPriceControl_FO!AI$15 -> 0.1117547201 | CL63: =+X63*KeyAssumptionsPriceControl_FO!AJ$15 -> 0.1407612483 | CM63: =+Y63*KeyAssumptionsPriceControl_FO!AK$15 -> 0.1743082399 | CN63: =+Z63*KeyAssumptionsPriceControl_FO!AL$15 -> 0.2299155986 | CP63: 0.006716365874 | CQ63: 0.01720655024 | CR63: 0.03531556189 | CS63: 0.05369038439 | CT63: 0.06472641317 | CU63: 0.07368872258 | CV63: 0.07788972696 | CW63: 0.08294004632 | CX63: 0.08924143609 | CY63: 0.09732591285
C64: Sewer mains and junction renewals - pricing submission 23 | E64: Sewerage | F64: Renewals | G64: Pipelines/network | H64: Capital Programs / Allocation | J64: Straight line | K64: Ongoing | L64: 70 | M64: 70 | Q64: 0.18 | R64: 0.18 | S64: 0.18 | T64: 0.33 | U64: 0.337 | V64: 0.285 | W64: 0.285 | X64: 0.285 | Y64: 0.285 | Z64: 0.285 | AX64: 0.18 | AY64: 0.18 | AZ64: 0.18 | BA64: 0.33 | BB64: 0.337 | BC64: 0.285 | BD64: 0.285 | BE64: 0.285 | BF64: 0.285 | BG64: 0.285 | BI64: 0.001285714286 | BJ64: 0.003857142857 | BK64: 0.006428571429 | BL64: 0.01007142857 | BM64: 0.01483571429 | BN64: 0.01927857143 | BO64: 0.02335 | BP64: 0.02742142857 | BQ64: 0.03149285714 | BR64: 0.03556428571 | BT64: =+IF($K64="Ongoing",AX64,IF(RIGHT($K64,2)=RIGHT(BT$39,2),SUM($AX64:AX64),0)+IF(RIGHT(BT$39,2)>RIGHT($K64,2),AX64,0)) -> 0.18 | BU64: =+IF($K64="Ongoing",AY64,IF(RIGHT($K64,2)=RIGHT(BU$39,2),SUM($AX64:AY64),0)+IF(RIGHT(BU$39,2)>RIGHT($K64,2),AY64,0)) -> 0.18 | BV64: =+IF($K64="Ongoing",AZ64,IF(RIGHT($K64,2)=RIGHT(BV$39,2),SUM($AX64:AZ64),0)+IF(RIGHT(BV$39,2)>RIGHT($K64,2),AZ64,0)) -> 0.18 | BW64: =+IF($K64="Ongoing",BA64,IF(RIGHT($K64,2)=RIGHT(BW$39,2),SUM($AX64:BA64),0)+IF(RIGHT(BW$39,2)>RIGHT($K64,2),BA64,0)) -> 0.33 | BX64: =+IF($K64="Ongoing",BB64,IF(RIGHT($K64,2)=RIGHT(BX$39,2),SUM($AX64:BB64),0)+IF(RIGHT(BX$39,2)>RIGHT($K64,2),BB64,0)) -> 0.337 | BY64: =+IF($K64="Ongoing",BC64,IF(RIGHT($K64,2)=RIGHT(BY$39,2),SUM($AX64:BC64),0)+IF(RIGHT(BY$39,2)>RIGHT($K64,2),BC64,0)) -> 0.285 | BZ64: =+IF($K64="Ongoing",BD64,IF(RIGHT($K64,2)=RIGHT(BZ$39,2),SUM($AX64:BD64),0)+IF(RIGHT(BZ$39,2)>RIGHT($K64,2),BD64,0)) -> 0.285 | CA64: =+IF($K64="Ongoing",BE64,IF(RIGHT($K64,2)=RIGHT(CA$39,2),SUM($AX64:BE64),0)+IF(RIGHT(CA$39,2)>RIGHT($K64,2),BE64,0)) -> 0.285 | CB64: =+IF($K64="Ongoing",BF64,IF(RIGHT($K64,2)=RIGHT(CB$39,2),SUM($AX64:BF64),0)+IF(RIGHT(CB$39,2)>RIGHT($K64,2),BF64,0)) -> 0.285 | CC64: =+IF($K64="Ongoing",BG64,IF(RIGHT($K64,2)=RIGHT(CC$39,2),SUM($AX64:BG64),0)+IF(RIGHT(CC$39,2)>RIGHT($K64,2),BG64,0)) -> 0.285 | CE64: =+Q64*KeyAssumptionsPriceControl_FO!AC$15 -> 0.1854 | CF64: =+R64*KeyAssumptionsPriceControl_FO!AD$15 -> 0.190962 | CG64: =+S64*KeyAssumptionsPriceControl_FO!AE$15 -> 0.19669086 | CH64: =+T64*KeyAssumptionsPriceControl_FO!AF$15 -> 0.3714179073 | CI64: =+U64*KeyAssumptionsPriceControl_FO!AG$15 -> 0.390675363 | CJ64: =+V64*KeyAssumptionsPriceControl_FO!AH$15 -> 0.3403049045 | CK64: =+W64*KeyAssumptionsPriceControl_FO!AI$15 -> 0.3505140516 | CL64: =+X64*KeyAssumptionsPriceControl_FO!AJ$15 -> 0.3610294732 | CM64: =+Y64*KeyAssumptionsPriceControl_FO!AK$15 -> 0.3718603574 | CN64: =+Z64*KeyAssumptionsPriceControl_FO!AL$15 -> 0.3830161681 | CP64: 0.001324285714 | CQ64: 0.004012585714 | CR64: 0.006781534714 | CS64: 0.01083945448 | CT64: 0.01628297784 | CU64: 0.02150426547 | CV64: 0.02643868658 | CW64: 0.03152114033 | CX64: 0.03675606769 | CY64: 0.04214804287
C65: Candowie & Ian Bartlet Water Purification Plant civil, mechanical and electrical - pricing submission 23 | E65: Water | F65: Renewals | G65: Treatment | H65: Capital Programs / Allocation | J65: Straight line | K65: 2025-26 | L65: 15 | M65: 15 | Q65: 0.1790253058 | R65: 0.174289613 | S65: 0.1753432533 | T65: 0.1869439494 | U65: 0.5214753588 | V65: 0.1253180506 | W65: 0.1250242913 | X65: 0.1338691709 | Y65: 0.1520313515 | Z65: 0.1789012765 | AX65: 0.1790253058 | AY65: 0.174289613 | AZ65: 0.1753432533 | BA65: 0.1869439494 | BB65: 0.5214753588 | BC65: 0.1253180506 | BD65: 0.1250242913 | BE65: 0.1338691709 | BF65: 0.1520313515 | BG65: 0.1789012765 | BI65: 0 | BJ65: 0 | BK65: 0.01762193907 | BL65: 0.04147534312 | BM65: 0.06508932006 | BN65: 0.08664910037 | BO65: 0.0949938451 | BP65: 0.1036236272 | BQ65: 0.1131536446 | BR65: 0.1241847322 | BT65: =+IF($K65="Ongoing",AX65,IF(RIGHT($K65,2)=RIGHT(BT$39,2),SUM($AX65:AX65),0)+IF(RIGHT(BT$39,2)>RIGHT($K65,2),AX65,0)) -> 0 | BU65: =+IF($K65="Ongoing",AY65,IF(RIGHT($K65,2)=RIGHT(BU$39,2),SUM($AX65:AY65),0)+IF(RIGHT(BU$39,2)>RIGHT($K65,2),AY65,0)) -> 0 | BV65: =+IF($K65="Ongoing",AZ65,IF(RIGHT($K65,2)=RIGHT(BV$39,2),SUM($AX65:AZ65),0)+IF(RIGHT(BV$39,2)>RIGHT($K65,2),AZ65,0)) -> 0.5286581721 | BW65: =+IF($K65="Ongoing",BA65,IF(RIGHT($K65,2)=RIGHT(BW$39,2),SUM($AX65:BA65),0)+IF(RIGHT(BW$39,2)>RIGHT($K65,2),BA65,0)) -> 0.1869439494 | BX65: =+IF($K65="Ongoing",BB65,IF(RIGHT($K65,2)=RIGHT(BX$39,2),SUM($AX65:BB65),0)+IF(RIGHT(BX$39,2)>RIGHT($K65,2),BB65,0)) -> 0.5214753588 | BY65: =+IF($K65="Ongoing",BC65,IF(RIGHT($K65,2)=RIGHT(BY$39,2),SUM($AX65:BC65),0)+IF(RIGHT(BY$39,2)>RIGHT($K65,2),BC65,0)) -> 0.1253180506 | BZ65: =+IF($K65="Ongoing",BD65,IF(RIGHT($K65,2)=RIGHT(BZ$39,2),SUM($AX65:BD65),0)+IF(RIGHT(BZ$39,2)>RIGHT($K65,2),BD65,0)) -> 0.1250242913 | CA65: =+IF($K65="Ongoing",BE65,IF(RIGHT($K65,2)=RIGHT(CA$39,2),SUM($AX65:BE65),0)+IF(RIGHT(CA$39,2)>RIGHT($K65,2),BE65,0)) -> 0.1338691709 | CB65: =+IF($K65="Ongoing",BF65,IF(RIGHT($K65,2)=RIGHT(CB$39,2),SUM($AX65:BF65),0)+IF(RIGHT(CB$39,2)>RIGHT($K65,2),BF65,0)) -> 0.1520313515 | CC65: =+IF($K65="Ongoing",BG65,IF(RIGHT($K65,2)=RIGHT(CC$39,2),SUM($AX65:BG65),0)+IF(RIGHT(CC$39,2)>RIGHT($K65,2),BG65,0)) -> 0.1789012765 | CE65: =+Q65*KeyAssumptionsPriceControl_FO!AC$15 -> 0.184396065 | CF65: =+R65*KeyAssumptionsPriceControl_FO!AD$15 -> 0.1849038504 | CG65: =+S65*KeyAssumptionsPriceControl_FO!AE$15 -> 0.1916023071 | CH65: =+T65*KeyAssumptionsPriceControl_FO!AF$15 -> 0.210407062 | CI65: =+U65*KeyAssumptionsPriceControl_FO!AG$15 -> 0.6045328638 | CJ65: =+V65*KeyAssumptionsPriceControl_FO!AH$15 -> 0.1496363061 | CK65: =+W65*KeyAssumptionsPriceControl_FO!AI$15 -> 0.1537641084 | CL65: =+X65*KeyAssumptionsPriceControl_FO!AJ$15 -> 0.1695814605 | CM65: =+Y65*KeyAssumptionsPriceControl_FO!AK$15 -> 0.1983664305 | CN65: =+Z65*KeyAssumptionsPriceControl_FO!AL$15 -> 0.2404283558 | CP65: 0.006146535499 | CQ65: 0.01845653268 | CR65: 0.03100673793 | CS65: 0.04440705023 | CT65: 0.07157171443 | CU65: 0.09671068676 | CV65: 0.1068240339 | CW65: 0.1176022195 | CX65: 0.1298671492 | CY65: 0.1444936421
C66: Building asset management plan - pricing submission 23 | E66: Water | F66: Improvements / Compliance | G66: Treatment | H66: Other Capital expenditure | J66: Straight line | K66: 2026-27 | L66: 50 | M66: 50 | Q66: 0.035231 | R66: 0.326193 | S66: 0.082026 | T66: 0 | U66: 0 | V66: 0 | W66: 0 | X66: 0 | Y66: 0 | Z66: 0 | AX66: 0.035231 | AY66: 0.326193 | AZ66: 0.082026 | BA66: 0 | BB66: 0 | BC66: 0 | BD66: 0 | BE66: 0 | BF66: 0 | BG66: 0 | BI66: 0 | BJ66: 0 | BK66: 0 | BL66: 0.0044345 | BM66: 0.008869 | BN66: 0.008869 | BO66: 0.008869 | BP66: 0.008869 | BQ66: 0.008869 | BR66: 0.008869 | BT66: =+IF($K66="Ongoing",AX66,IF(RIGHT($K66,2)=RIGHT(BT$39,2),SUM($AX66:AX66),0)+IF(RIGHT(BT$39,2)>RIGHT($K66,2),AX66,0)) -> 0 | BU66: =+IF($K66="Ongoing",AY66,IF(RIGHT($K66,2)=RIGHT(BU$39,2),SUM($AX66:AY66),0)+IF(RIGHT(BU$39,2)>RIGHT($K66,2),AY66,0)) -> 0 | BV66: =+IF($K66="Ongoing",AZ66,IF(RIGHT($K66,2)=RIGHT(BV$39,2),SUM($AX66:AZ66),0)+IF(RIGHT(BV$39,2)>RIGHT($K66,2),AZ66,0)) -> 0 | BW66: =+IF($K66="Ongoing",BA66,IF(RIGHT($K66,2)=RIGHT(BW$39,2),SUM($AX66:BA66),0)+IF(RIGHT(BW$39,2)>RIGHT($K66,2),BA66,0)) -> 0.44345 | BX66: =+IF($K66="Ongoing",BB66,IF(RIGHT($K66,2)=RIGHT(BX$39,2),SUM($AX66:BB66),0)+IF(RIGHT(BX$39,2)>RIGHT($K66,2),BB66,0)) -> 0 | BY66: =+IF($K66="Ongoing",BC66,IF(RIGHT($K66,2)=RIGHT(BY$39,2),SUM($AX66:BC66),0)+IF(RIGHT(BY$39,2)>RIGHT($K66,2),BC66,0)) -> 0 | BZ66: =+IF($K66="Ongoing",BD66,IF(RIGHT($K66,2)=RIGHT(BZ$39,2),SUM($AX66:BD66),0)+IF(RIGHT(BZ$39,2)>RIGHT($K66,2),BD66,0)) -> 0 | CA66: =+IF($K66="Ongoing",BE66,IF(RIGHT($K66,2)=RIGHT(CA$39,2),SUM($AX66:BE66),0)+IF(RIGHT(CA$39,2)>RIGHT($K66,2),BE66,0)) -> 0 | CB66: =+IF($K66="Ongoing",BF66,IF(RIGHT($K66,2)=RIGHT(CB$39,2),SUM($AX66:BF66),0)+IF(RIGHT(CB$39,2)>RIGHT($K66,2),BF66,0)) -> 0 | CC66: =+IF($K66="Ongoing",BG66,IF(RIGHT($K66,2)=RIGHT(CC$39,2),SUM($AX66:BG66),0)+IF(RIGHT(CC$39,2)>RIGHT($K66,2),BG66,0)) -> 0 | CE66: =+Q66*KeyAssumptionsPriceControl_FO!AC$15 -> 0.03628793 | CF66: =+R66*KeyAssumptionsPriceControl_FO!AD$15 -> 0.3460581537 | CG66: =+S66*KeyAssumptionsPriceControl_FO!AE$15 -> 0.0896320249 | CH66: =+T66*KeyAssumptionsPriceControl_FO!AF$15 -> 0 | CI66: =+U66*KeyAssumptionsPriceControl_FO!AG$15 -> 0 | CJ66: =+V66*KeyAssumptionsPriceControl_FO!AH$15 -> 0 | CK66: =+W66*KeyAssumptionsPriceControl_FO!AI$15 -> 0 | CL66: =+X66*KeyAssumptionsPriceControl_FO!AJ$15 -> 0 | CM66: =+Y66*KeyAssumptionsPriceControl_FO!AK$15 -> 0 | CN66: =+Z66*KeyAssumptionsPriceControl_FO!AL$15 -> 0 | CP66: 0.0003628793 | CQ66: 0.004186340137 | CR66: 0.008543241923 | CS66: 0.009439562172 | CT66: 0.009439562172 | CU66: 0.009439562172 | CV66: 0.009439562172 | CW66: 0.009439562172 | CX66: 0.009439562172 | CY66: 0.009439562172
C67: Building asset management plan - pricing submission 23 | E67: Sewerage | F67: Improvements / Compliance | G67: Treatment | H67: Other Capital expenditure | J67: Straight line | K67: 2026-27 | L67: 50 | M67: 50 | Q67: 0.035231 | R67: 0.326193 | S67: 0.082026 | T67: 0 | U67: 0 | AX67: 0.035231 | AY67: 0.326193 | AZ67: 0.082026 | BA67: 0 | BB67: 0 | BC67: 0 | BD67: 0 | BE67: 0 | BF67: 0 | BG67: 0 | BI67: 0 | BJ67: 0 | BK67: 0 | BL67: 0.0044345 | BM67: 0.008869 | BN67: 0.008869 | BO67: 0.008869 | BP67: 0.008869 | BQ67: 0.008869 | BR67: 0.008869 | BT67: =+IF($K67="Ongoing",AX67,IF(RIGHT($K67,2)=RIGHT(BT$39,2),SUM($AX67:AX67),0)+IF(RIGHT(BT$39,2)>RIGHT($K67,2),AX67,0)) -> 0 | BU67: =+IF($K67="Ongoing",AY67,IF(RIGHT($K67,2)=RIGHT(BU$39,2),SUM($AX67:AY67),0)+IF(RIGHT(BU$39,2)>RIGHT($K67,2),AY67,0)) -> 0 | BV67: =+IF($K67="Ongoing",AZ67,IF(RIGHT($K67,2)=RIGHT(BV$39,2),SUM($AX67:AZ67),0)+IF(RIGHT(BV$39,2)>RIGHT($K67,2),AZ67,0)) -> 0 | BW67: =+IF($K67="Ongoing",BA67,IF(RIGHT($K67,2)=RIGHT(BW$39,2),SUM($AX67:BA67),0)+IF(RIGHT(BW$39,2)>RIGHT($K67,2),BA67,0)) -> 0.44345 | BX67: =+IF($K67="Ongoing",BB67,IF(RIGHT($K67,2)=RIGHT(BX$39,2),SUM($AX67:BB67),0)+IF(RIGHT(BX$39,2)>RIGHT($K67,2),BB67,0)) -> 0 | BY67: =+IF($K67="Ongoing",BC67,IF(RIGHT($K67,2)=RIGHT(BY$39,2),SUM($AX67:BC67),0)+IF(RIGHT(BY$39,2)>RIGHT($K67,2),BC67,0)) -> 0 | BZ67: =+IF($K67="Ongoing",BD67,IF(RIGHT($K67,2)=RIGHT(BZ$39,2),SUM($AX67:BD67),0)+IF(RIGHT(BZ$39,2)>RIGHT($K67,2),BD67,0)) -> 0 | CA67: =+IF($K67="Ongoing",BE67,IF(RIGHT($K67,2)=RIGHT(CA$39,2),SUM($AX67:BE67),0)+IF(RIGHT(CA$39,2)>RIGHT($K67,2),BE67,0)) -> 0 | CB67: =+IF($K67="Ongoing",BF67,IF(RIGHT($K67,2)=RIGHT(CB$39,2),SUM($AX67:BF67),0)+IF(RIGHT(CB$39,2)>RIGHT($K67,2),BF67,0)) -> 0 | CC67: =+IF($K67="Ongoing",BG67,IF(RIGHT($K67,2)=RIGHT(CC$39,2),SUM($AX67:BG67),0)+IF(RIGHT(CC$39,2)>RIGHT($K67,2),BG67,0)) -> 0 | CE67: =+Q67*KeyAssumptionsPriceControl_FO!AC$15 -> 0.03628793 | CF67: =+R67*KeyAssumptionsPriceControl_FO!AD$15 -> 0.3460581537 | CG67: =+S67*KeyAssumptionsPriceControl_FO!AE$15 -> 0.0896320249 | CH67: =+T67*KeyAssumptionsPriceControl_FO!AF$15 -> 0 | CI67: =+U67*KeyAssumptionsPriceControl_FO!AG$15 -> 0 | CJ67: =+V67*KeyAssumptionsPriceControl_FO!AH$15 -> 0 | CK67: =+W67*KeyAssumptionsPriceControl_FO!AI$15 -> 0 | CL67: =+X67*KeyAssumptionsPriceControl_FO!AJ$15 -> 0 | CM67: =+Y67*KeyAssumptionsPriceControl_FO!AK$15 -> 0 | CN67: =+Z67*KeyAssumptionsPriceControl_FO!AL$15 -> 0 | CP67: 0.0003628793 | CQ67: 0.004186340137 | CR67: 0.008543241923 | CS67: 0.009439562172 | CT67: 0.009439562172 | CU67: 0.009439562172 | CV67: 0.009439562172 | CW67: 0.009439562172 | CX67: 0.009439562172 | CY67: 0.009439562172
C68: Building asset management plan - pricing submission 23 | E68: Recycled Water | F68: Improvements / Compliance | G68: Treatment | H68: Other Capital expenditure | J68: Straight line | K68: 2026-27 | L68: 50 | M68: 50 | Q68: 0.001438 | R68: 0.013314 | S68: 0.003348 | T68: 0 | U68: 0 | AX68: 0.001438 | AY68: 0.013314 | AZ68: 0.003348 | BA68: 0 | BB68: 0 | BC68: 0 | BD68: 0 | BE68: 0 | BF68: 0 | BG68: 0 | BI68: 0 | BJ68: 0 | BK68: 0 | BL68: 0.000181 | BM68: 0.000362 | BN68: 0.000362 | BO68: 0.000362 | BP68: 0.000362 | BQ68: 0.000362 | BR68: 0.000362 | BT68: =+IF($K68="Ongoing",AX68,IF(RIGHT($K68,2)=RIGHT(BT$39,2),SUM($AX68:AX68),0)+IF(RIGHT(BT$39,2)>RIGHT($K68,2),AX68,0)) -> 0 | BU68: =+IF($K68="Ongoing",AY68,IF(RIGHT($K68,2)=RIGHT(BU$39,2),SUM($AX68:AY68),0)+IF(RIGHT(BU$39,2)>RIGHT($K68,2),AY68,0)) -> 0 | BV68: =+IF($K68="Ongoing",AZ68,IF(RIGHT($K68,2)=RIGHT(BV$39,2),SUM($AX68:AZ68),0)+IF(RIGHT(BV$39,2)>RIGHT($K68,2),AZ68,0)) -> 0 | BW68: =+IF($K68="Ongoing",BA68,IF(RIGHT($K68,2)=RIGHT(BW$39,2),SUM($AX68:BA68),0)+IF(RIGHT(BW$39,2)>RIGHT($K68,2),BA68,0)) -> 0.0181 | BX68: =+IF($K68="Ongoing",BB68,IF(RIGHT($K68,2)=RIGHT(BX$39,2),SUM($AX68:BB68),0)+IF(RIGHT(BX$39,2)>RIGHT($K68,2),BB68,0)) -> 0 | BY68: =+IF($K68="Ongoing",BC68,IF(RIGHT($K68,2)=RIGHT(BY$39,2),SUM($AX68:BC68),0)+IF(RIGHT(BY$39,2)>RIGHT($K68,2),BC68,0)) -> 0 | BZ68: =+IF($K68="Ongoing",BD68,IF(RIGHT($K68,2)=RIGHT(BZ$39,2),SUM($AX68:BD68),0)+IF(RIGHT(BZ$39,2)>RIGHT($K68,2),BD68,0)) -> 0 | CA68: =+IF($K68="Ongoing",BE68,IF(RIGHT($K68,2)=RIGHT(CA$39,2),SUM($AX68:BE68),0)+IF(RIGHT(CA$39,2)>RIGHT($K68,2),BE68,0)) -> 0 | CB68: =+IF($K68="Ongoing",BF68,IF(RIGHT($K68,2)=RIGHT(CB$39,2),SUM($AX68:BF68),0)+IF(RIGHT(CB$39,2)>RIGHT($K68,2),BF68,0)) -> 0 | CC68: =+IF($K68="Ongoing",BG68,IF(RIGHT($K68,2)=RIGHT(CC$39,2),SUM($AX68:BG68),0)+IF(RIGHT(CC$39,2)>RIGHT($K68,2),BG68,0)) -> 0 | CE68: =+Q68*KeyAssumptionsPriceControl_FO!AC$15 -> 0.00148114 | CF68: =+R68*KeyAssumptionsPriceControl_FO!AD$15 -> 0.0141248226 | CG68: =+S68*KeyAssumptionsPriceControl_FO!AE$15 -> 0.003658449996 | CH68: =+T68*KeyAssumptionsPriceControl_FO!AF$15 -> 0 | CI68: =+U68*KeyAssumptionsPriceControl_FO!AG$15 -> 0 | CJ68: =+V68*KeyAssumptionsPriceControl_FO!AH$15 -> 0 | CK68: =+W68*KeyAssumptionsPriceControl_FO!AI$15 -> 0 | CL68: =+X68*KeyAssumptionsPriceControl_FO!AJ$15 -> 0 | CM68: =+Y68*KeyAssumptionsPriceControl_FO!AK$15 -> 0 | CN68: =+Z68*KeyAssumptionsPriceControl_FO!AL$15 -> 0 | CP68: 1.48114e-05 | CQ68: 0.000170871026 | CR68: 0.000348703752 | CS68: 0.0003852882519 | CT68: 0.0003852882519 | CU68: 0.0003852882519 | CV68: 0.0003852882519 | CW68: 0.0003852882519 | CX68: 0.0003852882519 | CY68: 0.0003852882519
C69: Informations and communications - hardware and minor software renewals program | E69: Water | F69: Renewals | G69: Corporate | H69: Capital Programs / Allocation | J69: Straight line | K69: Ongoing | L69: 4 | M69: 4 | Q69: 0.0637 | R69: 0.0637 | S69: 0.1372 | T69: 0.1078 | U69: 0.0637 | V69: 0 | W69: 0 | X69: 0 | Y69: 0 | Z69: 0 | AX69: 0.0637 | AY69: 0.0637 | AZ69: 0.1372 | BA69: 0.1078 | BB69: 0.0637 | BC69: 0 | BD69: 0 | BE69: 0 | BF69: 0 | BG69: 0 | BI69: 0.0079625 | BJ69: 0.0238875 | BK69: 0.049 | BL69: 0.079625 | BM69: 0.0931 | BN69: 0.0851375 | BO69: 0.060025 | BP69: 0.0294 | BQ69: 0.0079625 | BR69: 0 | BT69: =+IF($K69="Ongoing",AX69,IF(RIGHT($K69,2)=RIGHT(BT$39,2),SUM($AX69:AX69),0)+IF(RIGHT(BT$39,2)>RIGHT($K69,2),AX69,0)) -> 0.0637 | BU69: =+IF($K69="Ongoing",AY69,IF(RIGHT($K69,2)=RIGHT(BU$39,2),SUM($AX69:AY69),0)+IF(RIGHT(BU$39,2)>RIGHT($K69,2),AY69,0)) -> 0.0637 | BV69: =+IF($K69="Ongoing",AZ69,IF(RIGHT($K69,2)=RIGHT(BV$39,2),SUM($AX69:AZ69),0)+IF(RIGHT(BV$39,2)>RIGHT($K69,2),AZ69,0)) -> 0.1372 | BW69: =+IF($K69="Ongoing",BA69,IF(RIGHT($K69,2)=RIGHT(BW$39,2),SUM($AX69:BA69),0)+IF(RIGHT(BW$39,2)>RIGHT($K69,2),BA69,0)) -> 0.1078 | BX69: =+IF($K69="Ongoing",BB69,IF(RIGHT($K69,2)=RIGHT(BX$39,2),SUM($AX69:BB69),0)+IF(RIGHT(BX$39,2)>RIGHT($K69,2),BB69,0)) -> 0.0637 | BY69: =+IF($K69="Ongoing",BC69,IF(RIGHT($K69,2)=RIGHT(BY$39,2),SUM($AX69:BC69),0)+IF(RIGHT(BY$39,2)>RIGHT($K69,2),BC69,0)) -> 0 | BZ69: =+IF($K69="Ongoing",BD69,IF(RIGHT($K69,2)=RIGHT(BZ$39,2),SUM($AX69:BD69),0)+IF(RIGHT(BZ$39,2)>RIGHT($K69,2),BD69,0)) -> 0 | CA69: =+IF($K69="Ongoing",BE69,IF(RIGHT($K69,2)=RIGHT(CA$39,2),SUM($AX69:BE69),0)+IF(RIGHT(CA$39,2)>RIGHT($K69,2),BE69,0)) -> 0 | CB69: =+IF($K69="Ongoing",BF69,IF(RIGHT($K69,2)=RIGHT(CB$39,2),SUM($AX69:BF69),0)+IF(RIGHT(CB$39,2)>RIGHT($K69,2),BF69,0)) -> 0 | CC69: =+IF($K69="Ongoing",BG69,IF(RIGHT($K69,2)=RIGHT(CC$39,2),SUM($AX69:BG69),0)+IF(RIGHT(CC$39,2)>RIGHT($K69,2),BG69,0)) -> 0 | CE69: =+Q69*KeyAssumptionsPriceControl_FO!AC$15 -> 0.065611 | CF69: =+R69*KeyAssumptionsPriceControl_FO!AD$15 -> 0.06757933 | CG69: =+S69*KeyAssumptionsPriceControl_FO!AE$15 -> 0.1499221444 | CH69: =+T69*KeyAssumptionsPriceControl_FO!AF$15 -> 0.1213298497 | CI69: =+U69*KeyAssumptionsPriceControl_FO!AG$15 -> 0.07384575853 | CJ69: =+V69*KeyAssumptionsPriceControl_FO!AH$15 -> 0 | CK69: =+W69*KeyAssumptionsPriceControl_FO!AI$15 -> 0 | CL69: =+X69*KeyAssumptionsPriceControl_FO!AJ$15 -> 0 | CM69: =+Y69*KeyAssumptionsPriceControl_FO!AK$15 -> 0 | CN69: =+Z69*KeyAssumptionsPriceControl_FO!AL$15 -> 0 | CP69: 0.008201375 | CQ69: 0.02485016625 | CR69: 0.05203785055 | CS69: 0.08594434981 | CT69: 0.1021399258 | CU69: 0.09472185441 | CV69: 0.06753417011 | CW69: 0.03362767085 | CX69: 0.009230719817 | CY69: 0
C70: Informations and communications - hardware and minor software renewals program | E70: Sewerage | F70: Renewals | G70: Corporate | H70: Capital Programs / Allocation | J70: Straight line | K70: Ongoing | L70: 4 | M70: 4 | Q70: 0.0637 | R70: 0.0637 | S70: 0.1372 | T70: 0.1078 | U70: 0.0637 | AX70: 0.0637 | AY70: 0.0637 | AZ70: 0.1372 | BA70: 0.1078 | BB70: 0.0637 | BC70: 0 | BD70: 0 | BE70: 0 | BF70: 0 | BG70: 0 | BI70: 0.0079625 | BJ70: 0.0238875 | BK70: 0.049 | BL70: 0.079625 | BM70: 0.0931 | BN70: 0.0851375 | BO70: 0.060025 | BP70: 0.0294 | BQ70: 0.0079625 | BR70: 0 | BT70: =+IF($K70="Ongoing",AX70,IF(RIGHT($K70,2)=RIGHT(BT$39,2),SUM($AX70:AX70),0)+IF(RIGHT(BT$39,2)>RIGHT($K70,2),AX70,0)) -> 0.0637 | BU70: =+IF($K70="Ongoing",AY70,IF(RIGHT($K70,2)=RIGHT(BU$39,2),SUM($AX70:AY70),0)+IF(RIGHT(BU$39,2)>RIGHT($K70,2),AY70,0)) -> 0.0637 | BV70: =+IF($K70="Ongoing",AZ70,IF(RIGHT($K70,2)=RIGHT(BV$39,2),SUM($AX70:AZ70),0)+IF(RIGHT(BV$39,2)>RIGHT($K70,2),AZ70,0)) -> 0.1372 | BW70: =+IF($K70="Ongoing",BA70,IF(RIGHT($K70,2)=RIGHT(BW$39,2),SUM($AX70:BA70),0)+IF(RIGHT(BW$39,2)>RIGHT($K70,2),BA70,0)) -> 0.1078 | BX70: =+IF($K70="Ongoing",BB70,IF(RIGHT($K70,2)=RIGHT(BX$39,2),SUM($AX70:BB70),0)+IF(RIGHT(BX$39,2)>RIGHT($K70,2),BB70,0)) -> 0.0637 | BY70: =+IF($K70="Ongoing",BC70,IF(RIGHT($K70,2)=RIGHT(BY$39,2),SUM($AX70:BC70),0)+IF(RIGHT(BY$39,2)>RIGHT($K70,2),BC70,0)) -> 0 | BZ70: =+IF($K70="Ongoing",BD70,IF(RIGHT($K70,2)=RIGHT(BZ$39,2),SUM($AX70:BD70),0)+IF(RIGHT(BZ$39,2)>RIGHT($K70,2),BD70,0)) -> 0 | CA70: =+IF($K70="Ongoing",BE70,IF(RIGHT($K70,2)=RIGHT(CA$39,2),SUM($AX70:BE70),0)+IF(RIGHT(CA$39,2)>RIGHT($K70,2),BE70,0)) -> 0 | CB70: =+IF($K70="Ongoing",BF70,IF(RIGHT($K70,2)=RIGHT(CB$39,2),SUM($AX70:BF70),0)+IF(RIGHT(CB$39,2)>RIGHT($K70,2),BF70,0)) -> 0 | CC70: =+IF($K70="Ongoing",BG70,IF(RIGHT($K70,2)=RIGHT(CC$39,2),SUM($AX70:BG70),0)+IF(RIGHT(CC$39,2)>RIGHT($K70,2),BG70,0)) -> 0 | CE70: =+Q70*KeyAssumptionsPriceControl_FO!AC$15 -> 0.065611 | CF70: =+R70*KeyAssumptionsPriceControl_FO!AD$15 -> 0.06757933 | CG70: =+S70*KeyAssumptionsPriceControl_FO!AE$15 -> 0.1499221444 | CH70: =+T70*KeyAssumptionsPriceControl_FO!AF$15 -> 0.1213298497 | CI70: =+U70*KeyAssumptionsPriceControl_FO!AG$15 -> 0.07384575853 | CJ70: =+V70*KeyAssumptionsPriceControl_FO!AH$15 -> 0 | CK70: =+W70*KeyAssumptionsPriceControl_FO!AI$15 -> 0 | CL70: =+X70*KeyAssumptionsPriceControl_FO!AJ$15 -> 0 | CM70: =+Y70*KeyAssumptionsPriceControl_FO!AK$15 -> 0 | CN70: =+Z70*KeyAssumptionsPriceControl_FO!AL$15 -> 0 | CP70: 0.008201375 | CQ70: 0.02485016625 | CR70: 0.05203785055 | CS70: 0.08594434981 | CT70: 0.1021399258 | CU70: 0.09472185441 | CV70: 0.06753417011 | CW70: 0.03362767085 | CX70: 0.009230719817 | CY70: 0
C71: Informations and communications - hardware and minor software renewals program | E71: Recycled Water | F71: Renewals | G71: Corporate | H71: Capital Programs / Allocation | J71: Straight line | K71: Ongoing | L71: 4 | M71: 4 | Q71: 0.0026 | R71: 0.0026 | S71: 0.0056 | T71: 0.0044 | U71: 0.0026 | AX71: 0.0026 | AY71: 0.0026 | AZ71: 0.0056 | BA71: 0.0044 | BB71: 0.0026 | BC71: 0 | BD71: 0 | BE71: 0 | BF71: 0 | BG71: 0 | BI71: 0.000325 | BJ71: 0.000975 | BK71: 0.002 | BL71: 0.00325 | BM71: 0.0038 | BN71: 0.003475 | BO71: 0.00245 | BP71: 0.0012 | BQ71: 0.000325 | BR71: 0 | BT71: =+IF($K71="Ongoing",AX71,IF(RIGHT($K71,2)=RIGHT(BT$39,2),SUM($AX71:AX71),0)+IF(RIGHT(BT$39,2)>RIGHT($K71,2),AX71,0)) -> 0.0026 | BU71: =+IF($K71="Ongoing",AY71,IF(RIGHT($K71,2)=RIGHT(BU$39,2),SUM($AX71:AY71),0)+IF(RIGHT(BU$39,2)>RIGHT($K71,2),AY71,0)) -> 0.0026 | BV71: =+IF($K71="Ongoing",AZ71,IF(RIGHT($K71,2)=RIGHT(BV$39,2),SUM($AX71:AZ71),0)+IF(RIGHT(BV$39,2)>RIGHT($K71,2),AZ71,0)) -> 0.0056 | BW71: =+IF($K71="Ongoing",BA71,IF(RIGHT($K71,2)=RIGHT(BW$39,2),SUM($AX71:BA71),0)+IF(RIGHT(BW$39,2)>RIGHT($K71,2),BA71,0)) -> 0.0044 | BX71: =+IF($K71="Ongoing",BB71,IF(RIGHT($K71,2)=RIGHT(BX$39,2),SUM($AX71:BB71),0)+IF(RIGHT(BX$39,2)>RIGHT($K71,2),BB71,0)) -> 0.0026 | BY71: =+IF($K71="Ongoing",BC71,IF(RIGHT($K71,2)=RIGHT(BY$39,2),SUM($AX71:BC71),0)+IF(RIGHT(BY$39,2)>RIGHT($K71,2),BC71,0)) -> 0 | BZ71: =+IF($K71="Ongoing",BD71,IF(RIGHT($K71,2)=RIGHT(BZ$39,2),SUM($AX71:BD71),0)+IF(RIGHT(BZ$39,2)>RIGHT($K71,2),BD71,0)) -> 0 | CA71: =+IF($K71="Ongoing",BE71,IF(RIGHT($K71,2)=RIGHT(CA$39,2),SUM($AX71:BE71),0)+IF(RIGHT(CA$39,2)>RIGHT($K71,2),BE71,0)) -> 0 | CB71: =+IF($K71="Ongoing",BF71,IF(RIGHT($K71,2)=RIGHT(CB$39,2),SUM($AX71:BF71),0)+IF(RIGHT(CB$39,2)>RIGHT($K71,2),BF71,0)) -> 0 | CC71: =+IF($K71="Ongoing",BG71,IF(RIGHT($K71,2)=RIGHT(CC$39,2),SUM($AX71:BG71),0)+IF(RIGHT(CC$39,2)>RIGHT($K71,2),BG71,0)) -> 0 | CE71: =+Q71*KeyAssumptionsPriceControl_FO!AC$15 -> 0.002678 | CF71: =+R71*KeyAssumptionsPriceControl_FO!AD$15 -> 0.00275834 | CG71: =+S71*KeyAssumptionsPriceControl_FO!AE$15 -> 0.0061192712 | CH71: =+T71*KeyAssumptionsPriceControl_FO!AF$15 -> 0.004952238764 | CI71: =+U71*KeyAssumptionsPriceControl_FO!AG$15 -> 0.003014112593 | CJ71: =+V71*KeyAssumptionsPriceControl_FO!AH$15 -> 0 | CK71: =+W71*KeyAssumptionsPriceControl_FO!AI$15 -> 0 | CL71: =+X71*KeyAssumptionsPriceControl_FO!AJ$15 -> 0 | CM71: =+Y71*KeyAssumptionsPriceControl_FO!AK$15 -> 0 | CN71: =+Z71*KeyAssumptionsPriceControl_FO!AL$15 -> 0 | CP71: 0.00033475 | CQ71: 0.0010142925 | CR71: 0.0021239939 | CS71: 0.003507932646 | CT71: 0.004168976565 | CU71: 0.003866198139 | CV71: 0.002756496739 | CW71: 0.001372557994 | CX71: 0.0003767640741 | CY71: 0
C72: Recycled water improvement program | E72: Recycled Water | F72: Growth | G72: Treatment | H72: Capital Programs / Allocation | J72: Straight line | K72: Ongoing | L72: 50 | M72: 50 | Q72: 0 | R72: 0 | S72: 0.5405 | T72: 0 | U72: 0.25 | V72: 0 | W72: 0 | X72: 0 | Y72: 0 | Z72: 0 | AX72: 0 | AY72: 0 | AZ72: 0.5405 | BA72: 0 | BB72: 0.25 | BC72: 0 | BD72: 0 | BE72: 0 | BF72: 0 | BG72: 0 | BI72: 0 | BJ72: 0 | BK72: 0.005405 | BL72: 0.01081 | BM72: 0.01331 | BN72: 0.01581 | BO72: 0.01581 | BP72: 0.01581 | BQ72: 0.01581 | BR72: 0.01581 | BT72: =+IF($K72="Ongoing",AX72,IF(RIGHT($K72,2)=RIGHT(BT$39,2),SUM($AX72:AX72),0)+IF(RIGHT(BT$39,2)>RIGHT($K72,2),AX72,0)) -> 0 | BU72: =+IF($K72="Ongoing",AY72,IF(RIGHT($K72,2)=RIGHT(BU$39,2),SUM($AX72:AY72),0)+IF(RIGHT(BU$39,2)>RIGHT($K72,2),AY72,0)) -> 0 | BV72: =+IF($K72="Ongoing",AZ72,IF(RIGHT($K72,2)=RIGHT(BV$39,2),SUM($AX72:AZ72),0)+IF(RIGHT(BV$39,2)>RIGHT($K72,2),AZ72,0)) -> 0.5405 | BW72: =+IF($K72="Ongoing",BA72,IF(RIGHT($K72,2)=RIGHT(BW$39,2),SUM($AX72:BA72),0)+IF(RIGHT(BW$39,2)>RIGHT($K72,2),BA72,0)) -> 0 | BX72: =+IF($K72="Ongoing",BB72,IF(RIGHT($K72,2)=RIGHT(BX$39,2),SUM($AX72:BB72),0)+IF(RIGHT(BX$39,2)>RIGHT($K72,2),BB72,0)) -> 0.25 | BY72: =+IF($K72="Ongoing",BC72,IF(RIGHT($K72,2)=RIGHT(BY$39,2),SUM($AX72:BC72),0)+IF(RIGHT(BY$39,2)>RIGHT($K72,2),BC72,0)) -> 0 | BZ72: =+IF($K72="Ongoing",BD72,IF(RIGHT($K72,2)=RIGHT(BZ$39,2),SUM($AX72:BD72),0)+IF(RIGHT(BZ$39,2)>RIGHT($K72,2),BD72,0)) -> 0 | CA72: =+IF($K72="Ongoing",BE72,IF(RIGHT($K72,2)=RIGHT(CA$39,2),SUM($AX72:BE72),0)+IF(RIGHT(CA$39,2)>RIGHT($K72,2),BE72,0)) -> 0 | CB72: =+IF($K72="Ongoing",BF72,IF(RIGHT($K72,2)=RIGHT(CB$39,2),SUM($AX72:BF72),0)+IF(RIGHT(CB$39,2)>RIGHT($K72,2),BF72,0)) -> 0 | CC72: =+IF($K72="Ongoing",BG72,IF(RIGHT($K72,2)=RIGHT(CC$39,2),SUM($AX72:BG72),0)+IF(RIGHT(CC$39,2)>RIGHT($K72,2),BG72,0)) -> 0 | CE72: =+Q72*KeyAssumptionsPriceControl_FO!AC$15 -> 0 | CF72: =+R72*KeyAssumptionsPriceControl_FO!AD$15 -> 0 | CG72: =+S72*KeyAssumptionsPriceControl_FO!AE$15 -> 0.5906189435 | CH72: =+T72*KeyAssumptionsPriceControl_FO!AF$15 -> 0 | CI72: =+U72*KeyAssumptionsPriceControl_FO!AG$15 -> 0.2898185186 | CJ72: =+V72*KeyAssumptionsPriceControl_FO!AH$15 -> 0 | CK72: =+W72*KeyAssumptionsPriceControl_FO!AI$15 -> 0 | CL72: =+X72*KeyAssumptionsPriceControl_FO!AJ$15 -> 0 | CM72: =+Y72*KeyAssumptionsPriceControl_FO!AK$15 -> 0 | CN72: =+Z72*KeyAssumptionsPriceControl_FO!AL$15 -> 0 | CP72: 0 | CQ72: 0 | CR72: 0.005906189435 | CS72: 0.01181237887 | CT72: 0.01471056406 | CU72: 0.01760874924 | CV72: 0.01760874924 | CW72: 0.01760874924 | CX72: 0.01760874924 | CY72: 0.01760874924
C73: Water distribution civil, mechanical and electrical - pricing submission 23 | E73: Water | F73: Renewals | G73: Pipelines/network | H73: Capital Programs / Allocation | J73: Straight line | K73: 2027-28 | L73: 15 | M73: 15 | Q73: 0.187328595 | R73: 0.4110254989 | S73: 0.04937458582 | T73: 0.05863490451 | U73: 0.05809152642 | V73: 0.03519577468 | W73: 0.04604949574 | X73: 0.05802758867 | Y73: 0.06976152869 | Z73: 0.07923116258 | AX73: 0.187328595 | AY73: 0.4110254989 | AZ73: 0.04937458582 | BA73: 0.05863490451 | BB73: 0.05809152642 | BC73: 0.03519577468 | BD73: 0.04604949574 | BE73: 0.05802758867 | BF73: 0.06976152869 | BG73: 0.07923116258 | BI73: 0 | BJ73: 0 | BK73: 0 | BL73: 0 | BM73: 0.02548183702 | BN73: 0.05213686653 | BO73: 0.05484504221 | BP73: 0.05831427836 | BQ73: 0.0625739156 | BR73: 0.06754033865 | BT73: =+IF($K73="Ongoing",AX73,IF(RIGHT($K73,2)=RIGHT(BT$39,2),SUM($AX73:AX73),0)+IF(RIGHT(BT$39,2)>RIGHT($K73,2),AX73,0)) -> 0 | BU73: =+IF($K73="Ongoing",AY73,IF(RIGHT($K73,2)=RIGHT(BU$39,2),SUM($AX73:AY73),0)+IF(RIGHT(BU$39,2)>RIGHT($K73,2),AY73,0)) -> 0 | BV73: =+IF($K73="Ongoing",AZ73,IF(RIGHT($K73,2)=RIGHT(BV$39,2),SUM($AX73:AZ73),0)+IF(RIGHT(BV$39,2)>RIGHT($K73,2),AZ73,0)) -> 0 | BW73: =+IF($K73="Ongoing",BA73,IF(RIGHT($K73,2)=RIGHT(BW$39,2),SUM($AX73:BA73),0)+IF(RIGHT(BW$39,2)>RIGHT($K73,2),BA73,0)) -> 0 | BX73: =+IF($K73="Ongoing",BB73,IF(RIGHT($K73,2)=RIGHT(BX$39,2),SUM($AX73:BB73),0)+IF(RIGHT(BX$39,2)>RIGHT($K73,2),BB73,0)) -> 0.7644551106 | BY73: =+IF($K73="Ongoing",BC73,IF(RIGHT($K73,2)=RIGHT(BY$39,2),SUM($AX73:BC73),0)+IF(RIGHT(BY$39,2)>RIGHT($K73,2),BC73,0)) -> 0.03519577468 | BZ73: =+IF($K73="Ongoing",BD73,IF(RIGHT($K73,2)=RIGHT(BZ$39,2),SUM($AX73:BD73),0)+IF(RIGHT(BZ$39,2)>RIGHT($K73,2),BD73,0)) -> 0.04604949574 | CA73: =+IF($K73="Ongoing",BE73,IF(RIGHT($K73,2)=RIGHT(CA$39,2),SUM($AX73:BE73),0)+IF(RIGHT(CA$39,2)>RIGHT($K73,2),BE73,0)) -> 0.05802758867 | CB73: =+IF($K73="Ongoing",BF73,IF(RIGHT($K73,2)=RIGHT(CB$39,2),SUM($AX73:BF73),0)+IF(RIGHT(CB$39,2)>RIGHT($K73,2),BF73,0)) -> 0.06976152869 | CC73: =+IF($K73="Ongoing",BG73,IF(RIGHT($K73,2)=RIGHT(CC$39,2),SUM($AX73:BG73),0)+IF(RIGHT(CC$39,2)>RIGHT($K73,2),BG73,0)) -> 0.07923116258 | CE73: =+Q73*KeyAssumptionsPriceControl_FO!AC$15 -> 0.1929484529 | CF73: =+R73*KeyAssumptionsPriceControl_FO!AD$15 -> 0.4360569518 | CG73: =+S73*KeyAssumptionsPriceControl_FO!AE$15 -> 0.05395294304 | CH73: =+T73*KeyAssumptionsPriceControl_FO!AF$15 -> 0.0659941016 | CI73: =+U73*KeyAssumptionsPriceControl_FO!AG$15 -> 0.06734400052 | CJ73: =+V73*KeyAssumptionsPriceControl_FO!AH$15 -> 0.04202559558 | CK73: =+W73*KeyAssumptionsPriceControl_FO!AI$15 -> 0.05663507133 | CL73: =+X73*KeyAssumptionsPriceControl_FO!AJ$15 -> 0.07350761322 | CM73: =+Y73*KeyAssumptionsPriceControl_FO!AK$15 -> 0.0910229719 | CN73: =+Z73*KeyAssumptionsPriceControl_FO!AL$15 -> 0.1064800571 | CP73: 0.006431615095 | CQ73: 0.02739846192 | CR73: 0.04373212508 | CS73: 0.0477303599 | CT73: 0.0521749633 | CU73: 0.0558206165 | CV73: 0.0591093054 | CW73: 0.06344739489 | CX73: 0.06893174772 | CY73: 0.07551518203
C74: Water meter and connections renewal program - pricing submission 23 | E74: Water | F74: Renewals | G74: Pipelines/network | H74: Significant projects | J74: Straight line | K74: 2023-24 | L74: 25 | M74: 25 | Q74: 0.15 | R74: 0.142 | S74: 0.188 | T74: 0.142 | U74: 0.138 | V74: 0.092 | W74: 0.092 | X74: 0.092 | Y74: 0.092 | Z74: 0.092 | AX74: 0.15 | AY74: 0.142 | AZ74: 0.188 | BA74: 0.142 | BB74: 0.138 | BC74: 0.092 | BD74: 0.092 | BE74: 0.092 | BF74: 0.092 | BG74: 0.092 | BI74: 0.003 | BJ74: 0.00884 | BK74: 0.01544 | BL74: 0.02204 | BM74: 0.02764 | BN74: 0.03224 | BO74: 0.03592 | BP74: 0.0396 | BQ74: 0.04328 | BR74: 0.04696 | BT74: =+IF($K74="Ongoing",AX74,IF(RIGHT($K74,2)=RIGHT(BT$39,2),SUM($AX74:AX74),0)+IF(RIGHT(BT$39,2)>RIGHT($K74,2),AX74,0)) -> 0.15 | BU74: =+IF($K74="Ongoing",AY74,IF(RIGHT($K74,2)=RIGHT(BU$39,2),SUM($AX74:AY74),0)+IF(RIGHT(BU$39,2)>RIGHT($K74,2),AY74,0)) -> 0.142 | BV74: =+IF($K74="Ongoing",AZ74,IF(RIGHT($K74,2)=RIGHT(BV$39,2),SUM($AX74:AZ74),0)+IF(RIGHT(BV$39,2)>RIGHT($K74,2),AZ74,0)) -> 0.188 | BW74: =+IF($K74="Ongoing",BA74,IF(RIGHT($K74,2)=RIGHT(BW$39,2),SUM($AX74:BA74),0)+IF(RIGHT(BW$39,2)>RIGHT($K74,2),BA74,0)) -> 0.142 | BX74: =+IF($K74="Ongoing",BB74,IF(RIGHT($K74,2)=RIGHT(BX$39,2),SUM($AX74:BB74),0)+IF(RIGHT(BX$39,2)>RIGHT($K74,2),BB74,0)) -> 0.138 | BY74: =+IF($K74="Ongoing",BC74,IF(RIGHT($K74,2)=RIGHT(BY$39,2),SUM($AX74:BC74),0)+IF(RIGHT(BY$39,2)>RIGHT($K74,2),BC74,0)) -> 0.092 | BZ74: =+IF($K74="Ongoing",BD74,IF(RIGHT($K74,2)=RIGHT(BZ$39,2),SUM($AX74:BD74),0)+IF(RIGHT(BZ$39,2)>RIGHT($K74,2),BD74,0)) -> 0.092 | CA74: =+IF($K74="Ongoing",BE74,IF(RIGHT($K74,2)=RIGHT(CA$39,2),SUM($AX74:BE74),0)+IF(RIGHT(CA$39,2)>RIGHT($K74,2),BE74,0)) -> 0.092 | CB74: =+IF($K74="Ongoing",BF74,IF(RIGHT($K74,2)=RIGHT(CB$39,2),SUM($AX74:BF74),0)+IF(RIGHT(CB$39,2)>RIGHT($K74,2),BF74,0)) -> 0.092 | CC74: =+IF($K74="Ongoing",BG74,IF(RIGHT($K74,2)=RIGHT(CC$39,2),SUM($AX74:BG74),0)+IF(RIGHT(CC$39,2)>RIGHT($K74,2),BG74,0)) -> 0.092 | CE74: =+Q74*KeyAssumptionsPriceControl_FO!AC$15 -> 0.1545 | CF74: =+R74*KeyAssumptionsPriceControl_FO!AD$15 -> 0.1506478 | CG74: =+S74*KeyAssumptionsPriceControl_FO!AE$15 -> 0.205432676 | CH74: =+T74*KeyAssumptionsPriceControl_FO!AF$15 -> 0.159822251 | CI74: =+U74*KeyAssumptionsPriceControl_FO!AG$15 -> 0.1599798223 | CJ74: =+V74*KeyAssumptionsPriceControl_FO!AH$15 -> 0.1098528113 | CK74: =+W74*KeyAssumptionsPriceControl_FO!AI$15 -> 0.1131483956 | CL74: =+X74*KeyAssumptionsPriceControl_FO!AJ$15 -> 0.1165428475 | CM74: =+Y74*KeyAssumptionsPriceControl_FO!AK$15 -> 0.1200391329 | CN74: =+Z74*KeyAssumptionsPriceControl_FO!AL$15 -> 0.1236403069 | CP74: 0.00309 | CQ74: 0.009192956 | CR74: 0.01631456552 | CS74: 0.02361966406 | CT74: 0.03001570553 | CU74: 0.0354123582 | CV74: 0.03987238233 | CW74: 0.0444662072 | CX74: 0.0491978468 | CY74: 0.0540714356
C75: Plant improvement program - pricing submission 23 | E75: Water | F75: Improvements / Compliance | G75: Corporate | H75: Capital Programs / Allocation | J75: Straight line | K75: Ongoing | L75: 4 | M75: 4 | Q75: 0.0147 | R75: 0 | S75: 0.273175 | T75: 0.05145 | U75: 0.01225 | V75: 0 | W75: 0 | X75: 0 | Y75: 0 | Z75: 0 | AX75: 0.0147 | AY75: 0 | AZ75: 0.273175 | BA75: 0.05145 | BB75: 0.01225 | BC75: 0 | BD75: 0 | BE75: 0 | BF75: 0 | BG75: 0 | BI75: 0.0018375 | BJ75: 0.003675 | BK75: 0.037821875 | BL75: 0.0784 | BM75: 0.084525 | BN75: 0.08421875 | BO75: 0.050071875 | BP75: 0.00949375 | BQ75: 0.00153125 | BR75: 0 | BT75: =+IF($K75="Ongoing",AX75,IF(RIGHT($K75,2)=RIGHT(BT$39,2),SUM($AX75:AX75),0)+IF(RIGHT(BT$39,2)>RIGHT($K75,2),AX75,0)) -> 0.0147 | BU75: =+IF($K75="Ongoing",AY75,IF(RIGHT($K75,2)=RIGHT(BU$39,2),SUM($AX75:AY75),0)+IF(RIGHT(BU$39,2)>RIGHT($K75,2),AY75,0)) -> 0 | BV75: =+IF($K75="Ongoing",AZ75,IF(RIGHT($K75,2)=RIGHT(BV$39,2),SUM($AX75:AZ75),0)+IF(RIGHT(BV$39,2)>RIGHT($K75,2),AZ75,0)) -> 0.273175 | BW75: =+IF($K75="Ongoing",BA75,IF(RIGHT($K75,2)=RIGHT(BW$39,2),SUM($AX75:BA75),0)+IF(RIGHT(BW$39,2)>RIGHT($K75,2),BA75,0)) -> 0.05145 | BX75: =+IF($K75="Ongoing",BB75,IF(RIGHT($K75,2)=RIGHT(BX$39,2),SUM($AX75:BB75),0)+IF(RIGHT(BX$39,2)>RIGHT($K75,2),BB75,0)) -> 0.01225 | BY75: =+IF($K75="Ongoing",BC75,IF(RIGHT($K75,2)=RIGHT(BY$39,2),SUM($AX75:BC75),0)+IF(RIGHT(BY$39,2)>RIGHT($K75,2),BC75,0)) -> 0 | BZ75: =+IF($K75="Ongoing",BD75,IF(RIGHT($K75,2)=RIGHT(BZ$39,2),SUM($AX75:BD75),0)+IF(RIGHT(BZ$39,2)>RIGHT($K75,2),BD75,0)) -> 0 | CA75: =+IF($K75="Ongoing",BE75,IF(RIGHT($K75,2)=RIGHT(CA$39,2),SUM($AX75:BE75),0)+IF(RIGHT(CA$39,2)>RIGHT($K75,2),BE75,0)) -> 0 | CB75: =+IF($K75="Ongoing",BF75,IF(RIGHT($K75,2)=RIGHT(CB$39,2),SUM($AX75:BF75),0)+IF(RIGHT(CB$39,2)>RIGHT($K75,2),BF75,0)) -> 0 | CC75: =+IF($K75="Ongoing",BG75,IF(RIGHT($K75,2)=RIGHT(CC$39,2),SUM($AX75:BG75),0)+IF(RIGHT(CC$39,2)>RIGHT($K75,2),BG75,0)) -> 0 | CE75: =+Q75*KeyAssumptionsPriceControl_FO!AC$15 -> 0.015141 | CF75: =+R75*KeyAssumptionsPriceControl_FO!AD$15 -> 0 | CG75: =+S75*KeyAssumptionsPriceControl_FO!AE$15 -> 0.2985056982 | CH75: =+T75*KeyAssumptionsPriceControl_FO!AF$15 -> 0.05790742827 | CI75: =+U75*KeyAssumptionsPriceControl_FO!AG$15 -> 0.01420110741 | CJ75: =+V75*KeyAssumptionsPriceControl_FO!AH$15 -> 0 | CK75: =+W75*KeyAssumptionsPriceControl_FO!AI$15 -> 0 | CL75: =+X75*KeyAssumptionsPriceControl_FO!AJ$15 -> 0 | CM75: =+Y75*KeyAssumptionsPriceControl_FO!AK$15 -> 0 | CN75: =+Z75*KeyAssumptionsPriceControl_FO!AL$15 -> 0 | CP75: 0.001892625 | CQ75: 0.00378525 | CR75: 0.04109846228 | CS75: 0.08565010309 | CT75: 0.09277104505 | CU75: 0.09265355848 | CV75: 0.0553403462 | CW75: 0.01078870539 | CX75: 0.001775138426 | CY75: 0
C76: Plant improvement program - pricing submission 23 | E76: Sewerage | F76: Improvements / Compliance | G76: Corporate | H76: Capital Programs / Allocation | J76: Straight line | K76: Ongoing | L76: 4 | M76: 4 | Q76: 0.0147 | R76: 0 | S76: 0.273175 | T76: 0.05145 | U76: 0.01225 | AX76: 0.0147 | AY76: 0 | AZ76: 0.273175 | BA76: 0.05145 | BB76: 0.01225 | BC76: 0 | BD76: 0 | BE76: 0 | BF76: 0 | BG76: 0 | BI76: 0.0018375 | BJ76: 0.003675 | BK76: 0.037821875 | BL76: 0.0784 | BM76: 0.084525 | BN76: 0.08421875 | BO76: 0.050071875 | BP76: 0.00949375 | BQ76: 0.00153125 | BR76: 0 | BT76: =+IF($K76="Ongoing",AX76,IF(RIGHT($K76,2)=RIGHT(BT$39,2),SUM($AX76:AX76),0)+IF(RIGHT(BT$39,2)>RIGHT($K76,2),AX76,0)) -> 0.0147 | BU76: =+IF($K76="Ongoing",AY76,IF(RIGHT($K76,2)=RIGHT(BU$39,2),SUM($AX76:AY76),0)+IF(RIGHT(BU$39,2)>RIGHT($K76,2),AY76,0)) -> 0 | BV76: =+IF($K76="Ongoing",AZ76,IF(RIGHT($K76,2)=RIGHT(BV$39,2),SUM($AX76:AZ76),0)+IF(RIGHT(BV$39,2)>RIGHT($K76,2),AZ76,0)) -> 0.273175 | BW76: =+IF($K76="Ongoing",BA76,IF(RIGHT($K76,2)=RIGHT(BW$39,2),SUM($AX76:BA76),0)+IF(RIGHT(BW$39,2)>RIGHT($K76,2),BA76,0)) -> 0.05145 | BX76: =+IF($K76="Ongoing",BB76,IF(RIGHT($K76,2)=RIGHT(BX$39,2),SUM($AX76:BB76),0)+IF(RIGHT(BX$39,2)>RIGHT($K76,2),BB76,0)) -> 0.01225 | BY76: =+IF($K76="Ongoing",BC76,IF(RIGHT($K76,2)=RIGHT(BY$39,2),SUM($AX76:BC76),0)+IF(RIGHT(BY$39,2)>RIGHT($K76,2),BC76,0)) -> 0 | BZ76: =+IF($K76="Ongoing",BD76,IF(RIGHT($K76,2)=RIGHT(BZ$39,2),SUM($AX76:BD76),0)+IF(RIGHT(BZ$39,2)>RIGHT($K76,2),BD76,0)) -> 0 | CA76: =+IF($K76="Ongoing",BE76,IF(RIGHT($K76,2)=RIGHT(CA$39,2),SUM($AX76:BE76),0)+IF(RIGHT(CA$39,2)>RIGHT($K76,2),BE76,0)) -> 0 | CB76: =+IF($K76="Ongoing",BF76,IF(RIGHT($K76,2)=RIGHT(CB$39,2),SUM($AX76:BF76),0)+IF(RIGHT(CB$39,2)>RIGHT($K76,2),BF76,0)) -> 0 | CC76: =+IF($K76="Ongoing",BG76,IF(RIGHT($K76,2)=RIGHT(CC$39,2),SUM($AX76:BG76),0)+IF(RIGHT(CC$39,2)>RIGHT($K76,2),BG76,0)) -> 0 | CE76: =+Q76*KeyAssumptionsPriceControl_FO!AC$15 -> 0.015141 | CF76: =+R76*KeyAssumptionsPriceControl_FO!AD$15 -> 0 | CG76: =+S76*KeyAssumptionsPriceControl_FO!AE$15 -> 0.2985056982 | CH76: =+T76*KeyAssumptionsPriceControl_FO!AF$15 -> 0.05790742827 | CI76: =+U76*KeyAssumptionsPriceControl_FO!AG$15 -> 0.01420110741 | CJ76: =+V76*KeyAssumptionsPriceControl_FO!AH$15 -> 0 | CK76: =+W76*KeyAssumptionsPriceControl_FO!AI$15 -> 0 | CL76: =+X76*KeyAssumptionsPriceControl_FO!AJ$15 -> 0 | CM76: =+Y76*KeyAssumptionsPriceControl_FO!AK$15 -> 0 | CN76: =+Z76*KeyAssumptionsPriceControl_FO!AL$15 -> 0 | CP76: 0.001892625 | CQ76: 0.00378525 | CR76: 0.04109846228 | CS76: 0.08565010309 | CT76: 0.09277104505 | CU76: 0.09265355848 | CV76: 0.0553403462 | CW76: 0.01078870539 | CX76: 0.001775138426 | CY76: 0
C77: Plant improvement program - pricing submission 23 | E77: Recycled Water | F77: Improvements / Compliance | G77: Corporate | H77: Capital Programs / Allocation | J77: Straight line | K77: Ongoing | L77: 4 | M77: 4 | Q77: 0.0006 | R77: 0 | S77: 0.01115 | T77: 0.0021 | U77: 0.0005 | AX77: 0.0006 | AY77: 0 | AZ77: 0.01115 | BA77: 0.0021 | BB77: 0.0005 | BC77: 0 | BD77: 0 | BE77: 0 | BF77: 0 | BG77: 0 | BI77: 7.5e-05 | BJ77: 0.00015 | BK77: 0.00154375 | BL77: 0.0032 | BM77: 0.00345 | BN77: 0.0034375 | BO77: 0.00204375 | BP77: 0.0003875 | BQ77: 6.25e-05 | BR77: 0 | BT77: =+IF($K77="Ongoing",AX77,IF(RIGHT($K77,2)=RIGHT(BT$39,2),SUM($AX77:AX77),0)+IF(RIGHT(BT$39,2)>RIGHT($K77,2),AX77,0)) -> 0.0006 | BU77: =+IF($K77="Ongoing",AY77,IF(RIGHT($K77,2)=RIGHT(BU$39,2),SUM($AX77:AY77),0)+IF(RIGHT(BU$39,2)>RIGHT($K77,2),AY77,0)) -> 0 | BV77: =+IF($K77="Ongoing",AZ77,IF(RIGHT($K77,2)=RIGHT(BV$39,2),SUM($AX77:AZ77),0)+IF(RIGHT(BV$39,2)>RIGHT($K77,2),AZ77,0)) -> 0.01115 | BW77: =+IF($K77="Ongoing",BA77,IF(RIGHT($K77,2)=RIGHT(BW$39,2),SUM($AX77:BA77),0)+IF(RIGHT(BW$39,2)>RIGHT($K77,2),BA77,0)) -> 0.0021 | BX77: =+IF($K77="Ongoing",BB77,IF(RIGHT($K77,2)=RIGHT(BX$39,2),SUM($AX77:BB77),0)+IF(RIGHT(BX$39,2)>RIGHT($K77,2),BB77,0)) -> 0.0005 | BY77: =+IF($K77="Ongoing",BC77,IF(RIGHT($K77,2)=RIGHT(BY$39,2),SUM($AX77:BC77),0)+IF(RIGHT(BY$39,2)>RIGHT($K77,2),BC77,0)) -> 0 | BZ77: =+IF($K77="Ongoing",BD77,IF(RIGHT($K77,2)=RIGHT(BZ$39,2),SUM($AX77:BD77),0)+IF(RIGHT(BZ$39,2)>RIGHT($K77,2),BD77,0)) -> 0 | CA77: =+IF($K77="Ongoing",BE77,IF(RIGHT($K77,2)=RIGHT(CA$39,2),SUM($AX77:BE77),0)+IF(RIGHT(CA$39,2)>RIGHT($K77,2),BE77,0)) -> 0 | CB77: =+IF($K77="Ongoing",BF77,IF(RIGHT($K77,2)=RIGHT(CB$39,2),SUM($AX77:BF77),0)+IF(RIGHT(CB$39,2)>RIGHT($K77,2),BF77,0)) -> 0 | CC77: =+IF($K77="Ongoing",BG77,IF(RIGHT($K77,2)=RIGHT(CC$39,2),SUM($AX77:BG77),0)+IF(RIGHT(CC$39,2)>RIGHT($K77,2),BG77,0)) -> 0 | CE77: =+Q77*KeyAssumptionsPriceControl_FO!AC$15 -> 0.000618 | CF77: =+R77*KeyAssumptionsPriceControl_FO!AD$15 -> 0 | CG77: =+S77*KeyAssumptionsPriceControl_FO!AE$15 -> 0.01218390605 | CH77: =+T77*KeyAssumptionsPriceControl_FO!AF$15 -> 0.002363568501 | CI77: =+U77*KeyAssumptionsPriceControl_FO!AG$15 -> 0.0005796370372 | CJ77: =+V77*KeyAssumptionsPriceControl_FO!AH$15 -> 0 | CK77: =+W77*KeyAssumptionsPriceControl_FO!AI$15 -> 0 | CL77: =+X77*KeyAssumptionsPriceControl_FO!AJ$15 -> 0 | CM77: =+Y77*KeyAssumptionsPriceControl_FO!AK$15 -> 0 | CN77: =+Z77*KeyAssumptionsPriceControl_FO!AL$15 -> 0 | CP77: 7.725e-05 | CQ77: 0.0001545 | CR77: 0.001677488256 | CS77: 0.003495922575 | CT77: 0.003786573267 | CU77: 0.003781777897 | CV77: 0.002258789641 | CW77: 0.0004403553219 | CX77: 7.245462964e-05 | CY77: 0
C78: Corporate improvement and renewals - pricing submission 23 | E78: Water | F78: Renewals | G78: Corporate | H78: Capital Programs / Allocation | J78: Straight line | K78: Ongoing | L78: 15 | M78: 15 | Q78: 0.058506 | R78: 0.050568 | S78: 0.043463 | T78: 0.063798 | U78: 0.119217 | V78: 0 | W78: 0 | X78: 0 | Y78: 0 | Z78: 0 | AX78: 0.058506 | AY78: 0.050568 | AZ78: 0.043463 | BA78: 0.063798 | BB78: 0.119217 | BC78: 0 | BD78: 0 | BE78: 0 | BF78: 0 | BG78: 0 | BI78: 0.0019502 | BJ78: 0.005586 | BK78: 0.008720366667 | BL78: 0.01229573333 | BM78: 0.01839623333 | BN78: 0.02237013333 | BO78: 0.02237013333 | BP78: 0.02237013333 | BQ78: 0.02237013333 | BR78: 0.02237013333 | BT78: =+IF($K78="Ongoing",AX78,IF(RIGHT($K78,2)=RIGHT(BT$39,2),SUM($AX78:AX78),0)+IF(RIGHT(BT$39,2)>RIGHT($K78,2),AX78,0)) -> 0.058506 | BU78: =+IF($K78="Ongoing",AY78,IF(RIGHT($K78,2)=RIGHT(BU$39,2),SUM($AX78:AY78),0)+IF(RIGHT(BU$39,2)>RIGHT($K78,2),AY78,0)) -> 0.050568 | BV78: =+IF($K78="Ongoing",AZ78,IF(RIGHT($K78,2)=RIGHT(BV$39,2),SUM($AX78:AZ78),0)+IF(RIGHT(BV$39,2)>RIGHT($K78,2),AZ78,0)) -> 0.043463 | BW78: =+IF($K78="Ongoing",BA78,IF(RIGHT($K78,2)=RIGHT(BW$39,2),SUM($AX78:BA78),0)+IF(RIGHT(BW$39,2)>RIGHT($K78,2),BA78,0)) -> 0.063798 | BX78: =+IF($K78="Ongoing",BB78,IF(RIGHT($K78,2)=RIGHT(BX$39,2),SUM($AX78:BB78),0)+IF(RIGHT(BX$39,2)>RIGHT($K78,2),BB78,0)) -> 0.119217 | BY78: =+IF($K78="Ongoing",BC78,IF(RIGHT($K78,2)=RIGHT(BY$39,2),SUM($AX78:BC78),0)+IF(RIGHT(BY$39,2)>RIGHT($K78,2),BC78,0)) -> 0 | BZ78: =+IF($K78="Ongoing",BD78,IF(RIGHT($K78,2)=RIGHT(BZ$39,2),SUM($AX78:BD78),0)+IF(RIGHT(BZ$39,2)>RIGHT($K78,2),BD78,0)) -> 0 | CA78: =+IF($K78="Ongoing",BE78,IF(RIGHT($K78,2)=RIGHT(CA$39,2),SUM($AX78:BE78),0)+IF(RIGHT(CA$39,2)>RIGHT($K78,2),BE78,0)) -> 0 | CB78: =+IF($K78="Ongoing",BF78,IF(RIGHT($K78,2)=RIGHT(CB$39,2),SUM($AX78:BF78),0)+IF(RIGHT(CB$39,2)>RIGHT($K78,2),BF78,0)) -> 0 | CC78: =+IF($K78="Ongoing",BG78,IF(RIGHT($K78,2)=RIGHT(CC$39,2),SUM($AX78:BG78),0)+IF(RIGHT(CC$39,2)>RIGHT($K78,2),BG78,0)) -> 0 | CE78: =+Q78*KeyAssumptionsPriceControl_FO!AC$15 -> 0.06026118 | CF78: =+R78*KeyAssumptionsPriceControl_FO!AD$15 -> 0.0536475912 | CG78: =+S78*KeyAssumptionsPriceControl_FO!AE$15 -> 0.0474931936 | CH78: =+T78*KeyAssumptionsPriceControl_FO!AF$15 -> 0.07180521106 | CI78: =+U78*KeyAssumptionsPriceControl_FO!AG$15 -> 0.1382051773 | CJ78: =+V78*KeyAssumptionsPriceControl_FO!AH$15 -> 0 | CK78: =+W78*KeyAssumptionsPriceControl_FO!AI$15 -> 0 | CL78: =+X78*KeyAssumptionsPriceControl_FO!AJ$15 -> 0 | CM78: =+Y78*KeyAssumptionsPriceControl_FO!AK$15 -> 0 | CN78: =+Z78*KeyAssumptionsPriceControl_FO!AL$15 -> 0 | CP78: 0.002008706 | CQ78: 0.00580566504 | CR78: 0.009177024533 | CS78: 0.01315363802 | CT78: 0.0201539843 | CU78: 0.02476082355 | CV78: 0.02476082355 | CW78: 0.02476082355 | CX78: 0.02476082355 | CY78: 0.02476082355
C79: Corporate improvement and renewals - pricing submission 23 | E79: Sewerage | F79: Renewals | G79: Corporate | H79: Capital Programs / Allocation | J79: Straight line | K79: Ongoing | L79: 15 | M79: 15 | Q79: 0.058506 | R79: 0.050568 | S79: 0.043463 | T79: 0.063798 | U79: 0.119217 | AX79: 0.058506 | AY79: 0.050568 | AZ79: 0.043463 | BA79: 0.063798 | BB79: 0.119217 | BC79: 0 | BD79: 0 | BE79: 0 | BF79: 0 | BG79: 0 | BI79: 0.0019502 | BJ79: 0.005586 | BK79: 0.008720366667 | BL79: 0.01229573333 | BM79: 0.01839623333 | BN79: 0.02237013333 | BO79: 0.02237013333 | BP79: 0.02237013333 | BQ79: 0.02237013333 | BR79: 0.02237013333 | BT79: =+IF($K79="Ongoing",AX79,IF(RIGHT($K79,2)=RIGHT(BT$39,2),SUM($AX79:AX79),0)+IF(RIGHT(BT$39,2)>RIGHT($K79,2),AX79,0)) -> 0.058506 | BU79: =+IF($K79="Ongoing",AY79,IF(RIGHT($K79,2)=RIGHT(BU$39,2),SUM($AX79:AY79),0)+IF(RIGHT(BU$39,2)>RIGHT($K79,2),AY79,0)) -> 0.050568 | BV79: =+IF($K79="Ongoing",AZ79,IF(RIGHT($K79,2)=RIGHT(BV$39,2),SUM($AX79:AZ79),0)+IF(RIGHT(BV$39,2)>RIGHT($K79,2),AZ79,0)) -> 0.043463 | BW79: =+IF($K79="Ongoing",BA79,IF(RIGHT($K79,2)=RIGHT(BW$39,2),SUM($AX79:BA79),0)+IF(RIGHT(BW$39,2)>RIGHT($K79,2),BA79,0)) -> 0.063798 | BX79: =+IF($K79="Ongoing",BB79,IF(RIGHT($K79,2)=RIGHT(BX$39,2),SUM($AX79:BB79),0)+IF(RIGHT(BX$39,2)>RIGHT($K79,2),BB79,0)) -> 0.119217 | BY79: =+IF($K79="Ongoing",BC79,IF(RIGHT($K79,2)=RIGHT(BY$39,2),SUM($AX79:BC79),0)+IF(RIGHT(BY$39,2)>RIGHT($K79,2),BC79,0)) -> 0 | BZ79: =+IF($K79="Ongoing",BD79,IF(RIGHT($K79,2)=RIGHT(BZ$39,2),SUM($AX79:BD79),0)+IF(RIGHT(BZ$39,2)>RIGHT($K79,2),BD79,0)) -> 0 | CA79: =+IF($K79="Ongoing",BE79,IF(RIGHT($K79,2)=RIGHT(CA$39,2),SUM($AX79:BE79),0)+IF(RIGHT(CA$39,2)>RIGHT($K79,2),BE79,0)) -> 0 | CB79: =+IF($K79="Ongoing",BF79,IF(RIGHT($K79,2)=RIGHT(CB$39,2),SUM($AX79:BF79),0)+IF(RIGHT(CB$39,2)>RIGHT($K79,2),BF79,0)) -> 0 | CC79: =+IF($K79="Ongoing",BG79,IF(RIGHT($K79,2)=RIGHT(CC$39,2),SUM($AX79:BG79),0)+IF(RIGHT(CC$39,2)>RIGHT($K79,2),BG79,0)) -> 0 | CE79: =+Q79*KeyAssumptionsPriceControl_FO!AC$15 -> 0.06026118 | CF79: =+R79*KeyAssumptionsPriceControl_FO!AD$15 -> 0.0536475912 | CG79: =+S79*KeyAssumptionsPriceControl_FO!AE$15 -> 0.0474931936 | CH79: =+T79*KeyAssumptionsPriceControl_FO!AF$15 -> 0.07180521106 | CI79: =+U79*KeyAssumptionsPriceControl_FO!AG$15 -> 0.1382051773 | CJ79: =+V79*KeyAssumptionsPriceControl_FO!AH$15 -> 0 | CK79: =+W79*KeyAssumptionsPriceControl_FO!AI$15 -> 0 | CL79: =+X79*KeyAssumptionsPriceControl_FO!AJ$15 -> 0 | CM79: =+Y79*KeyAssumptionsPriceControl_FO!AK$15 -> 0 | CN79: =+Z79*KeyAssumptionsPriceControl_FO!AL$15 -> 0 | CP79: 0.002008706 | CQ79: 0.00580566504 | CR79: 0.009177024533 | CS79: 0.01315363802 | CT79: 0.0201539843 | CU79: 0.02476082355 | CV79: 0.02476082355 | CW79: 0.02476082355 | CX79: 0.02476082355 | CY79: 0.02476082355
C80: Corporate improvement and renewals - pricing submission 23 | E80: Recycled Water | F80: Renewals | G80: Corporate | H80: Capital Programs / Allocation | J80: Straight line | K80: Ongoing | L80: 15 | M80: 15 | Q80: 0.002388 | R80: 0.002064 | S80: 0.001774 | T80: 0.002604 | U80: 0.004866 | AX80: 0.002388 | AY80: 0.002064 | AZ80: 0.001774 | BA80: 0.002604 | BB80: 0.004866 | BC80: 0 | BD80: 0 | BE80: 0 | BF80: 0 | BG80: 0 | BI80: 7.96e-05 | BJ80: 0.000228 | BK80: 0.0003559333333 | BL80: 0.0005018666667 | BM80: 0.0007508666667 | BN80: 0.0009130666667 | BO80: 0.0009130666667 | BP80: 0.0009130666667 | BQ80: 0.0009130666667 | BR80: 0.0009130666667 | BT80: =+IF($K80="Ongoing",AX80,IF(RIGHT($K80,2)=RIGHT(BT$39,2),SUM($AX80:AX80),0)+IF(RIGHT(BT$39,2)>RIGHT($K80,2),AX80,0)) -> 0.002388 | BU80: =+IF($K80="Ongoing",AY80,IF(RIGHT($K80,2)=RIGHT(BU$39,2),SUM($AX80:AY80),0)+IF(RIGHT(BU$39,2)>RIGHT($K80,2),AY80,0)) -> 0.002064 | BV80: =+IF($K80="Ongoing",AZ80,IF(RIGHT($K80,2)=RIGHT(BV$39,2),SUM($AX80:AZ80),0)+IF(RIGHT(BV$39,2)>RIGHT($K80,2),AZ80,0)) -> 0.001774 | BW80: =+IF($K80="Ongoing",BA80,IF(RIGHT($K80,2)=RIGHT(BW$39,2),SUM($AX80:BA80),0)+IF(RIGHT(BW$39,2)>RIGHT($K80,2),BA80,0)) -> 0.002604 | BX80: =+IF($K80="Ongoing",BB80,IF(RIGHT($K80,2)=RIGHT(BX$39,2),SUM($AX80:BB80),0)+IF(RIGHT(BX$39,2)>RIGHT($K80,2),BB80,0)) -> 0.004866 | BY80: =+IF($K80="Ongoing",BC80,IF(RIGHT($K80,2)=RIGHT(BY$39,2),SUM($AX80:BC80),0)+IF(RIGHT(BY$39,2)>RIGHT($K80,2),BC80,0)) -> 0 | BZ80: =+IF($K80="Ongoing",BD80,IF(RIGHT($K80,2)=RIGHT(BZ$39,2),SUM($AX80:BD80),0)+IF(RIGHT(BZ$39,2)>RIGHT($K80,2),BD80,0)) -> 0 | CA80: =+IF($K80="Ongoing",BE80,IF(RIGHT($K80,2)=RIGHT(CA$39,2),SUM($AX80:BE80),0)+IF(RIGHT(CA$39,2)>RIGHT($K80,2),BE80,0)) -> 0 | CB80: =+IF($K80="Ongoing",BF80,IF(RIGHT($K80,2)=RIGHT(CB$39,2),SUM($AX80:BF80),0)+IF(RIGHT(CB$39,2)>RIGHT($K80,2),BF80,0)) -> 0 | CC80: =+IF($K80="Ongoing",BG80,IF(RIGHT($K80,2)=RIGHT(CC$39,2),SUM($AX80:BG80),0)+IF(RIGHT(CC$39,2)>RIGHT($K80,2),BG80,0)) -> 0 | CE80: =+Q80*KeyAssumptionsPriceControl_FO!AC$15 -> 0.00245964 | CF80: =+R80*KeyAssumptionsPriceControl_FO!AD$15 -> 0.0021896976 | CG80: =+S80*KeyAssumptionsPriceControl_FO!AE$15 -> 0.001938497698 | CH80: =+T80*KeyAssumptionsPriceControl_FO!AF$15 -> 0.002930824941 | CI80: =+U80*KeyAssumptionsPriceControl_FO!AG$15 -> 0.005641027646 | CJ80: =+V80*KeyAssumptionsPriceControl_FO!AH$15 -> 0 | CK80: =+W80*KeyAssumptionsPriceControl_FO!AI$15 -> 0 | CL80: =+X80*KeyAssumptionsPriceControl_FO!AJ$15 -> 0 | CM80: =+Y80*KeyAssumptionsPriceControl_FO!AK$15 -> 0 | CN80: =+Z80*KeyAssumptionsPriceControl_FO!AL$15 -> 0 | CP80: 8.1988e-05 | CQ80: 0.00023696592 | CR80: 0.0003745724299 | CS80: 0.0005368831846 | CT80: 0.0008226116041 | CU80: 0.001010645859 | CV80: 0.001010645859 | CW80: 0.001010645859 | CX80: 0.001010645859 | CY80: 0.001010645859
C81: Odour & corrosion mitigation program - pricing submission 23 | E81: Sewerage | F81: Improvements / Compliance | G81: Pipelines/network | H81: Other Capital expenditure | J81: Straight line | K81: 2027-28 | L81: 15 | M81: 15 | Q81: 0 | R81: 0 | S81: 0.03 | T81: 0.02 | U81: 0.45 | V81: 0.298 | W81: 0.012 | X81: 0.012 | Y81: 0.012 | Z81: 0.012 | AX81: 0 | AY81: 0 | AZ81: 0.03 | BA81: 0.02 | BB81: 0.45 | BC81: 0.298 | BD81: 0.012 | BE81: 0.012 | BF81: 0.012 | BG81: 0.012 | BI81: 0 | BJ81: 0 | BK81: 0 | BL81: 0 | BM81: 0.01666666667 | BN81: 0.04326666667 | BO81: 0.0536 | BP81: 0.0544 | BQ81: 0.0552 | BR81: 0.056 | BT81: =+IF($K81="Ongoing",AX81,IF(RIGHT($K81,2)=RIGHT(BT$39,2),SUM($AX81:AX81),0)+IF(RIGHT(BT$39,2)>RIGHT($K81,2),AX81,0)) -> 0 | BU81: =+IF($K81="Ongoing",AY81,IF(RIGHT($K81,2)=RIGHT(BU$39,2),SUM($AX81:AY81),0)+IF(RIGHT(BU$39,2)>RIGHT($K81,2),AY81,0)) -> 0 | BV81: =+IF($K81="Ongoing",AZ81,IF(RIGHT($K81,2)=RIGHT(BV$39,2),SUM($AX81:AZ81),0)+IF(RIGHT(BV$39,2)>RIGHT($K81,2),AZ81,0)) -> 0 | BW81: =+IF($K81="Ongoing",BA81,IF(RIGHT($K81,2)=RIGHT(BW$39,2),SUM($AX81:BA81),0)+IF(RIGHT(BW$39,2)>RIGHT($K81,2),BA81,0)) -> 0 | BX81: =+IF($K81="Ongoing",BB81,IF(RIGHT($K81,2)=RIGHT(BX$39,2),SUM($AX81:BB81),0)+IF(RIGHT(BX$39,2)>RIGHT($K81,2),BB81,0)) -> 0.5 | BY81: =+IF($K81="Ongoing",BC81,IF(RIGHT($K81,2)=RIGHT(BY$39,2),SUM($AX81:BC81),0)+IF(RIGHT(BY$39,2)>RIGHT($K81,2),BC81,0)) -> 0.298 | BZ81: =+IF($K81="Ongoing",BD81,IF(RIGHT($K81,2)=RIGHT(BZ$39,2),SUM($AX81:BD81),0)+IF(RIGHT(BZ$39,2)>RIGHT($K81,2),BD81,0)) -> 0.012 | CA81: =+IF($K81="Ongoing",BE81,IF(RIGHT($K81,2)=RIGHT(CA$39,2),SUM($AX81:BE81),0)+IF(RIGHT(CA$39,2)>RIGHT($K81,2),BE81,0)) -> 0.012 | CB81: =+IF($K81="Ongoing",BF81,IF(RIGHT($K81,2)=RIGHT(CB$39,2),SUM($AX81:BF81),0)+IF(RIGHT(CB$39,2)>RIGHT($K81,2),BF81,0)) -> 0.012 | CC81: =+IF($K81="Ongoing",BG81,IF(RIGHT($K81,2)=RIGHT(CC$39,2),SUM($AX81:BG81),0)+IF(RIGHT(CC$39,2)>RIGHT($K81,2),BG81,0)) -> 0.012 | CE81: =+Q81*KeyAssumptionsPriceControl_FO!AC$15 -> 0 | CF81: =+R81*KeyAssumptionsPriceControl_FO!AD$15 -> 0 | CG81: =+S81*KeyAssumptionsPriceControl_FO!AE$15 -> 0.03278181 | CH81: =+T81*KeyAssumptionsPriceControl_FO!AF$15 -> 0.0225101762 | CI81: =+U81*KeyAssumptionsPriceControl_FO!AG$15 -> 0.5216733334 | CJ81: =+V81*KeyAssumptionsPriceControl_FO!AH$15 -> 0.3558275844 | CK81: =+W81*KeyAssumptionsPriceControl_FO!AI$15 -> 0.01475848639 | CL81: =+X81*KeyAssumptionsPriceControl_FO!AJ$15 -> 0.01520124098 | CM81: =+Y81*KeyAssumptionsPriceControl_FO!AK$15 -> 0.01565727821 | CN81: =+Z81*KeyAssumptionsPriceControl_FO!AL$15 -> 0.01612699655 | CP81: 0 | CQ81: 0 | CR81: 0.001092727 | CS81: 0.002935793207 | CT81: 0.02107524353 | CU81: 0.05032527412 | CV81: 0.06267814315 | CW81: 0.06367680072 | CX81: 0.06470541803 | CY81: 0.06576489386
C82: King Road Master Plan Stage 2 | E82: Sewerage | F82: Growth | G82: Treatment | H82: Significant projects | J82: Straight line | K82: Ongoing | L82: 50 | M82: 50 | Q82: 0.1806 | R82: 0.086 | S82: 0 | T82: 0 | U82: 0.2207 | V82: 0.035 | W82: 0 | X82: 0 | Y82: 0 | Z82: 0 | AX82: 0.1806 | AY82: 0.086 | AZ82: 0 | BA82: 0 | BB82: 0.2207 | BC82: 0.035 | BD82: 0 | BE82: 0 | BF82: 0 | BG82: 0 | BI82: 0.001806 | BJ82: 0.004472 | BK82: 0.005332 | BL82: 0.005332 | BM82: 0.007539 | BN82: 0.010096 | BO82: 0.010446 | BP82: 0.010446 | BQ82: 0.010446 | BR82: 0.010446 | BT82: =+IF($K82="Ongoing",AX82,IF(RIGHT($K82,2)=RIGHT(BT$39,2),SUM($AX82:AX82),0)+IF(RIGHT(BT$39,2)>RIGHT($K82,2),AX82,0)) -> 0.1806 | BU82: =+IF($K82="Ongoing",AY82,IF(RIGHT($K82,2)=RIGHT(BU$39,2),SUM($AX82:AY82),0)+IF(RIGHT(BU$39,2)>RIGHT($K82,2),AY82,0)) -> 0.086 | BV82: =+IF($K82="Ongoing",AZ82,IF(RIGHT($K82,2)=RIGHT(BV$39,2),SUM($AX82:AZ82),0)+IF(RIGHT(BV$39,2)>RIGHT($K82,2),AZ82,0)) -> 0 | BW82: =+IF($K82="Ongoing",BA82,IF(RIGHT($K82,2)=RIGHT(BW$39,2),SUM($AX82:BA82),0)+IF(RIGHT(BW$39,2)>RIGHT($K82,2),BA82,0)) -> 0 | BX82: =+IF($K82="Ongoing",BB82,IF(RIGHT($K82,2)=RIGHT(BX$39,2),SUM($AX82:BB82),0)+IF(RIGHT(BX$39,2)>RIGHT($K82,2),BB82,0)) -> 0.2207 | BY82: =+IF($K82="Ongoing",BC82,IF(RIGHT($K82,2)=RIGHT(BY$39,2),SUM($AX82:BC82),0)+IF(RIGHT(BY$39,2)>RIGHT($K82,2),BC82,0)) -> 0.035 | BZ82: =+IF($K82="Ongoing",BD82,IF(RIGHT($K82,2)=RIGHT(BZ$39,2),SUM($AX82:BD82),0)+IF(RIGHT(BZ$39,2)>RIGHT($K82,2),BD82,0)) -> 0 | CA82: =+IF($K82="Ongoing",BE82,IF(RIGHT($K82,2)=RIGHT(CA$39,2),SUM($AX82:BE82),0)+IF(RIGHT(CA$39,2)>RIGHT($K82,2),BE82,0)) -> 0 | CB82: =+IF($K82="Ongoing",BF82,IF(RIGHT($K82,2)=RIGHT(CB$39,2),SUM($AX82:BF82),0)+IF(RIGHT(CB$39,2)>RIGHT($K82,2),BF82,0)) -> 0 | CC82: =+IF($K82="Ongoing",BG82,IF(RIGHT($K82,2)=RIGHT(CC$39,2),SUM($AX82:BG82),0)+IF(RIGHT(CC$39,2)>RIGHT($K82,2),BG82,0)) -> 0 | CE82: =+Q82*KeyAssumptionsPriceControl_FO!AC$15 -> 0.186018 | CF82: =+R82*KeyAssumptionsPriceControl_FO!AD$15 -> 0.0912374 | CG82: =+S82*KeyAssumptionsPriceControl_FO!AE$15 -> 0 | CH82: =+T82*KeyAssumptionsPriceControl_FO!AF$15 -> 0 | CI82: =+U82*KeyAssumptionsPriceControl_FO!AG$15 -> 0.2558517882 | CJ82: =+V82*KeyAssumptionsPriceControl_FO!AH$15 -> 0.04179183038 | CK82: =+W82*KeyAssumptionsPriceControl_FO!AI$15 -> 0 | CL82: =+X82*KeyAssumptionsPriceControl_FO!AJ$15 -> 0 | CM82: =+Y82*KeyAssumptionsPriceControl_FO!AK$15 -> 0 | CN82: =+Z82*KeyAssumptionsPriceControl_FO!AL$15 -> 0 | CP82: 0.00186018 | CQ82: 0.004632734 | CR82: 0.005545108 | CS82: 0.005545108 | CT82: 0.008103625882 | CU82: 0.01108006207 | CV82: 0.01149798037 | CW82: 0.01149798037 | CX82: 0.01149798037 | CY82: 0.01149798037
C83: King road wastewater treatment plant civil, mechanical and electrical - pricing submission 23 | E83: Sewerage | F83: Renewals | G83: Treatment | H83: Capital Programs / Allocation | J83: Straight line | K83: Ongoing | L83: 15 | M83: 15 | Q83: 0.3389932106 | R83: 0.08850893091 | S83: 0.03923502122 | T83: 0.04310131408 | U83: 0.05117261414 | V83: 0 | W83: 0 | X83: 0 | Y83: 0 | Z83: 0 | AX83: 0.3389932106 | AY83: 0.08850893091 | AZ83: 0.03923502122 | BA83: 0.04310131408 | BB83: 0.05117261414 | BC83: 0 | BD83: 0 | BE83: 0 | BF83: 0 | BG83: 0 | BI83: 0.01129977369 | BJ83: 0.02554984507 | BK83: 0.02980797681 | BL83: 0.03255252132 | BM83: 0.03569498559 | BN83: 0.0374007394 | BO83: 0.0374007394 | BP83: 0.0374007394 | BQ83: 0.0374007394 | BR83: 0.0374007394 | BT83: =+IF($K83="Ongoing",AX83,IF(RIGHT($K83,2)=RIGHT(BT$39,2),SUM($AX83:AX83),0)+IF(RIGHT(BT$39,2)>RIGHT($K83,2),AX83,0)) -> 0.3389932106 | BU83: =+IF($K83="Ongoing",AY83,IF(RIGHT($K83,2)=RIGHT(BU$39,2),SUM($AX83:AY83),0)+IF(RIGHT(BU$39,2)>RIGHT($K83,2),AY83,0)) -> 0.08850893091 | BV83: =+IF($K83="Ongoing",AZ83,IF(RIGHT($K83,2)=RIGHT(BV$39,2),SUM($AX83:AZ83),0)+IF(RIGHT(BV$39,2)>RIGHT($K83,2),AZ83,0)) -> 0.03923502122 | BW83: =+IF($K83="Ongoing",BA83,IF(RIGHT($K83,2)=RIGHT(BW$39,2),SUM($AX83:BA83),0)+IF(RIGHT(BW$39,2)>RIGHT($K83,2),BA83,0)) -> 0.04310131408 | BX83: =+IF($K83="Ongoing",BB83,IF(RIGHT($K83,2)=RIGHT(BX$39,2),SUM($AX83:BB83),0)+IF(RIGHT(BX$39,2)>RIGHT($K83,2),BB83,0)) -> 0.05117261414 | BY83: =+IF($K83="Ongoing",BC83,IF(RIGHT($K83,2)=RIGHT(BY$39,2),SUM($AX83:BC83),0)+IF(RIGHT(BY$39,2)>RIGHT($K83,2),BC83,0)) -> 0 | BZ83: =+IF($K83="Ongoing",BD83,IF(RIGHT($K83,2)=RIGHT(BZ$39,2),SUM($AX83:BD83),0)+IF(RIGHT(BZ$39,2)>RIGHT($K83,2),BD83,0)) -> 0 | CA83: =+IF($K83="Ongoing",BE83,IF(RIGHT($K83,2)=RIGHT(CA$39,2),SUM($AX83:BE83),0)+IF(RIGHT(CA$39,2)>RIGHT($K83,2),BE83,0)) -> 0 | CB83: =+IF($K83="Ongoing",BF83,IF(RIGHT($K83,2)=RIGHT(CB$39,2),SUM($AX83:BF83),0)+IF(RIGHT(CB$39,2)>RIGHT($K83,2),BF83,0)) -> 0 | CC83: =+IF($K83="Ongoing",BG83,IF(RIGHT($K83,2)=RIGHT(CC$39,2),SUM($AX83:BG83),0)+IF(RIGHT(CC$39,2)>RIGHT($K83,2),BG83,0)) -> 0 | CE83: =+Q83*KeyAssumptionsPriceControl_FO!AC$15 -> 0.349163007 | CF83: =+R83*KeyAssumptionsPriceControl_FO!AD$15 -> 0.0938991248 | CG83: =+S83*KeyAssumptionsPriceControl_FO!AE$15 -> 0.04287316704 | CH83: =+T83*KeyAssumptionsPriceControl_FO!AF$15 -> 0.04851090872 | CI83: =+U83*KeyAssumptionsPriceControl_FO!AG$15 -> 0.05932308488 | CJ83: =+V83*KeyAssumptionsPriceControl_FO!AH$15 -> 0 | CK83: =+W83*KeyAssumptionsPriceControl_FO!AI$15 -> 0 | CL83: =+X83*KeyAssumptionsPriceControl_FO!AJ$15 -> 0 | CM83: =+Y83*KeyAssumptionsPriceControl_FO!AK$15 -> 0 | CN83: =+Z83*KeyAssumptionsPriceControl_FO!AL$15 -> 0 | CP83: 0.0116387669 | CQ83: 0.02640750462 | CR83: 0.03096658102 | CS83: 0.03401271688 | CT83: 0.03760718333 | CU83: 0.03958461949 | CV83: 0.03958461949 | CW83: 0.03958461949 | CX83: 0.03958461949 | CY83: 0.03958461949
C84: Minor compliance projects | E84: Water | F84: Improvements / Compliance | G84: Corporate | H84: Other Capital expenditure | J84: Straight line | K84: 2024-25 | L84: 15 | M84: 15 | Q84: 0.03675 | R84: 0.02205 | S84: 0.049 | T84: 0.0196 | U84: 0.05047 | V84: 0 | W84: 0 | X84: 0 | Y84: 0 | Z84: 0 | AX84: 0.03675 | AY84: 0.02205 | AZ84: 0.049 | BA84: 0.0196 | BB84: 0.05047 | BC84: 0 | BD84: 0 | BE84: 0 | BF84: 0 | BG84: 0 | BI84: 0 | BJ84: 0.00196 | BK84: 0.005553333333 | BL84: 0.00784 | BM84: 0.01017566667 | BN84: 0.011858 | BO84: 0.011858 | BP84: 0.011858 | BQ84: 0.011858 | BR84: 0.011858 | BT84: =+IF($K84="Ongoing",AX84,IF(RIGHT($K84,2)=RIGHT(BT$39,2),SUM($AX84:AX84),0)+IF(RIGHT(BT$39,2)>RIGHT($K84,2),AX84,0)) -> 0 | BU84: =+IF($K84="Ongoing",AY84,IF(RIGHT($K84,2)=RIGHT(BU$39,2),SUM($AX84:AY84),0)+IF(RIGHT(BU$39,2)>RIGHT($K84,2),AY84,0)) -> 0.0588 | BV84: =+IF($K84="Ongoing",AZ84,IF(RIGHT($K84,2)=RIGHT(BV$39,2),SUM($AX84:AZ84),0)+IF(RIGHT(BV$39,2)>RIGHT($K84,2),AZ84,0)) -> 0.049 | BW84: =+IF($K84="Ongoing",BA84,IF(RIGHT($K84,2)=RIGHT(BW$39,2),SUM($AX84:BA84),0)+IF(RIGHT(BW$39,2)>RIGHT($K84,2),BA84,0)) -> 0.0196 | BX84: =+IF($K84="Ongoing",BB84,IF(RIGHT($K84,2)=RIGHT(BX$39,2),SUM($AX84:BB84),0)+IF(RIGHT(BX$39,2)>RIGHT($K84,2),BB84,0)) -> 0.05047 | BY84: =+IF($K84="Ongoing",BC84,IF(RIGHT($K84,2)=RIGHT(BY$39,2),SUM($AX84:BC84),0)+IF(RIGHT(BY$39,2)>RIGHT($K84,2),BC84,0)) -> 0 | BZ84: =+IF($K84="Ongoing",BD84,IF(RIGHT($K84,2)=RIGHT(BZ$39,2),SUM($AX84:BD84),0)+IF(RIGHT(BZ$39,2)>RIGHT($K84,2),BD84,0)) -> 0 | CA84: =+IF($K84="Ongoing",BE84,IF(RIGHT($K84,2)=RIGHT(CA$39,2),SUM($AX84:BE84),0)+IF(RIGHT(CA$39,2)>RIGHT($K84,2),BE84,0)) -> 0 | CB84: =+IF($K84="Ongoing",BF84,IF(RIGHT($K84,2)=RIGHT(CB$39,2),SUM($AX84:BF84),0)+IF(RIGHT(CB$39,2)>RIGHT($K84,2),BF84,0)) -> 0 | CC84: =+IF($K84="Ongoing",BG84,IF(RIGHT($K84,2)=RIGHT(CC$39,2),SUM($AX84:BG84),0)+IF(RIGHT(CC$39,2)>RIGHT($K84,2),BG84,0)) -> 0 | CE84: =+Q84*KeyAssumptionsPriceControl_FO!AC$15 -> 0.0378525 | CF84: =+R84*KeyAssumptionsPriceControl_FO!AD$15 -> 0.023392845 | CG84: =+S84*KeyAssumptionsPriceControl_FO!AE$15 -> 0.053543623 | CH84: =+T84*KeyAssumptionsPriceControl_FO!AF$15 -> 0.02205997268 | CI84: =+U84*KeyAssumptionsPriceControl_FO!AG$15 -> 0.05850856253 | CJ84: =+V84*KeyAssumptionsPriceControl_FO!AH$15 -> 0 | CK84: =+W84*KeyAssumptionsPriceControl_FO!AI$15 -> 0 | CL84: =+X84*KeyAssumptionsPriceControl_FO!AJ$15 -> 0 | CM84: =+Y84*KeyAssumptionsPriceControl_FO!AK$15 -> 0 | CN84: =+Z84*KeyAssumptionsPriceControl_FO!AL$15 -> 0 | CP84: 0.00126175 | CQ84: 0.0033032615 | CR84: 0.005867810433 | CS84: 0.008387930289 | CT84: 0.01107354813 | CU84: 0.01302383355 | CV84: 0.01302383355 | CW84: 0.01302383355 | CX84: 0.01302383355 | CY84: 0.01302383355
C85: Minor compliance projects | E85: Sewerage | F85: Improvements / Compliance | G85: Corporate | H85: Other Capital expenditure | J85: Straight line | K85: 2024-25 | L85: 15 | M85: 15 | Q85: 0.03675 | R85: 0.02205 | S85: 0.049 | T85: 0.0196 | U85: 0.05047 | AX85: =+Q85-AB85-AM85 -> 0.03675 | AY85: =+R85-AC85-AN85 -> 0.02205 | AZ85: =+S85-AD85-AO85 -> 0.049 | BA85: =+T85-AE85-AP85 -> 0.0196 | BB85: =+U85-AF85-AQ85 -> 0.05047 | BC85: =+V85-AG85-AR85 -> 0 | BD85: =+W85-AH85-AS85 -> 0 | BE85: =+X85-AI85-AT85 -> 0 | BF85: 0 | BG85: 0 | BI85: 0 | BJ85: 0.00196 | BK85: 0.005553333333 | BL85: 0.00784 | BM85: 0.01017566667 | BN85: 0.011858 | BO85: 0.011858 | BP85: 0.011858 | BQ85: 0.011858 | BR85: 0.011858 | BT85: =+IF($K85="Ongoing",AX85,IF(RIGHT($K85,2)=RIGHT(BT$39,2),SUM($AX85:AX85),0)+IF(RIGHT(BT$39,2)>RIGHT($K85,2),AX85,0)) -> 0 | BU85: =+IF($K85="Ongoing",AY85,IF(RIGHT($K85,2)=RIGHT(BU$39,2),SUM($AX85:AY85),0)+IF(RIGHT(BU$39,2)>RIGHT($K85,2),AY85,0)) -> 0.0588 | BV85: =+IF($K85="Ongoing",AZ85,IF(RIGHT($K85,2)=RIGHT(BV$39,2),SUM($AX85:AZ85),0)+IF(RIGHT(BV$39,2)>RIGHT($K85,2),AZ85,0)) -> 0.049 | BW85: =+IF($K85="Ongoing",BA85,IF(RIGHT($K85,2)=RIGHT(BW$39,2),SUM($AX85:BA85),0)+IF(RIGHT(BW$39,2)>RIGHT($K85,2),BA85,0)) -> 0.0196 | BX85: =+IF($K85="Ongoing",BB85,IF(RIGHT($K85,2)=RIGHT(BX$39,2),SUM($AX85:BB85),0)+IF(RIGHT(BX$39,2)>RIGHT($K85,2),BB85,0)) -> 0.05047 | BY85: =+IF($K85="Ongoing",BC85,IF(RIGHT($K85,2)=RIGHT(BY$39,2),SUM($AX85:BC85),0)+IF(RIGHT(BY$39,2)>RIGHT($K85,2),BC85,0)) -> 0 | BZ85: =+IF($K85="Ongoing",BD85,IF(RIGHT($K85,2)=RIGHT(BZ$39,2),SUM($AX85:BD85),0)+IF(RIGHT(BZ$39,2)>RIGHT($K85,2),BD85,0)) -> 0 | CA85: =+IF($K85="Ongoing",BE85,IF(RIGHT($K85,2)=RIGHT(CA$39,2),SUM($AX85:BE85),0)+IF(RIGHT(CA$39,2)>RIGHT($K85,2),BE85,0)) -> 0 | CB85: =+IF($K85="Ongoing",BF85,IF(RIGHT($K85,2)=RIGHT(CB$39,2),SUM($AX85:BF85),0)+IF(RIGHT(CB$39,2)>RIGHT($K85,2),BF85,0)) -> 0 | CC85: =+IF($K85="Ongoing",BG85,IF(RIGHT($K85,2)=RIGHT(CC$39,2),SUM($AX85:BG85),0)+IF(RIGHT(CC$39,2)>RIGHT($K85,2),BG85,0)) -> 0 | CE85: =+Q85*KeyAssumptionsPriceControl_FO!AC$15 -> 0.0378525 | CF85: =+R85*KeyAssumptionsPriceControl_FO!AD$15 -> 0.023392845 | CG85: =+S85*KeyAssumptionsPriceControl_FO!AE$15 -> 0.053543623 | CH85: =+T85*KeyAssumptionsPriceControl_FO!AF$15 -> 0.02205997268 | CI85: =+U85*KeyAssumptionsPriceControl_FO!AG$15 -> 0.05850856253 | CJ85: =+V85*KeyAssumptionsPriceControl_FO!AH$15 -> 0 | CK85: =+W85*KeyAssumptionsPriceControl_FO!AI$15 -> 0 | CL85: =+X85*KeyAssumptionsPriceControl_FO!AJ$15 -> 0 | CM85: =+Y85*KeyAssumptionsPriceControl_FO!AK$15 -> 0 | CN85: =+Z85*KeyAssumptionsPriceControl_FO!AL$15 -> 0 | CP85: =IF($M85=0,0, IF($M85<=0.5,CE85, IF($J85="straight line", IF((LEFT(CP$39,4)*1)-INT($M85)<LEFT($CP$39,4)*1,0,((OFFSET(CE85,0,-INT($M85+0.5),1,1))/$M85)*(IF($M85-INT($M85)>0.5,$M85-0.5-INT($M85),IF($M85-INT($M85)<=0.5,$M85-0.5-INT($M85)+1,0)))) +CE85/$M85*0.5, IF($J85="Declining Balance",-$CP$38,0)))) -> 0.00126175 | CQ85: =IF($M85=0,0, IF($M85<=0.5,CF85, IF(AND($J85="straight line",$M85<1.51),(CE85-((CE85/$M85)*0.5))+CF85/$M85*0.5, IF($J85="straight line", IF((LEFT(CQ$39,4)*1)-INT($M85)<LEFT($CP$39,4)*1,0,((OFFSET(CF85,0,-INT($M85+0.5),1,1))/$M85)*(IF($M85-INT($M85)>0.5,$M85-0.5-INT($M85),IF($M85-INT($M85)<=0.5,$M85-0.5-INT($M85)+1,0)))) +CF85/$M85*0.5 +SUM(OFFSET(CF85,0,MAX(-INT($M85+(0.5-(10^-12))),-CQ$40)+1,1,MIN(INT($M85+(0.5-(10^-12))),CQ$40)-1))*1/$M85, IF($J85="Declining Balance",-$CP$38,0))))) -> 0.0033032615 | CR85: =IF($M85=0,0, IF($M85<=0.5,CG85, IF(AND($J85="straight line",$M85<1.51),(CF85-((CF85/$M85)*0.5))+CG85/$M85*0.5, IF($J85="straight line", IF((LEFT(CR$39,4)*1)-INT($M85)<LEFT($CP$39,4)*1,0,((OFFSET(CG85,0,-INT($M85+0.5),1,1))/$M85)*(IF($M85-INT($M85)>0.5,$M85-0.5-INT($M85),IF($M85-INT($M85)<=0.5,$M85-0.5-INT($M85)+1,0)))) +CG85/$M85*0.5 +SUM(OFFSET(CG85,0,MAX(-INT($M85+(0.5-(10^-12))),-CR$40)+1,1,MIN(INT($M85+(0.5-(10^-12))),CR$40)-1))*1/$M85, IF($J85="Declining Balance",-$CP$38,0))))) -> 0.005867810433 | CS85: =IF($M85=0,0, IF($M85<=0.5,CH85, IF(AND($J85="straight line",$M85<1.51),(CG85-((CG85/$M85)*0.5))+CH85/$M85*0.5, IF($J85="straight line", IF((LEFT(CS$39,4)*1)-INT($M85)<LEFT($CP$39,4)*1,0,((OFFSET(CH85,0,-INT($M85+0.5),1,1))/$M85)*(IF($M85-INT($M85)>0.5,$M85-0.5-INT($M85),IF($M85-INT($M85)<=0.5,$M85-0.5-INT($M85)+1,0)))) +CH85/$M85*0.5 +SUM(OFFSET(CH85,0,MAX(-INT($M85+(0.5-(10^-12))),-CS$40)+1,1,MIN(INT($M85+(0.5-(10^-12))),CS$40)-1))*1/$M85, IF($J85="Declining Balance",-$CP$38,0))))) -> 0.008387930289 | CT85: =IF($M85=0,0, IF($M85<=0.5,CI85, IF(AND($J85="straight line",$M85<1.51),(CH85-((CH85/$M85)*0.5))+CI85/$M85*0.5, IF($J85="straight line", IF((LEFT(CT$39,4)*1)-INT($M85)<LEFT($CP$39,4)*1,0,((OFFSET(CI85,0,-INT($M85+0.5),1,1))/$M85)*(IF($M85-INT($M85)>0.5,$M85-0.5-INT($M85),IF($M85-INT($M85)<=0.5,$M85-0.5-INT($M85)+1,0)))) +CI85/$M85*0.5 +SUM(OFFSET(CI85,0,MAX(-INT($M85+(0.5-(10^-12))),-CT$40)+1,1,MIN(INT($M85+(0.5-(10^-12))),CT$40)-1))*1/$M85, IF($J85="Declining Balance",-$CP$38,0))))) -> 0.01107354813 | CU85: =IF($M85=0,0, IF($M85<=0.5,CJ85, IF(AND($J85="straight line",$M85<1.51),(CI85-((CI85/$M85)*0.5))+CJ85/$M85*0.5, IF($J85="straight line", IF((LEFT(CU$39,4)*1)-INT($M85)<LEFT($CP$39,4)*1,0,((OFFSET(CJ85,0,-INT($M85+0.5),1,1))/$M85)*(IF($M85-INT($M85)>0.5,$M85-0.5-INT($M85),IF($M85-INT($M85)<=0.5,$M85-0.5-INT($M85)+1,0)))) +CJ85/$M85*0.5 +SUM(OFFSET(CJ85,0,MAX(-INT($M85+(0.5-(10^-12))),-CU$40)+1,1,MIN(INT($M85+(0.5-(10^-12))),CU$40)-1))*1/$M85, IF($J85="Declining Balance",-$CP$38,0))))) -> 0.01302383355 | CV85: =IF($M85=0,0, IF($M85<=0.5,CK85, IF(AND($J85="straight line",$M85<1.51),(CJ85-((CJ85/$M85)*0.5))+CK85/$M85*0.5, IF($J85="straight line", IF((LEFT(CV$39,4)*1)-INT($M85)<LEFT($CP$39,4)*1,0,((OFFSET(CK85,0,-INT($M85+0.5),1,1))/$M85)*(IF($M85-INT($M85)>0.5,$M85-0.5-INT($M85),IF($M85-INT($M85)<=0.5,$M85-0.5-INT($M85)+1,0)))) +CK85/$M85*0.5 +SUM(OFFSET(CK85,0,MAX(-INT($M85+(0.5-(10^-12))),-CV$40)+1,1,MIN(INT($M85+(0.5-(10^-12))),CV$40)-1))*1/$M85, IF($J85="Declining Balance",-$CP$38,0))))) -> 0.01302383355 | CW85: =IF($M85=0,0, IF($M85<=0.5,CL85, IF(AND($J85="straight line",$M85<1.51),(CK85-((CK85/$M85)*0.5))+CL85/$M85*0.5, IF($J85="straight line", IF((LEFT(CW$39,4)*1)-INT($M85)<LEFT($CP$39,4)*1,0,((OFFSET(CL85,0,-INT($M85+0.5),1,1))/$M85)*(IF($M85-INT($M85)>0.5,$M85-0.5-INT($M85),IF($M85-INT($M85)<=0.5,$M85-0.5-INT($M85)+1,0)))) +CL85/$M85*0.5 +SUM(OFFSET(CL85,0,MAX(-INT($M85+(0.5-(10^-12))),-CW$40)+1,1,MIN(INT($M85+(0.5-(10^-12))),CW$40)-1))*1/$M85, IF($J85="Declining Balance",-$CP$38,0))))) -> 0.01302383355 | CX85: =IF($M85=0,0, IF($M85<=0.5,CM85, IF(AND($J85="straight line",$M85<1.51),(CL85-((CL85/$M85)*0.5))+CM85/$M85*0.5, IF($J85="straight line", IF((LEFT(CX$39,4)*1)-INT($M85)<LEFT($CP$39,4)*1,0,((OFFSET(CM85,0,-INT($M85+0.5),1,1))/$M85)*(IF($M85-INT($M85)>0.5,$M85-0.5-INT($M85),IF($M85-INT($M85)<=0.5,$M85-0.5-INT($M85)+1,0)))) +CM85/$M85*0.5 +SUM(OFFSET(CM85,0,MAX(-INT($M85+(0.5-(10^-12))),-CX$40)+1,1,MIN(INT($M85+(0.5-(10^-12))),CX$40)-1))*1/$M85, IF($J85="Declining Balance",-$CP$38,0))))) -> 0.01302383355 | CY85: =IF($M85=0,0, IF($M85<=0.5,CN85, IF(AND($J85="straight line",$M85<1.51),(CM85-((CM85/$M85)*0.5))+CN85/$M85*0.5, IF($J85="straight line", IF((LEFT(CY$39,4)*1)-INT($M85)<LEFT($CP$39,4)*1,0,((OFFSET(CN85,0,-INT($M85+0.5),1,1))/$M85)*(IF($M85-INT($M85)>0.5,$M85-0.5-INT($M85),IF($M85-INT($M85)<=0.5,$M85-0.5-INT($M85)+1,0)))) +CN85/$M85*0.5 +SUM(OFFSET(CN85,0,MAX(-INT($M85+(0.5-(10^-12))),-CY$40)+1,1,MIN(INT($M85+(0.5-(10^-12))),CY$40)-1))*1/$M85, IF($J85="Declining Balance",-$CP$38,0))))) -> 0.01302383355
C86: Minor compliance projects | E86: Recycled Water | F86: Improvements / Compliance | G86: Corporate | H86: Other Capital expenditure | J86: Straight line | K86: 2024-25 | L86: 15 | M86: 15 | Q86: 0.0015 | R86: 0.0009 | S86: 0.002 | T86: 0.0008 | U86: 0.00206 | AX86: 0.0015 | AY86: 0.0009 | AZ86: 0.002 | BA86: 0.0008 | BB86: 0.00206 | BC86: 0 | BD86: 0 | BE86: 0 | BF86: 0 | BG86: 0 | BI86: 0 | BJ86: 8e-05 | BK86: 0.0002266666667 | BL86: 0.00032 | BM86: 0.0004153333333 | BN86: 0.000484 | BO86: 0.000484 | BP86: 0.000484 | BQ86: 0.000484 | BR86: 0.000484 | BT86: =+IF($K86="Ongoing",AX86,IF(RIGHT($K86,2)=RIGHT(BT$39,2),SUM($AX86:AX86),0)+IF(RIGHT(BT$39,2)>RIGHT($K86,2),AX86,0)) -> 0 | BU86: =+IF($K86="Ongoing",AY86,IF(RIGHT($K86,2)=RIGHT(BU$39,2),SUM($AX86:AY86),0)+IF(RIGHT(BU$39,2)>RIGHT($K86,2),AY86,0)) -> 0.0024 | BV86: =+IF($K86="Ongoing",AZ86,IF(RIGHT($K86,2)=RIGHT(BV$39,2),SUM($AX86:AZ86),0)+IF(RIGHT(BV$39,2)>RIGHT($K86,2),AZ86,0)) -> 0.002 | BW86: =+IF($K86="Ongoing",BA86,IF(RIGHT($K86,2)=RIGHT(BW$39,2),SUM($AX86:BA86),0)+IF(RIGHT(BW$39,2)>RIGHT($K86,2),BA86,0)) -> 0.0008 | BX86: =+IF($K86="Ongoing",BB86,IF(RIGHT($K86,2)=RIGHT(BX$39,2),SUM($AX86:BB86),0)+IF(RIGHT(BX$39,2)>RIGHT($K86,2),BB86,0)) -> 0.00206 | BY86: =+IF($K86="Ongoing",BC86,IF(RIGHT($K86,2)=RIGHT(BY$39,2),SUM($AX86:BC86),0)+IF(RIGHT(BY$39,2)>RIGHT($K86,2),BC86,0)) -> 0 | BZ86: =+IF($K86="Ongoing",BD86,IF(RIGHT($K86,2)=RIGHT(BZ$39,2),SUM($AX86:BD86),0)+IF(RIGHT(BZ$39,2)>RIGHT($K86,2),BD86,0)) -> 0 | CA86: =+IF($K86="Ongoing",BE86,IF(RIGHT($K86,2)=RIGHT(CA$39,2),SUM($AX86:BE86),0)+IF(RIGHT(CA$39,2)>RIGHT($K86,2),BE86,0)) -> 0 | CB86: =+IF($K86="Ongoing",BF86,IF(RIGHT($K86,2)=RIGHT(CB$39,2),SUM($AX86:BF86),0)+IF(RIGHT(CB$39,2)>RIGHT($K86,2),BF86,0)) -> 0 | CC86: =+IF($K86="Ongoing",BG86,IF(RIGHT($K86,2)=RIGHT(CC$39,2),SUM($AX86:BG86),0)+IF(RIGHT(CC$39,2)>RIGHT($K86,2),BG86,0)) -> 0 | CE86: =+Q86*KeyAssumptionsPriceControl_FO!AC$15 -> 0.001545 | CF86: =+R86*KeyAssumptionsPriceControl_FO!AD$15 -> 0.00095481 | CG86: =+S86*KeyAssumptionsPriceControl_FO!AE$15 -> 0.002185454 | CH86: =+T86*KeyAssumptionsPriceControl_FO!AF$15 -> 0.000900407048 | CI86: =+U86*KeyAssumptionsPriceControl_FO!AG$15 -> 0.002388104593 | CJ86: =+V86*KeyAssumptionsPriceControl_FO!AH$15 -> 0 | CK86: =+W86*KeyAssumptionsPriceControl_FO!AI$15 -> 0 | CL86: =+X86*KeyAssumptionsPriceControl_FO!AJ$15 -> 0 | CM86: =+Y86*KeyAssumptionsPriceControl_FO!AK$15 -> 0 | CN86: =+Z86*KeyAssumptionsPriceControl_FO!AL$15 -> 0 | CP86: 5.15e-05 | CQ86: 0.000134827 | CR86: 0.0002395024667 | CS86: 0.0003423645016 | CT86: 0.0004519815563 | CU86: 0.0005315850427 | CV86: 0.0005315850427 | CW86: 0.0005315850427 | CX86: 0.0005315850427 | CY86: 0.0005315850427
C87: Water distribution and storage improvement | E87: Water | F87: Improvements / Compliance | G87: Pipelines/network | H87: Capital Programs / Allocation | J87: Straight line | K87: 2025-26 | L87: 70 | M87: 70 | Q87: 0.28 | R87: 0.0225 | S87: 0.3725 | T87: 0.57 | U87: 0 | V87: 0 | W87: 0 | X87: 0 | Y87: 0 | Z87: 0 | AX87: 0.28 | AY87: 0.0225 | AZ87: 0.3725 | BA87: 0.57 | BB87: 0 | BC87: 0 | BD87: 0 | BE87: 0 | BF87: 0 | BG87: 0 | BI87: 0 | BJ87: 0 | BK87: 0.004821428571 | BL87: 0.01371428571 | BM87: 0.01778571429 | BN87: 0.01778571429 | BO87: 0.01778571429 | BP87: 0.01778571429 | BQ87: 0.01778571429 | BR87: 0.01778571429 | BT87: =+IF($K87="Ongoing",AX87,IF(RIGHT($K87,2)=RIGHT(BT$39,2),SUM($AX87:AX87),0)+IF(RIGHT(BT$39,2)>RIGHT($K87,2),AX87,0)) -> 0 | BU87: =+IF($K87="Ongoing",AY87,IF(RIGHT($K87,2)=RIGHT(BU$39,2),SUM($AX87:AY87),0)+IF(RIGHT(BU$39,2)>RIGHT($K87,2),AY87,0)) -> 0 | BV87: =+IF($K87="Ongoing",AZ87,IF(RIGHT($K87,2)=RIGHT(BV$39,2),SUM($AX87:AZ87),0)+IF(RIGHT(BV$39,2)>RIGHT($K87,2),AZ87,0)) -> 0.675 | BW87: =+IF($K87="Ongoing",BA87,IF(RIGHT($K87,2)=RIGHT(BW$39,2),SUM($AX87:BA87),0)+IF(RIGHT(BW$39,2)>RIGHT($K87,2),BA87,0)) -> 0.57 | BX87: =+IF($K87="Ongoing",BB87,IF(RIGHT($K87,2)=RIGHT(BX$39,2),SUM($AX87:BB87),0)+IF(RIGHT(BX$39,2)>RIGHT($K87,2),BB87,0)) -> 0 | BY87: =+IF($K87="Ongoing",BC87,IF(RIGHT($K87,2)=RIGHT(BY$39,2),SUM($AX87:BC87),0)+IF(RIGHT(BY$39,2)>RIGHT($K87,2),BC87,0)) -> 0 | BZ87: =+IF($K87="Ongoing",BD87,IF(RIGHT($K87,2)=RIGHT(BZ$39,2),SUM($AX87:BD87),0)+IF(RIGHT(BZ$39,2)>RIGHT($K87,2),BD87,0)) -> 0 | CA87: =+IF($K87="Ongoing",BE87,IF(RIGHT($K87,2)=RIGHT(CA$39,2),SUM($AX87:BE87),0)+IF(RIGHT(CA$39,2)>RIGHT($K87,2),BE87,0)) -> 0 | CB87: =+IF($K87="Ongoing",BF87,IF(RIGHT($K87,2)=RIGHT(CB$39,2),SUM($AX87:BF87),0)+IF(RIGHT(CB$39,2)>RIGHT($K87,2),BF87,0)) -> 0 | CC87: =+IF($K87="Ongoing",BG87,IF(RIGHT($K87,2)=RIGHT(CC$39,2),SUM($AX87:BG87),0)+IF(RIGHT(CC$39,2)>RIGHT($K87,2),BG87,0)) -> 0 | CE87: =+Q87*KeyAssumptionsPriceControl_FO!AC$15 -> 0.2884 | CF87: =+R87*KeyAssumptionsPriceControl_FO!AD$15 -> 0.02387025 | CG87: =+S87*KeyAssumptionsPriceControl_FO!AE$15 -> 0.4070408075 | CH87: =+T87*KeyAssumptionsPriceControl_FO!AF$15 -> 0.6415400217 | CI87: =+U87*KeyAssumptionsPriceControl_FO!AG$15 -> 0 | CJ87: =+V87*KeyAssumptionsPriceControl_FO!AH$15 -> 0 | CK87: =+W87*KeyAssumptionsPriceControl_FO!AI$15 -> 0 | CL87: =+X87*KeyAssumptionsPriceControl_FO!AJ$15 -> 0 | CM87: =+Y87*KeyAssumptionsPriceControl_FO!AK$15 -> 0 | CN87: =+Z87*KeyAssumptionsPriceControl_FO!AL$15 -> 0 | CP87: 0.00206 | CQ87: 0.004290501786 | CR87: 0.007368437911 | CS87: 0.01485830098 | CT87: 0.0194407297 | CU87: 0.0194407297 | CV87: 0.0194407297 | CW87: 0.0194407297 | CX87: 0.0194407297 | CY87: 0.0194407297
C88: Sewage pump station improvement program | E88: Sewerage | F88: Improvements / Compliance | G88: Treatment | H88: Capital Programs / Allocation | J88: Straight line | K88: Ongoing | L88: 25 | M88: 25 | Q88: 0.01 | R88: 0.14 | S88: 0.03 | T88: 0.03 | U88: 0.06 | V88: 0 | W88: 0 | X88: 0 | Y88: 0 | Z88: 0 | AX88: 0.01 | AY88: 0.14 | AZ88: 0.03 | BA88: 0.03 | BB88: 0.06 | BC88: 0 | BD88: 0 | BE88: 0 | BF88: 0 | BG88: 0 | BI88: 0.0002 | BJ88: 0.0032 | BK88: 0.0066 | BL88: 0.0078 | BM88: 0.0096 | BN88: 0.0108 | BO88: 0.0108 | BP88: 0.0108 | BQ88: 0.0108 | BR88: 0.0108 | BT88: =+IF($K88="Ongoing",AX88,IF(RIGHT($K88,2)=RIGHT(BT$39,2),SUM($AX88:AX88),0)+IF(RIGHT(BT$39,2)>RIGHT($K88,2),AX88,0)) -> 0.01 | BU88: =+IF($K88="Ongoing",AY88,IF(RIGHT($K88,2)=RIGHT(BU$39,2),SUM($AX88:AY88),0)+IF(RIGHT(BU$39,2)>RIGHT($K88,2),AY88,0)) -> 0.14 | BV88: =+IF($K88="Ongoing",AZ88,IF(RIGHT($K88,2)=RIGHT(BV$39,2),SUM($AX88:AZ88),0)+IF(RIGHT(BV$39,2)>RIGHT($K88,2),AZ88,0)) -> 0.03 | BW88: =+IF($K88="Ongoing",BA88,IF(RIGHT($K88,2)=RIGHT(BW$39,2),SUM($AX88:BA88),0)+IF(RIGHT(BW$39,2)>RIGHT($K88,2),BA88,0)) -> 0.03 | BX88: =+IF($K88="Ongoing",BB88,IF(RIGHT($K88,2)=RIGHT(BX$39,2),SUM($AX88:BB88),0)+IF(RIGHT(BX$39,2)>RIGHT($K88,2),BB88,0)) -> 0.06 | BY88: =+IF($K88="Ongoing",BC88,IF(RIGHT($K88,2)=RIGHT(BY$39,2),SUM($AX88:BC88),0)+IF(RIGHT(BY$39,2)>RIGHT($K88,2),BC88,0)) -> 0 | BZ88: =+IF($K88="Ongoing",BD88,IF(RIGHT($K88,2)=RIGHT(BZ$39,2),SUM($AX88:BD88),0)+IF(RIGHT(BZ$39,2)>RIGHT($K88,2),BD88,0)) -> 0 | CA88: =+IF($K88="Ongoing",BE88,IF(RIGHT($K88,2)=RIGHT(CA$39,2),SUM($AX88:BE88),0)+IF(RIGHT(CA$39,2)>RIGHT($K88,2),BE88,0)) -> 0 | CB88: =+IF($K88="Ongoing",BF88,IF(RIGHT($K88,2)=RIGHT(CB$39,2),SUM($AX88:BF88),0)+IF(RIGHT(CB$39,2)>RIGHT($K88,2),BF88,0)) -> 0 | CC88: =+IF($K88="Ongoing",BG88,IF(RIGHT($K88,2)=RIGHT(CC$39,2),SUM($AX88:BG88),0)+IF(RIGHT(CC$39,2)>RIGHT($K88,2),BG88,0)) -> 0 | CE88: =+Q88*KeyAssumptionsPriceControl_FO!AC$15 -> 0.0103 | CF88: =+R88*KeyAssumptionsPriceControl_FO!AD$15 -> 0.148526 | CG88: =+S88*KeyAssumptionsPriceControl_FO!AE$15 -> 0.03278181 | CH88: =+T88*KeyAssumptionsPriceControl_FO!AF$15 -> 0.0337652643 | CI88: =+U88*KeyAssumptionsPriceControl_FO!AG$15 -> 0.06955644446 | CJ88: =+V88*KeyAssumptionsPriceControl_FO!AH$15 -> 0 | CK88: =+W88*KeyAssumptionsPriceControl_FO!AI$15 -> 0 | CL88: =+X88*KeyAssumptionsPriceControl_FO!AJ$15 -> 0 | CM88: =+Y88*KeyAssumptionsPriceControl_FO!AK$15 -> 0 | CN88: =+Z88*KeyAssumptionsPriceControl_FO!AL$15 -> 0 | CP88: 0.000206 | CQ88: 0.00338252 | CR88: 0.0070086762 | CS88: 0.008339617686 | CT88: 0.01040605186 | CU88: 0.01179718075 | CV88: 0.01179718075 | CW88: 0.01179718075 | CX88: 0.01179718075 | CY88: 0.01179718075
C89: OH&S compliance program - pricing submission 2023 | E89: Water | F89: Improvements / Compliance | G89: Corporate | H89: Capital Programs / Allocation | J89: Straight line | K89: Ongoing | L89: 15 | M89: 15 | Q89: 0.0245 | R89: 0.0245 | S89: 0.0245 | T89: 0.0245 | U89: 0.0245 | V89: 0.0245 | W89: 0.0245 | X89: 0.0245 | Y89: 0.0245 | Z89: 0.0245 | AX89: 0.0245 | AY89: 0.0245 | AZ89: 0.0245 | BA89: 0.0245 | BB89: 0.0245 | BC89: 0.0245 | BD89: 0.0245 | BE89: 0.0245 | BF89: 0.0245 | BG89: 0.0245 | BI89: 0.0008166666667 | BJ89: 0.00245 | BK89: 0.004083333333 | BL89: 0.005716666667 | BM89: 0.00735 | BN89: 0.008983333333 | BO89: 0.01061666667 | BP89: 0.01225 | BQ89: 0.01388333333 | BR89: 0.01551666667 | BT89: =+IF($K89="Ongoing",AX89,IF(RIGHT($K89,2)=RIGHT(BT$39,2),SUM($AX89:AX89),0)+IF(RIGHT(BT$39,2)>RIGHT($K89,2),AX89,0)) -> 0.0245 | BU89: =+IF($K89="Ongoing",AY89,IF(RIGHT($K89,2)=RIGHT(BU$39,2),SUM($AX89:AY89),0)+IF(RIGHT(BU$39,2)>RIGHT($K89,2),AY89,0)) -> 0.0245 | BV89: =+IF($K89="Ongoing",AZ89,IF(RIGHT($K89,2)=RIGHT(BV$39,2),SUM($AX89:AZ89),0)+IF(RIGHT(BV$39,2)>RIGHT($K89,2),AZ89,0)) -> 0.0245 | BW89: =+IF($K89="Ongoing",BA89,IF(RIGHT($K89,2)=RIGHT(BW$39,2),SUM($AX89:BA89),0)+IF(RIGHT(BW$39,2)>RIGHT($K89,2),BA89,0)) -> 0.0245 | BX89: =+IF($K89="Ongoing",BB89,IF(RIGHT($K89,2)=RIGHT(BX$39,2),SUM($AX89:BB89),0)+IF(RIGHT(BX$39,2)>RIGHT($K89,2),BB89,0)) -> 0.0245 | BY89: =+IF($K89="Ongoing",BC89,IF(RIGHT($K89,2)=RIGHT(BY$39,2),SUM($AX89:BC89),0)+IF(RIGHT(BY$39,2)>RIGHT($K89,2),BC89,0)) -> 0.0245 | BZ89: =+IF($K89="Ongoing",BD89,IF(RIGHT($K89,2)=RIGHT(BZ$39,2),SUM($AX89:BD89),0)+IF(RIGHT(BZ$39,2)>RIGHT($K89,2),BD89,0)) -> 0.0245 | CA89: =+IF($K89="Ongoing",BE89,IF(RIGHT($K89,2)=RIGHT(CA$39,2),SUM($AX89:BE89),0)+IF(RIGHT(CA$39,2)>RIGHT($K89,2),BE89,0)) -> 0.0245 | CB89: =+IF($K89="Ongoing",BF89,IF(RIGHT($K89,2)=RIGHT(CB$39,2),SUM($AX89:BF89),0)+IF(RIGHT(CB$39,2)>RIGHT($K89,2),BF89,0)) -> 0.0245 | CC89: =+IF($K89="Ongoing",BG89,IF(RIGHT($K89,2)=RIGHT(CC$39,2),SUM($AX89:BG89),0)+IF(RIGHT(CC$39,2)>RIGHT($K89,2),BG89,0)) -> 0.0245 | CE89: =+Q89*KeyAssumptionsPriceControl_FO!AC$15 -> 0.025235 | CF89: =+R89*KeyAssumptionsPriceControl_FO!AD$15 -> 0.02599205 | CG89: =+S89*KeyAssumptionsPriceControl_FO!AE$15 -> 0.0267718115 | CH89: =+T89*KeyAssumptionsPriceControl_FO!AF$15 -> 0.02757496585 | CI89: =+U89*KeyAssumptionsPriceControl_FO!AG$15 -> 0.02840221482 | CJ89: =+V89*KeyAssumptionsPriceControl_FO!AH$15 -> 0.02925428126 | CK89: =+W89*KeyAssumptionsPriceControl_FO!AI$15 -> 0.0301319097 | CL89: =+X89*KeyAssumptionsPriceControl_FO!AJ$15 -> 0.03103586699 | CM89: =+Y89*KeyAssumptionsPriceControl_FO!AK$15 -> 0.031966943 | CN89: =+Z89*KeyAssumptionsPriceControl_FO!AL$15 -> 0.03292595129 | CP89: 0.0008411666667 | CQ89: 0.002548735 | CR89: 0.004307530383 | CS89: 0.006119089628 | CT89: 0.00798499565 | CU89: 0.009906878853 | CV89: 0.01188641855 | CW89: 0.01392534444 | CX89: 0.01602543811 | CY89: 0.01818853459
C90: OH&S compliance program - pricing submission 2023 | E90: Sewerage | F90: Improvements / Compliance | G90: Corporate | H90: Capital Programs / Allocation | J90: Straight line | K90: Ongoing | L90: 15 | M90: 15 | Q90: 0.0245 | R90: 0.0245 | S90: 0.0245 | T90: 0.0245 | U90: 0.0245 | V90: 0.0245 | W90: 0.0245 | X90: 0.0245 | Y90: 0.0245 | Z90: 0.0245 | AX90: 0.0245 | AY90: 0.0245 | AZ90: 0.0245 | BA90: 0.0245 | BB90: 0.0245 | BC90: 0.0245 | BD90: 0.0245 | BE90: 0.0245 | BF90: 0.0245 | BG90: 0.0245 | BI90: 0.0008166666667 | BJ90: 0.00245 | BK90: 0.004083333333 | BL90: 0.005716666667 | BM90: 0.00735 | BN90: 0.008983333333 | BO90: 0.01061666667 | BP90: 0.01225 | BQ90: 0.01388333333 | BR90: 0.01551666667 | BT90: =+IF($K90="Ongoing",AX90,IF(RIGHT($K90,2)=RIGHT(BT$39,2),SUM($AX90:AX90),0)+IF(RIGHT(BT$39,2)>RIGHT($K90,2),AX90,0)) -> 0.0245 | BU90: =+IF($K90="Ongoing",AY90,IF(RIGHT($K90,2)=RIGHT(BU$39,2),SUM($AX90:AY90),0)+IF(RIGHT(BU$39,2)>RIGHT($K90,2),AY90,0)) -> 0.0245 | BV90: =+IF($K90="Ongoing",AZ90,IF(RIGHT($K90,2)=RIGHT(BV$39,2),SUM($AX90:AZ90),0)+IF(RIGHT(BV$39,2)>RIGHT($K90,2),AZ90,0)) -> 0.0245 | BW90: =+IF($K90="Ongoing",BA90,IF(RIGHT($K90,2)=RIGHT(BW$39,2),SUM($AX90:BA90),0)+IF(RIGHT(BW$39,2)>RIGHT($K90,2),BA90,0)) -> 0.0245 | BX90: =+IF($K90="Ongoing",BB90,IF(RIGHT($K90,2)=RIGHT(BX$39,2),SUM($AX90:BB90),0)+IF(RIGHT(BX$39,2)>RIGHT($K90,2),BB90,0)) -> 0.0245 | BY90: =+IF($K90="Ongoing",BC90,IF(RIGHT($K90,2)=RIGHT(BY$39,2),SUM($AX90:BC90),0)+IF(RIGHT(BY$39,2)>RIGHT($K90,2),BC90,0)) -> 0.0245 | BZ90: =+IF($K90="Ongoing",BD90,IF(RIGHT($K90,2)=RIGHT(BZ$39,2),SUM($AX90:BD90),0)+IF(RIGHT(BZ$39,2)>RIGHT($K90,2),BD90,0)) -> 0.0245 | CA90: =+IF($K90="Ongoing",BE90,IF(RIGHT($K90,2)=RIGHT(CA$39,2),SUM($AX90:BE90),0)+IF(RIGHT(CA$39,2)>RIGHT($K90,2),BE90,0)) -> 0.0245 | CB90: =+IF($K90="Ongoing",BF90,IF(RIGHT($K90,2)=RIGHT(CB$39,2),SUM($AX90:BF90),0)+IF(RIGHT(CB$39,2)>RIGHT($K90,2),BF90,0)) -> 0.0245 | CC90: =+IF($K90="Ongoing",BG90,IF(RIGHT($K90,2)=RIGHT(CC$39,2),SUM($AX90:BG90),0)+IF(RIGHT(CC$39,2)>RIGHT($K90,2),BG90,0)) -> 0.0245 | CE90: =+Q90*KeyAssumptionsPriceControl_FO!AC$15 -> 0.025235 | CF90: =+R90*KeyAssumptionsPriceControl_FO!AD$15 -> 0.02599205 | CG90: =+S90*KeyAssumptionsPriceControl_FO!AE$15 -> 0.0267718115 | CH90: =+T90*KeyAssumptionsPriceControl_FO!AF$15 -> 0.02757496585 | CI90: =+U90*KeyAssumptionsPriceControl_FO!AG$15 -> 0.02840221482 | CJ90: =+V90*KeyAssumptionsPriceControl_FO!AH$15 -> 0.02925428126 | CK90: =+W90*KeyAssumptionsPriceControl_FO!AI$15 -> 0.0301319097 | CL90: =+X90*KeyAssumptionsPriceControl_FO!AJ$15 -> 0.03103586699 | CM90: =+Y90*KeyAssumptionsPriceControl_FO!AK$15 -> 0.031966943 | CN90: =+Z90*KeyAssumptionsPriceControl_FO!AL$15 -> 0.03292595129 | CP90: 0.0008411666667 | CQ90: 0.002548735 | CR90: 0.004307530383 | CS90: 0.006119089628 | CT90: 0.00798499565 | CU90: 0.009906878853 | CV90: 0.01188641855 | CW90: 0.01392534444 | CX90: 0.01602543811 | CY90: 0.01818853459
C91: OH&S compliance program - pricing submission 2023 | E91: Recycled Water | F91: Improvements / Compliance | G91: Corporate | H91: Capital Programs / Allocation | J91: Straight line | K91: Ongoing | L91: 15 | M91: 15 | Q91: 0.001 | R91: 0.001 | S91: 0.001 | T91: 0.001 | U91: 0.001 | V91: 0.001 | W91: 0.001 | X91: 0.001 | Y91: 0.001 | Z91: 0.001 | AX91: 0.001 | AY91: 0.001 | AZ91: 0.001 | BA91: 0.001 | BB91: 0.001 | BC91: 0.001 | BD91: 0.001 | BE91: 0.001 | BF91: 0.001 | BG91: 0.001 | BI91: 3.333333333e-05 | BJ91: 0.0001 | BK91: 0.0001666666667 | BL91: 0.0002333333333 | BM91: 0.0003 | BN91: 0.0003666666667 | BO91: 0.0004333333333 | BP91: 0.0005 | BQ91: 0.0005666666667 | BR91: 0.0006333333333 | BT91: =+IF($K91="Ongoing",AX91,IF(RIGHT($K91,2)=RIGHT(BT$39,2),SUM($AX91:AX91),0)+IF(RIGHT(BT$39,2)>RIGHT($K91,2),AX91,0)) -> 0.001 | BU91: =+IF($K91="Ongoing",AY91,IF(RIGHT($K91,2)=RIGHT(BU$39,2),SUM($AX91:AY91),0)+IF(RIGHT(BU$39,2)>RIGHT($K91,2),AY91,0)) -> 0.001 | BV91: =+IF($K91="Ongoing",AZ91,IF(RIGHT($K91,2)=RIGHT(BV$39,2),SUM($AX91:AZ91),0)+IF(RIGHT(BV$39,2)>RIGHT($K91,2),AZ91,0)) -> 0.001 | BW91: =+IF($K91="Ongoing",BA91,IF(RIGHT($K91,2)=RIGHT(BW$39,2),SUM($AX91:BA91),0)+IF(RIGHT(BW$39,2)>RIGHT($K91,2),BA91,0)) -> 0.001 | BX91: =+IF($K91="Ongoing",BB91,IF(RIGHT($K91,2)=RIGHT(BX$39,2),SUM($AX91:BB91),0)+IF(RIGHT(BX$39,2)>RIGHT($K91,2),BB91,0)) -> 0.001 | BY91: =+IF($K91="Ongoing",BC91,IF(RIGHT($K91,2)=RIGHT(BY$39,2),SUM($AX91:BC91),0)+IF(RIGHT(BY$39,2)>RIGHT($K91,2),BC91,0)) -> 0.001 | BZ91: =+IF($K91="Ongoing",BD91,IF(RIGHT($K91,2)=RIGHT(BZ$39,2),SUM($AX91:BD91),0)+IF(RIGHT(BZ$39,2)>RIGHT($K91,2),BD91,0)) -> 0.001 | CA91: =+IF($K91="Ongoing",BE91,IF(RIGHT($K91,2)=RIGHT(CA$39,2),SUM($AX91:BE91),0)+IF(RIGHT(CA$39,2)>RIGHT($K91,2),BE91,0)) -> 0.001 | CB91: =+IF($K91="Ongoing",BF91,IF(RIGHT($K91,2)=RIGHT(CB$39,2),SUM($AX91:BF91),0)+IF(RIGHT(CB$39,2)>RIGHT($K91,2),BF91,0)) -> 0.001 | CC91: =+IF($K91="Ongoing",BG91,IF(RIGHT($K91,2)=RIGHT(CC$39,2),SUM($AX91:BG91),0)+IF(RIGHT(CC$39,2)>RIGHT($K91,2),BG91,0)) -> 0.001 | CE91: =+Q91*KeyAssumptionsPriceControl_FO!AC$15 -> 0.00103 | CF91: =+R91*KeyAssumptionsPriceControl_FO!AD$15 -> 0.0010609 | CG91: =+S91*KeyAssumptionsPriceControl_FO!AE$15 -> 0.001092727 | CH91: =+T91*KeyAssumptionsPriceControl_FO!AF$15 -> 0.00112550881 | CI91: =+U91*KeyAssumptionsPriceControl_FO!AG$15 -> 0.001159274074 | CJ91: =+V91*KeyAssumptionsPriceControl_FO!AH$15 -> 0.001194052297 | CK91: =+W91*KeyAssumptionsPriceControl_FO!AI$15 -> 0.001229873865 | CL91: =+X91*KeyAssumptionsPriceControl_FO!AJ$15 -> 0.001266770081 | CM91: =+Y91*KeyAssumptionsPriceControl_FO!AK$15 -> 0.001304773184 | CN91: =+Z91*KeyAssumptionsPriceControl_FO!AL$15 -> 0.001343916379 | CP91: 3.433333333e-05 | CQ91: 0.00010403 | CR91: 0.0001758175667 | CS91: 0.0002497587603 | CT91: 0.0003259181898 | CU91: 0.0004043624022 | CV91: 0.0004851599409 | CW91: 0.0005683814058 | CX91: 0.0006540995146 | CY91: 0.0007423891667
C92: Minor storages civil, mechanical and electrical - pricing submission 23 | E92: Water | F92: Renewals | G92: Pipelines/network | H92: Other Capital expenditure | J92: Straight line | K92: 2027-28 | L92: 15 | M92: 15 | Q92: 0.0327 | R92: 0.0377 | S92: 0.0439 | T92: 0.0511 | U92: 0.0596 | V92: 0 | W92: 0 | X92: 0 | Y92: 0 | Z92: 0 | AX92: 0.0327 | AY92: 0.0377 | AZ92: 0.0439 | BA92: 0.0511 | BB92: 0.0596 | BC92: 0 | BD92: 0 | BE92: 0 | BF92: 0 | BG92: 0 | BI92: 0 | BJ92: 0 | BK92: 0 | BL92: 0 | BM92: 0.0075 | BN92: 0.015 | BO92: 0.015 | BP92: 0.015 | BQ92: 0.015 | BR92: 0.015 | BT92: =+IF($K92="Ongoing",AX92,IF(RIGHT($K92,2)=RIGHT(BT$39,2),SUM($AX92:AX92),0)+IF(RIGHT(BT$39,2)>RIGHT($K92,2),AX92,0)) -> 0 | BU92: =+IF($K92="Ongoing",AY92,IF(RIGHT($K92,2)=RIGHT(BU$39,2),SUM($AX92:AY92),0)+IF(RIGHT(BU$39,2)>RIGHT($K92,2),AY92,0)) -> 0 | BV92: =+IF($K92="Ongoing",AZ92,IF(RIGHT($K92,2)=RIGHT(BV$39,2),SUM($AX92:AZ92),0)+IF(RIGHT(BV$39,2)>RIGHT($K92,2),AZ92,0)) -> 0 | BW92: =+IF($K92="Ongoing",BA92,IF(RIGHT($K92,2)=RIGHT(BW$39,2),SUM($AX92:BA92),0)+IF(RIGHT(BW$39,2)>RIGHT($K92,2),BA92,0)) -> 0 | BX92: =+IF($K92="Ongoing",BB92,IF(RIGHT($K92,2)=RIGHT(BX$39,2),SUM($AX92:BB92),0)+IF(RIGHT(BX$39,2)>RIGHT($K92,2),BB92,0)) -> 0.225 | BY92: =+IF($K92="Ongoing",BC92,IF(RIGHT($K92,2)=RIGHT(BY$39,2),SUM($AX92:BC92),0)+IF(RIGHT(BY$39,2)>RIGHT($K92,2),BC92,0)) -> 0 | BZ92: =+IF($K92="Ongoing",BD92,IF(RIGHT($K92,2)=RIGHT(BZ$39,2),SUM($AX92:BD92),0)+IF(RIGHT(BZ$39,2)>RIGHT($K92,2),BD92,0)) -> 0 | CA92: =+IF($K92="Ongoing",BE92,IF(RIGHT($K92,2)=RIGHT(CA$39,2),SUM($AX92:BE92),0)+IF(RIGHT(CA$39,2)>RIGHT($K92,2),BE92,0)) -> 0 | CB92: =+IF($K92="Ongoing",BF92,IF(RIGHT($K92,2)=RIGHT(CB$39,2),SUM($AX92:BF92),0)+IF(RIGHT(CB$39,2)>RIGHT($K92,2),BF92,0)) -> 0 | CC92: =+IF($K92="Ongoing",BG92,IF(RIGHT($K92,2)=RIGHT(CC$39,2),SUM($AX92:BG92),0)+IF(RIGHT(CC$39,2)>RIGHT($K92,2),BG92,0)) -> 0 | CE92: =+Q92*KeyAssumptionsPriceControl_FO!AC$15 -> 0.033681 | CF92: =+R92*KeyAssumptionsPriceControl_FO!AD$15 -> 0.03999593 | CG92: =+S92*KeyAssumptionsPriceControl_FO!AE$15 -> 0.0479707153 | CH92: =+T92*KeyAssumptionsPriceControl_FO!AF$15 -> 0.05751350019 | CI92: =+U92*KeyAssumptionsPriceControl_FO!AG$15 -> 0.06909273483 | CJ92: =+V92*KeyAssumptionsPriceControl_FO!AH$15 -> 0 | CK92: =+W92*KeyAssumptionsPriceControl_FO!AI$15 -> 0 | CL92: =+X92*KeyAssumptionsPriceControl_FO!AJ$15 -> 0 | CM92: =+Y92*KeyAssumptionsPriceControl_FO!AK$15 -> 0 | CN92: =+Z92*KeyAssumptionsPriceControl_FO!AL$15 -> 0 | CP92: 0.0011227 | CQ92: 0.003578597667 | CR92: 0.006510819177 | CS92: 0.01002695969 | CT92: 0.01424716753 | CU92: 0.01655025869 | CV92: 0.01655025869 | CW92: 0.01655025869 | CX92: 0.01655025869 | CY92: 0.01655025869
C93: Candowie & San Remo Basin Dam Safety Program | E93: Water | F93: Improvements / Compliance | G93: Treatment | H93: Other Capital expenditure | J93: Straight line | K93: Ongoing | L93: 15 | M93: 15 | V93: 0.05 | W93: 0.02 | X93: 0 | Y93: 0 | Z93: 0 | AX93: 0 | AY93: 0 | AZ93: 0 | BA93: 0 | BB93: 0 | BC93: 0.05 | BD93: 0.02 | BE93: 0 | BF93: 0 | BG93: 0 | BI93: 0 | BJ93: 0 | BK93: 0 | BL93: 0 | BM93: 0 | BN93: 0.001666666667 | BO93: 0.004 | BP93: 0.004666666667 | BQ93: 0.004666666667 | BR93: 0.004666666667 | BT93: =+IF($K93="Ongoing",AX93,IF(RIGHT($K93,2)=RIGHT(BT$39,2),SUM($AX93:AX93),0)+IF(RIGHT(BT$39,2)>RIGHT($K93,2),AX93,0)) -> 0 | BU93: =+IF($K93="Ongoing",AY93,IF(RIGHT($K93,2)=RIGHT(BU$39,2),SUM($AX93:AY93),0)+IF(RIGHT(BU$39,2)>RIGHT($K93,2),AY93,0)) -> 0 | BV93: =+IF($K93="Ongoing",AZ93,IF(RIGHT($K93,2)=RIGHT(BV$39,2),SUM($AX93:AZ93),0)+IF(RIGHT(BV$39,2)>RIGHT($K93,2),AZ93,0)) -> 0 | BW93: =+IF($K93="Ongoing",BA93,IF(RIGHT($K93,2)=RIGHT(BW$39,2),SUM($AX93:BA93),0)+IF(RIGHT(BW$39,2)>RIGHT($K93,2),BA93,0)) -> 0 | BX93: =+IF($K93="Ongoing",BB93,IF(RIGHT($K93,2)=RIGHT(BX$39,2),SUM($AX93:BB93),0)+IF(RIGHT(BX$39,2)>RIGHT($K93,2),BB93,0)) -> 0 | BY93: =+IF($K93="Ongoing",BC93,IF(RIGHT($K93,2)=RIGHT(BY$39,2),SUM($AX93:BC93),0)+IF(RIGHT(BY$39,2)>RIGHT($K93,2),BC93,0)) -> 0.05 | BZ93: =+IF($K93="Ongoing",BD93,IF(RIGHT($K93,2)=RIGHT(BZ$39,2),SUM($AX93:BD93),0)+IF(RIGHT(BZ$39,2)>RIGHT($K93,2),BD93,0)) -> 0.02 | CA93: =+IF($K93="Ongoing",BE93,IF(RIGHT($K93,2)=RIGHT(CA$39,2),SUM($AX93:BE93),0)+IF(RIGHT(CA$39,2)>RIGHT($K93,2),BE93,0)) -> 0 | CB93: =+IF($K93="Ongoing",BF93,IF(RIGHT($K93,2)=RIGHT(CB$39,2),SUM($AX93:BF93),0)+IF(RIGHT(CB$39,2)>RIGHT($K93,2),BF93,0)) -> 0 | CC93: =+IF($K93="Ongoing",BG93,IF(RIGHT($K93,2)=RIGHT(CC$39,2),SUM($AX93:BG93),0)+IF(RIGHT(CC$39,2)>RIGHT($K93,2),BG93,0)) -> 0 | CE93: =+Q93*KeyAssumptionsPriceControl_FO!AC$15 -> 0 | CF93: =+R93*KeyAssumptionsPriceControl_FO!AD$15 -> 0 | CG93: =+S93*KeyAssumptionsPriceControl_FO!AE$15 -> 0 | CH93: =+T93*KeyAssumptionsPriceControl_FO!AF$15 -> 0 | CI93: =+U93*KeyAssumptionsPriceControl_FO!AG$15 -> 0 | CJ93: =+V93*KeyAssumptionsPriceControl_FO!AH$15 -> 0.05970261483 | CK93: =+W93*KeyAssumptionsPriceControl_FO!AI$15 -> 0.02459747731 | CL93: =+X93*KeyAssumptionsPriceControl_FO!AJ$15 -> 0 | CM93: =+Y93*KeyAssumptionsPriceControl_FO!AK$15 -> 0 | CN93: =+Z93*KeyAssumptionsPriceControl_FO!AL$15 -> 0 | CP93: 0 | CQ93: 0 | CR93: 0 | CS93: 0 | CT93: 0 | CU93: 0.001990087161 | CV93: 0.004800090232 | CW93: 0.005620006142 | CX93: 0.005620006142 | CY93: 0.005620006142
C94: Class A Recycled Water Network Extension | E94: Recycled Water | F94: Growth | G94: Pipelines/network | H94: Other Capital expenditure | J94: Straight line | K94: Ongoing | L94: 50 | M94: 50 | V94: 0.16 | W94: 0.16 | X94: 0.16 | Y94: 0.16 | Z94: 0.16 | AX94: 0 | AY94: 0 | AZ94: 0 | BA94: 0 | BB94: 0 | BC94: 0.16 | BD94: 0.16 | BE94: 0.16 | BF94: 0.16 | BG94: 0.16 | BI94: 0 | BJ94: 0 | BK94: 0 | BL94: 0 | BM94: 0 | BN94: 0.0016 | BO94: 0.0048 | BP94: 0.008 | BQ94: 0.0112 | BR94: 0.0144 | BT94: =+IF($K94="Ongoing",AX94,IF(RIGHT($K94,2)=RIGHT(BT$39,2),SUM($AX94:AX94),0)+IF(RIGHT(BT$39,2)>RIGHT($K94,2),AX94,0)) -> 0 | BU94: =+IF($K94="Ongoing",AY94,IF(RIGHT($K94,2)=RIGHT(BU$39,2),SUM($AX94:AY94),0)+IF(RIGHT(BU$39,2)>RIGHT($K94,2),AY94,0)) -> 0 | BV94: =+IF($K94="Ongoing",AZ94,IF(RIGHT($K94,2)=RIGHT(BV$39,2),SUM($AX94:AZ94),0)+IF(RIGHT(BV$39,2)>RIGHT($K94,2),AZ94,0)) -> 0 | BW94: =+IF($K94="Ongoing",BA94,IF(RIGHT($K94,2)=RIGHT(BW$39,2),SUM($AX94:BA94),0)+IF(RIGHT(BW$39,2)>RIGHT($K94,2),BA94,0)) -> 0 | BX94: =+IF($K94="Ongoing",BB94,IF(RIGHT($K94,2)=RIGHT(BX$39,2),SUM($AX94:BB94),0)+IF(RIGHT(BX$39,2)>RIGHT($K94,2),BB94,0)) -> 0 | BY94: =+IF($K94="Ongoing",BC94,IF(RIGHT($K94,2)=RIGHT(BY$39,2),SUM($AX94:BC94),0)+IF(RIGHT(BY$39,2)>RIGHT($K94,2),BC94,0)) -> 0.16 | BZ94: =+IF($K94="Ongoing",BD94,IF(RIGHT($K94,2)=RIGHT(BZ$39,2),SUM($AX94:BD94),0)+IF(RIGHT(BZ$39,2)>RIGHT($K94,2),BD94,0)) -> 0.16 | CA94: =+IF($K94="Ongoing",BE94,IF(RIGHT($K94,2)=RIGHT(CA$39,2),SUM($AX94:BE94),0)+IF(RIGHT(CA$39,2)>RIGHT($K94,2),BE94,0)) -> 0.16 | CB94: =+IF($K94="Ongoing",BF94,IF(RIGHT($K94,2)=RIGHT(CB$39,2),SUM($AX94:BF94),0)+IF(RIGHT(CB$39,2)>RIGHT($K94,2),BF94,0)) -> 0.16 | CC94: =+IF($K94="Ongoing",BG94,IF(RIGHT($K94,2)=RIGHT(CC$39,2),SUM($AX94:BG94),0)+IF(RIGHT(CC$39,2)>RIGHT($K94,2),BG94,0)) -> 0.16 | CE94: =+Q94*KeyAssumptionsPriceControl_FO!AC$15 -> 0 | CF94: =+R94*KeyAssumptionsPriceControl_FO!AD$15 -> 0 | CG94: =+S94*KeyAssumptionsPriceControl_FO!AE$15 -> 0 | CH94: =+T94*KeyAssumptionsPriceControl_FO!AF$15 -> 0 | CI94: =+U94*KeyAssumptionsPriceControl_FO!AG$15 -> 0 | CJ94: =+V94*KeyAssumptionsPriceControl_FO!AH$15 -> 0.1910483674 | CK94: =+W94*KeyAssumptionsPriceControl_FO!AI$15 -> 0.1967798185 | CL94: =+X94*KeyAssumptionsPriceControl_FO!AJ$15 -> 0.202683213 | CM94: =+Y94*KeyAssumptionsPriceControl_FO!AK$15 -> 0.2087637094 | CN94: =+Z94*KeyAssumptionsPriceControl_FO!AL$15 -> 0.2150266207 | CP94: 0 | CQ94: 0 | CR94: 0 | CS94: 0 | CT94: 0 | CU94: 0.001910483674 | CV94: 0.005788765534 | CW94: 0.009783395848 | CX94: 0.01389786507 | CY94: 0.01813576837
C95: Class-A Recycled Water Futures | E95: Recycled Water | F95: Growth | G95: Treatment | H95: Other Capital expenditure | J95: Straight line | K95: Ongoing | L95: 50 | M95: 50 | V95: 9.38 | W95: 0 | X95: 0 | Y95: 0 | Z95: 0 | AX95: 0 | AY95: 0 | AZ95: 0 | BA95: 0 | BB95: 0 | BC95: 9.38 | BD95: 0 | BE95: 0 | BF95: 0 | BG95: 0 | BI95: 0 | BJ95: 0 | BK95: 0 | BL95: 0 | BM95: 0 | BN95: 0.0938 | BO95: 0.1876 | BP95: 0.1876 | BQ95: 0.1876 | BR95: 0.1876 | BT95: =+IF($K95="Ongoing",AX95,IF(RIGHT($K95,2)=RIGHT(BT$39,2),SUM($AX95:AX95),0)+IF(RIGHT(BT$39,2)>RIGHT($K95,2),AX95,0)) -> 0 | BU95: =+IF($K95="Ongoing",AY95,IF(RIGHT($K95,2)=RIGHT(BU$39,2),SUM($AX95:AY95),0)+IF(RIGHT(BU$39,2)>RIGHT($K95,2),AY95,0)) -> 0 | BV95: =+IF($K95="Ongoing",AZ95,IF(RIGHT($K95,2)=RIGHT(BV$39,2),SUM($AX95:AZ95),0)+IF(RIGHT(BV$39,2)>RIGHT($K95,2),AZ95,0)) -> 0 | BW95: =+IF($K95="Ongoing",BA95,IF(RIGHT($K95,2)=RIGHT(BW$39,2),SUM($AX95:BA95),0)+IF(RIGHT(BW$39,2)>RIGHT($K95,2),BA95,0)) -> 0 | BX95: =+IF($K95="Ongoing",BB95,IF(RIGHT($K95,2)=RIGHT(BX$39,2),SUM($AX95:BB95),0)+IF(RIGHT(BX$39,2)>RIGHT($K95,2),BB95,0)) -> 0 | BY95: =+IF($K95="Ongoing",BC95,IF(RIGHT($K95,2)=RIGHT(BY$39,2),SUM($AX95:BC95),0)+IF(RIGHT(BY$39,2)>RIGHT($K95,2),BC95,0)) -> 9.38 | BZ95: =+IF($K95="Ongoing",BD95,IF(RIGHT($K95,2)=RIGHT(BZ$39,2),SUM($AX95:BD95),0)+IF(RIGHT(BZ$39,2)>RIGHT($K95,2),BD95,0)) -> 0 | CA95: =+IF($K95="Ongoing",BE95,IF(RIGHT($K95,2)=RIGHT(CA$39,2),SUM($AX95:BE95),0)+IF(RIGHT(CA$39,2)>RIGHT($K95,2),BE95,0)) -> 0 | CB95: =+IF($K95="Ongoing",BF95,IF(RIGHT($K95,2)=RIGHT(CB$39,2),SUM($AX95:BF95),0)+IF(RIGHT(CB$39,2)>RIGHT($K95,2),BF95,0)) -> 0 | CC95: =+IF($K95="Ongoing",BG95,IF(RIGHT($K95,2)=RIGHT(CC$39,2),SUM($AX95:BG95),0)+IF(RIGHT(CC$39,2)>RIGHT($K95,2),BG95,0)) -> 0 | CE95: =+Q95*KeyAssumptionsPriceControl_FO!AC$15 -> 0 | CF95: =+R95*KeyAssumptionsPriceControl_FO!AD$15 -> 0 | CG95: =+S95*KeyAssumptionsPriceControl_FO!AE$15 -> 0 | CH95: =+T95*KeyAssumptionsPriceControl_FO!AF$15 -> 0 | CI95: =+U95*KeyAssumptionsPriceControl_FO!AG$15 -> 0 | CJ95: =+V95*KeyAssumptionsPriceControl_FO!AH$15 -> 11.20021054 | CK95: =+W95*KeyAssumptionsPriceControl_FO!AI$15 -> 0 | CL95: =+X95*KeyAssumptionsPriceControl_FO!AJ$15 -> 0 | CM95: =+Y95*KeyAssumptionsPriceControl_FO!AK$15 -> 0 | CN95: =+Z95*KeyAssumptionsPriceControl_FO!AL$15 -> 0 | CP95: 0 | CQ95: 0 | CR95: 0 | CS95: 0 | CT95: 0 | CU95: 0.1120021054 | CV95: 0.2240042108 | CW95: 0.2240042108 | CX95: 0.2240042108 | CY95: 0.2240042108
C96: Data Analytic Stategy | E96: Water | F96: Renewals | G96: Corporate | H96: Other Capital expenditure | J96: Straight line | K96: Ongoing | L96: 4 | M96: 4 | V96: 0.0441 | W96: 0.0441 | X96: 0.0441 | Y96: 0.0441 | Z96: 0.0441 | AX96: 0 | AY96: 0 | AZ96: 0 | BA96: 0 | BB96: 0 | BC96: 0.0441 | BD96: 0.0441 | BE96: 0.0441 | BF96: 0.0441 | BG96: 0.0441 | BI96: 0 | BJ96: 0 | BK96: 0 | BL96: 0 | BM96: 0 | BN96: 0.0055125 | BO96: 0.0165375 | BP96: 0.0275625 | BQ96: 0.0385875 | BR96: 0.0441 | BT96: =+IF($K96="Ongoing",AX96,IF(RIGHT($K96,2)=RIGHT(BT$39,2),SUM($AX96:AX96),0)+IF(RIGHT(BT$39,2)>RIGHT($K96,2),AX96,0)) -> 0 | BU96: =+IF($K96="Ongoing",AY96,IF(RIGHT($K96,2)=RIGHT(BU$39,2),SUM($AX96:AY96),0)+IF(RIGHT(BU$39,2)>RIGHT($K96,2),AY96,0)) -> 0 | BV96: =+IF($K96="Ongoing",AZ96,IF(RIGHT($K96,2)=RIGHT(BV$39,2),SUM($AX96:AZ96),0)+IF(RIGHT(BV$39,2)>RIGHT($K96,2),AZ96,0)) -> 0 | BW96: =+IF($K96="Ongoing",BA96,IF(RIGHT($K96,2)=RIGHT(BW$39,2),SUM($AX96:BA96),0)+IF(RIGHT(BW$39,2)>RIGHT($K96,2),BA96,0)) -> 0 | BX96: =+IF($K96="Ongoing",BB96,IF(RIGHT($K96,2)=RIGHT(BX$39,2),SUM($AX96:BB96),0)+IF(RIGHT(BX$39,2)>RIGHT($K96,2),BB96,0)) -> 0 | BY96: =+IF($K96="Ongoing",BC96,IF(RIGHT($K96,2)=RIGHT(BY$39,2),SUM($AX96:BC96),0)+IF(RIGHT(BY$39,2)>RIGHT($K96,2),BC96,0)) -> 0.0441 | BZ96: =+IF($K96="Ongoing",BD96,IF(RIGHT($K96,2)=RIGHT(BZ$39,2),SUM($AX96:BD96),0)+IF(RIGHT(BZ$39,2)>RIGHT($K96,2),BD96,0)) -> 0.0441 | CA96: =+IF($K96="Ongoing",BE96,IF(RIGHT($K96,2)=RIGHT(CA$39,2),SUM($AX96:BE96),0)+IF(RIGHT(CA$39,2)>RIGHT($K96,2),BE96,0)) -> 0.0441 | CB96: =+IF($K96="Ongoing",BF96,IF(RIGHT($K96,2)=RIGHT(CB$39,2),SUM($AX96:BF96),0)+IF(RIGHT(CB$39,2)>RIGHT($K96,2),BF96,0)) -> 0.0441 | CC96: =+IF($K96="Ongoing",BG96,IF(RIGHT($K96,2)=RIGHT(CC$39,2),SUM($AX96:BG96),0)+IF(RIGHT(CC$39,2)>RIGHT($K96,2),BG96,0)) -> 0.0441 | CE96: =+Q96*KeyAssumptionsPriceControl_FO!AC$15 -> 0 | CF96: =+R96*KeyAssumptionsPriceControl_FO!AD$15 -> 0 | CG96: =+S96*KeyAssumptionsPriceControl_FO!AE$15 -> 0 | CH96: =+T96*KeyAssumptionsPriceControl_FO!AF$15 -> 0 | CI96: =+U96*KeyAssumptionsPriceControl_FO!AG$15 -> 0 | CJ96: =+V96*KeyAssumptionsPriceControl_FO!AH$15 -> 0.05265770628 | CK96: =+W96*KeyAssumptionsPriceControl_FO!AI$15 -> 0.05423743747 | CL96: =+X96*KeyAssumptionsPriceControl_FO!AJ$15 -> 0.05586456059 | CM96: =+Y96*KeyAssumptionsPriceControl_FO!AK$15 -> 0.05754049741 | CN96: =+Z96*KeyAssumptionsPriceControl_FO!AL$15 -> 0.05926671233 | CP96: 0 | CQ96: 0 | CR96: 0 | CS96: 0 | CT96: 0 | CU96: 0.006582213285 | CV96: 0.01994410625 | CW96: 0.03370685601 | CX96: 0.04788248826 | CY96: 0.05590117619
C97: Data Analytic Stategy | E97: Sewerage | F97: Renewals | G97: Corporate | H97: Other Capital expenditure | J97: Straight line | K97: Ongoing | L97: 4 | M97: 4 | V97: 0.0441 | W97: 0.0441 | X97: 0.0441 | Y97: 0.0441 | Z97: 0.0441 | AX97: 0 | AY97: 0 | AZ97: 0 | BA97: 0 | BB97: 0 | BC97: 0.0441 | BD97: 0.0441 | BE97: 0.0441 | BF97: 0.0441 | BG97: 0.0441 | BI97: 0 | BJ97: 0 | BK97: 0 | BL97: 0 | BM97: 0 | BN97: 0.0055125 | BO97: 0.0165375 | BP97: 0.0275625 | BQ97: 0.0385875 | BR97: 0.0441 | BT97: =+IF($K97="Ongoing",AX97,IF(RIGHT($K97,2)=RIGHT(BT$39,2),SUM($AX97:AX97),0)+IF(RIGHT(BT$39,2)>RIGHT($K97,2),AX97,0)) -> 0 | BU97: =+IF($K97="Ongoing",AY97,IF(RIGHT($K97,2)=RIGHT(BU$39,2),SUM($AX97:AY97),0)+IF(RIGHT(BU$39,2)>RIGHT($K97,2),AY97,0)) -> 0 | BV97: =+IF($K97="Ongoing",AZ97,IF(RIGHT($K97,2)=RIGHT(BV$39,2),SUM($AX97:AZ97),0)+IF(RIGHT(BV$39,2)>RIGHT($K97,2),AZ97,0)) -> 0 | BW97: =+IF($K97="Ongoing",BA97,IF(RIGHT($K97,2)=RIGHT(BW$39,2),SUM($AX97:BA97),0)+IF(RIGHT(BW$39,2)>RIGHT($K97,2),BA97,0)) -> 0 | BX97: =+IF($K97="Ongoing",BB97,IF(RIGHT($K97,2)=RIGHT(BX$39,2),SUM($AX97:BB97),0)+IF(RIGHT(BX$39,2)>RIGHT($K97,2),BB97,0)) -> 0 | BY97: =+IF($K97="Ongoing",BC97,IF(RIGHT($K97,2)=RIGHT(BY$39,2),SUM($AX97:BC97),0)+IF(RIGHT(BY$39,2)>RIGHT($K97,2),BC97,0)) -> 0.0441 | BZ97: =+IF($K97="Ongoing",BD97,IF(RIGHT($K97,2)=RIGHT(BZ$39,2),SUM($AX97:BD97),0)+IF(RIGHT(BZ$39,2)>RIGHT($K97,2),BD97,0)) -> 0.0441 | CA97: =+IF($K97="Ongoing",BE97,IF(RIGHT($K97,2)=RIGHT(CA$39,2),SUM($AX97:BE97),0)+IF(RIGHT(CA$39,2)>RIGHT($K97,2),BE97,0)) -> 0.0441 | CB97: =+IF($K97="Ongoing",BF97,IF(RIGHT($K97,2)=RIGHT(CB$39,2),SUM($AX97:BF97),0)+IF(RIGHT(CB$39,2)>RIGHT($K97,2),BF97,0)) -> 0.0441 | CC97: =+IF($K97="Ongoing",BG97,IF(RIGHT($K97,2)=RIGHT(CC$39,2),SUM($AX97:BG97),0)+IF(RIGHT(CC$39,2)>RIGHT($K97,2),BG97,0)) -> 0.0441 | CE97: =+Q97*KeyAssumptionsPriceControl_FO!AC$15 -> 0 | CF97: =+R97*KeyAssumptionsPriceControl_FO!AD$15 -> 0 | CG97: =+S97*KeyAssumptionsPriceControl_FO!AE$15 -> 0 | CH97: =+T97*KeyAssumptionsPriceControl_FO!AF$15 -> 0 | CI97: =+U97*KeyAssumptionsPriceControl_FO!AG$15 -> 0 | CJ97: =+V97*KeyAssumptionsPriceControl_FO!AH$15 -> 0.05265770628 | CK97: =+W97*KeyAssumptionsPriceControl_FO!AI$15 -> 0.05423743747 | CL97: =+X97*KeyAssumptionsPriceControl_FO!AJ$15 -> 0.05586456059 | CM97: =+Y97*KeyAssumptionsPriceControl_FO!AK$15 -> 0.05754049741 | CN97: =+Z97*KeyAssumptionsPriceControl_FO!AL$15 -> 0.05926671233 | CP97: 0 | CQ97: 0 | CR97: 0 | CS97: 0 | CT97: 0 | CU97: 0.006582213285 | CV97: 0.01994410625 | CW97: 0.03370685601 | CX97: 0.04788248826 | CY97: 0.05590117619
C98: Data Analytic Stategy | E98: Recycled Water | F98: Renewals | G98: Corporate | H98: Other Capital expenditure | J98: Straight line | K98: Ongoing | L98: 4 | M98: 4 | V98: 0.0018 | W98: 0.0018 | X98: 0.0018 | Y98: 0.0018 | Z98: 0.0018 | AX98: 0 | AY98: 0 | AZ98: 0 | BA98: 0 | BB98: 0 | BC98: 0.0018 | BD98: 0.0018 | BE98: 0.0018 | BF98: 0.0018 | BG98: 0.0018 | BI98: 0 | BJ98: 0 | BK98: 0 | BL98: 0 | BM98: 0 | BN98: 0.000225 | BO98: 0.000675 | BP98: 0.001125 | BQ98: 0.001575 | BR98: 0.0018 | BT98: =+IF($K98="Ongoing",AX98,IF(RIGHT($K98,2)=RIGHT(BT$39,2),SUM($AX98:AX98),0)+IF(RIGHT(BT$39,2)>RIGHT($K98,2),AX98,0)) -> 0 | BU98: =+IF($K98="Ongoing",AY98,IF(RIGHT($K98,2)=RIGHT(BU$39,2),SUM($AX98:AY98),0)+IF(RIGHT(BU$39,2)>RIGHT($K98,2),AY98,0)) -> 0 | BV98: =+IF($K98="Ongoing",AZ98,IF(RIGHT($K98,2)=RIGHT(BV$39,2),SUM($AX98:AZ98),0)+IF(RIGHT(BV$39,2)>RIGHT($K98,2),AZ98,0)) -> 0 | BW98: =+IF($K98="Ongoing",BA98,IF(RIGHT($K98,2)=RIGHT(BW$39,2),SUM($AX98:BA98),0)+IF(RIGHT(BW$39,2)>RIGHT($K98,2),BA98,0)) -> 0 | BX98: =+IF($K98="Ongoing",BB98,IF(RIGHT($K98,2)=RIGHT(BX$39,2),SUM($AX98:BB98),0)+IF(RIGHT(BX$39,2)>RIGHT($K98,2),BB98,0)) -> 0 | BY98: =+IF($K98="Ongoing",BC98,IF(RIGHT($K98,2)=RIGHT(BY$39,2),SUM($AX98:BC98),0)+IF(RIGHT(BY$39,2)>RIGHT($K98,2),BC98,0)) -> 0.0018 | BZ98: =+IF($K98="Ongoing",BD98,IF(RIGHT($K98,2)=RIGHT(BZ$39,2),SUM($AX98:BD98),0)+IF(RIGHT(BZ$39,2)>RIGHT($K98,2),BD98,0)) -> 0.0018 | CA98: =+IF($K98="Ongoing",BE98,IF(RIGHT($K98,2)=RIGHT(CA$39,2),SUM($AX98:BE98),0)+IF(RIGHT(CA$39,2)>RIGHT($K98,2),BE98,0)) -> 0.0018 | CB98: =+IF($K98="Ongoing",BF98,IF(RIGHT($K98,2)=RIGHT(CB$39,2),SUM($AX98:BF98),0)+IF(RIGHT(CB$39,2)>RIGHT($K98,2),BF98,0)) -> 0.0018 | CC98: =+IF($K98="Ongoing",BG98,IF(RIGHT($K98,2)=RIGHT(CC$39,2),SUM($AX98:BG98),0)+IF(RIGHT(CC$39,2)>RIGHT($K98,2),BG98,0)) -> 0.0018 | CE98: =+Q98*KeyAssumptionsPriceControl_FO!AC$15 -> 0 | CF98: =+R98*KeyAssumptionsPriceControl_FO!AD$15 -> 0 | CG98: =+S98*KeyAssumptionsPriceControl_FO!AE$15 -> 0 | CH98: =+T98*KeyAssumptionsPriceControl_FO!AF$15 -> 0 | CI98: =+U98*KeyAssumptionsPriceControl_FO!AG$15 -> 0 | CJ98: =+V98*KeyAssumptionsPriceControl_FO!AH$15 -> 0.002149294134 | CK98: =+W98*KeyAssumptionsPriceControl_FO!AI$15 -> 0.002213772958 | CL98: =+X98*KeyAssumptionsPriceControl_FO!AJ$15 -> 0.002280186146 | CM98: =+Y98*KeyAssumptionsPriceControl_FO!AK$15 -> 0.002348591731 | CN98: =+Z98*KeyAssumptionsPriceControl_FO!AL$15 -> 0.002419049483 | CP98: 0 | CQ98: 0 | CR98: 0 | CS98: 0 | CT98: 0 | CU98: 0.0002686617667 | CV98: 0.0008140451532 | CW98: 0.001375790041 | CX98: 0.001954387276 | CY98: 0.002281680661
C99: Data Integration | E99: Water | F99: Renewals | G99: Corporate | H99: Other Capital expenditure | J99: Straight line | K99: Ongoing | L99: 4 | M99: 4 | V99: 0.049 | W99: 0.049 | X99: 0.049 | Y99: 0.049 | Z99: 0.049 | AX99: 0 | AY99: 0 | AZ99: 0 | BA99: 0 | BB99: 0 | BC99: 0.049 | BD99: 0.049 | BE99: 0.049 | BF99: 0.049 | BG99: 0.049 | BI99: 0 | BJ99: 0 | BK99: 0 | BL99: 0 | BM99: 0 | BN99: 0.006125 | BO99: 0.018375 | BP99: 0.030625 | BQ99: 0.042875 | BR99: 0.049 | BT99: =+IF($K99="Ongoing",AX99,IF(RIGHT($K99,2)=RIGHT(BT$39,2),SUM($AX99:AX99),0)+IF(RIGHT(BT$39,2)>RIGHT($K99,2),AX99,0)) -> 0 | BU99: =+IF($K99="Ongoing",AY99,IF(RIGHT($K99,2)=RIGHT(BU$39,2),SUM($AX99:AY99),0)+IF(RIGHT(BU$39,2)>RIGHT($K99,2),AY99,0)) -> 0 | BV99: =+IF($K99="Ongoing",AZ99,IF(RIGHT($K99,2)=RIGHT(BV$39,2),SUM($AX99:AZ99),0)+IF(RIGHT(BV$39,2)>RIGHT($K99,2),AZ99,0)) -> 0 | BW99: =+IF($K99="Ongoing",BA99,IF(RIGHT($K99,2)=RIGHT(BW$39,2),SUM($AX99:BA99),0)+IF(RIGHT(BW$39,2)>RIGHT($K99,2),BA99,0)) -> 0 | BX99: =+IF($K99="Ongoing",BB99,IF(RIGHT($K99,2)=RIGHT(BX$39,2),SUM($AX99:BB99),0)+IF(RIGHT(BX$39,2)>RIGHT($K99,2),BB99,0)) -> 0 | BY99: =+IF($K99="Ongoing",BC99,IF(RIGHT($K99,2)=RIGHT(BY$39,2),SUM($AX99:BC99),0)+IF(RIGHT(BY$39,2)>RIGHT($K99,2),BC99,0)) -> 0.049 | BZ99: =+IF($K99="Ongoing",BD99,IF(RIGHT($K99,2)=RIGHT(BZ$39,2),SUM($AX99:BD99),0)+IF(RIGHT(BZ$39,2)>RIGHT($K99,2),BD99,0)) -> 0.049 | CA99: =+IF($K99="Ongoing",BE99,IF(RIGHT($K99,2)=RIGHT(CA$39,2),SUM($AX99:BE99),0)+IF(RIGHT(CA$39,2)>RIGHT($K99,2),BE99,0)) -> 0.049 | CB99: =+IF($K99="Ongoing",BF99,IF(RIGHT($K99,2)=RIGHT(CB$39,2),SUM($AX99:BF99),0)+IF(RIGHT(CB$39,2)>RIGHT($K99,2),BF99,0)) -> 0.049 | CC99: =+IF($K99="Ongoing",BG99,IF(RIGHT($K99,2)=RIGHT(CC$39,2),SUM($AX99:BG99),0)+IF(RIGHT(CC$39,2)>RIGHT($K99,2),BG99,0)) -> 0.049 | CE99: =+Q99*KeyAssumptionsPriceControl_FO!AC$15 -> 0 | CF99: =+R99*KeyAssumptionsPriceControl_FO!AD$15 -> 0 | CG99: =+S99*KeyAssumptionsPriceControl_FO!AE$15 -> 0 | CH99: =+T99*KeyAssumptionsPriceControl_FO!AF$15 -> 0 | CI99: =+U99*KeyAssumptionsPriceControl_FO!AG$15 -> 0 | CJ99: =+V99*KeyAssumptionsPriceControl_FO!AH$15 -> 0.05850856253 | CK99: =+W99*KeyAssumptionsPriceControl_FO!AI$15 -> 0.06026381941 | CL99: =+X99*KeyAssumptionsPriceControl_FO!AJ$15 -> 0.06207173399 | CM99: =+Y99*KeyAssumptionsPriceControl_FO!AK$15 -> 0.06393388601 | CN99: =+Z99*KeyAssumptionsPriceControl_FO!AL$15 -> 0.06585190259 | CP99: 0 | CQ99: 0 | CR99: 0 | CS99: 0 | CT99: 0 | CU99: 0.007313570316 | CV99: 0.02216011806 | CW99: 0.03745206223 | CX99: 0.05320276473 | CY99: 0.06211241799
C100: Data Integration | E100: Sewerage | F100: Renewals | G100: Corporate | H100: Other Capital expenditure | J100: Straight line | K100: Ongoing | L100: 4 | M100: 4 | V100: 0.049 | W100: 0.049 | X100: 0.049 | Y100: 0.049 | Z100: 0.049 | AX100: 0 | AY100: 0 | AZ100: 0 | BA100: 0 | BB100: 0 | BC100: 0.049 | BD100: 0.049 | BE100: 0.049 | BF100: 0.049 | BG100: 0.049 | BI100: 0 | BJ100: 0 | BK100: 0 | BL100: 0 | BM100: 0 | BN100: 0.006125 | BO100: 0.018375 | BP100: 0.030625 | BQ100: 0.042875 | BR100: 0.049 | BT100: =+IF($K100="Ongoing",AX100,IF(RIGHT($K100,2)=RIGHT(BT$39,2),SUM($AX100:AX100),0)+IF(RIGHT(BT$39,2)>RIGHT($K100,2),AX100,0)) -> 0 | BU100: =+IF($K100="Ongoing",AY100,IF(RIGHT($K100,2)=RIGHT(BU$39,2),SUM($AX100:AY100),0)+IF(RIGHT(BU$39,2)>RIGHT($K100,2),AY100,0)) -> 0 | BV100: =+IF($K100="Ongoing",AZ100,IF(RIGHT($K100,2)=RIGHT(BV$39,2),SUM($AX100:AZ100),0)+IF(RIGHT(BV$39,2)>RIGHT($K100,2),AZ100,0)) -> 0 | BW100: =+IF($K100="Ongoing",BA100,IF(RIGHT($K100,2)=RIGHT(BW$39,2),SUM($AX100:BA100),0)+IF(RIGHT(BW$39,2)>RIGHT($K100,2),BA100,0)) -> 0 | BX100: =+IF($K100="Ongoing",BB100,IF(RIGHT($K100,2)=RIGHT(BX$39,2),SUM($AX100:BB100),0)+IF(RIGHT(BX$39,2)>RIGHT($K100,2),BB100,0)) -> 0 | BY100: =+IF($K100="Ongoing",BC100,IF(RIGHT($K100,2)=RIGHT(BY$39,2),SUM($AX100:BC100),0)+IF(RIGHT(BY$39,2)>RIGHT($K100,2),BC100,0)) -> 0.049 | BZ100: =+IF($K100="Ongoing",BD100,IF(RIGHT($K100,2)=RIGHT(BZ$39,2),SUM($AX100:BD100),0)+IF(RIGHT(BZ$39,2)>RIGHT($K100,2),BD100,0)) -> 0.049 | CA100: =+IF($K100="Ongoing",BE100,IF(RIGHT($K100,2)=RIGHT(CA$39,2),SUM($AX100:BE100),0)+IF(RIGHT(CA$39,2)>RIGHT($K100,2),BE100,0)) -> 0.049 | CB100: =+IF($K100="Ongoing",BF100,IF(RIGHT($K100,2)=RIGHT(CB$39,2),SUM($AX100:BF100),0)+IF(RIGHT(CB$39,2)>RIGHT($K100,2),BF100,0)) -> 0.049 | CC100: =+IF($K100="Ongoing",BG100,IF(RIGHT($K100,2)=RIGHT(CC$39,2),SUM($AX100:BG100),0)+IF(RIGHT(CC$39,2)>RIGHT($K100,2),BG100,0)) -> 0.049 | CE100: =+Q100*KeyAssumptionsPriceControl_FO!AC$15 -> 0 | CF100: =+R100*KeyAssumptionsPriceControl_FO!AD$15 -> 0 | CG100: =+S100*KeyAssumptionsPriceControl_FO!AE$15 -> 0 | CH100: =+T100*KeyAssumptionsPriceControl_FO!AF$15 -> 0 | CI100: =+U100*KeyAssumptionsPriceControl_FO!AG$15 -> 0 | CJ100: =+V100*KeyAssumptionsPriceControl_FO!AH$15 -> 0.05850856253 | CK100: =+W100*KeyAssumptionsPriceControl_FO!AI$15 -> 0.06026381941 | CL100: =+X100*KeyAssumptionsPriceControl_FO!AJ$15 -> 0.06207173399 | CM100: =+Y100*KeyAssumptionsPriceControl_FO!AK$15 -> 0.06393388601 | CN100: =+Z100*KeyAssumptionsPriceControl_FO!AL$15 -> 0.06585190259 | CP100: 0 | CQ100: 0 | CR100: 0 | CS100: 0 | CT100: 0 | CU100: 0.007313570316 | CV100: 0.02216011806 | CW100: 0.03745206223 | CX100: 0.05320276473 | CY100: 0.06211241799
C101: Data Integration | E101: Recycled Water | F101: Renewals | G101: Corporate | H101: Other Capital expenditure | J101: Straight line | K101: Ongoing | L101: 4 | M101: 4 | V101: 0.002 | W101: 0.002 | X101: 0.002 | Y101: 0.002 | Z101: 0.002 | AX101: 0 | AY101: 0 | AZ101: 0 | BA101: 0 | BB101: 0 | BC101: 0.002 | BD101: 0.002 | BE101: 0.002 | BF101: 0.002 | BG101: 0.002 | BI101: 0 | BJ101: 0 | BK101: 0 | BL101: 0 | BM101: 0 | BN101: 0.00025 | BO101: 0.00075 | BP101: 0.00125 | BQ101: 0.00175 | BR101: 0.002 | BT101: =+IF($K101="Ongoing",AX101,IF(RIGHT($K101,2)=RIGHT(BT$39,2),SUM($AX101:AX101),0)+IF(RIGHT(BT$39,2)>RIGHT($K101,2),AX101,0)) -> 0 | BU101: =+IF($K101="Ongoing",AY101,IF(RIGHT($K101,2)=RIGHT(BU$39,2),SUM($AX101:AY101),0)+IF(RIGHT(BU$39,2)>RIGHT($K101,2),AY101,0)) -> 0 | BV101: =+IF($K101="Ongoing",AZ101,IF(RIGHT($K101,2)=RIGHT(BV$39,2),SUM($AX101:AZ101),0)+IF(RIGHT(BV$39,2)>RIGHT($K101,2),AZ101,0)) -> 0 | BW101: =+IF($K101="Ongoing",BA101,IF(RIGHT($K101,2)=RIGHT(BW$39,2),SUM($AX101:BA101),0)+IF(RIGHT(BW$39,2)>RIGHT($K101,2),BA101,0)) -> 0 | BX101: =+IF($K101="Ongoing",BB101,IF(RIGHT($K101,2)=RIGHT(BX$39,2),SUM($AX101:BB101),0)+IF(RIGHT(BX$39,2)>RIGHT($K101,2),BB101,0)) -> 0 | BY101: =+IF($K101="Ongoing",BC101,IF(RIGHT($K101,2)=RIGHT(BY$39,2),SUM($AX101:BC101),0)+IF(RIGHT(BY$39,2)>RIGHT($K101,2),BC101,0)) -> 0.002 | BZ101: =+IF($K101="Ongoing",BD101,IF(RIGHT($K101,2)=RIGHT(BZ$39,2),SUM($AX101:BD101),0)+IF(RIGHT(BZ$39,2)>RIGHT($K101,2),BD101,0)) -> 0.002 | CA101: =+IF($K101="Ongoing",BE101,IF(RIGHT($K101,2)=RIGHT(CA$39,2),SUM($AX101:BE101),0)+IF(RIGHT(CA$39,2)>RIGHT($K101,2),BE101,0)) -> 0.002 | CB101: =+IF($K101="Ongoing",BF101,IF(RIGHT($K101,2)=RIGHT(CB$39,2),SUM($AX101:BF101),0)+IF(RIGHT(CB$39,2)>RIGHT($K101,2),BF101,0)) -> 0.002 | CC101: =+IF($K101="Ongoing",BG101,IF(RIGHT($K101,2)=RIGHT(CC$39,2),SUM($AX101:BG101),0)+IF(RIGHT(CC$39,2)>RIGHT($K101,2),BG101,0)) -> 0.002 | CE101: =+Q101*KeyAssumptionsPriceControl_FO!AC$15 -> 0 | CF101: =+R101*KeyAssumptionsPriceControl_FO!AD$15 -> 0 | CG101: =+S101*KeyAssumptionsPriceControl_FO!AE$15 -> 0 | CH101: =+T101*KeyAssumptionsPriceControl_FO!AF$15 -> 0 | CI101: =+U101*KeyAssumptionsPriceControl_FO!AG$15 -> 0 | CJ101: =+V101*KeyAssumptionsPriceControl_FO!AH$15 -> 0.002388104593 | CK101: =+W101*KeyAssumptionsPriceControl_FO!AI$15 -> 0.002459747731 | CL101: =+X101*KeyAssumptionsPriceControl_FO!AJ$15 -> 0.002533540163 | CM101: =+Y101*KeyAssumptionsPriceControl_FO!AK$15 -> 0.002609546368 | CN101: =+Z101*KeyAssumptionsPriceControl_FO!AL$15 -> 0.002687832759 | CP101: 0 | CQ101: 0 | CR101: 0 | CS101: 0 | CT101: 0 | CU101: 0.0002985130741 | CV101: 0.0009044946146 | CW101: 0.001528655601 | CX101: 0.002171541418 | CY101: 0.002535200734
C102: Digital/Remote Metering | E102: Water | F102: Improvements / Compliance | G102: Corporate | H102: Other Capital expenditure | J102: Straight line | K102: Ongoing | L102: 15 | M102: 15 | V102: 0.0026 | W102: 0.0026 | X102: 0.0026 | Y102: 0.0026 | Z102: 0.0026 | AX102: 0 | AY102: 0 | AZ102: 0 | BA102: 0 | BB102: 0 | BC102: 0.0026 | BD102: 0.0026 | BE102: 0.0026 | BF102: 0.0026 | BG102: 0.0026 | BI102: 0 | BJ102: 0 | BK102: 0 | BL102: 0 | BM102: 0 | BN102: 8.666666667e-05 | BO102: 0.00026 | BP102: 0.0004333333333 | BQ102: 0.0006066666667 | BR102: 0.00078 | BT102: =+IF($K102="Ongoing",AX102,IF(RIGHT($K102,2)=RIGHT(BT$39,2),SUM($AX102:AX102),0)+IF(RIGHT(BT$39,2)>RIGHT($K102,2),AX102,0)) -> 0 | BU102: =+IF($K102="Ongoing",AY102,IF(RIGHT($K102,2)=RIGHT(BU$39,2),SUM($AX102:AY102),0)+IF(RIGHT(BU$39,2)>RIGHT($K102,2),AY102,0)) -> 0 | BV102: =+IF($K102="Ongoing",AZ102,IF(RIGHT($K102,2)=RIGHT(BV$39,2),SUM($AX102:AZ102),0)+IF(RIGHT(BV$39,2)>RIGHT($K102,2),AZ102,0)) -> 0 | BW102: =+IF($K102="Ongoing",BA102,IF(RIGHT($K102,2)=RIGHT(BW$39,2),SUM($AX102:BA102),0)+IF(RIGHT(BW$39,2)>RIGHT($K102,2),BA102,0)) -> 0 | BX102: =+IF($K102="Ongoing",BB102,IF(RIGHT($K102,2)=RIGHT(BX$39,2),SUM($AX102:BB102),0)+IF(RIGHT(BX$39,2)>RIGHT($K102,2),BB102,0)) -> 0 | BY102: =+IF($K102="Ongoing",BC102,IF(RIGHT($K102,2)=RIGHT(BY$39,2),SUM($AX102:BC102),0)+IF(RIGHT(BY$39,2)>RIGHT($K102,2),BC102,0)) -> 0.0026 | BZ102: =+IF($K102="Ongoing",BD102,IF(RIGHT($K102,2)=RIGHT(BZ$39,2),SUM($AX102:BD102),0)+IF(RIGHT(BZ$39,2)>RIGHT($K102,2),BD102,0)) -> 0.0026 | CA102: =+IF($K102="Ongoing",BE102,IF(RIGHT($K102,2)=RIGHT(CA$39,2),SUM($AX102:BE102),0)+IF(RIGHT(CA$39,2)>RIGHT($K102,2),BE102,0)) -> 0.0026 | CB102: =+IF($K102="Ongoing",BF102,IF(RIGHT($K102,2)=RIGHT(CB$39,2),SUM($AX102:BF102),0)+IF(RIGHT(CB$39,2)>RIGHT($K102,2),BF102,0)) -> 0.0026 | CC102: =+IF($K102="Ongoing",BG102,IF(RIGHT($K102,2)=RIGHT(CC$39,2),SUM($AX102:BG102),0)+IF(RIGHT(CC$39,2)>RIGHT($K102,2),BG102,0)) -> 0.0026 | CE102: =+Q102*KeyAssumptionsPriceControl_FO!AC$15 -> 0 | CF102: =+R102*KeyAssumptionsPriceControl_FO!AD$15 -> 0 | CG102: =+S102*KeyAssumptionsPriceControl_FO!AE$15 -> 0 | CH102: =+T102*KeyAssumptionsPriceControl_FO!AF$15 -> 0 | CI102: =+U102*KeyAssumptionsPriceControl_FO!AG$15 -> 0 | CJ102: =+V102*KeyAssumptionsPriceControl_FO!AH$15 -> 0.003104535971 | CK102: =+W102*KeyAssumptionsPriceControl_FO!AI$15 -> 0.00319767205 | CL102: =+X102*KeyAssumptionsPriceControl_FO!AJ$15 -> 0.003293602212 | CM102: =+Y102*KeyAssumptionsPriceControl_FO!AK$15 -> 0.003392410278 | CN102: =+Z102*KeyAssumptionsPriceControl_FO!AL$15 -> 0.003494182586 | CP102: 0 | CQ102: 0 | CR102: 0 | CS102: 0 | CT102: 0 | CU102: 0.0001034845324 | CV102: 0.0003135581331 | CW102: 0.0005299339418 | CX102: 0.0007528010248 | CY102: 0.0009823541203
C103: Emissions LGC Retirement | E103: Water | F103: Improvements / Compliance | G103: Corporate | H103: Other Capital expenditure | J103: Straight line | K103: Ongoing | L103: 15 | M103: 15 | V103: 0 | W103: 0.7497 | X103: 0 | Y103: 0 | Z103: 0 | AX103: 0 | AY103: 0 | AZ103: 0 | BA103: 0 | BB103: 0 | BC103: 0 | BD103: 0.7497 | BE103: 0 | BF103: 0 | BG103: 0 | BI103: 0 | BJ103: 0 | BK103: 0 | BL103: 0 | BM103: 0 | BN103: 0 | BO103: 0.02499 | BP103: 0.04998 | BQ103: 0.04998 | BR103: 0.04998 | BT103: =+IF($K103="Ongoing",AX103,IF(RIGHT($K103,2)=RIGHT(BT$39,2),SUM($AX103:AX103),0)+IF(RIGHT(BT$39,2)>RIGHT($K103,2),AX103,0)) -> 0 | BU103: =+IF($K103="Ongoing",AY103,IF(RIGHT($K103,2)=RIGHT(BU$39,2),SUM($AX103:AY103),0)+IF(RIGHT(BU$39,2)>RIGHT($K103,2),AY103,0)) -> 0 | BV103: =+IF($K103="Ongoing",AZ103,IF(RIGHT($K103,2)=RIGHT(BV$39,2),SUM($AX103:AZ103),0)+IF(RIGHT(BV$39,2)>RIGHT($K103,2),AZ103,0)) -> 0 | BW103: =+IF($K103="Ongoing",BA103,IF(RIGHT($K103,2)=RIGHT(BW$39,2),SUM($AX103:BA103),0)+IF(RIGHT(BW$39,2)>RIGHT($K103,2),BA103,0)) -> 0 | BX103: =+IF($K103="Ongoing",BB103,IF(RIGHT($K103,2)=RIGHT(BX$39,2),SUM($AX103:BB103),0)+IF(RIGHT(BX$39,2)>RIGHT($K103,2),BB103,0)) -> 0 | BY103: =+IF($K103="Ongoing",BC103,IF(RIGHT($K103,2)=RIGHT(BY$39,2),SUM($AX103:BC103),0)+IF(RIGHT(BY$39,2)>RIGHT($K103,2),BC103,0)) -> 0 | BZ103: =+IF($K103="Ongoing",BD103,IF(RIGHT($K103,2)=RIGHT(BZ$39,2),SUM($AX103:BD103),0)+IF(RIGHT(BZ$39,2)>RIGHT($K103,2),BD103,0)) -> 0.7497 | CA103: =+IF($K103="Ongoing",BE103,IF(RIGHT($K103,2)=RIGHT(CA$39,2),SUM($AX103:BE103),0)+IF(RIGHT(CA$39,2)>RIGHT($K103,2),BE103,0)) -> 0 | CB103: =+IF($K103="Ongoing",BF103,IF(RIGHT($K103,2)=RIGHT(CB$39,2),SUM($AX103:BF103),0)+IF(RIGHT(CB$39,2)>RIGHT($K103,2),BF103,0)) -> 0 | CC103: =+IF($K103="Ongoing",BG103,IF(RIGHT($K103,2)=RIGHT(CC$39,2),SUM($AX103:BG103),0)+IF(RIGHT(CC$39,2)>RIGHT($K103,2),BG103,0)) -> 0 | CE103: =+Q103*KeyAssumptionsPriceControl_FO!AC$15 -> 0 | CF103: =+R103*KeyAssumptionsPriceControl_FO!AD$15 -> 0 | CG103: =+S103*KeyAssumptionsPriceControl_FO!AE$15 -> 0 | CH103: =+T103*KeyAssumptionsPriceControl_FO!AF$15 -> 0 | CI103: =+U103*KeyAssumptionsPriceControl_FO!AG$15 -> 0 | CJ103: =+V103*KeyAssumptionsPriceControl_FO!AH$15 -> 0 | CK103: =+W103*KeyAssumptionsPriceControl_FO!AI$15 -> 0.9220364369 | CL103: =+X103*KeyAssumptionsPriceControl_FO!AJ$15 -> 0 | CM103: =+Y103*KeyAssumptionsPriceControl_FO!AK$15 -> 0 | CN103: =+Z103*KeyAssumptionsPriceControl_FO!AL$15 -> 0 | CP103: 0 | CQ103: 0 | CR103: 0 | CS103: 0 | CT103: 0 | CU103: 0 | CV103: 0.0307345479 | CW103: 0.06146909579 | CX103: 0.06146909579 | CY103: 0.06146909579
C104: Emissions LGC Retirement | E104: Sewerage | F104: Improvements / Compliance | G104: Corporate | H104: Other Capital expenditure | J104: Straight line | K104: Ongoing | L104: 15 | M104: 15 | V104: 0 | W104: 0.7497 | X104: 0 | Y104: 0 | Z104: 0 | AX104: 0 | AY104: 0 | AZ104: 0 | BA104: 0 | BB104: 0 | BC104: 0 | BD104: 0.7497 | BE104: 0 | BF104: 0 | BG104: 0 | BI104: 0 | BJ104: 0 | BK104: 0 | BL104: 0 | BM104: 0 | BN104: 0 | BO104: 0.02499 | BP104: 0.04998 | BQ104: 0.04998 | BR104: 0.04998 | BT104: =+IF($K104="Ongoing",AX104,IF(RIGHT($K104,2)=RIGHT(BT$39,2),SUM($AX104:AX104),0)+IF(RIGHT(BT$39,2)>RIGHT($K104,2),AX104,0)) -> 0 | BU104: =+IF($K104="Ongoing",AY104,IF(RIGHT($K104,2)=RIGHT(BU$39,2),SUM($AX104:AY104),0)+IF(RIGHT(BU$39,2)>RIGHT($K104,2),AY104,0)) -> 0 | BV104: =+IF($K104="Ongoing",AZ104,IF(RIGHT($K104,2)=RIGHT(BV$39,2),SUM($AX104:AZ104),0)+IF(RIGHT(BV$39,2)>RIGHT($K104,2),AZ104,0)) -> 0 | BW104: =+IF($K104="Ongoing",BA104,IF(RIGHT($K104,2)=RIGHT(BW$39,2),SUM($AX104:BA104),0)+IF(RIGHT(BW$39,2)>RIGHT($K104,2),BA104,0)) -> 0 | BX104: =+IF($K104="Ongoing",BB104,IF(RIGHT($K104,2)=RIGHT(BX$39,2),SUM($AX104:BB104),0)+IF(RIGHT(BX$39,2)>RIGHT($K104,2),BB104,0)) -> 0 | BY104: =+IF($K104="Ongoing",BC104,IF(RIGHT($K104,2)=RIGHT(BY$39,2),SUM($AX104:BC104),0)+IF(RIGHT(BY$39,2)>RIGHT($K104,2),BC104,0)) -> 0 | BZ104: =+IF($K104="Ongoing",BD104,IF(RIGHT($K104,2)=RIGHT(BZ$39,2),SUM($AX104:BD104),0)+IF(RIGHT(BZ$39,2)>RIGHT($K104,2),BD104,0)) -> 0.7497 | CA104: =+IF($K104="Ongoing",BE104,IF(RIGHT($K104,2)=RIGHT(CA$39,2),SUM($AX104:BE104),0)+IF(RIGHT(CA$39,2)>RIGHT($K104,2),BE104,0)) -> 0 | CB104: =+IF($K104="Ongoing",BF104,IF(RIGHT($K104,2)=RIGHT(CB$39,2),SUM($AX104:BF104),0)+IF(RIGHT(CB$39,2)>RIGHT($K104,2),BF104,0)) -> 0 | CC104: =+IF($K104="Ongoing",BG104,IF(RIGHT($K104,2)=RIGHT(CC$39,2),SUM($AX104:BG104),0)+IF(RIGHT(CC$39,2)>RIGHT($K104,2),BG104,0)) -> 0 | CE104: =+Q104*KeyAssumptionsPriceControl_FO!AC$15 -> 0 | CF104: =+R104*KeyAssumptionsPriceControl_FO!AD$15 -> 0 | CG104: =+S104*KeyAssumptionsPriceControl_FO!AE$15 -> 0 | CH104: =+T104*KeyAssumptionsPriceControl_FO!AF$15 -> 0 | CI104: =+U104*KeyAssumptionsPriceControl_FO!AG$15 -> 0 | CJ104: =+V104*KeyAssumptionsPriceControl_FO!AH$15 -> 0 | CK104: =+W104*KeyAssumptionsPriceControl_FO!AI$15 -> 0.9220364369 | CL104: =+X104*KeyAssumptionsPriceControl_FO!AJ$15 -> 0 | CM104: =+Y104*KeyAssumptionsPriceControl_FO!AK$15 -> 0 | CN104: =+Z104*KeyAssumptionsPriceControl_FO!AL$15 -> 0 | CP104: 0 | CQ104: 0 | CR104: 0 | CS104: 0 | CT104: 0 | CU104: 0 | CV104: 0.0307345479 | CW104: 0.06146909579 | CX104: 0.06146909579 | CY104: 0.06146909579
C105: Emissions LGC Retirement | E105: Recycled Water | F105: Improvements / Compliance | G105: Corporate | H105: Other Capital expenditure | J105: Straight line | K105: Ongoing | L105: 15 | M105: 15 | V105: 0 | W105: 0.0306 | X105: 0 | Y105: 0 | Z105: 0 | AX105: 0 | AY105: 0 | AZ105: 0 | BA105: 0 | BB105: 0 | BC105: 0 | BD105: 0.0306 | BE105: 0 | BF105: 0 | BG105: 0 | BI105: 0 | BJ105: 0 | BK105: 0 | BL105: 0 | BM105: 0 | BN105: 0 | BO105: 0.00102 | BP105: 0.00204 | BQ105: 0.00204 | BR105: 0.00204 | BT105: =+IF($K105="Ongoing",AX105,IF(RIGHT($K105,2)=RIGHT(BT$39,2),SUM($AX105:AX105),0)+IF(RIGHT(BT$39,2)>RIGHT($K105,2),AX105,0)) -> 0 | BU105: =+IF($K105="Ongoing",AY105,IF(RIGHT($K105,2)=RIGHT(BU$39,2),SUM($AX105:AY105),0)+IF(RIGHT(BU$39,2)>RIGHT($K105,2),AY105,0)) -> 0 | BV105: =+IF($K105="Ongoing",AZ105,IF(RIGHT($K105,2)=RIGHT(BV$39,2),SUM($AX105:AZ105),0)+IF(RIGHT(BV$39,2)>RIGHT($K105,2),AZ105,0)) -> 0 | BW105: =+IF($K105="Ongoing",BA105,IF(RIGHT($K105,2)=RIGHT(BW$39,2),SUM($AX105:BA105),0)+IF(RIGHT(BW$39,2)>RIGHT($K105,2),BA105,0)) -> 0 | BX105: =+IF($K105="Ongoing",BB105,IF(RIGHT($K105,2)=RIGHT(BX$39,2),SUM($AX105:BB105),0)+IF(RIGHT(BX$39,2)>RIGHT($K105,2),BB105,0)) -> 0 | BY105: =+IF($K105="Ongoing",BC105,IF(RIGHT($K105,2)=RIGHT(BY$39,2),SUM($AX105:BC105),0)+IF(RIGHT(BY$39,2)>RIGHT($K105,2),BC105,0)) -> 0 | BZ105: =+IF($K105="Ongoing",BD105,IF(RIGHT($K105,2)=RIGHT(BZ$39,2),SUM($AX105:BD105),0)+IF(RIGHT(BZ$39,2)>RIGHT($K105,2),BD105,0)) -> 0.0306 | CA105: =+IF($K105="Ongoing",BE105,IF(RIGHT($K105,2)=RIGHT(CA$39,2),SUM($AX105:BE105),0)+IF(RIGHT(CA$39,2)>RIGHT($K105,2),BE105,0)) -> 0 | CB105: =+IF($K105="Ongoing",BF105,IF(RIGHT($K105,2)=RIGHT(CB$39,2),SUM($AX105:BF105),0)+IF(RIGHT(CB$39,2)>RIGHT($K105,2),BF105,0)) -> 0 | CC105: =+IF($K105="Ongoing",BG105,IF(RIGHT($K105,2)=RIGHT(CC$39,2),SUM($AX105:BG105),0)+IF(RIGHT(CC$39,2)>RIGHT($K105,2),BG105,0)) -> 0 | CE105: =+Q105*KeyAssumptionsPriceControl_FO!AC$15 -> 0 | CF105: =+R105*KeyAssumptionsPriceControl_FO!AD$15 -> 0 | CG105: =+S105*KeyAssumptionsPriceControl_FO!AE$15 -> 0 | CH105: =+T105*KeyAssumptionsPriceControl_FO!AF$15 -> 0 | CI105: =+U105*KeyAssumptionsPriceControl_FO!AG$15 -> 0 | CJ105: =+V105*KeyAssumptionsPriceControl_FO!AH$15 -> 0 | CK105: =+W105*KeyAssumptionsPriceControl_FO!AI$15 -> 0.03763414028 | CL105: =+X105*KeyAssumptionsPriceControl_FO!AJ$15 -> 0 | CM105: =+Y105*KeyAssumptionsPriceControl_FO!AK$15 -> 0 | CN105: =+Z105*KeyAssumptionsPriceControl_FO!AL$15 -> 0 | CP105: 0 | CQ105: 0 | CR105: 0 | CS105: 0 | CT105: 0 | CU105: 0 | CV105: 0.001254471343 | CW105: 0.002508942685 | CX105: 0.002508942685 | CY105: 0.002508942685
